Workbook

Sheet APT Proforma (hidden)
B2: Local Authority Funding Reform Proforma
B4: LA Name: | C4: Derby | I4: Total DSG schools block allocation
B5: LA Number: | C5: 831 | I5: Total Funding For Schools Block Formula as a percentage of DSG schools block allocation
I6: Total funding allocated to schools as a percentage of DSG schools block allocation
I7: Total funding allocated to growth and falling rolls as a percentage of DSG schools block allocation
C9: Premises costs to exclude from allocation when calculating the minimum funding level | D9: Mobility | E9: Rates | F9: PFI | G9: Split Sites
D10: No | E10: No | F10: No | G10: No
C11: Primary minimum per pupil funding level | D11: Secondary (KS3 only) minimum per pupil funding level | F11: Secondary (KS4 only) minimum per pupil funding level | H11: Secondary (KS3 and KS4) minimum per pupil funding level
C12: 3750 | D12: 4800 | F12: 5300 | H12: 5000
B14: Pupil Led Factors
B15: 1) Basic Entitlement Age Weighted Pupil Unit (AWPU) | C15: Reception uplift | D15: No | E15: Pupil Units | G15: 0
C16: Description | D16: Amount per pupil | F16: Pupil Units | H16: Sub Total | I16: Total | J16: Proportion of total pre MFG funding (%) | K16: Notional SEN (%)
C17: Primary (Years R-6) | D17: 2857 | F17: 23722.08333 | H17: 67773992.08 | I17: 133755437.6 | J17: 0.3608355813 | K17: 0.12
C18: Key Stage 3 (Years 7-9) | D18: 4018 | F18: 9821.75 | H18: 39463791.5 | J18: 0.2101092131 | K18: 0.097
C19: Key Stage 4 (Years 10-11) | D19: 4561 | F19: 5814 | H19: 26517654 | J19: 0.1411826691 | K19: 0.0863
C20: Description | D20: Primary amount per pupil | E20: Secondary amount per pupil | F20: Eligible proportion of primary NOR | G20: Eligible proportion of secondary NOR | H20: Sub Total | I20: Total | J20: Proportion of total pre MFG funding (%) | K20: Primary Notional SEN (%) | L20: Secondary Notional SEN (%)
B21: 2) Deprivation | C21: FSM | D21: 450 | E21: 450 | F21: 5368.525204 | G21: 2809.92307 | H21: 3680301.723 | I21: 21733516.89 | J21: 0.1157114397 | K21: 0.3525 | L21: 0.3525
C22: FSM6 | D22: 560 | E22: 815 | F22: 6788.22125 | G22: 5050.697471 | H22: 7917722.338 | K22: 0.3525 | L22: 0.3525
C23: IDACI Band F | D23: 210 | E23: 300 | F23: 2306.346194 | G23: 1462.131406 | H23: 922972.1225 | K23: 0.3525 | L23: 0.3525
C24: IDACI Band E | D24: 250 | E24: 405 | F24: 2045.45656 | G24: 1244.27682 | H24: 1015296.252 | K24: 0.3525 | L24: 0.3525
C25: IDACI Band D | D25: 375 | E25: 535 | F25: 2245.674549 | G25: 1298.627429 | H25: 1536893.63 | K25: 0.3525 | L25: 0.3525
C26: IDACI Band C | D26: 405 | E26: 580 | F26: 2914.977989 | G26: 1680.086184 | H26: 2155016.072 | K26: 0.3525 | L26: 0.3525
C27: IDACI Band B | D27: 435 | E27: 625 | F27: 3879.123035 | G27: 2298.286963 | H27: 3123847.872 | K27: 0.3525 | L27: 0.3525
C28: IDACI Band A | D28: 600 | E28: 840 | F28: 1260.478913 | G28: 744.2613447 | H28: 1381466.877 | K28: 0.3525 | L28: 0.3525
C29: Description | D29: Primary amount per pupil | E29: Secondary amount per pupil | F29: Eligible proportion of primary NOR | G29: Eligible proportion of secondary NOR | H29: Sub Total | I29: Total | J29: Proportion of total pre MFG funding (%) | K29: Primary Notional SEN (%) | L29: Secondary Notional SEN (%)
B30: 3) Looked After Children (LAC) | C30: LAC X March 19 | D30: 0 | F30: 125.6628543 | H30: 0 | I30: 3340108.743 | J30: 0 | K30: 0
B31: 4) English as an Additional Language (EAL) | C31: EAL 3 Primary | D31: 535 | F31: 4307.796469 | H31: 2304671.111 | J31: 0.01615672119 | K31: 0.4005
C32: EAL 3 Secondary | E32: 1440 | G32: 506.9216955 | H32: 729967.2416 | L32: 0.4005
B33: 5) Mobility | C33: Pupils starting school outside of normal entry dates | D33: 875 | E33: 1250 | F33: 241.5538325 | G33: 75.28862995 | H33: 305470.3909 | J33: 0.001626355224 | K33: 1 | L33: 1
C34: Description | D34: Weighting | E34: Amount per pupil (primary or secondary respectively) | F34: Percentage of eligible pupils | G34: Eligible proportion of primary and secondary NOR respectively | H34: Sub Total | I34: Total | J34: Proportion of total pre MFG funding (%) | K34: Primary Notional SEN (%) | L34: Secondary Notional SEN (%)
B35: 6) Prior attainment | C35: Primary Low Attainment | E35: 1065 | F35: 0.3471353219 | G35: 8234.773033 | H35: 8770033.281 | I35: 14856684.84 | J35: 0.07909849113 | K35: 0.3525
C36: Secondary low attainment (year 7) | D36: 0.64527134 | E36: 1610 | F36: 0.2548170961 | G36: 3780.528921 | H36: 6086651.562 | L36: 0.3525
C37: Secondary low attainment (year 8) | D37: 0.63585523 | F37: 0.2498280749
C38: Secondary low attainment (year 9) | D38: 0.58045405 | F38: 0.2451339123
C39: Secondary low attainment (year 10) | D39: 0.48019237 | F39: 0.2409440542
C40: Secondary low attainment (year 11) | F40: 0.2144722403
B42: Other Factors
B44: Factor | E44: Lump Sum per Primary School (£) | F44: Lump Sum per Secondary School (£) | G44: Lump Sum per Middle School (£) | H44: Lump Sum per All-through School (£) | I44: Total (£) | J44: Proportion of total pre MFG funding (%) | K44: Notional SEN (%)
B45: 7) Lump Sum | E45: 114400 | F45: 114400 | I45: 10067200 | J45: 0.05359878993
B46: 8) Sparsity factor | E46: 26000 | F46: 67600 | I46: 0 | J46: 0
B47: Please provide alternative distance and pupil number thresholds for the sparsity factor below. Please leave blank if you want to use the default thresholds. Also specify whether you want to use a tapered lump sum or the NFF weighting for any of the phases.
B48: Primary distance threshold (miles) | D48: Primary pupil number average year group threshold | H48: Fixed, tapered or NFF sparsity primary lump sum? | J48: Fixed
B49: Secondary distance threshold (miles) | D49: Secondary pupil number average year group threshold | H49: Fixed, tapered or NFF sparsity secondary lump sum? | J49: Fixed
B50: Middle schools distance threshold (miles) | D50: Middle school pupil number average year group threshold | H50: Fixed, tapered or NFF sparsity middle school lump sum? | J50: Fixed
B51: All-through schools distance threshold (miles) | D51: All-through pupil number average year group threshold | H51: Fixed, tapered or NFF sparsity all-through lump sum? | J51: Fixed
B52: 9) Fringe Payments | I52: 0 | J52: 0
B53: 10) Split Sites | I53: 0 | J53: 0
B54: 11) Rates | I54: 1389926.901 | J54: 0.007400111252
B55: 12) PFI funding | I55: 1150382 | J55: 0.006124749996
B56: 13 ) Exceptional circumstances (can only be used with prior agreement of ESFA)
B57: Circumstance | I57: Total (£) | J57: Proportion of total pre MFG funding (%) | K57: Notional SEN (%)
B58: Additional lump sum for schools amalgamated during FY19-20 | I58: 0 | J58: 0 | K58: 0 | L58: 0
B59: Additional sparsity lump sum for small schools | I59: 0 | J59: 0
B60: Exceptional Circumstance3 | I60: 0 | J60: 0
B61: Exceptional Circumstance4 | I61: 0 | J61: 0
B62: Exceptional Circumstance5 | I62: 0 | J62: 0
B63: Exceptional Circumstance6 | I63: 0 | J63: 0
B64: Exceptional Circumstance7 | I64: 0 | J64: 0
B66: Total Funding for Schools Block Formula (excluding minimum per pupil funding level and MFG Funding Total) | I66: 186293257 | J66: 0.991844122
B68: 14) Additional funding to meet minimum per pupil funding level | I68: 1531878.892 | J68: 0.008155877995
B69: Total Funding for Schools Block Formula (excluding MFG Funding Total) | I69: 187825135.9 | J69: 1
B71: 15) Funding floor protection (select Yes if applying this protection) | G71: No | I71: 0 | J71: 0
B72: Total Funding for Schools Block Formula (excluding MFG Funding Total)
B74: 15) Minimum Funding Guarantee | G74: 0.005 | I74: 6540.850891
B75: Where a value less than 0.5% or greater than 1.84% has been entered please provide the disapplication reference number authorising the value
B76: Apply capping and scaling factors? (gains may be capped above a specific ceiling and/or scaled) | I76: Yes
B77: Capping Factor (%) | C77: 0.1 | D77: Scaling Factor (%) | F77: 0.3
B79: Total deduction if capping and scaling factors are applied | I79: -98146.60001
I80: Total (£) | J80: Proportion of Total funding(%) | K80: Notional SEN (%)
B81: MFG Net Total Funding (MFG + deduction from capping and scaling) | D81: (Please note that the total deducation for capping and scaling is greater than the total MFG) | I81: -91605.74912 | J81: -0.000485888697
B82: Total Funding for Schools Block Formula | I82: 187733530.1 | K82: 28668229.53
B84: High Needs threshold (only fill in if, exceptionally, a high needs threshold different from £6,000 has been approved) | I84: 0
B85: Additional funding from the high needs budget | I85: 0
B86: Growth fund (if applicable) | I86: 798843.04
B87: Falling rolls fund (if applicable) | I87: 0
B89: Other Adjustment to 19-20 Budget Shares | I89: 0
B90: Total Funding For Schools Block Formula (including growth and falling rolls funding) | I90: 188532373.1
B91: % Distributed through Basic Entitlement | I91: 0.7121274635
B92: % Pupil Led Funding | I92: 0.9247204708
B93: Primary: Secondary Ratio | I93: 1 : | J93: 1.304181072

Sheet School Formula Budget 2020-21
C1: Early Years, Schools and High Needs Block Formula Budgets 2020/21
L3: =VLOOKUP(B5,'School & Nursery Setting Lookup'!A:G,5,FALSE) -> 0
B4: Please select your School or Nursery Setting Name in the cell below | F4: DfE No or Ofsted ID | H4: Setting Type
B5: CLICK ON THE ARROW BUTTON TO SELECT YOUR SCHOOL FROM THE LIST | F5: =VLOOKUP(B5,'School & Nursery Setting Lookup'!A:E,3,FALSE) -> 12345 | H5: =VLOOKUP(B5,'School & Nursery Setting Lookup'!A:G,4,FALSE) -> 0
C7: Early Years Nursery Funding 2020/21
B10: 1. Base Rate(s) per hour, per provider type. Setting Type | D10: Amount (£) | E10: May 2020 Term Hours | F10: Oct 2020 Term Hours | G10: Jan 2021 Term Hours | H10: Anticipated Total Budget (£) | L10: May 2020 Term Hours | M10: Oct 2020 Term Hours | N10: Jan 2021 Term Hours | P10: Anticipated Total Budget (£) | T10: May 2020 Term Hours | U10: Oct 2020 Term Hours | V10: Jan 2021 Term Hours
B11: M = Maintained Nursery at a School / Academy | C11: 4.38 | D11: per hour | E11: =IF($L$3=1,L11,0)+IF(L3=6,T11) -> 0 | F11: =IF($L$3=1,M11,0)+IF(L3=6,U11) -> 0 | G11: =IF($L$3=1,N11,0)+IF(L3=6,V11) -> 0 | H11: =IF($H$5=6,Q11,R11) -> 0 | L11: =VLOOKUP($F$5,'2020-21 Nursery Budget'!E:I,3,FALSE) ->  | M11: =VLOOKUP($F$5,'2020-21 Nursery Budget'!E:I,4,FALSE) ->  | N11: =VLOOKUP($F$5,'2020-21 Nursery Budget'!E:I,5,FALSE) ->  | P11: ='2020-21 Nursery Budget'!E252+'2020-21 Nursery Budget'!E253 -> 4385836.35 | Q11: =IF(F$5=12345,0,P11) -> 0 | R11: =SUM($E11+$F11+$G11)*$C11 -> 0 | T11: ='2020-21 Nursery Budget'!G252+'2020-21 Nursery Budget'!G253 -> 376269.5 | U11: ='2020-21 Nursery Budget'!H252+'2020-21 Nursery Budget'!H253 -> 311167 | V11: ='2020-21 Nursery Budget'!I252+'2020-21 Nursery Budget'!I253 -> 313896 | W11: M & A
B12: S = Stand Alone Maintained Nursery School | C12: 4.38 | E12: =IF($L$3=2,L12,0)+IF(L3=6,T12) -> 0 | F12: =IF($L$3=2,M12,0)+IF(L3=6,U12) -> 0 | G12: =IF($L$3=2,N12,0)+IF(L3=6,V12) -> 0 | H12: =IF($H$5=6,Q12,R12) -> 0 | L12: =VLOOKUP($F$5,'2020-21 Nursery Budget'!E:I,3,FALSE) ->  | M12: =VLOOKUP($F$5,'2020-21 Nursery Budget'!E:I,4,FALSE) ->  | N12: =VLOOKUP($F$5,'2020-21 Nursery Budget'!E:I,5,FALSE) ->  | P12: ='2020-21 Nursery Budget'!E251 -> 1343948.25 | Q12: =IF(F$5=12345,0,P12) -> 0 | R12: =SUM($E12+$F12+$G12)*$C12 -> 0 | T12: ='2020-21 Nursery Budget'!G251 -> 116240 | U12: ='2020-21 Nursery Budget'!H251 -> 95737.5 | V12: ='2020-21 Nursery Budget'!I251 -> 94860 | W12: S
B13: P = Pre School | C13: 4.38 | E13: =IF($L$3=3,L13,0)+IF(L3=6,T13) -> 0 | F13: =IF($L$3=3,M13,0)+IF(L3=6,U13) -> 0 | G13: =IF($L$3=3,N13,0)+IF(L3=6,V13) -> 0 | H13: =IF($H$5=6,Q13,R13) -> 0 | L13: =VLOOKUP($F$5,'2020-21 Nursery Budget'!E:I,3,FALSE) ->  | M13: =VLOOKUP($F$5,'2020-21 Nursery Budget'!E:I,4,FALSE) ->  | N13: =VLOOKUP($F$5,'2020-21 Nursery Budget'!E:I,5,FALSE) ->  | P13: ='2020-21 Nursery Budget'!E254 -> 4397338.23 | Q13: 0 | R13: 0 | T13: ='2020-21 Nursery Budget'!G254 -> 395028 | U13: ='2020-21 Nursery Budget'!H254 -> 277618.5 | V13: ='2020-21 Nursery Budget'!I254 -> 331312 | W13: P
B14: D = Day Nursery | C14: 4.38 | E14: =IF($L$3=4,L14,0)+IF(L3=6,T14) -> 0 | F14: =IF($L$3=4,M14,0)+IF(L3=6,U14) -> 0 | G14: =IF($L$3=4,N14,0)+IF(L3=6,V14) -> 0 | H14: =IF($H$5=6,Q14,R14) -> 0 | L14: =VLOOKUP($F$5,'2020-21 Nursery Budget'!E:I,3,FALSE) ->  | M14: =VLOOKUP($F$5,'2020-21 Nursery Budget'!E:I,4,FALSE) ->  | N14: =VLOOKUP($F$5,'2020-21 Nursery Budget'!E:I,5,FALSE) ->  | P14: ='2020-21 Nursery Budget'!E255 -> 3724377.51 | Q14: 0 | R14: =SUM($E14+$F14+$G14)*$C14 -> 0 | T14: ='2020-21 Nursery Budget'!G255 -> 353807.5 | U14: ='2020-21 Nursery Budget'!H255 -> 224761 | V14: ='2020-21 Nursery Budget'!I255 -> 271746 | W14: D
B15: Deprivation (Mandatory) Supplement | C15: Amount (£) | D15: Unit | E15: May 2020 Term Hours | F15: Oct 2020 Term Hours | G15: Jan 2021 Term Hours | H15: Anticipated Total Budget (£)
B16: IMD - top 20% most deprived | C16: 0.6 | D16: per hour | E16: =IF($L$3=0,0,L16) -> 0 | F16: =IF($L$3=0,0,M16) -> 0 | G16: 0 | H16: =SUM(E16+F16+G16)*C16 -> 0 | L16: =VLOOKUP($F$5,'2020-21 Nursery Budget'!E:O,9,FALSE) ->  | M16: =VLOOKUP($F$5,'2020-21 Nursery Budget'!E:O,10,FALSE) ->  | N16: =VLOOKUP($F$5,'2020-21 Nursery Budget'!E:O,11,FALSE) ->  | P16: =SUM(L16:N16)*C16 -> 
B17: IMD - 20% to 40% most deprived | C17: 0.2 | D17: per hour | E17: =IF($L$3=0,0,L17) -> 0 | F17: =IF($L$3=0,0,M17) -> 0 | G17: =IF($L$3=0,0,N17) -> 0 | H17: =SUM(E17+F17+G17)*C17 -> 0 | L17: =VLOOKUP($F$5,'2020-21 Nursery Budget'!E:S,13,FALSE) ->  | M17: =VLOOKUP($F$5,'2020-21 Nursery Budget'!E:S,14,FALSE) ->  | N17: =VLOOKUP($F$5,'2020-21 Nursery Budget'!E:S,15,FALSE) ->  | P17: =SUM(L17:N17)*C17 -> 
B18: EAL | C18: 0.2 | D18: per hour | E18: =IF($L$3=0,0,L18) -> 0 | F18: 0 | G18: 0 | H18: =SUM(E18+F18+G18)*C18 -> 0 | L18: =VLOOKUP($F$5,'2020-21 Nursery Budget'!E:Y,19,FALSE) ->  | M18: =VLOOKUP($F$5,'2020-21 Nursery Budget'!E:Y,20,FALSE) ->  | N18: =VLOOKUP($F$5,'2020-21 Nursery Budget'!E:Y,21,FALSE) ->  | P18: =SUM(L18:N18)*C18 -> 
B19: Other Supplements | C19: Amount (£) | D19: Unit | E19: Number of units | H19: Anticipated Total Budget (£)
B20: Disability Access Fund (see guidance notes) | C20: =IF(L3=6,80565,0) -> 0 | D20: lump sum | E20: =+IF(L3=6,1,0) -> 0 | H20: =IF(H5=6,C20,0) -> 0 | P20: =H20 -> 0
B21: SEN Locality Funding (see guidance notes) | C21: =IF(L3=6,500000,0) -> 0 | D21: lump sum | E21: =+IF(L3=6,1,0) -> 0 | H21: =IF(H5=6,500000,0) -> 0 | P21: =H21 -> 0
B22: 3. Other formula factors and lump sums (if applicable) | C22: Amount (£) | D22: Unit | E22: Number of units | H22: Anticipated Total Budget (£)
B23: Base for Stand Alone Maintained Nurseries | C23: 100000 | D23: lump sum | E23: =IF($L$3=2,1,0) -> 0 | H23: =IF(L3=6,700000,$E23*$C23) -> 0 | P23: =H23 -> 0
B24: Stand Alone Maintained Nursery Supplement Funding | C24: 1.26 | D24: per hour | E24: =IF($L$3=2,E12,"-") -> - | F24: =IF($L$3=2,F12,"-") -> - | G24: - | H24: =IF(L3=6,('2020-21 Nursery Budget'!D251*C24),(SUM(E24:G24)*C24)) -> 0 | L24: Check with Nursery Budget | P24: =H24 -> 0
B25: TOTAL FUNDING FOR EARLY YEARS SINGLE FUNDING FORMULA excluding Rates* | H25: =SUM(H11:H24) -> 0 | L25: =IFERROR(VLOOKUP(F5,'2020-21 Nursery Budget'!E:AC,25,FALSE)-VLOOKUP(F5,'2020-21 Nursery Budget'!E:AH,30,FALSE),0) -> 0 | M25: =L25-H25 -> 0 | P25: =SUM(P11:P24) -> 
B26: *Please note Early Years budgets are adjusted for actual hour take up in year
C29: High Needs Formula Budget 2020/21
D33: Element 1 & 2 Place Rate | G33: Number | H33: Total (£)
B34: Element 2 (Place led funding) - ERS Pre 16 | C34: See Separate breakdown | E34: 6000 | G34: =SUMIF('ERS 2020-21'!B:B,'School Formula Budget 2020-21'!F$5,'ERS 2020-21'!L:L)+SUMIF('ERS 2020-21'!B:B,'School Formula Budget 2020-21'!F$5,'ERS 2020-21'!M:M) -> 0 | H34: =$G34*$E34 -> 0
D35: Element 1 & 2 Place Rate | G35: Places | H35: Total (£)
B36: Element 2 (Place led funding) - ERS Post 16 | C36: See Separate breakdown | E36: 6000 | G36: =(SUMIF('ERS 2020-21'!B:B,'School Formula Budget 2020-21'!F$5,'ERS 2020-21'!O:O)) -> 0 | H36: =$G36*$E36 -> 0
D37: Indicative Element 3 Pupils (banding) funding | G37: Number | H37: Total (£)
B38: Element 3 - Derby City Pupils (banding) funding Pre & Post 16* | C38: See Separate breakdown | E38: =SUMIF('ERS 2020-21'!B:B,F5,'ERS 2020-21'!U:U) -> 0 | G38: 1 | H38: =$G38*$E38 -> 0
D39: Other Funding | G39: Number | H39: Total (£)
B40: ERS - Other | C40: See Separate breakdown | E40: =SUMIF('ERS 2020-21'!B:B,F5,'ERS 2020-21'!V:V)+SUMIF('ERS 2020-21'!B:B,F5,'ERS 2020-21'!W:W) -> 0 | G40: 1 | H40: =$G40*$E40 -> 0
G41: Number | H41: Total (£) | L41: Check with Summary for Prints
B42: High Needs Funding from Derby City / EFA* | C42: Including both Pre 16 & Post 16 Funding | H42: =H38+H40+H34+H36 -> 0 | L42: =SUMIF('Summary for Prints'!B:B,'School Formula Budget 2020-21'!F5,'Summary for Prints'!W:W)+SUMIF('Summary for Prints'!B:B,'School Formula Budget 2020-21'!F5,'Summary for Prints'!X:X)+SUMIF('Summary for Prints'!B:B,'School Formula Budget 2020-21'!F5,'Summary for Prints'!Y:Y)+SUMIF('Summary for Prints'!B:B,'School Formula Budget 2020-21'!F5,'Summary for Prints'!Z:Z) -> 0 | M42: =L42-H42 -> 0
D44: ERS Pupil Top up funding | G44: Number | H44: Total (£)
B45: Other LA Top up funding (Income not Budget. Academies to reclaim Element 3 from other LA's directly)* | C45: See Separate breakdown | E45: =SUMIF('ERS 2020-21'!B:B,F5,'ERS 2020-21'!Z:Z) -> 0 | G45: 1 | H45: =$G45*$E45 -> 0
B48: *Please note that High Needs top up funding follows the pupil, therefore funding will be adjusted in year where there are pupil movements
B51: =B5 -> CLICK ON THE ARROW BUTTON TO SELECT YOUR SCHOOL FROM THE LIST | F51: =F5 -> 12345 | H51: =H5 -> 0
C53: Schools Block Funding 2020/21
B57: Factor | C57: Description | D57: Primary amount per pupil | E57: Secondary KS3 amount per pupil | F57: Secondary KS4 amount per pupil | G57: Number of Pupils (Net of High Needs Places) | H57: Sub total (£) | I57: Delegated SEN % | J57: Delegated SEN funding within School Budget
B58: 1) Basic Entitlement - Age Weighted Pupil Funding (AWPU) | C58: Primary (including reception) | D58: ='APT Proforma'!D17 -> 2857 | G58: =IFERROR(VLOOKUP($F$5,AWPU!$B:$M,9,FALSE),0) -> 0 | H58: =G58*D58 -> 0 | I58: 0.12 | J58: =D58*G58*I58 -> 0
C59: Key Stage 3 | E59: ='APT Proforma'!D18 -> 4018 | G59: =IFERROR(VLOOKUP($F$5,AWPU!$B:$M,10,FALSE),0) -> 0 | H59: =G59*E59 -> 0 | I59: 0.097 | J59: =E59*G59*I59 -> 0
C60: Key Stage 4 | F60: ='APT Proforma'!D19 -> 4561 | G60: =IFERROR(VLOOKUP($F$5,AWPU!$B:$M,11,FALSE),0) -> 0 | H60: =G60*F60 -> 0 | I60: 0.0863 | J60: =F60*G60*I60 -> 0 | L60: Prim | M60: Sec
F61: Total | G61: =SUM(G58:G60) -> 0 | H61: =SUM(H58:H60) -> 0 | J61: =SUM(J58:J60) -> 0 | L61: =G61 -> 0 | M61: =G59+G60 -> 0
B63: De-delegation - see separate breakdown | C63: Primary (including reception) | D63: ='DE-DEL'!B123*-1 -> -69.398 | G63: =IFERROR(VLOOKUP($F$5,'DE-DEL'!$B:$M,9,FALSE),0) -> 0 | H63: =G63*D63 -> 0
C64: Secondary | E64: ='DE-DEL'!C123*-1 -> -58.218 | F64: =E64 -> -58.218 | G64: =IFERROR(VLOOKUP($F$5,'DE-DEL'!$B:$M,10,FALSE)+VLOOKUP($F$5,'DE-DEL'!$B:$M,11,FALSE),0) -> 0 | H64: =G64*F64 -> 0
F65: Total | G65: =SUM(G63:G64) -> 0 | H65: =SUM(H63:H64) -> 0
D66: Primary amount per pupil | E66: Secondary amount per pupil | F66: Number of eligible primary pupils | G66: Number of eligible secondary pupils | H66: Sub total (£) | I66: Notional SEN % | J66: Notional SEN within School Budget
B67: 2) Deprivation | Q67: 17742138.39 | R67: Bemrose | T67: Adj
C68: FSM Current | D68: ='APT Proforma'!D21 -> 450 | E68: ='APT Proforma'!E21 -> 450 | F68: =IFERROR(VLOOKUP($F$5,DEP!$B:$AG,19,FALSE),0) -> 0 | G68: =IFERROR(VLOOKUP($F$5,DEP!$B:$AG,20,FALSE)+IF($F$5=4177,DEP!U104),0) -> 0 | H68: =$D68*$F68+($E68*$G68) -> 0 | I68: 0.3525 | J68: =I68*H68 -> 0 | L68: =DEP!R107 -> 6788.22125 | M68: =DEP!S107 -> 5050.697471 | R68: 92.66225166 | S68: 412.0506706 | T68: 306.6276423 | U68: =S68-T68 -> 105.4230284
C69: FSM Ever 6 | D69: ='APT Proforma'!D22 -> 560 | E69: ='APT Proforma'!E22 -> 815 | F69: =IFERROR(VLOOKUP($F$5,DEP!$B:$AG,17,FALSE),0) -> 0 | G69: =IFERROR(VLOOKUP($F$5,DEP!$B:$AG,18,FALSE)+IF($F$5=4177,DEP!S104),0) -> 0 | H69: =$D69*$F69+($E69*$G69) -> 0 | I69: 0.3525 | J69: =I69*H69 -> 0 | L69: =DEP!T107 -> 5368.525204 | M69: =DEP!U107 -> 2809.92307
C70: IDACI Band F 0.2 - 0.25 | D70: ='APT Proforma'!D23 -> 210 | E70: ='APT Proforma'!E23 -> 300 | F70: =IFERROR(VLOOKUP($F$5,DEP!$B:$AG,21,FALSE),0) -> 0 | G70: =IFERROR(VLOOKUP($F$5,DEP!$B:$AG,22,FALSE)+IF($F$5=4177,DEP!W104),0) -> 0 | H70: =$D70*$F70+($E70*$G70) -> 0 | I70: 0.3525 | J70: 0 | L70: =DEP!V107 -> 2306.346194 | M70: =DEP!W107 -> 1462.131406 | R70: 21.16981132 | S70: 54.55524862 | T70: 9.296235679 | U70: =S70-T70 -> 45.25901294
C71: IDACI Band E 0.25 - 0.3 | D71: ='APT Proforma'!D24 -> 250 | E71: ='APT Proforma'!E24 -> 405 | F71: =IFERROR(VLOOKUP($F$5,DEP!$B:$AG,23,FALSE),0) -> 0 | G71: =IFERROR(VLOOKUP($F$5,DEP!$B:$AG,24,FALSE)+IF($F$5=4177,DEP!Y104),0) -> 0 | H71: 0 | I71: 0.3525 | J71: 0 | L71: =DEP!X107 -> 2045.45656 | M71: =DEP!Y107 -> 1244.27682 | R71: 46.0754717 | S71: 32.92127072 | T71: 109.695581 | U71: -76.7743103
C72: IDACI Band D 0.3 - 0.35 | D72: ='APT Proforma'!D25 -> 375 | E72: ='APT Proforma'!E25 -> 535 | F72: =IFERROR(VLOOKUP($F$5,DEP!$B:$AG,25,FALSE),0) -> 0 | G72: =IFERROR(VLOOKUP($F$5,DEP!$B:$AG,26,FALSE)+IF($F$5=4177,DEP!AA104),0) -> 0 | H72: 0 | I72: 0.3525 | J72: 0 | L72: =DEP!Z107 -> 2245.674549 | M72: =DEP!AA107 -> 1298.627429 | R72: 26.1509434 | S72: 81.83287293 | T72: 158.0360065 | U72: -76.20313362
C73: IDACI Band C 0.35 - 0.4 | D73: ='APT Proforma'!D26 -> 405 | E73: ='APT Proforma'!E26 -> 580 | F73: =IFERROR(VLOOKUP($F$5,DEP!$B:$AG,27,FALSE),0) -> 0 | G73: =IFERROR(VLOOKUP($F$5,DEP!$B:$AG,28,FALSE)+IF($F$5=4177,DEP!AC104),0) -> 0 | H73: 0 | I73: 0.3525 | J73: 0 | L73: =DEP!AB107 -> 2914.977989 | M73: =DEP!AC107 -> 1680.086184 | R73: 85.9245283 | S73: 211.6367403 | T73: 153.3878887 | U73: 58.24885162
C74: IDACI Band B 0.4 - 0.5 | D74: ='APT Proforma'!D27 -> 435 | E74: ='APT Proforma'!E27 -> 625 | F74: =IFERROR(VLOOKUP($F$5,DEP!$B:$AG,29,FALSE),0) -> 0 | G74: =IFERROR(VLOOKUP($F$5,DEP!$B:$AG,30,FALSE)+IF($F$5=4177,DEP!AE104),0) -> 0 | H74: 0 | I74: 0.3525 | J74: 0 | L74: =DEP!AD107 -> 3879.123035 | M74: =DEP!AE107 -> 2298.286963 | R74: 31.13207547 | S74: 221.0428177 | T74: 56.70703764 | U74: 164.33578
C75: IDACI Band A 0.5 -1.0 | D75: ='APT Proforma'!D28 -> 600 | E75: ='APT Proforma'!E28 -> 840 | F75: =IFERROR(VLOOKUP($F$5,DEP!$B:$AG,31,FALSE),0) -> 0 | G75: =IFERROR(VLOOKUP($F$5,DEP!$B:$AG,32,FALSE)+IF($F$5=4177,DEP!AG104),0) -> 0 | H75: 0 | I75: 0.3525 | J75: =I75*H75 -> 0 | L75: =DEP!AF107 -> 1260.478913 | M75: =DEP!AG107 -> 744.2613447 | R75: 4.981132075 | S75: 35.74309392 | T75: 46.4811784 | U75: -10.73808447
E76: Total | F76: =SUM(F67:F75) -> 0 | G76: =SUM(G67:G75) -> 0 | H76: =SUM(H67:H75) -> 0 | J76: =SUM(J68:J75) -> 0
D77: Amount per pupil | G77: Number of Pupils | H77: Total (£) | J77: Total
B78: 3) Prior Attainment | C78: Primary Low prior attainment | E78: ='APT Proforma'!E35 -> 1065 | G78: =IFERROR(VLOOKUP($F$5,LCHI!B:H,6,FALSE),0) -> 0 | H78: =$G78*$E78 -> 0 | I78: 0.3525 | J78: =I78*H78 -> 0
C79: Secondary pupils not achieving (KS2 English or Maths) | E79: ='APT Proforma'!E36 -> 1610 | G79: =IFERROR(VLOOKUP($F$5,LCHI!B:H,7,FALSE),0) -> 0 | H79: =$G79*$E79 -> 0 | I79: 0.3525 | J79: =I79*H79 -> 0
D80: Amount per pupil | G80: Number of Pupils | H80: Total (£) | J80: Total (£)
B81: 4) English as an Additional Language | C81: Primary pupils EAL funded for first 3 years in Statutory Education | E81: ='APT Proforma'!D31 -> 535 | G81: =IFERROR(VLOOKUP($F$5,EAL!B:D,2,FALSE),0) -> 0 | H81: =$G81*$E81 -> 0 | I81: 0.4005 | J81: =I81*H81 -> 0
C82: Secondary pupils EAL funded for first 3 years in Statutory Education | E82: ='APT Proforma'!E32 -> 1440 | G82: =IFERROR(VLOOKUP($F$5,EAL!B:D,3,FALSE),0) -> 0 | H82: =$G82*$E82 -> 0 | I82: 0.4005 | J82: =I82*H82 -> 0
D83: % of NOR | E83: Amount per pupil | G83: Number of Pupils | H83: Total (£) | J83: Total (£)
B84: 5) Mobility | C84: Primary pupils included in the October School Census who did not start in August or September (Last 3 academic years) | D84: =IFERROR(G84/G58,0) -> 0 | E84: ='APT Proforma'!D33 -> 875 | G84: =IFERROR(VLOOKUP($F$5,MOB!$B:$D,2,FALSE),0) -> 0 | H84: =$G84*$E84 -> 0 | I84: 1 | J84: =I84*H84 -> 0
B85: Mobility is calculated after deducting 6% threshold level | C85: Secondary pupils included in the October School Census who did not start in August or September (Last 3 academic years) | D85: =IFERROR(G85/(G59+G60),0) -> 0 | E85: ='APT Proforma'!E33 -> 1250 | G85: =IFERROR(VLOOKUP($F$5,MOB!B:D,3,FALSE),0) -> 0 | H85: =$G85*$E85 -> 0 | I85: 1 | J85: =I85*H85 -> 0
D86: Amount of lump sum | G86: Number | H86: Total (£)
B87: 6) Lump Sum | E87: =IFERROR(VLOOKUP($F$5,'Summary for Prints'!B:AC,8,FALSE),0) -> 0 | G87: 1 | H87: =$G87*$E87 -> 0
D88: Amount of split site funding | G88: Number | H88: Total (£)
B89: 7) Split Site | E89: 0 | G89: 1 | H89: =$G89*$E89 -> 0
D90: Amount of PFI funding | G90: Number | H90: Total (£)
B91: PFI to be paid back to the LA | E91: =IFERROR(VLOOKUP($F$5,'Summary for Prints'!B:AC,11,FALSE),0) -> 0 | G91: 1 | H91: =$G91*$E91 -> 0
D92: Minimum Funding Guarantee (0%) | G92: Number | H92: Total (£)
B93: Minimum Funding level per pupil / MFG / Capping & Scaling | E93: =IFERROR(VLOOKUP($F$5,'Summary for Prints'!B:AC,13,FALSE)+VLOOKUP($F$5,'Summary for Prints'!B:AC,16,FALSE),0) -> 0 | G93: 1 | H93: =$G93*$E93 -> 0 | J93: Total Delegated SEN funding within the School Budget
D94: CAP | G94: Number | H94: Total (£)
B95: Schools Block Total excluding Rates | H95: =H61+H76+H78+H79+H81+H82+H84+H85+H87+H89+H91+H93+H65 -> 0 | J95: =J61+J76+J78+J79+J81+J82+J84+J85+J87+J89+J91+J65 -> 0
B97: Additional Funding | C97: KS1 Class Factor
G99: Number | H99: Total (£)
B100: KS1 Class Factor (Teacher required for 1:30 pupils ratio) | E100: =IFERROR(VLOOKUP($F$5,'Summary for Prints'!B:AC,20,FALSE),0) -> 0 | G100: 1 | H100: =$G100*$E100 -> 0
C102: RATES
G104: Number | H104: Total (£)
B105: RATES 2020-21 (Including previous year adjustments) | E105: =IFERROR(VLOOKUP($F$5,'Summary for Prints'!B:AC,10,FALSE),0) -> 0 | G105: 1 | H105: =$G105*$E105 -> 0
L106: Checks with 'Summary for Prints' tab
B108: School Budget INCLUDING Early Years, Schools Block and High Needs (excl other LA Top up), KS1 Class Factor, Contingency - INCLUDING RATES | I108: =$H25+$H42+$H95+$H100+$H105 -> 0 | L108: =VLOOKUP(F5,'Summary for Prints'!B:AL,37,FALSE) ->  | M108: =L108-I108 -> 
B110: School Budget INCLUDING Early Years, Schools Block and High Needs (excl other LA Top up), KS1 Class Factor, Contingency - EXCLUDING RATES | I110: =I108-H105 -> 0 | L110: =VLOOKUP(F5,'Summary for Prints'!B:AN,39,FALSE) ->  | M110: =L110-I110 -> 
C113: Sixth Form
D115: Indicative Sixth Form (not yet known) | G115: Number | H115: Total (£)
B116: Indicative Sixth Form | C116: Figures not yet confirmed | E116: 0 | G116: 1 | H116: =E116*G116 -> 0
C118: De-delegation from Maintained Schools 2020-21
D119: Primary Rate | E119: Secondary Rate | F119: Primary net NOR | G119: Secondary Net NOR | H119: Total (£)
B120: CFR code E23 | C120: Contingencies (SIFD & Contingencies) | D120: ='DE-DEL'!B115*-1 -> -6.44 | E120: ='DE-DEL'!C115*-1 -> -6.44 | F120: =IFERROR(VLOOKUP($F$5,'DE-DEL'!$B:$M,9,FALSE),0) -> 0 | G120: =IFERROR(VLOOKUP($F$5,'DE-DEL'!$B:$M,10,FALSE)+VLOOKUP($F$5,'DE-DEL'!$B:$M,11,FALSE),0) -> 0 | H120: =D120*F120+E120*G120 -> 0
D121: Rate | E121: Rate | F121: Prim Net NOR | G121: Sec Net NOR | H121: Total (£)
B122: CFR code E23 | C122: Insurance | D122: ='DE-DEL'!B117*-1 -> -13.948 | E122: ='DE-DEL'!C117*-1 -> -13.948 | F122: =IFERROR(VLOOKUP($F$5,'DE-DEL'!$B:$M,9,FALSE),0) -> 0 | G122: =IFERROR(VLOOKUP($F$5,'DE-DEL'!$B:$M,10,FALSE)+VLOOKUP($F$5,'DE-DEL'!$B:$M,11,FALSE),0) -> 0 | H122: =D122*F122+E122*G122 -> 0
D123: Rate | E123: Rate | F123: Prim Net NOR | G123: Sec Net NOR | H123: Total (£)
B124: CFR code E19 | C124: Staff Costs Supply | D124: ='DE-DEL'!B119*-1 -> -23.66 | E124: ='DE-DEL'!C119*-1 -> -23.66 | F124: =IFERROR(VLOOKUP($F$5,'DE-DEL'!$B:$M,9,FALSE),0) -> 0 | G124: =IFERROR(VLOOKUP($F$5,'DE-DEL'!$B:$M,10,FALSE)+VLOOKUP($F$5,'DE-DEL'!$B:$M,11,FALSE),0) -> 0 | H124: =D124*F124+E124*G124 -> 0
D125: Rate | E125: Rate | F125: Prim Net NOR | G125: Sec Net NOR | H125: Total (£)
B126: CFR code E27 | C126: Support UAG and Bilingual | D126: ='DE-DEL'!B120*-1 -> -14.17 | E126: ='DE-DEL'!C120*-1 -> -14.17 | F126: =IFERROR(VLOOKUP($F$5,'DE-DEL'!$B:$M,9,FALSE),0) -> 0 | G126: =IFERROR(VLOOKUP($F$5,'DE-DEL'!$B:$M,10,FALSE)+VLOOKUP($F$5,'DE-DEL'!$B:$M,11,FALSE),0) -> 0 | H126: =D126*F126+E126*G126 -> 0
D127: Rate | E127: Rate | F127: Prim Net NOR | G127: Sec Net NOR | H127: Total (£)
B128: CFR code E27 | C128: Behaviour Support | D128: ='DE-DEL'!B121*-1 -> -11.18 | E128: ='DE-DEL'!C121*-1 -> 0 | F128: =IFERROR(VLOOKUP($F$5,'DE-DEL'!$B:$M,9,FALSE),0) -> 0 | G128: =IFERROR(VLOOKUP($F$5,'DE-DEL'!$B:$M,10,FALSE)+VLOOKUP($F$5,'DE-DEL'!$B:$M,11,FALSE),0) -> 0 | H128: =D128*F128+E128*G128 -> 0
H129: Total (£)
B130: CFR Code I01 | C130: LA Services De-delegated from maintained schools | H130: =H120+H122+H124+H126+H128 -> 0
C135: Academies & other non maintained Schools - to be confirmed
D136: Primary Rate | E136: Secondary Rate | F136: Primary net NOR | G136: Secondary Net NOR | H136: Total (£)
C137: Staff Costs Supply | D137: -21.14 | E137: -21.14 | F137: =IF($H$130>0,,L$61) -> 0 | G137: =IF($H$130>0,,M$61) -> 0 | H137: =D137*F137+E137*G137 -> 0
D138: Rate | E138: Rate | F138: Prim Net NOR | G138: Sec Net NOR | H138: Total (£)
C139: Support UAG and Bilingual | D139: -9.7 | E139: -11.93 | F139: =IF($H$130>0,,L$61) -> 0 | G139: =IF($H$130>0,,M$61) -> 0 | H139: =D139*F139+E139*G139 -> 0
D140: Rate | E140: Rate | F140: Prim Net NOR | G140: Sec Net NOR | H140: Total (£)
C141: Behaviour Support - Secondary Hard to Place & Support to Inclusion | D141: -21.89 | E141: -16.8 | F141: =IF($H$130>0,,L$61) -> 0 | G141: =IF($H$130>0,,M$61) -> 0 | H141: =D141*F141+E141*G141 -> 0
H142: Total (£)
C143: LA Services to be Invoiced to non maintained schools | H143: =H141+H139+H137 -> 0

Sheet Special Schools & PRU
B1: Special School Budgets 2020/21
B2: Please select your school in the cell below
B3: CLICK ON THE ARROW BUTTON TO SELECT YOUR SCHOOL FROM THE LIST
D4: DFE
D5: =VLOOKUP($B$3,'Special Schools List'!A:C,3,FALSE) -> All
B7: High Needs Formula Indicative 2020/21
C8: Places | D8: Rate | E8: Total (£)
B9: Element 1 & 2 (Place led funding) - Special Schools Pre 16 | C9: =SUMIF('Special Schools 2020-21'!C:C,D5,'Special Schools 2020-21'!I:I) -> 656 | D9: 10000 | E9: =D9*C9 -> 6560000
C10: Places | D10: Rate | E10: Total (£)
B11: Element 1 & 2 (Place led funding) - Special Schools Post 16 | C11: =SUMIF('Special Schools 2020-21'!C:C,D5,'Special Schools 2020-21'!J:J) -> 80 | D11: 10000 | E11: =D11*C11 -> 800000
C12: Places | E12: Total (£)
B13: Element 1 & 2 (Place led funding) - Alternative Provision | C13: =SUMIF('Special Schools 2020-21'!C:C,D5,'Special Schools 2020-21'!H:H) -> 100 | D13: 10000 | E13: =C13*D13 -> 1000000
E14: Total (£)
B15: Element 3 - Derby City Pupils (banding) funding Pre 16* | C15: See separate breakdown sheet | E15: =SUMIF('Special Schools 2020-21'!$C:$C,$D$5,'Special Schools 2020-21'!$T:$T) -> 7776609.884
E16: Total (£)
B17: Element 3 - Derby City Pupils (banding) funding Post 16* | C17: See separate breakdown sheet | E17: =SUMIF('Special Schools 2020-21'!$C:$C,$D$5,'Special Schools 2020-21'!$U:$U) -> 1017970.262
E18: Total (£)
B19: Residential Places | C19: See separate breakdown sheet | E19: =SUMIF('Special Schools 2020-21'!$C:$C,$D$5,'Special Schools 2020-21'!$V:$V) -> 234360
E20: Total (£)
B21: Other - Exceptional Payments | C21: See separate breakdown sheet | E21: =SUMIF('Special Schools 2020-21'!$C:$C,$D$5,'Special Schools 2020-21'!$W:$W) -> 238359.33
E22: Total (£)
B23: MFG | E23: =SUMIF('Special Schools 2020-21'!$C:$C,$D$5,'Special Schools 2020-21'!$Y:$Y) -> 20959
E24: Total (£)
B25: PFI | E25: =SUMIF('Special Schools 2020-21'!$C:$C,$D$5,'Special Schools 2020-21'!$Z:$Z) -> 94219.29285
E26: Total (£)
B27: High Needs Funding from Derby City LA / EFA* | E27: =E9+E11+E13+E15+E17+E21+E25+E19+E23 -> 17742477.77
C28: No.of Pupils | E28: Total (£)
B29: Element 3 - Other LA (banding) funding (Academies to reclaim Element 3 from other LA's directly)* | C29: =SUMIF('Special Schools 2020-21'!C:C,D5,'Special Schools 2020-21'!M:M)+SUMIF('Special Schools 2020-21'!C:C,D5,'Special Schools 2020-21'!N:N) -> 62 | D29: See separate breakdown sheet | E29: =SUMIF('Special Schools 2020-21'!$C:$C,$D$5,'Special Schools 2020-21'!$AB:$AB) -> 538970.2656
B31: *Please note that High Needs top up funding follows the pupil, therefore funding will be adjusted in year where there are pupil movements

Sheet ERS 2020-21 (hidden)
A1: ERS Funding | L1: 6000
I2: NO of places | L2: A | M2: B | O2: C | U2: D | V2: E | W2: F | Z2: G
A3: School | B3: DfE | C3: Phase | D3: 2019/20 places as per SLA/EFA return - Pre/post 16 | E3: Banding 2018/19 | F3: Banding 2019/20 | G3: Banding 2020/21 | I3: Element 2 Places funded (Average for Alvaston and St Bens due to reduction in places) | L3: DCC Pre 16 E3 | M3: Other LA Pre 16 E3 | N3: Total | O3: DCC Post 16 | P3: Empty Places E1 | Q3: TOTAL including VACANT places | S3: Element 1 & 2 (Place Funding) | T3: E1 empty places | U3: Element 3 (Top Up Funding DCC) | V3: Exceptional Payments | W3: Other Adj | X3: TOTAL DCC | Z3: Element 3 (Top Up Funding Other LA) | AA3: Total School Funding | AB3: Vacant top up funding (element 3) | AC3: comment | AD3: Check to individual sheets | AE3: Variance | AG3: DCC places 19/20 budget | AH3: 2019/20 Budget incl OOA | AI3: Variance | AJ3: 2019/20 Budget excl OOA | AK3: Variance
S4: 6000 | T4: 4000
S5: 0
A6: Allestree Woodlands Community School | B6: 5414 | C6: Secondary | D6: 14 | E6: 6000 | F6: 6000 | G6: 6000 | I6: 14 | L6: 12 | M6: 2 | N6: =SUM(L6:M6) -> 14 | P6: 0 | Q6: 14 | S6: =I6*6000 -> 84000 | U6: 72000 | V6: 0 | X6: 164000 | Z6: 12000 | AA6: 176000 | AB6: 0 | AD6: 156000 | AE6: 12000 | AG6: 13 | AH6: 162000 | AI6: 14000 | AJ6: 150000 | AK6: 14000
A7: Alvaston Junior Community School | B7: 2442 | C7: Primary | D7: 6.416666667 | E7: 5500 | F7: 5500 | G7: 5500 | I7: 6.416666667 | L7: =I7-M7 -> 5.416666667 | M7: 1 | N7: =SUM(L7:M7) -> 6.416666667 | P7: 1 | Q7: 6.416666667 | S7: 38500 | T7: 4000 | U7: 22000 | V7: 0 | X7: 60500 | Z7: 5500 | AA7: 66000 | AB7: 6000 | AD7: 60500 | AE7: 5500 | AG7: 9 | AH7: 94375 | AI7: -28375 | AJ7: 88875 | AK7: -28375
A8: Brackensdale Infant School | B8: 2432 | C8: Primary | D8: 16 | E8: 8000 | F8: 8000 | G8: 8000 | I8: 16 | L8: 16 | M8: 0 | N8: 16 | P8: 0 | Q8: 16 | S8: 96000 | U8: 128000 | V8: 0 | X8: 224000 | Z8: 0 | AA8: 224000 | AB8: 0 | AE8: 224000 | AG8: 20 | AH8: 280000 | AI8: -56000 | AJ8: 280000 | AK8: -56000
A9: Brackensdale Junior School | B9: 2432 | C9: Primary | D9: 37 | E9: 8700 | F9: 8400 | G9: 8000 | I9: 37 | L9: 36 | M9: 1 | N9: 37 | P9: 0 | Q9: 37 | S9: 222000 | U9: 288000 | V9: 0 | X9: 510000 | Z9: 8000 | AA9: 518000 | AB9: 0 | AD9: 742000 | AE9: -224000 | AG9: 34 | AH9: 473800 | AI9: 44200 | AJ9: 473800 | AK9: 36200
A10: Lees Brook Community | B10: 4006 | C10: Secondary | D10: 4 | E10: 5500 | F10: 5500 | G10: 5500 | I10: 4 | L10: 4 | M10: 0 | N10: 4 | P10: 3 | Q10: 4 | S10: 24000 | T10: 12000 | U10: 22000 | V10: 0 | X10: 46000 | Z10: 0 | AA10: 46000 | AB10: 0 | AD10: 92500 | AE10: -46500 | AG10: 4 | AH10: 76000 | AI10: -30000 | AJ10: 76000 | AK10: -30000
A11: Lees Brook Community - Post 16 | B11: 4006 | C11: Secondary | D11: 5 | E11: 5500 | F11: 5500 | G11: 5500 | I11: 5 | L11: 0 | M11: 0 | N11: 0 | O11: 5 | P11: 0 | Q11: 5 | S11: 30000 | U11: 16500 | V11: 0 | X11: 46500 | Z11: 0 | AA11: 46500 | AB11: 11000 | AD11: 0 | AE11: 46500 | AG11: 4 | AH11: 52000 | AI11: -5500 | AJ11: 52000 | AK11: -5500
A12: Markeaton Primary School | B12: 2436 | C12: Primary | D12: 4 | E12: 22980 | F12: 22980 | G12: 22980 | I12: 4 | L12: 4 | M12: 0 | N12: 4 | P12: 0 | Q12: 4 | S12: 24000 | U12: 68940 | V12: 0 | X12: 92940 | Z12: 0 | AA12: 92940 | AB12: 22980 | AD12: 92940 | AE12: 0 | AG12: 3 | AH12: 92940 | AI12: 0 | AJ12: 92940 | AK12: 0
A13: Reigate Primary School | B13: 2020 | C13: Primary | D13: 22.16666667 | E13: 6000 | F13: 6000 | G13: 6000 | I13: 22.16666667 | L13: 18.16666667 | M13: 4 | N13: 22.16666667 | P13: 11 | Q13: 22.16666667 | S13: =I13*6000 -> 133000 | T13: 44000 | U13: 66000 | V13: 0 | X13: 243000 | Z13: 24000 | AA13: 267000 | AB13: 18000 | AD13: 199000 | AE13: 24000 | AG13: 18 | AH13: 264000 | AI13: 3000 | AJ13: 252000 | AK13: -9000
A14: Saint Benedict Catholic School | B14: 4607 | C14: Secondary | D14: 16.66666667 | E14: 10000 | F14: 10000 | G14: 10000 | I14: 16.66666667 | L14: 16.66666667 | M14: 0 | N14: 16.66666667 | P14: 6 | Q14: 16.66666667 | S14: =I14*6000 -> 100000 | T14: 24000 | U14: 150000 | V14: 33852.61 | W14: 25000 | X14: 328852.61 | Z14: 0 | AA14: 328852.61 | AB14: 0 | AC14: Parapetetic teacher | AD14: 315852.61 | AE14: -7000 | AF14: OK - teacher | AG14: 13 | AH14: 277662 | AI14: 51190.61 | AJ14: 277662 | AK14: 51190.61
A15: Saint Benedict Catholic School - Post 16 | B15: 4607 | C15: Secondary | D15: 2 | E15: 10000 | F15: 10000 | G15: 10000 | I15: 2 | L15: 0 | M15: 0 | N15: 0 | O15: 2 | P15: 0 | Q15: 2 | S15: =I15*6000 -> 12000 | U15: 20000 | V15: 0 | X15: 32000 | Z15: 0 | AA15: 32000 | AB15: 0 | AD15: 0 | AE15: 32000 | AG15: 2 | AH15: 56000 | AI15: -24000 | AJ15: 56000 | AK15: -24000
A16: Springfield | B16: 2466 | C16: Primary | D16: 30 | E16: 8000 | F16: 8000 | G16: 8000 | I16: 30 | L16: 30 | M16: 0 | N16: 30 | P16: 0 | Q16: 30 | S16: =I16*6000 -> 180000 | U16: 240000 | V16: 0 | X16: 428000 | Z16: 0 | AA16: 428000 | AB16: 0 | AD16: 420000 | AE16: 0 | AG16: 25 | AH16: 380000 | AI16: 48000 | AJ16: 380000 | AK16: 48000
A17: The Bemrose Community School | B17: 4177 | C17: Secondary | D17: 45 | E17: 9000 | F17: 9000 | G17: 9000 | I17: 45 | L17: 44 | M17: 1 | N17: 45 | P17: 0 | Q17: 45 | S17: =I17*6000 -> 270000 | U17: 297000 | V17: 0 | X17: 567000 | Z17: 9000 | AA17: 576000 | AB17: 99000 | AD17: 576000 | AE17: 0 | AG17: 31 | AH17: 549000 | AI17: 27000 | AJ17: 549000 | AK17: 18000
A18: TOTAL ERS Schools | D18: =SUM(D6:D17) -> 202.25 | I18: =SUM(I6:I17) -> 202.25 | L18: =SUM(L6:L17) -> 186.25 | M18: 9 | N18: 195.25 | O18: 7 | P18: 21 | Q18: 202.25 | S18: =SUM(S6:S17) -> 1213500 | T18: 84000 | U18: 1390440 | V18: 33852.61 | W18: 25000 | X18: 2742792.61 | Z18: =SUM(Z6:Z17) -> 58500 | AA18: 2801292.61 | AB18: 156980 | AD18: =SUM(AD6:AD17) -> 2654792.61 | AE18: 66500 | AG18: 176
A20: Central Nursery | B20: 1006 | C20: Nursery | S20: 0 | U20: 0 | X20: 0 | AA20: 0 | AB20: 0 | AD20: 0 | AH20: 142055 | AI20: -142055 | AJ20: 142055 | AK20: -142055
A21: Lord St Nursery | B21: 1005 | C21: Nursery | S21: 0 | U21: 0 | X21: 0 | AA21: 0 | AB21: 0 | AD21: 0 | AH21: 110000 | AI21: -110000 | AJ21: 110000 | AK21: -110000
A23: Total | B23: ALL | D23: =SUM(D18:D22) -> 202.25 | I23: =SUM(I18:I22) -> 202.25 | L23: =SUM(L18:L22) -> 186.25 | M23: 9 | N23: 195.25 | O23: 7 | P23: 21 | Q23: 202.25 | S23: =SUM(S18:S22) -> 1213500 | T23: 84000 | U23: 1390440 | V23: 33852.61 | W23: 25000 | X23: 2742792.61 | Z23: =SUM(Z18:Z22) -> 58500 | AA23: 2801292.61 | AB23: 156980 | AD23: =SUM(AD18:AD22) -> 2654792.61 | AE23: 66500 | AH23: 3009832 | AI23: -208539.39 | AJ23: 2980332 | AK23: -237539.39
A24: Recoupement E2 places | X24: -582000
A25: E1 recoupement for empty places | X25: -150000
A26: E1 empty places not built in 20 places offset by Sept adjustments | X26: 50500
A27: 50% of Vacant places as contingency+5k | X27: 79490
A28: TOTAL ERS Budget | X28: 2144782.61
Q31: Academy | S31: 601500 | U31: 608500 | V31: 33852.61 | W31: 25000
Q32: Maintained | S32: 612000 | U32: 781940 | V32: 0 | W32: 0
S33: 0 | U33: 0 | V33: 0 | W33: 0

Sheet Special Schools 2020-21 (hidden)
A1: Special Schools Funding
F2: Rates for 2019-20 no scale back | K2: NO of places | S2: 10000 | AF2: Checked numbers SS
A3: School | B3: School Type | C3: Dfe | D3: Phase | E3: Banding2019/20 | F3: Banding2020/21 (19/20 revised rate + 4%) | H3: AP | I3: E1&2 places - Pre | J3: E1&2 places - Post | K3: DCC Pre 16 | L3: DCC Post 16 | M3: Other LA Pre 16 | N3: Other LA Post 16 | O3: Total | P3: September adjustment | Q3: Vacant Places (Neg - empty places. Pos - add children no place funding) | S3: Element 1 & 2 (Place Funding) | T3: Element 3 (Top Up Funding DCC) - Pre 16 | U3: Element 3 (Top Up Funding DCC) - Post 16 | V3: Element 3 Residential Places | W3: Exceptional Payments | X3: Other Adjustments including Sept NOR adjustments | Y3: MFG funding | Z3: PFI | AA3: TOTAL DCC | AB3: Element 3 (Top Up Funding Other LA) | AC3: Total School Funding | AD3: Vacant top up funding (element 3) | AE3: Comments | AF3: Check to individual sheets | AG3: Variance | AH3: Comments | AI3: DCC places 19/20 budget | AJ3: 2019/20 Budget incl OOA | AK3: Variance | AL3: 2019/20 Budget excl OOA | AM3: Variance | AN3: MFG %
A6: Ivy House School | B6: PMLD | C6: 7026 | D6: All | E6: 14802 | F6: 15393.9552 | I6: =86-J6 -> 74 | J6: 12 | K6: 65 | L6: 12 | M6: 3 | N6: 0 | O6: =SUM(K6:N6) -> 80 | Q6: =+O6-I6 -> 6 | S6: =(I6+J6)*$S$2 -> 860000 | T6: =K6*F6 -> 1000607.088 | U6: =L6*F6 -> 184727.4624 | W6: 0 | X6: 0 | AA6: =SUM(S6:Z6) -> 2045334.55 | AB6: =(+M6+N6)*F6 -> 46181.8656 | AC6: =SUM(AA6:AB6) -> 2091516.416 | AD6: =IF(Q6-P6<0,Q6*F6,0) -> 0 | AF6: 2045334.55 | AG6: =+AC6-AF6 -> 46181.8656 | AI6: 83 | AJ6: 2268170 | AK6: =+AC6-AJ6 -> -176653.584 | AL6: 2238566 | AM6: =+AA6-AL6 -> -193231.4496 | AN6: =-(AJ6/(AC6))+1 -> -0.08446196389 | AO6: £90k exceptional not built in and fewer places
A7: St Andrews School - Day | B7: SLD | C7: 7027 | D7: Secondary | E7: 9765 | F7: 10155.6 | I7: =107-J7 -> 75 | J7: 32 | K7: 51 | L7: 42 | M7: 7 | N7: 5 | O7: =SUM(K7:N7) -> 105 | Q7: =+O7-I7 -> 30 | S7: =(I7+J7)*$S$2 -> 1070000 | T7: =K7*F7 -> 517935.6 | U7: =L7*F7 -> 426535.2 | W7: 36300 | X7: 0 | AA7: =SUM(S7:Z7) -> 2050770.8 | AB7: 121867.2 | AC7: =SUM(AA7:AB7) -> 2172638 | AD7: 0 | AF7: 2050770.8 | AG7: =+AC7-AF7 -> 121867.2 | AI7: 91 | AJ7: 1986500 | AK7: =+AC7-AJ7 -> 186138 | AL7: 1898615 | AM7: =+AA7-AL7 -> 152155.8 | AN7: 0.08567372936 | AO7: 6 kids and banding increase
A8: St Andrews School - Residential | B8: SLD | C8: 7027 | D8: Secondary | E8: 19530 | F8: 19530 | I8: 12 | K8: 12 | M8: 0 | O8: 12 | Q8: 0 | S8: 120000 | T8: 0 | U8: 0 | V8: =K8*F8 -> 234360 | X8: 0 | Y8: 12150 | AA8: 366510 | AB8: 0 | AC8: 366510 | AD8: 0 | AI8: 12 | AJ8: 366510 | AK8: 0 | AL8: 366510 | AM8: 0 | AN8: 0 | AO8: MFG missing
A9: St Clares School | B9: SLD | C9: 7025 | D9: Secondary | E9: 6045 | F9: 6286.8 | I9: 130 | K9: 124 | L9: 1 | M9: 19 | N9: 0 | O9: 144 | Q9: 14 | S9: 1300000 | T9: 779563.2 | U9: 6286.8 | W9: 0 | AA9: 2085850 | AB9: 119449.2 | AC9: 2205299.2 | AD9: 0 | AF9: 2085850 | AG9: =+AC9-AF9 -> 119449.2 | AI9: 116 | AJ9: 2103406.25 | AK9: 101892.95 | AL9: 2000641.25 | AM9: 85208.75 | AN9: 0.0462036852 | AO9: Add kids and banding increase
A10: St Giles School | B10: SLD | C10: 7024 | D10: Primary | E10: 10230 | F10: 10639.2 | I10: 124 | K10: 120 | M10: 4 | O10: 124 | Q10: 0 | S10: 1240000 | T10: 1276704 | U10: 0 | W10: 40000 | AA10: 2556704 | AB10: 42556.8 | AC10: 2599260.8 | AD10: 0 | AF10: 2556704 | AG10: =+AC10-AF10 -> 42556.8 | AJ10: 2385435 | AK10: 213825.8 | AL10: 2364975 | AM10: 191729 | AN10: 0.08226408062
A11: St Martins School & Horizons | B11: SLD | C11: 7021 | D11: Secondary | E11: 8370 | F11: 8704.8 | I11: =187-J11 -> 151 | J11: 36 | K11: 133 | L11: 46 | M11: 18 | N11: 6 | O11: 203 | Q11: 52 | S11: 1870000 | T11: 1157738.4 | U11: 400420.8 | W11: 8953.33 | Z11: =(88810.72*1.03)*1.03 -> 94219.29285 | AA11: 3531331.823 | AB11: 208915.2 | AC11: 3740247.023 | AD11: 0 | AF11: 3437112.53 | AG11: =+AC11-AF11 -> 303134.4928 | AH11: PFI | AJ11: 3283183.793 | AK11: 457063.23 | AL11: 3140893.793 | AM11: 390438.03 | AN11: 0.1222013485 | AO11: Add kids and banding increase
F12: 0 | Q12: 0 | AD12: 0
A13: The Kingsmead School | B13: SEMH | C13: 7029 | D13: Secondary | E13: 16494 | F13: 17153.292 | H13: 0 | I13: 90 | K13: 90 | O13: 90 | Q13: 0 | S13: 900000 | T13: 1543796.28 | U13: =L13*F13 -> 0 | W13: 153106 | AA13: 2596902.28 | AB13: =(+M13+N13)*F13 -> 0 | AC13: 2596902.28 | AD13: 0 | AI13: 90 | AJ13: 2384460 | AK13: 212442.28 | AL13: 2384460 | AM13: 212442.28 | AN13: =-(AJ13/(AC13))+1 -> 0.08180603546
A14: KS 1/2 PRU | C14: 1104 | D14: Primary | E14: 13201 | F14: 13728.86237 | H14: 40 | K14: 40 | O14: 40 | Q14: 40 | S14: =H14*$S$2 -> 400000 | T14: 549154.4947 | U14: 0 | Y14: 0 | AA14: =SUM(S14:Z14) -> 949154.4947 | AB14: =(+M14+N14)*F14 -> 0 | AC14: =SUM(AA14:AB14) -> 949154.4947 | AD14: 0 | AI14: 36 | AJ14: 858136 | AK14: 91018.49472 | AL14: 858136 | AM14: 91018.49472 | AN14: =-(AJ14/(AC14))+1 -> 0.09589428826
A15: KS 3/4 PRU | C15: 1103 | D15: Secondary | E15: 15242 | F15: 15851.84702 | H15: 60 | K15: 60 | O15: 60 | Q15: 60 | S15: 600000 | T15: 951110.8214 | U15: 0 | Y15: 8809 | AA15: =SUM(S15:Z15) -> 1559919.821 | AB15: =(+M15+N15)*F15 -> 0 | AC15: =SUM(AA15:AB15) -> 1559919.821 | AD15: 0 | AI15: 60 | AJ15: 1559920 | AK15: -0.1785599999 | AL15: 1559920 | AM15: -0.1785599999 | AN15: =-(AJ15/(AC15))+1 -> -1.144674215e-07
A16: Derby Pride - top up only (E3) | AA16: 170000
A18: Total | C18: ALL | H18: =SUM(H4:H17) -> 100 | I18: 656 | J18: 80 | K18: 695 | L18: 101 | M18: 51 | N18: 11 | O18: =SUM(O4:O17) -> 858 | P18: 0 | Q18: 202 | R18: 0 | S18: 8360000 | T18: 7776609.884 | U18: 1017970.262 | V18: 234360 | W18: 238359.33 | X18: 0 | Y18: 20959 | Z18: 94219.29285 | AA18: 17912477.77 | AB18: 538970.2656 | AC18: 18281448.04 | AD18: 0 | AE18: 0 | AF18: 12175771.88 | AG18: 633189.5584 | AH18: 0 | AI18: 488 | AJ18: 17195721.04 | AK18: 1085726.992 | AL18: 16812717.04 | AM18: 929760.7266
A19: EFA recoupement - specials | AA19: -4340000
A20: EFA recoupement - DP | AA20: -170000
A21: Empty Places presume filled in 20/21 | AA21: 152000 | AM21: =AA21 -> 152000
AA22: =SUM(AA18:AA21) -> 13554477.77 | AM22: =SUM(AM18:AM21) -> 1081760.727
A24: Total at 2019/20 rate | H24: 803 | I24: 803 | K24: 684 | L24: 101 | M24: 51 | N24: 11 | O24: 847 | P24: 0 | Q24: 44 | R24: 0 | S24: 8030000 | T24: 9537307.04 | W24: 238359.33 | X24: 0 | Y24: 0 | Z24: 94219.29285 | AA24: 17899885.66 | AB24: 608948 | AC24: 18508833.66 | AD24: -116496 | AE24: 0 | AF24: 12347685.33 | AG24: 703167.2928 | AH24: 0 | AJ24: 17195721.04 | AK24: 1313112.62 | AL24: 16812717.04 | AM24: 1087168.62
A25: Variance | I25: =I18-I24 -> -147 | K25: =K18-K24 -> 11 | L25: 0 | M25: 0 | N25: 0 | O25: 11 | P25: 0 | Q25: 158 | R25: 0 | S25: 330000 | T25: -1760697.156 | W25: 0 | X25: 0 | Y25: 20959 | Z25: 0 | AA25: 12592.10656 | AB25: -69977.7344 | AC25: -227385.6278 | AD25: 116496 | AE25: 0 | AF25: -171913.4496 | AG25: -69977.7344 | AH25: 0 | AJ25: 0 | AK25: -227385.6278 | AL25: 0 | AM25: -157407.8934 | AN25: 0
Q28: Academy | S28: =SUM(S6:S10)-S8 -> 4470000 | T28: =SUM(T6:T10) -> 3574809.888 | W28: 76300 | X28: 0 | Y28: 12150 | Z28: 0 | AA28: 9105169.35
Q29: Maintained | S29: =SUM(S11:S15)+S8 -> 3890000 | T29: =SUM(T11:T15) -> 4201799.996 | W29: 162059.33 | X29: 0 | Y29: 8809 | Z29: 94219.29285 | AA29: 8637308.419
S30: =SUM(S28:S29)-S18 -> 0 | T30: =SUM(T28:T29)-T18 -> 0 | W30: 0 | X30: 0 | Y30: 0 | Z30: 0 | AA30: -170000
A34: Lookup table for year group
A35: 2 yr old | B35: Pre 16
A36: Nursery 1 | B36: Pre 16
A37: Nursery 2 | B37: Pre 16
A38: Reception | B38: Pre 16
A39: NC Year 1 | B39: Pre 16
A40: NC Year 2 | B40: Pre 16
A41: NC Year 3 | B41: Pre 16
A42: NC Year 4 | B42: Pre 16
A43: NC Year 5 | B43: Pre 16
A44: NC Year 6 | B44: Pre 16
A45: NC Year 7 | B45: Pre 16
A46: NC Year 8 | B46: Pre 16
A47: NC Year 9 | B47: Pre 16
A48: NC Year 10 | B48: Pre 16
A49: NC Year 11 | B49: Pre 16
A50: NC Year 12 | B50: Post 16
A51: NC Year 13 | B51: Post 16
A52: NC Year 14 | B52: Post 16

Sheet 2020-21 FORMULA (hidden)
AD1: Primary: | AE1: 3750
AD2: Secondary: | AE2: 5000
AD3: All Through: | AE3: =((AE1*7)+(AE2*5))/12 -> 4270.833333 | AK3: Summary of main changes between years
A4: School | B4: DfE Number | C4: AWPU inc delegated Budget £ | D4: Deprivation £ | E4: LAC £ | F4: LCHI SEN £ | G4: EAL £ | H4: Mobility £ | I4: Lump Sum £ | J4: Split Site £ | K4: Rates £ (based on 19-20 values) | L4: PFI £ | M4: Pre MFG Total | N4: MFG (from APT) | O4: No cap | P4: Budget before De-Delegation | Q4: Minimum funding adjustment | R4: Budget before de-delegation (incl. min funding adj) | S4: De-delegation tbc | T4: Net School budget | U4: KS1 Class Factor (link info From KS1 working papers) | V4: ERS | W4: TA & OOC TA Hours | X4: TA Hours OOC | Y4: Sixth Form | Z4: Schools with Nurseries excl Rates, TA, ERS | AA4: Contingency | AB4: Total | AC4: NOR | AD4: Budget before de-delegation / NOR Funding per child - min fund £3,750- P, £5,000 - S & £4,271 - A | AE4: Minimum funding adjustment (see above) | AF4: Lookup check | AH4: Lookup | AK4: 19/20 School budget before de-del incl KS1 | AL4: 20/21 School budget before de-del incl KS1 | AM4: Variance 20/21 to 19/20 | AN4: % change in year | AO4: 19/20 MFG (includes any capping & scaling) | AP4: 20/21 MFG (includes any capping & scaling) | AQ4: Change - MFG
A5: Akaal Primary School | B5: 2014 | C5: 505689 | D5: 68191.39316 | E5: 0 | F5: 44882.14286 | G5: 63130 | H5: 8577.692308 | I5: 114400 | J5: 0 | K5: 3973 | L5: 0 | M5: =SUM(C5:L5) -> 808843.2283 | N5: 0 | P5: =SUM(M5:N5) -> 808843.2283 | Q5: =AE5 -> 0 | R5: =P5+Q5 -> 808843.2283 | S5: 0 | T5: =R5+S5 -> 808843.2283 | U5: 2125.8125 | AA5: 0 | AB5: =SUM(T5:AA5) -> 810969.0408 | AC5: 177 | AD5: =(M5-K5)/AC5 -> 4547.289426 | AE5: =IF(AD5<$AE$1,((AC5*$AE$1)-(M5-K5)),0) -> 0 | AF5: 0 | AH5: 8312014 | AK5: 686423.9426 | AL5: =R5 -> 808843.2283 | AM5: =AL5-AK5 -> 122419.2857 | AN5: =ROUND(AM5/AK5,3) -> 0.178 | AO5: 0 | AP5: =N5 -> 0 | AQ5: =AP5-AO5 -> 0
A6: Allenton Community Primary School | B6: 2012 | C6: 1114230 | D6: 372447.2277 | E6: 0 | F6: 174263.5647 | G6: 35890.23324 | H6: 4900 | I6: 114400 | J6: 0 | K6: 7523 | L6: 0 | M6: =SUM(C6:L6) -> 1823654.026 | N6: 0 | P6: 1823654.026 | Q6: 0 | R6: 1823654.026 | S6: 0 | T6: 1823654.026 | U6: 5756.15 | AA6: 0 | AB6: =SUM(T6:AA6) -> 1829410.176 | AC6: 390 | AD6: 4656.74622 | AE6: 0 | AF6: 0 | AH6: 8312012 | AK6: 1798165.853 | AL6: =R6 -> 1823654.026 | AM6: =AL6-AK6 -> 25488.17294 | AN6: =ROUND(AM6/AK6,3) -> 0.014 | AO6: 90750.66885 | AP6: =N6 -> 0 | AQ6: =AP6-AO6 -> -90750.66885
A7: Alvaston Infant and Nursery School | B7: 2443 | C7: 759962 | D7: 137082.3881 | E7: 0 | F7: 53727.41379 | G7: 17788.75 | H7: 0 | I7: 114400 | J7: 0 | K7: 17829 | L7: 0 | M7: 1100789.552 | N7: 0 | P7: 1100789.552 | Q7: 0 | R7: 1100789.552 | S7: -18459.868 | T7: 1082329.684 | U7: 3300 | AA7: 0 | AB7: =SUM(T7:AA7) -> 1085629.684 | AC7: 266 | AD7: 4071.28027 | AE7: 0 | AF7: 0 | AH7: 8312443 | AK7: 1029496.184 | AL7: 1100789.552 | AM7: 71293.36769 | AN7: 0.069 | AO7: 0 | AP7: 0 | AQ7: 0
A8: Alvaston Junior School | B8: 2442 | C8: 985665 | D8: 187423.4289 | E8: 0 | F8: 133403.5385 | G8: 4280 | H8: 0 | I8: 114400 | J8: 0 | K8: 5958 | L8: 0 | M8: 1431129.967 | N8: 0 | P8: 1431129.967 | Q8: 0 | R8: 1431129.967 | S8: 0 | T8: 1431129.967 | U8: 0 | AA8: 0 | AB8: 1431129.967 | AC8: 345 | AD8: 4130.933239 | AE8: 0 | AF8: 0 | AH8: 8312442 | AK8: 1327016.432 | AL8: 1431129.967 | AM8: 104113.5351 | AN8: 0.078 | AO8: 0 | AP8: 0 | AQ8: 0
A9: Arboretum Primary School | B9: 2629 | C9: 1494211 | D9: 366756.1996 | E9: 0 | F9: 281254.901 | G9: 134905.9821 | H9: 0 | I9: 114400 | J9: 0 | K9: 12147 | L9: 0 | M9: 2403675.083 | N9: 0 | P9: 2403675.083 | Q9: 0 | R9: 2403675.083 | S9: 0 | T9: 2403675.083 | U9: 7403.25 | AA9: 0 | AB9: 2411078.333 | AC9: 523 | AD9: 4572.711439 | AE9: 0 | AF9: 0 | AH9: 8312629 | AK9: 2273373.196 | AL9: 2403675.083 | AM9: 130301.8867 | AN9: 0.057 | AO9: 12337.87729 | AP9: 0 | AQ9: -12337.87729
A10: Ash Croft Primary School | B10: 2509 | C10: 537116 | D10: 105287.7295 | E10: 0 | F10: 69696.83544 | G10: 20790.27933 | H10: 16380 | I10: 114400 | J10: 0 | K10: 4647 | L10: 0 | M10: 868317.8442 | N10: 0 | P10: 868317.8442 | Q10: 0 | R10: 868317.8442 | S10: 0 | T10: 868317.8442 | U10: 6844.55 | AA10: 0 | AB10: 875162.3942 | AC10: 188 | AD10: 4593.993852 | AE10: 0 | AF10: 0 | AH10: 8312509 | AK10: 893908.2324 | AL10: 868317.8442 | AM10: -25590.3882 | AN10: -0.029 | AO10: 0 | AP10: 0 | AQ10: 0
A11: Ashgate Primary School | B11: 2005 | C11: 882813 | D11: 220102.8043 | E11: 0 | F11: 98194.71774 | G11: 19193.8764 | H11: 3027.5 | I11: 114400 | J11: 0 | K11: 25477 | L11: 0 | M11: 1363208.898 | N11: 0 | P11: 1363208.898 | Q11: 0 | R11: 1363208.898 | S11: -21443.982 | T11: 1341764.916 | U11: 7123.9 | AA11: 0 | AB11: 1348888.816 | AC11: 309 | AD11: 4329.229445 | AE11: 0 | AF11: 0 | AH11: 8312005 | AK11: 1331117.684 | AL11: 1363208.898 | AM11: 32091.21441 | AN11: 0.024 | AO11: 0 | AP11: 0 | AQ11: 0
A12: Asterdale Primary School | B12: 2464 | C12: 579971 | D12: 92347.01493 | E12: 0 | F12: 63214.91228 | G12: 3120.833333 | H12: 0 | I12: 114400 | J12: 0 | K12: 3793 | L12: 0 | M12: 856846.7605 | N12: -307.7239342 | P12: 856539.0366 | Q12: 0 | R12: 856539.0366 | S12: 0 | T12: 856539.0366 | U12: 1373.55 | AA12: 0 | AB12: 857912.5866 | AC12: 203 | AD12: 4202.235274 | AE12: 0 | AF12: 0 | AH12: 8312464 | AK12: 790899.5068 | AL12: 856539.0366 | AM12: 65639.52976 | AN12: 0.083 | AO12: 0 | AP12: -307.7239342 | AQ12: -307.7239342
A13: Beaufort Community Primary School | B13: 2004 | C13: 848529 | D13: 265327.5 | E13: 0 | F13: 115263.6864 | G13: 13136.98819 | H13: 4532.5 | I13: 114400 | J13: 0 | K13: 4931 | L13: 0 | M13: 1366120.675 | N13: 0 | P13: 1366120.675 | Q13: 0 | R13: 1366120.675 | S13: 0 | T13: 1366120.675 | U13: 6850.35 | AA13: 0 | AB13: 1372971.025 | AC13: 297 | AD13: 4583.130218 | AE13: 0 | AF13: 0 | AH13: 8312004 | AK13: 1300946.272 | AL13: 1366120.675 | AM13: 65174.40292 | AN13: 0.05 | AO13: 29481.1826 | AP13: 0 | AQ13: -29481.1826
A14: Becket Primary School | B14: 2405 | C14: 582828 | D14: 174819.7101 | E14: 0 | F14: 71485.54839 | G14: 29935.54286 | H14: 0 | I14: 114400 | J14: 0 | K14: 17577 | L14: 0 | M14: 991045.8014 | N14: 0 | P14: 991045.8014 | Q14: 0 | R14: 991045.8014 | S14: -14157.192 | T14: 976888.6094 | U14: 1373.55 | AA14: 0 | AB14: 978262.1594 | AC14: 204 | AD14: 4771.905889 | AE14: 0 | AF14: 0 | AH14: 8312405 | AK14: 922951.6213 | AL14: 991045.8014 | AM14: 68094.18009 | AN14: 0.074 | AO14: 0 | AP14: 0 | AQ14: 0
A15: Bishop Lonsdale Church of England Aided Primary School | B15: 2011 | C15: 599970 | D15: 118704.4366 | E15: 0 | F15: 66417.27273 | G15: 16667.30769 | H15: 0 | I15: 114400 | J15: 0 | K15: 6693 | L15: 0 | M15: 922852.017 | N15: 0 | P15: 922852.017 | Q15: 0 | R15: 922852.017 | S15: 0 | T15: 922852.017 | U15: 1647.1 | AA15: 0 | AB15: 924499.117 | AC15: 210 | AD15: 4362.661986 | AE15: 0 | AF15: 0 | AH15: 8312011 | AK15: 850923.0605 | AL15: 922852.017 | AM15: 71928.95652 | AN15: 0.085 | AO15: 0 | AP15: 0 | AQ15: 0
A16: Borrow Wood Primary School | B16: 5201 | C16: 957095 | D16: 63977.58953 | E16: 0 | F16: 81514.81788 | G16: 4113.360656 | H16: 0 | I16: 114400 | J16: 0 | K16: 6018.187 | L16: 0 | M16: 1227118.955 | N16: 0 | P16: 1227118.955 | Q16: 35149.23193 | R16: 1262268.187 | S16: 0 | T16: 1262268.187 | U16: 1100 | AA16: 0 | AB16: 1263368.187 | AC16: 335 | AD16: 3645.07692 | AE16: 35149.23193 | AF16: 35149.23193 | AH16: 8315201 | AK16: 1230953.887 | AL16: 1262268.187 | AM16: 31314.29971 | AN16: 0.025 | AO16: -1909.796306 | AP16: 0 | AQ16: 1909.796306
A17: Brackensdale ER (Enhanced Resource) Primary School | B17: 2432 | C17: 1302792 | D17: 286100.024 | E17: 0 | F17: 217657.3057 | G17: 16591.73804 | H17: 0 | I17: 114400 | J17: 0 | K17: 23714 | L17: 0 | M17: 1961255.068 | N17: 0 | P17: 1961255.068 | Q17: 0 | R17: 1961255.068 | S17: -31645.488 | T17: 1929609.58 | U17: 2473.55 | AA17: 0 | AB17: 1932083.13 | AC17: 456 | AD17: 4248.99357 | AE17: 0 | AF17: 0 | AH17: 8312432 | AK17: 1883518.639 | AL17: 1961255.068 | AM17: 77736.42886 | AN17: 0.041 | AO17: 38343.13102 | AP17: 0 | AQ17: -38343.13102
A18: Breadsall Hill Top Primary School | B18: 2018 | C18: 1017092 | D18: 202910.9688 | E18: 0 | F18: 151656 | G18: 12778.46645 | H18: 2369.15493 | I18: 114400 | J18: 0 | K18: 5936 | L18: 0 | M18: 1507142.59 | N18: -8488.172568 | P18: 1498654.418 | Q18: 0 | R18: 1498654.418 | S18: 0 | T18: 1498654.418 | U18: 6850.35 | AA18: 0 | AB18: 1505504.768 | AC18: 356 | AD18: 4216.872444 | AE18: 0 | AF18: 0 | AH18: 8312018 | AK18: 1434216.349 | AL18: 1498654.418 | AM18: 64438.06813 | AN18: 0.045 | AO18: -4242.463183 | AP18: -8488.172568 | AQ18: -4245.709385
A19: Brookfield Primary School | B19: 2512 | C19: 597113 | D19: 24522.37069 | E19: 0 | F19: 61402.75862 | G19: 19257.02778 | H19: 0 | I19: 114400 | J19: 0 | K19: 3919 | L19: 0 | M19: 820614.1571 | N19: 0 | P19: 820614.1571 | Q19: 0 | R19: 820614.1571 | S19: 0 | T19: 820614.1571 | U19: 1373.55 | AA19: 0 | AB19: 821987.7071 | AC19: 209 | AD19: 3907.632331 | AE19: 0 | AF19: 0 | AH19: 8312512 | AK19: 796417.3005 | AL19: 820614.1571 | AM19: 24196.85664 | AN19: 0.03 | AO19: -2005.725793 | AP19: 0 | AQ19: 2005.725793
A20: Carlyle Infant School | B20: 2456 | C20: 494261 | D20: 43990.78488 | E20: 0 | F20: 53598.54545 | G20: 18019.55752 | H20: 0 | I20: 114400 | J20: 0 | K20: 2807 | L20: 0 | M20: 727076.8879 | N20: -4872.809144 | P20: 722204.0787 | Q20: 0 | R20: 722204.0787 | S20: 0 | T20: 722204.0787 | U20: 2200 | AA20: 0 | AB20: 724404.0787 | AC20: 173 | AD20: 4186.531144 | AE20: 0 | AF20: 0 | AH20: 8312456 | AK20: 685662.6518 | AL20: 722204.0787 | AM20: 36541.42693 | AN20: 0.053 | AO20: 0 | AP20: -4872.809144 | AQ20: -4872.809144
A21: Cavendish Close Infant School | B21: 2449 | C21: 742820 | D21: 102617.5 | E21: 0 | F21: 106500 | G21: 9000.588235 | H21: 0 | I21: 114400 | J21: 0 | K21: 26576 | L21: 0 | M21: 1101914.088 | N21: -5773.237019 | P21: 1096140.851 | Q21: 0 | R21: 1096140.851 | S21: -18043.48 | T21: 1078097.371 | U21: 3573.55 | AA21: 0 | AB21: 1081670.921 | AC21: 260 | AD21: 4135.915724 | AE21: 0 | AF21: 0 | AH21: 8312449 | AK21: 977904.1501 | AL21: 1096140.851 | AM21: 118236.7011 | AN21: 0.121 | AO21: -16931.58916 | AP21: -5773.237019 | AQ21: 11158.35214
A22: Cavendish Close Junior School | B22: 2019 | C22: 851386 | D22: 128297.2291 | E22: 0 | F22: 124565.0171 | G22: 3220.808081 | H22: 0 | I22: 114400 | J22: 0 | K22: 5540 | L22: 0 | M22: 1227409.054 | N22: -2893.382276 | P22: 1224515.672 | Q22: 0 | R22: 1224515.672 | S22: 0 | T22: 1224515.672 | U22: 0 | AA22: 0 | AB22: 1224515.672 | AC22: 298 | AD22: 4100.231726 | AE22: 0 | AF22: 0 | AH22: 8312019 | AK22: 1211660.624 | AL22: 1224515.672 | AM22: 12855.04752 | AN22: 0.011 | AO22: -4036.325124 | AP22: -2893.382276 | AQ22: 1142.942847
A23: Chaddesden Park Junior School | B23: 2467 | C23: 957095 | D23: 160716.1175 | E23: 0 | F23: 108151.3066 | G23: 4296.489726 | H23: 4287.5 | I23: 114400 | J23: 0 | K23: 3041 | L23: 0 | M23: 1351987.414 | N23: -510.0089896 | P23: 1351477.405 | Q23: 0 | R23: 1351477.405 | S23: 0 | T23: 1351477.405 | U23: 6850.35 | AA23: 0 | AB23: 1358327.755 | AC23: 335 | AD23: 4026.705713 | AE23: 0 | AF23: 0 | AH23: 8312467 | AK23: 1271124.985 | AL23: 1351477.405 | AM23: 80352.4195 | AN23: 0.063 | AO23: -8464.518771 | AP23: -510.0089896 | AQ23: 7954.509781
A24: Chellaston Infant School | B24: 2455 | C24: 1031377 | D24: 92836.29213 | E24: 0 | F24: 88846.95378 | G24: 18431.97095 | H24: 0 | I24: 114400 | J24: 0 | K24: 5108 | L24: 0 | M24: 1351000.217 | N24: 0 | P24: 1351000.217 | Q24: 7857.783129 | R24: 1358858 | S24: 0 | T24: 1358858 | U24: 4400 | AA24: 0 | AB24: 1363258 | AC24: 361 | AD24: 3728.233288 | AE24: 7857.783129 | AF24: 7857.783129 | AH24: 8312455 | AK24: 1258422.614 | AL24: 1358858 | AM24: 100435.3863 | AN24: 0.08 | AO24: -3131.507308 | AP24: 0 | AQ24: 3131.507308
A25: Chellaston Junior School | B25: 5203 | C25: 1448499 | D25: 131669.4479 | E25: 0 | F25: 169636.7864 | G25: 8560 | H25: 0 | I25: 114400 | J25: 0 | K25: 6626 | L25: 0 | M25: 1879391.234 | N25: 0 | P25: 1879391.234 | Q25: 28484.76568 | R25: 1907876 | S25: 0 | T25: 1907876 | U25: 0 | AA25: 0 | AB25: 1907876 | AC25: 507 | AD25: 3693.81703 | AE25: 28484.76568 | AF25: 28484.76568 | AH25: 8315203 | AK25: 1718416.006 | AL25: 1907876 | AM25: 189459.9942 | AN25: 0.11 | AO25: -6084.236734 | AP25: 0 | AQ25: 6084.236734
A26: Cherry Tree Hill Primary School | B26: 2451 | C26: 1691344 | D26: 225240.0458 | E26: 0 | F26: 180314.7929 | G26: 11005.71429 | H26: 0 | I26: 114400 | J26: 0 | K26: 7697 | L26: 0 | M26: 2230001.553 | N26: -467.967563 | P26: 2229533.585 | Q26: 0 | R26: 2229533.585 | S26: 0 | T26: 2229533.585 | U26: 7676.8 | AA26: 0 | AB26: 2237210.385 | AC26: 592 | AD26: 3753.892826 | AE26: 0 | AF26: 0 | AH26: 8312451 | AK26: 1970145.079 | AL26: 2229533.585 | AM26: 259388.5065 | AN26: 0.132 | AO26: -17752.7743 | AP26: -467.967563 | AQ26: 17284.80674
A27: Cottons Farm Primary School | B27: 2023 | C27: 314270 | D27: 103323.9342 | E27: 0 | F27: 54181.875 | G27: 18263.7931 | H27: 5600 | I27: 114400 | J27: 0 | K27: 4891 | L27: 26080 | M27: =SUM(C27:L27) -> 641010.6023 | N27: 0 | P27: 641010.6023 | Q27: =AE27 -> 0 | R27: =P27+Q27 -> 641010.6023 | S27: 0 | T27: =R27+S27 -> 641010.6023 | U27: 3014.85 | AA27: 0 | AB27: =SUM(T27:AA27) -> 644025.4523 | AC27: 110 | AD27: 5782.905475 | AE27: 0 | AF27: 0 | AH27: 8312023 | AK27: 591571.6556 | AL27: 641010.6023 | AM27: 49438.94666 | AN27: 0.084 | AO27: 0 | AP27: 0 | AQ27: 0
A28: Dale Community Primary School | B28: 2409 | C28: 1542780 | D28: 340951.6364 | E28: 0 | F28: 270323.5023 | G28: 128042.539 | H28: 0 | I28: 114400 | J28: 0 | K28: 37619 | L28: 0 | M28: 2434116.678 | N28: -9754.565754 | P28: 2424362.112 | Q28: 0 | R28: 2424362.112 | S28: -37474.92 | T28: 2386887.192 | U28: 10412.3 | AA28: 0 | AB28: 2397299.492 | AC28: 540 | AD28: 4437.958662 | AE28: 0 | AF28: 0 | AH28: 8312409 | AK28: 2235012.721 | AL28: 2424362.112 | AM28: 189349.3911 | AN28: 0.085 | AO28: -6414.925217 | AP28: -9754.565754 | AQ28: -3339.640536
A29: Derby St Chad's CE (VC) Nursery and Infant School | B29: 3158 | C29: 305699 | D29: 84510 | E29: 0 | F29: 56977.5 | G29: 52951.625 | H29: 0 | I29: 114400 | J29: 0 | K29: 2048 | L29: 0 | M29: 616586.125 | N29: -7508.215606 | P29: 609077.9094 | Q29: 0 | R29: 609077.9094 | S29: 0 | T29: 609077.9094 | U29: 1920.65 | AA29: 0 | AB29: 610998.5594 | AC29: 107 | AD29: 5743.346963 | AE29: 0 | AF29: 0 | AH29: 8313158 | AK29: 600432.4767 | AL29: 609077.9094 | AM29: 8645.43273 | AN29: 0.014 | AO29: 0 | AP29: -7508.215606 | AQ29: -7508.215606
A30: Derwent Community School | B30: 2016 | C30: 619969 | D30: 209792.1898 | E30: 0 | F30: 95629.65517 | G30: 15520.72193 | H30: 4357.5 | I30: 114400 | J30: 0 | K30: 5772 | L30: 0 | M30: 1065441.067 | N30: -1147.413351 | P30: 1064293.654 | Q30: 0 | R30: 1064293.654 | S30: 0 | T30: 1064293.654 | U30: 1100 | AA30: 0 | AB30: 1065393.654 | AC30: 217 | AD30: 4883.267589 | AE30: 0 | AF30: 0 | AH30: 8312016 | AK30: 1074580.716 | AL30: 1064293.654 | AM30: -10287.06194 | AN30: -0.01 | AO30: 0 | AP30: -1147.413351 | AQ30: -1147.413351
A31: Firs Estate Primary School | B31: 2013 | C31: 1048519 | D31: 306098.6684 | E31: 0 | F31: 243362.5472 | G31: 105860.7078 | H31: 38482.5 | I31: 114400 | J31: 0 | K31: 2447 | L31: 0 | M31: 1859170.423 | N31: 0 | P31: 1859170.423 | Q31: 0 | R31: 1859170.423 | S31: 0 | T31: 1859170.423 | U31: 9038.75 | AA31: 0 | AB31: 1868209.173 | AC31: 367 | AD31: 5059.191889 | AE31: 0 | AF31: 0 | AH31: 8312013 | AK31: 1708703.55 | AL31: 1859170.423 | AM31: 150466.8731 | AN31: 0.088 | AO31: -2133.595786 | AP31: 0 | AQ31: 2133.595786
A32: Gayton Community Junior School | B32: 2457 | C32: 1045662 | D32: 91013.17073 | E32: 0 | F32: 153520.6425 | G32: 22470 | H32: 0 | I32: 114400 | J32: 0 | K32: 21098 | L32: 0 | M32: 1448163.813 | N32: -209.3876744 | P32: 1447954.426 | Q32: 0 | R32: 1447954.426 | S32: -25399.668 | T32: 1422554.758 | U32: 0 | AA32: 0 | AB32: 1422554.758 | AC32: 366 | AD32: 3899.086921 | AE32: 0 | AF32: 0 | AH32: 8312457 | AK32: 1342002.001 | AL32: 1447954.426 | AM32: 105952.4248 | AN32: 0.079 | AO32: 0 | AP32: -209.3876744 | AQ32: -209.3876744
A33: Grampian Primary Academy | B33: 2010 | C33: 577114 | D33: 163754.7101 | E33: 0 | F33: 57969.16168 | G33: 12566.27907 | H33: 0 | I33: 114400 | J33: 0 | K33: 4326 | L33: 0 | M33: 930130.1509 | N33: 0 | P33: 930130.1509 | Q33: 0 | R33: 930130.1509 | S33: 0 | T33: 930130.1509 | U33: 1100 | AA33: 0 | AB33: 931230.1509 | AC33: 202 | AD33: 4583.188866 | AE33: 0 | AF33: 0 | AH33: 8312010 | AK33: 912339.8552 | AL33: 930130.1509 | AM33: 17790.29569 | AN33: 0.019 | AO33: 15334.9562 | AP33: 0 | AQ33: -15334.9562
A34: Griffe Field Primary School | B34: 2002 | C34: 1248509 | D34: 26669.78291 | E34: 0 | F34: 109887.2917 | G34: 27286.4191 | H34: 0 | I34: 114400 | J34: 0 | K34: 10175 | L34: 0 | M34: 1536927.494 | N34: 0 | P34: 1536927.494 | Q34: 111997.5063 | R34: 1648925 | S34: 0 | T34: 1648925 | U34: 2200 | AA34: 0 | AB34: 1651125 | AC34: 437 | AD34: 3493.7128 | AE34: 111997.5063 | AF34: 111997.5063 | AH34: 8312002 | AK34: 1405800 | AL34: 1648925 | AM34: 243125 | AN34: 0.173 | AO34: 0 | AP34: 0 | AQ34: 0
A35: Hackwood Primary School | B35: 2024 | C35: 257368.56 | D35: 19183.6553 | E35: 0 | F35: 17766.43519 | G35: 9638.916667 | H35: 0 | I35: 114400 | J35: 0 | K35: 3401.03425 | L35: 0 | M35: 421758.6014 | N35: 0 | P35: 421758.6014 | Q35: 0 | R35: 421758.6014 | S35: 0 | T35: 421758.6014 | U35: 3014.85 | AA35: 0 | AB35: 424773.4514 | AC35: 90.08 | AD35: 4644.289156 | AE35: 0 | AF35: 0 | AH35: 8312024 | AK35: 117778.861 | AL35: 421758.6014 | AM35: 303979.7404 | AN35: 2.581 | AO35: 0 | AP35: 0 | AQ35: 0
A36: Hardwick Primary School | B36: 3544 | C36: 1531352 | D36: 422329.5353 | E36: 0 | F36: 301955.6675 | G36: 142474.4421 | H36: 0 | I36: 114400 | J36: 0 | K36: 13502 | L36: 148354 | M36: 2674367.645 | N36: -8466.963039 | P36: 2665900.682 | Q36: 0 | R36: 2665900.682 | S36: 0 | T36: 2665900.682 | U36: 2200 | AA36: 0 | AB36: 2668100.682 | AC36: 536 | AD36: 4964.301576 | AE36: 0 | AF36: 0 | AH36: 8313544 | AK36: 2429907.614 | AL36: 2665900.682 | AM36: 235993.068 | AN36: 0.097 | AO36: 0 | AP36: -8466.963039 | AQ36: -8466.963039
A37: Homefields Primary School | B37: 2006 | C37: 919954 | D37: 10653.5 | E37: 0 | F37: 75094.16058 | G37: 11527.36059 | H37: 0 | I37: 114400 | J37: 0 | K37: 7060 | L37: 0 | M37: 1138689.021 | N37: 0 | P37: 1138689.021 | Q37: 75870.97882 | R37: 1214560 | S37: 0 | T37: 1214560 | U37: 6303.25 | AA37: 0 | AB37: 1220863.25 | AC37: 322 | AD37: 3514.375842 | AE37: 75870.97882 | AF37: 75870.97882 | AH37: 8312006 | AK37: 1074663.859 | AL37: 1214560 | AM37: 139896.1411 | AN37: 0.13 | AO37: -2951.368842 | AP37: 0 | AQ37: 2951.368842
A38: Lakeside Community Primary School | B38: 2022 | C38: 1757055 | D38: 423841.1369 | E38: 0 | F38: 281444.703 | G38: 30419.29245 | H38: 0 | I38: 114400 | J38: 0 | K38: 10694 | L38: 159772 | M38: 2777626.132 | N38: -2482.483279 | P38: 2775143.649 | Q38: 0 | R38: 2775143.649 | S38: 0 | T38: 2775143.649 | U38: 4667.75 | AA38: 0 | AB38: 2779811.399 | AC38: 615 | AD38: 4499.076638 | AE38: 0 | AF38: 0 | AH38: 8312022 | AK38: 2454773.663 | AL38: 2775143.649 | AM38: 320369.9858 | AN38: 0.131 | AO38: 0 | AP38: -2482.483279 | AQ38: -2482.483279
A39: Lawn Primary School | B39: 2522 | C39: 1242795 | D39: 62073.11778 | E39: 0 | F39: 102808.9726 | G39: 16050 | H39: 2537.5 | I39: 114400 | J39: 0 | K39: 5032 | L39: 0 | M39: 1545696.59 | N39: 0 | P39: 1545696.59 | Q39: 90585.40961 | R39: 1636282 | S39: 0 | T39: 1636282 | U39: 2747.1 | AA39: 0 | AB39: 1639029.1 | AC39: 435 | AD39: 3541.757679 | AE39: 90585.40961 | AF39: 90585.40961 | AH39: 8312522 | AK39: 1447526.849 | AL39: 1636282 | AM39: 188755.1507 | AN39: 0.13 | AO39: 0 | AP39: 0 | AQ39: 0
A40: Markeaton Primary School | B40: 2436 | C40: 1202797 | D40: 141552.2277 | E40: 0 | F40: 108924.8305 | G40: 11261.75 | H40: 0 | I40: 114400 | J40: 0 | K40: 26797 | L40: 0 | M40: 1605732.808 | N40: 0 | P40: 1605732.808 | Q40: 0 | R40: 1605732.808 | S40: -29216.558 | T40: 1576516.25 | U40: 11232.95 | AA40: 0 | AB40: 1587749.2 | AC40: 421 | AD40: 3750.44135 | AE40: 0 | AF40: 0 | AH40: 8312436 | AK40: 1423455.359 | AL40: 1605732.808 | AM40: 182277.4492 | AN40: 0.128 | AO40: -3500.157919 | AP40: 0 | AQ40: 3500.157919
A41: Meadow Farm Community Primary School | B41: 2452 | C41: 454263 | D41: 76775 | E41: 0 | F41: 58520.18382 | G41: 8446.170213 | H41: 4777.5 | I41: 114400 | J41: 0 | K41: 20785 | L41: 0 | M41: 737966.854 | N41: -1402.631113 | P41: 736564.2229 | Q41: 0 | R41: 736564.2229 | S41: -11034.282 | T41: 725529.9409 | U41: 4382.6 | AA41: 0 | AB41: 729912.5409 | AC41: 159 | AD41: 4510.577698 | AE41: 0 | AF41: 0 | AH41: 8312452 | AK41: 729792.8875 | AL41: 736564.2229 | AM41: 6771.335434 | AN41: 0.009 | AO41: -9538.168949 | AP41: -1402.631113 | AQ41: 8135.537836
A42: Mickleover Primary School | B42: 2627 | C42: 1197083 | D42: 51503.92344 | E42: 0 | F42: 115361.8892 | G42: 21854.52646 | H42: 0 | I42: 114400 | J42: 0 | K42: 18084 | L42: 0 | M42: 1518287.339 | N42: 0 | P42: 1518287.339 | Q42: 71046.66089 | R42: 1589334 | S42: -29077.762 | T42: 1560256.238 | U42: 2200 | AA42: 0 | AB42: 1562456.238 | AC42: 419 | AD42: 3580.437564 | AE42: 71046.66089 | AF42: 71046.66089 | AH42: 8312627 | AK42: 1393307.54 | AL42: 1589334 | AM42: 196026.4602 | AN42: 0.141 | AO42: -5825.536334 | AP42: 0 | AQ42: 5825.536334
A43: Landau Forte Academy Moorhead | B43: 2009 | C43: 679966 | D43: 182903.5485 | E43: 0 | F43: 96371.40625 | G43: 16688.8835 | H43: 5880 | I43: 114400 | J43: 0 | K43: 4098 | L43: 0 | M43: 1100307.838 | N43: -3791.410567 | P43: 1096516.428 | Q43: 0 | R43: 1096516.428 | S43: 0 | T43: 1096516.428 | U43: 9859.4 | AA43: 0 | AB43: 1106375.828 | AC43: 238 | AD43: 4605.92369 | AE43: 0 | AF43: 0 | AH43: 8312009 | AK43: 1084056.239 | AL43: 1096516.428 | AM43: 12460.18859 | AN43: 0.011 | AO43: 4693.483837 | AP43: -3791.410567 | AQ43: -8484.894404
A44: Oakwood Infant and Nursery School | B44: 2473 | C44: 765676 | D44: 159320 | E44: 0 | F44: 80627.11864 | G44: 8055.05618 | H44: 0 | I44: 114400 | J44: 0 | K44: 23644 | L44: 0 | M44: 1151722.175 | N44: 0 | P44: 1151722.175 | Q44: 0 | R44: 1151722.175 | S44: -18598.664 | T44: 1133123.511 | U44: 3300 | AA44: 0 | AB44: 1136423.511 | AC44: 268 | AD44: 4209.246921 | AE44: 0 | AF44: 0 | AH44: 8312473 | AK44: 1066303.95 | AL44: 1151722.175 | AM44: 85418.22475 | AN44: 0.08 | AO44: 0 | AP44: 0 | AQ44: 0
A45: Oakwood Junior School | B45: 2471 | C45: 997093 | D45: 231074.3536 | E45: 0 | F45: 170537.8235 | G45: 5885 | H45: 0 | I45: 114400 | J45: 0 | K45: 23644 | L45: 0 | M45: 1542634.177 | N45: -5903.580417 | P45: 1536730.597 | Q45: 0 | R45: 1536730.597 | S45: -24219.902 | T45: 1512510.695 | U45: 0 | AA45: 0 | AB45: 1512510.695 | AC45: 349 | AD45: 4352.407384 | AE45: 0 | AF45: 0 | AH45: 8312471 | AK45: 1377218.978 | AL45: 1536730.597 | AM45: 159511.6183 | AN45: 0.116 | AO45: 0 | AP45: -5903.580417 | AQ45: -5903.580417
A46: Ashwood Spencer Academy (formerly Osmaston) | B46: 2021 | C46: 1682773 | D46: 590971.6412 | E46: 0 | F46: 261706 | G46: 64749.65753 | H46: 14654.88095 | I46: 114400 | J46: 0 | K46: 5035 | L46: 0 | M46: 2734290.18 | N46: 0 | P46: 2734290.18 | Q46: 0 | R46: 2734290.18 | S46: 0 | T46: 2734290.18 | U46: 6582.6 | AA46: 0 | AB46: 2740872.78 | AC46: 589 | AD46: 4633.709982 | AE46: 0 | AF46: 0 | AH46: 8312021 | AK46: 2631053.834 | AL46: 2734290.18 | AM46: 103236.3457 | AN46: 0.039 | AO46: 111555.8885 | AP46: 0 | AQ46: -111555.8885
A47: Parkview Primary School | B47: 2003 | C47: 605684 | D47: 17535 | E47: 0 | F47: 49192.2905 | G47: 5013.038674 | H47: 0 | I47: 114400 | J47: 0 | K47: 31950 | L47: 0 | M47: 823774.3292 | N47: 0 | P47: 823774.3292 | Q47: 3175.670823 | R47: 826950 | S47: -14712.376 | T47: 812237.624 | U47: 10132.95 | AA47: 0 | AB47: 822370.574 | AC47: 212 | AD47: 3735.020421 | AE47: 3175.670823 | AF47: 3175.670823 | AH47: 8312003 | AK47: 767814.2489 | AL47: 826950 | AM47: 59135.75109 | AN47: 0.077 | AO47: -2552.21849 | AP47: 0 | AQ47: 2552.21849
A48: Pear Tree Community Junior School | B48: 2017 | C48: 1017092 | D48: 314602.9661 | E48: 0 | F48: 238841.4978 | G48: 76505 | H48: 15435 | I48: 114400 | J48: 0 | K48: 4108 | L48: 0 | M48: 1780984.464 | N48: -2585.100649 | P48: 1778399.363 | Q48: 0 | R48: 1778399.363 | S48: 0 | T48: 1778399.363 | U48: 0 | AA48: 0 | AB48: 1778399.363 | AC48: 356 | AD48: 4991.226022 | AE48: 0 | AF48: 0 | AH48: 8312017 | AK48: 1591680.23 | AL48: 1778399.363 | AM48: 186719.1329 | AN48: 0.117 | AO48: 11654.43102 | AP48: -2585.100649 | AQ48: -14239.53167
A49: Pear Tree Infant School | B49: 2424 | C49: 734249 | D49: 206372.8711 | E49: 0 | F49: 113578.2653 | G49: 106853.2571 | H49: 4954.277344 | I49: 114400 | J49: 0 | K49: 15842 | L49: 0 | M49: 1296249.671 | N49: 0 | P49: 1296249.671 | Q49: 0 | R49: 1296249.671 | S49: -17835.286 | T49: 1278414.385 | U49: 5488.4 | AA49: 0 | AB49: 1283902.785 | AC49: 257 | AD49: 4982.131015 | AE49: 0 | AF49: 0 | AH49: 8312424 | AK49: 1206378.722 | AL49: 1296249.671 | AM49: 89870.94841 | AN49: 0.074 | AO49: 25462.45737 | AP49: 0 | AQ49: -25462.45737
A50: Portway Infant School | B50: 2439 | C50: 662824 | D50: 33600 | E50: 0 | F50: 49736.88312 | G50: 4964.8 | H50: 0 | I50: 114400 | J50: 0 | K50: 12249 | L50: 0 | M50: 877774.6831 | N50: 0 | P50: 877774.6831 | Q50: 4474.316883 | R50: 882249 | S50: -16100.336 | T50: 866148.664 | U50: 6582.6 | AA50: 0 | AB50: 872731.264 | AC50: 232 | AD50: 3730.714151 | AE50: 4474.316883 | AF50: 4474.316883 | AH50: 8312439 | AK50: 831156.6408 | AL50: 882249 | AM50: 51092.35916 | AN50: 0.061 | AO50: -2276.92266 | AP50: 0 | AQ50: 2276.92266
A51: Portway Junior School | B51: 2440 | C51: 1031377 | D51: 56027.98409 | E51: 0 | F51: 80418.18052 | G51: 535 | H51: 0 | I51: 114400 | J51: 0 | K51: 7164 | L51: 0 | M51: 1289922.165 | N51: 0 | P51: 1289922.165 | Q51: 70991.83539 | R51: 1360914 | S51: 0 | T51: 1360914 | U51: 0 | AA51: 0 | AB51: 1360914 | AC51: 361 | AD51: 3553.346716 | AE51: 70991.83539 | AF51: 70991.83539 | AH51: 8312440 | AK51: 1208617.452 | AL51: 1360914 | AM51: 152296.5481 | AN51: 0.126 | AO51: -4078.793911 | AP51: 0 | AQ51: 4078.793911
A52: Ravensdale Infant and Nursery School | B52: 2462 | C52: 711393 | D52: 80538.08468 | E52: 0 | F52: 74188.66071 | G52: 19250.72254 | H52: 0 | I52: 114400 | J52: 0 | K52: 19025 | L52: 0 | M52: 1018795.468 | N52: 0 | P52: 1018795.468 | Q52: 0 | R52: 1018795.468 | S52: -17280.102 | T52: 1001515.366 | U52: 7129.7 | AA52: 0 | AB52: 1008645.066 | AC52: 249 | AD52: 4015.142442 | AE52: 0 | AF52: 0 | AH52: 8312462 | AK52: 970931.194 | AL52: 1018795.468 | AM52: 47864.27394 | AN52: 0.049 | AO52: 0 | AP52: 0 | AQ52: 0
A53: Ravensdale Junior School | B53: 2463 | C53: 985665 | D53: 117527.6464 | E53: 0 | F53: 122475 | G53: 12305 | H53: 0 | I53: 114400 | J53: 0 | K53: 4282 | L53: 0 | M53: 1356654.646 | N53: 0 | P53: 1356654.646 | Q53: 0 | R53: 1356654.646 | S53: 0 | T53: 1356654.646 | U53: 0 | AA53: 0 | AB53: 1356654.646 | AC53: 345 | AD53: 3919.920714 | AE53: 0 | AF53: 0 | AH53: 8312463 | AK53: 1272105.636 | AL53: 1356654.646 | AM53: 84549.00995 | AN53: 0.066 | AO53: 0 | AP53: 0 | AQ53: 0
A54: Redwood Primary School | B54: 2505 | C54: 1711343 | D54: 332704.3297 | E54: 0 | F54: 277787.8884 | G54: 77764.50098 | H54: 17634.4398 | I54: 114400 | J54: 0 | K54: 40998 | L54: 0 | M54: 2572632.159 | N54: -433.2137098 | P54: 2572198.945 | Q54: 0 | R54: 2572198.945 | S54: -41569.402 | T54: 2530629.543 | U54: 4120.65 | AA54: 0 | AB54: 2534750.193 | AC54: 599 | AD54: 4226.434322 | AE54: 0 | AF54: 0 | AH54: 8312505 | AK54: 2296452.397 | AL54: 2572198.945 | AM54: 275746.5483 | AN54: 0.12 | AO54: -43.78537339 | AP54: -433.2137098 | AQ54: -389.4283364
A55: Reigate Park Primary School | B55: 2020 | C55: 1011378 | D55: 220037.847 | E55: 0 | F55: 162889.338 | G55: 21451.94175 | H55: 12915 | I55: 114400 | J55: 0 | K55: 5214 | L55: 0 | M55: 1548286.127 | N55: -7850.085764 | P55: 1540436.041 | Q55: 0 | R55: 1540436.041 | S55: 0 | T55: 1540436.041 | U55: 6303.25 | AA55: 0 | AB55: 1546739.291 | AC55: 354 | AD55: 4358.96081 | AE55: 0 | AF55: 0 | AH55: 8312020 | AK55: 1365199.038 | AL55: 1540436.041 | AM55: 175237.0028 | AN55: 0.128 | AO55: -4703.245295 | AP55: -7850.085764 | AQ55: -3146.840469
A56: Ridgeway Infant School | B56: 2458 | C56: 771390 | D56: 84116.06742 | E56: 0 | F56: 76355.08475 | G56: 68212.5 | H56: 0 | I56: 114400 | J56: 0 | K56: 14531 | L56: 0 | M56: 1129004.652 | N56: -675.2183854 | P56: 1128329.434 | Q56: 0 | R56: 1128329.434 | S56: -18737.46 | T56: 1109591.974 | U56: 3300 | AA56: 0 | AB56: 1112891.974 | AC56: 270 | AD56: 4127.680193 | AE56: 0 | AF56: 0 | AH56: 8312458 | AK56: 1020222.557 | AL56: 1128329.434 | AM56: 108106.8771 | AN56: 0.106 | AO56: -12431.67176 | AP56: -675.2183854 | AQ56: 11756.45337
A57: Roe Farm Primary School | B57: 2001 | C57: 1114230 | D57: 256190.1351 | E57: 0 | F57: 175534.8214 | G57: 9790.029326 | H57: 3150 | I57: 114400 | J57: 0 | K57: 25488 | L57: 0 | M57: 1698782.986 | N57: 0 | P57: 1698782.986 | Q57: 0 | R57: 1698782.986 | S57: -27065.22 | T57: 1671717.766 | U57: 5209.05 | AA57: 0 | AB57: 1676926.816 | AC57: 390 | AD57: 4290.499964 | AE57: 0 | AF57: 0 | AH57: 8312001 | AK57: 1640166.518 | AL57: 1698782.986 | AM57: 58616.46806 | AN57: 0.036 | AO57: 0 | AP57: 0 | AQ57: 0
A58: Rosehill Infant and Nursery School | B58: 2429 | C58: 411408 | D58: 82529.10874 | E58: 0 | F58: 57716.12903 | G58: 66923.63636 | H58: 0 | I58: 114400 | J58: 0 | K58: 11825 | L58: 0 | M58: 744801.8741 | N58: 0 | P58: 744801.8741 | Q58: 0 | R58: 744801.8741 | S58: -9993.312 | T58: 734808.5621 | U58: 6303.25 | AA58: 0 | AB58: 741111.8121 | AC58: 144 | AD58: 5090.117182 | AE58: 0 | AF58: 0 | AH58: 8312429 | AK58: 720740.5234 | AL58: 744801.8741 | AM58: 24061.35077 | AN58: 0.033 | AO58: 22800.47119 | AP58: 0 | AQ58: -22800.47119
A59: Shelton Infant School | B59: 2444 | C59: 577114 | D59: 95572.81553 | E59: 0 | F59: 59401.56716 | G59: 20509.63504 | H59: 0 | I59: 114400 | J59: 0 | K59: 12558 | L59: 0 | M59: 879556.0177 | N59: 0 | P59: 879556.0177 | Q59: 0 | R59: 879556.0177 | S59: -14018.396 | T59: 865537.6217 | U59: 10138.75 | AA59: 0 | AB59: 875676.3717 | AC59: 202 | AD59: 4292.069395 | AE59: 0 | AF59: 0 | AH59: 8312444 | AK59: 834412.8318 | AL59: 879556.0177 | AM59: 45143.18595 | AN59: 0.054 | AO59: 0 | AP59: 0 | AQ59: 0
A60: Shelton Junior School | B60: 5209 | C60: 797103 | D60: 161762.1863 | E60: 0 | F60: 108568.5577 | G60: 11235 | H60: 3727.5 | I60: 114400 | J60: 0 | K60: 4748 | L60: 0 | M60: 1201544.244 | N60: 0 | P60: 1201544.244 | Q60: 0 | R60: 1201544.244 | S60: -19362.042 | T60: 1182182.202 | U60: 0 | AA60: 0 | AB60: 1182182.202 | AC60: 279 | AD60: 4289.592272 | AE60: 0 | AF60: 0 | AH60: 8315209 | AK60: 1048949.425 | AL60: 1201544.244 | AM60: 152594.8192 | AN60: 0.145 | AO60: 0 | AP60: 0 | AQ60: 0
A61: Silverhill Primary School | B61: 2469 | C61: 1199940 | D61: 39384.13876 | E61: 0 | F61: 97020 | G61: 8114.166667 | H61: 0 | I61: 114400 | J61: 0 | K61: 21025 | L61: 0 | M61: 1479883.305 | N61: 0 | P61: 1479883.305 | Q61: 116141.6946 | R61: 1596025 | S61: -29147.16 | T61: 1566877.84 | U61: 2200 | AA61: 0 | AB61: 1569077.84 | AC61: 420 | AD61: 3473.472156 | AE61: 116141.6946 | AF61: 116141.6946 | AH61: 8312469 | AK61: 1376100 | AL61: 1596025 | AM61: 219925 | AN61: 0.16 | AO61: 0 | AP61: 0 | AQ61: 0
A62: Springfield Primary School | B62: 2466 | C62: 911383 | D62: 109201.7333 | E62: 0 | F62: 115381.6981 | G62: 3778.560886 | H62: 2502.5 | I62: 114400 | J62: 0 | K62: 3414 | L62: 0 | M62: 1260061.492 | N62: -1792.421978 | P62: 1258269.07 | Q62: 0 | R62: 1258269.07 | S62: 0 | T62: 1258269.07 | U62: 5482.6 | AA62: 0 | AB62: 1263751.67 | AC62: 319 | AD62: 3939.333832 | AE62: 0 | AF62: 0 | AH62: 8312466 | AK62: 1089091.892 | AL62: 1258269.07 | AM62: 169177.1788 | AN62: 0.155 | AO62: 3386.166896 | AP62: -1792.421978 | AQ62: -5178.588874
A63: St Alban's Catholic Primary School | B63: 3543 | C63: 899955 | D63: 98696.91318 | E63: 0 | F63: 97846.875 | G63: 21460.11236 | H63: 0 | I63: 114400 | J63: 0 | K63: 4162 | L63: 0 | M63: 1236520.901 | N63: 0 | P63: 1236520.901 | Q63: 0 | R63: 1236520.901 | S63: 0 | T63: 1236520.901 | U63: 5482.6 | AA63: 0 | AB63: 1242003.501 | AC63: 315 | AD63: 3912.250478 | AE63: 0 | AF63: 0 | AH63: 8313543 | AK63: 1112908.712 | AL63: 1236520.901 | AM63: 123612.1883 | AN63: 0.111 | AO63: -631.9918769 | AP63: 0 | AQ63: 631.9918769
A64: St George's Catholic Voluntary Academy | B64: 3531 | C64: 982808 | D64: 122554.5683 | E64: 0 | F64: 101766.6667 | G64: 18715.9322 | H64: 0 | I64: 114400 | J64: 0 | K64: 5278 | L64: 0 | M64: 1345523.167 | N64: 0 | P64: 1345523.167 | Q64: 0 | R64: 1345523.167 | S64: 0 | T64: 1345523.167 | U64: 5209.05 | AA64: 0 | AB64: 1350732.217 | AC64: 344 | AD64: 3896.061532 | AE64: 0 | AF64: 0 | AH64: 8313531 | AK64: 1225610.077 | AL64: 1345523.167 | AM64: 119913.0898 | AN64: 0.098 | AO64: 0 | AP64: 0 | AQ64: 0
A65: St James' Church of England Aided Infant School | B65: 3526 | C65: 208561 | D65: 48292.70115 | E65: 0 | F65: 23323.5 | G65: 26273.36364 | H65: 4042.5 | I65: 114400 | J65: 0 | K65: 971 | L65: 0 | M65: 425864.0648 | N65: 0 | P65: 425864.0648 | Q65: 0 | R65: 425864.0648 | S65: -5066.054 | T65: 420798.0108 | U65: 4382.6 | AA65: 0 | AB65: 425180.6108 | AC65: 73 | AD65: 5820.452942 | AE65: 0 | AF65: 0 | AH65: 8313526 | AK65: 456732.3763 | AL65: 425864.0648 | AM65: -30868.31155 | AN65: -0.068 | AO65: 11049.69915 | AP65: 0 | AQ65: -11049.69915
A66: St James' Church of England Aided Junior School | B66: 3535 | C66: 834244 | D66: 212672.0044 | E66: 0 | F66: 174926.25 | G66: 47778.62543 | H66: 4864.158076 | I66: 114400 | J66: 0 | K66: 3451 | L66: 0 | M66: 1392336.038 | N66: -3213.653333 | P66: 1389122.385 | Q66: 0 | R66: 1389122.385 | S66: -20264.216 | T66: 1368858.169 | U66: 0 | AA66: 0 | AB66: 1368858.169 | AC66: 292 | AD66: 4756.455609 | AE66: 0 | AF66: 0 | AH66: 8313535 | AK66: 1282319.561 | AL66: 1389122.385 | AM66: 106802.8236 | AN66: 0.083 | AO66: 0 | AP66: -3213.653333 | AQ66: -3213.653333
A67: St John Fisher Catholic Voluntary Academy | B67: 2008 | C67: 657110 | D67: 118939.0611 | E67: 0 | F67: 82966.93548 | G67: 15381.25 | H67: 0 | I67: 114400 | J67: 0 | K67: 3933 | L67: 0 | M67: 992730.2466 | N67: 0 | P67: 992730.2466 | Q67: 0 | R67: 992730.2466 | S67: 0 | T67: 992730.2466 | U67: 1100 | AA67: 0 | AB67: 993830.2466 | AC67: 230 | AD67: 4299.118464 | AE67: 0 | AF67: 0 | AH67: 8312008 | AK67: 907382.3803 | AL67: 992730.2466 | AM67: 85347.86632 | AN67: 0.094 | AO67: 0 | AP67: 0 | AQ67: 0
A68: St Joseph's Catholic Primary School, Derby | B68: 3542 | C68: 1117087 | D68: 186264.1858 | E68: 0 | F68: 115145.0568 | G68: 101498.0473 | H68: 0 | I68: 114400 | J68: 0 | K68: 6467 | L68: 0 | M68: 1640861.29 | N68: -976.3476097 | P68: 1639884.942 | Q68: 0 | R68: 1639884.942 | S68: 0 | T68: 1639884.942 | U68: 4114.85 | AA68: 0 | AB68: 1643999.792 | AC68: 391 | AD68: 4180.036547 | AE68: 0 | AF68: 0 | AH68: 8313542 | AK68: 1457492.181 | AL68: 1639884.942 | AM68: 182392.7615 | AN68: 0.125 | AO68: -1436.315736 | AP68: -976.3476097 | AQ68: 459.9681264
A69: St Mary's Catholic Primary School and Nursery | B69: 3528 | C69: 905669 | D69: 143803.3599 | E69: 0 | F69: 138170.3861 | G69: 47040.94891 | H69: 0 | I69: 114400 | J69: 0 | K69: 9383 | L69: 0 | M69: 1358466.695 | N69: -6439.503013 | P69: =SUM(M69:N69) -> 1352027.192 | Q69: =AE69 -> 0 | R69: =P69+Q69 -> 1352027.192 | S69: 0 | T69: =R69+S69 -> 1352027.192 | U69: 8218.1 | AA69: 0 | AB69: 1360245.292 | AC69: 317 | AD69: =(M69-K69)/AC69 -> 4255.784527 | AE69: =IF(AD69<$AE$1,((AC69*$AE$1)-(M69-K69)),0) -> 0 | AF69: 0 | AH69: 8313528 | AK69: 1257418.536 | AL69: 1352027.192 | AM69: 94608.65616 | AN69: 0.075 | AO69: -4553.512405 | AP69: -6439.503013 | AQ69: -1885.990609
A70: St Peter's Church of England Aided Junior School | B70: 3534 | C70: 708536 | D70: 54895.66802 | E70: 0 | F70: 101842.8814 | G70: 15577.81377 | H70: 0 | I70: 114400 | J70: 0 | K70: 3478 | L70: 0 | M70: =SUM(C70:L70) -> 998730.3631 | N70: -6864.413559 | P70: 991865.9496 | Q70: 0 | R70: 991865.9496 | S70: -17210.704 | T70: 974655.2456 | U70: 0 | AA70: 0 | AB70: 974655.2456 | AC70: 248 | AD70: 4013.114367 | AE70: 0 | AF70: 0 | AH70: 8313534 | AK70: 901210.6773 | AL70: =R70 -> 991865.9496 | AM70: =AL70-AK70 -> 90655.27229 | AN70: =ROUND(AM70/AK70,3) -> 0.101 | AO70: -5911.15729 | AP70: =N70 -> -6864.413559 | AQ70: =AP70-AO70 -> -953.2562688
A71: St Werburgh's Church of England VA Primary School | B71: 3532 | C71: 891384 | D71: 48894.90415 | E71: 0 | F71: 84916 | G71: 1854.666667 | H71: 0 | I71: 114400 | J71: 0 | K71: 5182 | L71: 0 | M71: 1146631.571 | N71: 0 | P71: 1146631.571 | Q71: 28550.42918 | R71: 1175182 | S71: 0 | T71: 1175182 | U71: 7123.9 | AA71: 0 | AB71: =SUM(T71:AA71) -> 1182305.9 | AC71: 312 | AD71: 3658.492214 | AE71: 28550.42918 | AF71: 28550.42918 | AH71: 8313532 | AK71: 1054816.608 | AL71: 1175182 | AM71: 120365.3924 | AN71: 0.114 | AO71: -7753.918072 | AP71: 0 | AQ71: 7753.918072
A72: Village Primary School | B72: 3546 | C72: 1765626 | D72: 456621.9231 | E72: 0 | F72: 250077.119 | G72: 99564.71591 | H72: 0 | I72: 114400 | J72: 0 | K72: 15932 | L72: 0 | M72: 2702221.758 | N72: -3336.689716 | P72: 2698885.068 | Q72: 0 | R72: 2698885.068 | S72: 0 | T72: 2698885.068 | U72: 3300 | AA72: 0 | AB72: 2702185.068 | AC72: 618 | AD72: 4346.747181 | AE72: 0 | AF72: 0 | AH72: 8313546 | AK72: 2472426.417 | AL72: 2698885.068 | AM72: 226458.6513 | AN72: 0.092 | AO72: 0 | AP72: -3336.689716 | AQ72: -3336.689716
A73: Walter Evans Church of England Aided Primary School | B73: 3530 | C73: 1128515 | D73: 19724.52137 | E73: 0 | F73: 67768.31307 | G73: 5031.547619 | H73: 0 | I73: 114400 | J73: 0 | K73: 5407 | L73: 0 | M73: 1340846.382 | N73: 0 | P73: 1340846.382 | Q73: 145810.6179 | R73: 1486657 | S73: 0 | T73: 1486657 | U73: 2473.55 | AA73: 0 | AB73: 1489130.55 | AC73: 395 | AD73: 3380.859195 | AE73: 145810.6179 | AF73: 145810.6179 | AH73: 8313530 | AK73: 1224300 | AL73: 1486657 | AM73: 262357 | AN73: 0.214 | AO73: -1067.217474 | AP73: 0 | AQ73: 1067.217474
A74: Wren Park Primary School | B74: 2459 | C74: 1111373 | D74: 35896.82692 | E74: 0 | F74: 90664.19453 | G74: 37895.56716 | H74: 0 | I74: 114400 | J74: 0 | K74: 20425 | L74: 0 | M74: 1410654.589 | N74: 0 | P74: 1410654.589 | Q74: 68520.41138 | R74: 1479175 | S74: -26995.822 | T74: 1452179.178 | U74: 3841.3 | AA74: 0 | AB74: 1456020.478 | AC74: 389 | AD74: 3573.854984 | AE74: 68520.41138 | AF74: 68520.41138 | AH74: 8312459 | AK74: 1317549.891 | AL74: 1479175 | AM74: 161625.1092 | AN74: 0.123 | AO74: 0 | AP74: 0 | AQ74: 0
A75: Wyndham Primary Academy | B75: 2007 | C75: 1237081 | D75: 313433.8288 | E75: 0 | F75: 124735.9426 | G75: 34686.31016 | H75: 0 | I75: 114400 | J75: 0 | K75: 4365.65 | L75: 0 | M75: =SUM(C75:L75) -> 1828702.732 | N75: 6540.850891 | P75: 1835243.583 | Q75: =AE75 -> 0 | R75: =P75+Q75 -> 1835243.583 | S75: 0 | T75: =R75+S75 -> 1835243.583 | U75: 2473.55 | AA75: 0 | AB75: =SUM(T75:AA75) -> 1837717.133 | AC75: 433 | AD75: 4213.249611 | AE75: 0 | AF75: 0 | AH75: 8312007 | AK75: 1869365.623 | AL75: 1835243.583 | AM75: -34122.04015 | AN75: -0.018 | AO75: 87663.5005 | AP75: 6540.850891 | AQ75: -81122.64961
A76: Zaytouna | B76: 4000 | C76: 837101 | D76: 157505.1368 | E76: 0 | F76: 108672.3881 | G76: 60857.82353 | H76: 0 | I76: 114400 | J76: 0 | K76: 13610 | L76: 0 | M76: 1292146.348 | N76: 0 | P76: 1292146.348 | Q76: 0 | R76: 1292146.348 | S76: 0 | T76: 1292146.348 | U76: 8218.1 | AA76: 0 | AB76: =SUM(T76:AA76) -> 1300364.448 | AC76: 293 | AD76: 4363.605285 | AE76: 0 | AF76: 0 | AH76: 8314000 | AK76: 1172470.85 | AL76: 1292146.348 | AM76: 119675.4981 | AN76: 0.102 | AO76: 38164.03484 | AP76: 0 | AQ76: -38164.03484
A78: Total Primary | B78: Total Primary | C78: =SUM(C5:C77) -> 66911178.56 | D78: 11495562.45 | E78: 0 | F78: 8650528.556 | G78: 2260952.17 | H78: 189589.6034 | I78: 8236800 | J78: 0 | K78: 794147.8713 | L78: 334206 | M78: 98872965.21 | N78: -91605.74912 | P78: 98781359.46 | Q78: 858657.3126 | R78: 99640016.78 | S78: -574129.654 | T78: 99065887.12 | U78: 293902.2125 | V78: 0 | W78: 0 | X78: 0 | Y78: 0 | Z78: 0 | AA78: 0 | AB78: 99359789.33 | AC78: 23420.08 | AE78: =SUM(AE5:AE77) -> 858657.3126 | AK78: =SUM(AK5:AK77) -> 91695970.08 | AL78: =SUM(AL5:AL77) -> 99640016.78 | AM78: =SUM(AM5:AM77) -> 7944046.701 | AN78: =ROUND(AM78/AK78,3) -> 0.087 | AO78: =SUM(AO5:AO77) -> 360314.5092 | AP78: =SUM(AP5:AP77) -> -91605.74912 | AQ78: =SUM(AQ5:AQ77) -> -451920.2584
Z79: 0
A80: Chellaston Academy | B80: 5402 | C80: 6099971.68 | D80: 267957.8304 | E80: 0 | F80: 345736.4461 | G80: 5843.595506 | H80: 0 | I80: 114400 | J80: 0 | K80: 43803 | L80: 0 | M80: =SUM(C80:L80) -> 6877712.552 | N80: 0 | P80: =SUM(M80:N80) -> 6877712.552 | Q80: =AE80 -> 389423.7979 | R80: =P80+Q80 -> 7267136.35 | S80: 0 | T80: =R80+S80 -> 7267136.35 | AB80: =SUM(T80:AA80) -> 7267136.35 | AC80: 1444.66667 | AD80: =(M80-K80)/AC80 -> 4730.44038 | AE80: =IF(AD80<$AE$2,((AC80*$AE$2)-(M80-K80)),0) -> 389423.7979 | AF80: 389423.2947 | AG80: =AF80-AE80 -> -0.5032733353 | AH80: 8315402 | AK80: 6432780.564 | AL80: =R80 -> 7267136.35 | AM80: =AL80-AK80 -> 834355.7863 | AN80: =ROUND(AM80/AK80,3) -> 0.13 | AO80: 0 | AP80: =N80 -> 0 | AQ80: =AP80-AO80 -> 0
A81: da Vinci Community College | B81: 4007 | C81: 2708573 | D81: 679194.193 | E81: 0 | F81: 318896.8005 | G81: 38880 | H81: 0 | I81: 114400 | J81: 0 | K81: 22936 | L81: 24267 | M81: 3907146.993 | N81: 0 | P81: 3907146.993 | Q81: 0 | R81: 3907146.993 | S81: 0 | T81: 3907146.993 | AB81: 3907146.993 | AC81: 641 | AD81: 6059.611534 | AE81: =IF(AD81<$AE$2,((AC81*$AE$2)-(M81-K81)),0) -> 0 | AF81: 0 | AH81: 8314007 | AK81: 3382881.751 | AL81: 3907146.993 | AM81: 524265.2424 | AN81: 0.155 | AO81: -4752.843628 | AP81: 0 | AQ81: 4752.843628
A82: Derby Cathedral School | B82: 4004 | C82: 1865021.667 | D82: 360866.4838 | E82: 0 | F82: 132655.1146 | G82: 1867.039106 | H82: 0 | I82: 114400 | J82: 0 | K82: 14329.03 | L82: 0 | M82: =SUM(C82:L82) -> 2489139.334 | N82: 0 | P82: 2489139.334 | Q82: 0 | R82: 2489139.334 | S82: 0 | T82: 2489139.334 | AB82: =IF(ISERROR(SUM(T82:AA82)),0,SUM(T82:AA82)) -> 2489139.334 | AC82: 464.1666667 | AD82: 5331.727765 | AE82: =IF(AD82<$AE$2,((AC82*$AE$2)-(M82-K82)),0) -> 0 | AF82: 0 | AG82: =AF82-AE82 -> 0 | AH82: 8314004 | AK82: 1507391.89 | AL82: 2489139.334 | AM82: 981747.444 | AN82: 0.651 | AO82: 95020.36237 | AP82: 0 | AQ82: -95020.36237
A83: Derby Moor Community Sports College | B83: 4178 | C83: 5785346.5 | D83: 1001828.57 | E83: 0 | F83: 558479.4947 | G83: 49898.73418 | H83: 0 | I83: 114400 | J83: 0 | K83: 31693 | L83: 0 | M83: 7541646.299 | N83: 0 | P83: 7541646.299 | Q83: 0 | R83: 7541646.299 | S83: 0 | T83: 7541646.299 | AB83: 7541646.299 | AC83: 1368.75 | AD83: 5486.723871 | AE83: =IF(AD83<$AE$2,((AC83*$AE$2)-(M83-K83)),0) -> 0 | AF83: 0 | AH83: 8314178 | AK83: 6877297.959 | AL83: 7541646.299 | AM83: 664348.3398 | AN83: 0.097 | AO83: -4825.945301 | AP83: 0 | AQ83: 4825.945301
A84: Lees Brook Community Sports College | B84: 4006 | C84: 4479321 | D84: 554868.1356 | E84: 0 | F84: 421158.1752 | G84: 10089.52741 | H84: 0 | I84: 114400 | J84: 0 | K84: 27312 | L84: 0 | M84: 5607148.838 | N84: 0 | P84: 5607148.838 | Q84: 0 | R84: 5607148.838 | S84: 0 | T84: 5607148.838 | AB84: 5607148.838 | AC84: 1059 | AD84: 5268.967742 | AE84: 0 | AF84: 0 | AH84: 8314006 | AK84: 5366773.986 | AL84: 5607148.838 | AM84: 240374.8526 | AN84: 0.045 | AO84: -40314.25343 | AP84: 0 | AQ84: 40314.25343
A85: Littleover Community School | B85: 4182 | C85: 6232151 | D85: 278695 | E85: 0 | F85: 409402.9401 | G85: 41816.81633 | H85: 0 | I85: 114400 | J85: 0 | K85: 145580 | L85: 0 | M85: 7222045.756 | N85: 0 | P85: 7222045.756 | Q85: 283534.2435 | R85: 7505580 | S85: -85696.896 | T85: 7419883.104 | AB85: 7419883.104 | AC85: 1472 | AD85: 4807.381628 | AE85: 283534.2435 | AF85: 283534.2435 | AH85: 8314182 | AK85: 6886130.889 | AL85: 7505580 | AM85: 619449.1111 | AN85: 0.09 | AO85: 0 | AP85: 0 | AQ85: 0
A86: Merrill College | B86: 4001 | C86: 3549530 | D86: 1081949.893 | E86: 0 | F86: 493143.7258 | G86: 105368.5106 | H86: 45053.15852 | I86: 114400 | J86: 0 | K86: 38567 | L86: 371989 | M86: 5800001.288 | N86: 0 | P86: 5800001.288 | Q86: 0 | R86: 5800001.288 | S86: 0 | T86: 5800001.288 | AB86: 5800001.288 | AC86: 848 | AD86: 6794.144207 | AE86: 0 | AF86: 0 | AH86: 8314001 | AK86: 5099407.814 | AL86: 5800001.288 | AM86: 700593.4737 | AN86: 0.137 | AO86: 0 | AP86: 0 | AQ86: 0
A87: Murray Park School | B87: 5406 | C87: 4289939.88 | D87: 702483.006 | E87: 0 | F87: 485585.183 | G87: 61522.66121 | H87: 4956.186613 | I87: 114400 | J87: 0 | K87: 25560 | L87: 0 | M87: 5684446.917 | N87: 0 | P87: 5684446.917 | Q87: 0 | R87: 5684446.917 | S87: -59270.58144 | T87: 5625176.335 | AB87: 5625176.335 | AC87: 1018.08 | AD87: 5558.391204 | AE87: 0 | AF87: 0 | AH87: 8315406 | AK87: 4784815.575 | AL87: 5684446.917 | AM87: 899631.3419 | AN87: 0.188 | AO87: -29362.69422 | AP87: 0 | AQ87: 29362.69422
A88: Noel Baker Community School and Language College | B88: 4005 | C88: 4214351 | D88: 846964.0524 | E88: 0 | F88: 380922.5319 | G88: 8657.507599 | H88: 0 | I88: 114400 | J88: 0 | K88: 28085 | L88: 419920 | M88: 6013300.092 | N88: 0 | P88: 6013300.092 | Q88: 0 | R88: 6013300.092 | S88: 0 | T88: 6013300.092 | AB88: 6013300.092 | AC88: 989 | AD88: 6051.784724 | AE88: 0 | AF88: 0 | AH88: 8314005 | AK88: 6246429.746 | AL88: 6013300.092 | AM88: -233129.6538 | AN88: -0.037 | AO88: -33915.75425 | AP88: 0 | AQ88: 33915.75425
A89: Saint Benedict Catholic Voluntary Academy | B89: 4607 | C89: 5049444 | D89: 919034.5918 | E89: 0 | F89: 443963.8252 | G89: 37471.38307 | H89: 0 | I89: 114400 | J89: 0 | K89: 28601 | L89: 0 | M89: 6592914.8 | N89: 0 | P89: 6592914.8 | Q89: 0 | R89: 6592914.8 | S89: 0 | T89: 6592914.8 | AB89: 6592914.8 | AC89: 1194 | AD89: 5497.750251 | AE89: 0 | AF89: 0 | AH89: 8314607 | AK89: 6261421.748 | AL89: 6592914.8 | AM89: 331493.0521 | AN89: 0.053 | AO89: -11850.58357 | AP89: 0 | AQ89: 11850.58357
A90: City of Derby Academy | B90: 4008 | C90: 3971640 | D90: 848634.5334 | E90: 0 | F90: 540634.6029 | G90: 171360 | H90: 16101.44231 | I90: 114400 | J90: 0 | K90: 32653 | L90: 0 | M90: 5695423.579 | N90: 0 | P90: 5695423.579 | Q90: 0 | R90: 5695423.579 | S90: 0 | T90: 5695423.579 | AB90: 5695423.579 | AC90: 939 | AD90: 6030.639594 | AE90: 0 | AF90: 0 | AH90: 8314008 | AK90: 5306065.945 | AL90: 5695423.579 | AM90: 389357.6338 | AN90: 0.073 | AO90: -11677.02783 | AP90: 0 | AQ90: 11677.02783
A91: West Park School | B91: 5412 | C91: 5831986.44 | D91: 543344.5949 | E91: 0 | F91: 416615.1247 | G91: 8806.072218 | H91: 0 | I91: 114400 | J91: 0 | K91: 27570 | L91: 0 | M91: 6942722.232 | N91: 0 | P91: 6942722.232 | Q91: 264 | R91: 6942986.232 | S91: 0 | T91: 6942986.232 | AB91: 6942986.232 | AC91: 1383.08 | AD91: 4999.820858 | AE91: 264 | AF91: 264.041553 | AG91: =AF91-AE91 -> 0.04155299626 | AH91: 8315412 | AK91: 6402396.065 | AL91: 6942986.232 | AM91: 540590.167 | AN91: 0.084 | AO91: 0 | AP91: 0 | AQ91: 0
A92: Allestree Woodlands School | B92: 5414 | C92: 4730718 | D92: 437285.1203 | E92: 0 | F92: 316951.564 | G92: 11520 | H92: 0 | I92: 114400 | J92: 0 | K92: 31693 | L92: 0 | M92: 5642567.684 | N92: 0 | P92: 5642567.684 | Q92: 0 | R92: 5642567.684 | S92: 0 | T92: 5642567.684 | AB92: 5642567.684 | AC92: 1119 | AD92: 5014.186492 | AE92: 0 | AF92: 0 | AH92: 8315414 | AK92: 5315330.963 | AL92: 5642567.684 | AM92: 327236.7214 | AN92: 0.062 | AO92: -14332.10665 | AP92: 0 | AQ92: 14332.10665
A93: Derby Manufacturing UTC | B93: 4003 | C93: 282782 | D93: 36488.33333 | E93: 0 | F93: 27536.55172 | G93: 0 | H93: 0 | I93: 114400 | J93: 0 | K93: 27055 | L93: 0 | M93: 488261.8851 | N93: 0 | P93: 488261.8851 | Q93: 0 | R93: 488261.8851 | S93: 0 | T93: 488261.8851 | AB93: 488261.8851 | AC93: 62 | AD93: 7438.820727 | AE93: 0 | AF93: 0 | AH93: 8314003 | AK93: 1033163.929 | AL93: 488261.8851 | AM93: -544902.0435 | AN93: -0.527 | AO93: -3372.442336 | AP93: 0 | AQ93: 3372.442336
A94: Landau Forte College (Fox Street) | B94: 6905 | C94: 3693637 | D94: 626329.2908 | E94: 0 | F94: 248404.6376 | G94: 5773.211009 | H94: 0 | I94: 114400 | J94: 0 | K94: 47668 | L94: 0 | M94: =SUM(C94:L94) -> 4736212.139 | N94: 0 | P94: 4736212.139 | Q94: 0 | R94: 4736212.139 | S94: 0 | T94: 4736212.139 | AB94: =SUM(T94:AA94) -> 4736212.139 | AC94: 874 | AD94: 5364.466979 | AE94: 0 | AF94: 0 | AH94: 8316905 | AK94: 4363836.661 | AL94: 4736212.139 | AM94: 372375.478 | AN94: 0.085 | AO94: -9498.663807 | AP94: 0 | AQ94: 9498.663807
A96: Total Secondary | B96: Total Secondary | C96: =SUM(C80:C95) -> 62784413.17 | D96: 9185923.628 | E96: 0 | F96: 5540086.718 | G96: 558875.0583 | H96: 66110.78744 | I96: 1716000 | J96: 0 | K96: 573105.03 | L96: 816176 | M96: 81240690.39 | N96: 0 | P96: 81240690.39 | Q96: =SUM(Q80:Q95) -> 673222.0415 | R96: =SUM(R80:R95) -> 81913912.43 | S96: -144967.4774 | T96: 81768944.95 | U96: 0 | V96: 0 | W96: 0 | X96: 0 | Y96: 0 | Z96: 0 | AA96: 0 | AB96: 81768944.95 | AC96: 14875.74334 | AE96: 673222.0415 | AK96: =SUM(AK80:AK95) -> 75266125.48 | AL96: =SUM(AL80:AL95) -> 81913912.43 | AM96: =SUM(AM80:AM95) -> 6647786.947 | AN96: =ROUND(AM96/AK96,3) -> 0.088 | AO96: =SUM(AO80:AO95) -> -68881.95266 | AP96: =SUM(AP80:AP95) -> 0 | AQ96: =SUM(AQ80:AQ95) -> 68881.95266
A98: The Bemrose School | B98: 4177 | C98: 4059846 | D98: 1052030.807 | E98: 0 | F98: 666069.5692 | G98: 214811.1245 | H98: 49770 | I98: 114400 | J98: 0 | K98: 22674 | L98: 0 | M98: =SUM(C98:L98) -> 6179601.501 | N98: 0 | P98: =SUM(M98:N98) -> 6179601.501 | Q98: =AE98 -> 0 | R98: =P98+Q98 -> 6179601.501 | S98: -65203.876 | T98: =R98+S98 -> 6114397.625 | U98: 6029.7 | AB98: =IF(ISERROR(SUM(T98:AA98)),0,SUM(T98:AA98)) -> 6120427.325 | AC98: 1062 | AD98: =(M98-K98)/AC98 -> 5797.483523 | AE98: =IF(AD98<$AE$3,((AC98*$AE$3)-(M98-K98)),0) -> 0 | AF98: 0 | AH98: 8314177 | AK98: 5998194.973 | AL98: =R98 -> 6179601.501 | AM98: =AL98-AK98 -> 181406.5278 | AN98: =ROUND(AM98/AK98,3) -> 0.03 | AO98: 15993.90259 | AP98: =N98 -> 0 | AQ98: =AP98-AO98 -> -15993.90259
A100: Total All Through School | B100: Total All Through | C100: =C98 -> 4059846 | D100: =D98 -> 1052030.807 | E100: 0 | F100: 666069.5692 | G100: 214811.1245 | H100: 49770 | I100: 114400 | J100: 0 | K100: 22674 | L100: 0 | M100: 6179601.501 | N100: 0 | P100: 6179601.501 | Q100: =Q98 -> 0 | R100: 6179601.501 | S100: -65203.876 | T100: 6114397.625 | U100: 6029.7 | V100: 0 | W100: 0 | X100: 0 | Y100: 0 | Z100: 0 | AA100: 0 | AB100: 6120427.325 | AC100: 1062 | AE100: 0 | AK100: =AK98 -> 5998194.973 | AL100: =AL98 -> 6179601.501 | AM100: =AM98 -> 181406.5278 | AO100: =AO98 -> 15993.90259 | AP100: =AP98 -> 0 | AQ100: =AQ98 -> -15993.90259
B102: ALL School Block | C102: =SUM(C96+C78+C100) -> 133755437.7 | D102: 21733516.89 | E102: 0 | F102: 14856684.84 | G102: 3034638.352 | H102: 305470.3909 | I102: 10067200 | J102: 0 | K102: 1389926.901 | L102: 1150382 | M102: 186293257.1 | N102: -91605.74912 | P102: =P78+P96+P100 -> 186201651.4 | Q102: =Q78+Q96+Q100 -> 1531879.354 | R102: =R78+R96+R100 -> 187733530.7 | S102: -784301.0074 | T102: 186949229.7 | U102: 299931.9125 | V102: 0 | W102: 0 | X102: 0 | Y102: 0 | Z102: 0 | AA102: 0 | AB102: 187249161.6 | AC102: 39357.82334 | AE102: 1531879.354 | AK102: =AK100+AK96+AK78 -> 172960290.5 | AL102: =AL100+AL96+AL78 -> 187733530.7 | AM102: =AM100+AM96+AM78 -> 14773240.18 | AN102: =AM102/AK102 -> 0.08541405736 | AO102: =AO100+AO96+AO78 -> 307426.4592 | AP102: =AP100+AP96+AP78 -> -91605.74912 | AQ102: =AQ100+AQ96+AQ78 -> -399032.2083
B104: APT Check | C104: 133755437.6 | D104: 21733516.89 | E104: 0 | Q104: APT | R104: 187733530.1 | S104: -784301.2015 | AB104: 188532373.1 | AC104: APT | AE104: 1531878.892
AB105: =S102 -> -784301.0074 | AC105: de-delegation | AE105: =AE102-AE104 -> 0.4617203386
B106: Diff | C106: =C104-C102 -> -0.143406719 | D106: =D104-D102 -> 0 | R106: =R102-R104 -> 0.6051270962 | S106: =S102-S104 -> 0.19406 | AB106: -500000 | AC106: growth
AB107: =AB102-SUM(AB104:AB106) -> 1089.477627 | AC107: balance - add to growth??
A109: Summary Totals 2020-21 | B109: Primary | C109: =C78 -> 66911178.56 | D109: 11495562.45 | E109: 0 | F109: 8650528.556 | G109: 2260952.17 | H109: 189589.6034 | I109: 8236800 | J109: 0 | K109: 794147.8713 | L109: 334206 | M109: 98872965.21 | N109: -91605.74912 | P109: 98781359.46 | Q109: =Q78 -> 858657.3126 | R109: =R78 -> 99640016.78 | S109: -574129.654 | T109: 99065887.12 | U109: 293902.2125 | V109: 0 | W109: 0 | X109: 0 | Y109: 0 | Z109: 0 | AA109: 0 | AB109: 99359789.33 | AK109: =AK78 -> 91695970.08 | AO109: =AO78 -> 360314.5092
B110: Secondary | C110: =C96 -> 62784413.17 | D110: 9185923.628 | E110: 0 | F110: 5540086.718 | G110: 558875.0583 | H110: 66110.78744 | I110: 1716000 | J110: 0 | K110: 573105.03 | L110: 816176 | M110: 81240690.39 | N110: 0 | P110: 81240690.39 | Q110: =Q96 -> 673222.0415 | R110: =R96 -> 81913912.43 | S110: -144967.4774 | T110: 81768944.95 | U110: 0 | V110: 0 | W110: 0 | X110: 0 | Y110: 0 | Z110: 0 | AA110: 0 | AB110: 81768944.95 | AK110: =AK96 -> 75266125.48 | AO110: =AO96 -> -68881.95266
B111: All Through | C111: =C100 -> 4059846 | D111: 1052030.807 | E111: 0 | F111: 666069.5692 | G111: 214811.1245 | H111: 49770 | I111: 114400 | J111: 0 | K111: 22674 | L111: 0 | M111: 6179601.501 | N111: 0 | P111: 6179601.501 | Q111: =Q100 -> 0 | R111: =R100 -> 6179601.501 | S111: -65203.876 | T111: 6114397.625 | U111: 6029.7 | V111: 0 | W111: 0 | X111: 0 | Y111: 0 | Z111: 0 | AA111: 0 | AB111: 6120427.325 | AK111: =AK100 -> 5998194.973 | AO111: =AO100 -> 15993.90259
B112: ALL School Block | C112: =SUM(C109:C111) -> 133755437.7 | D112: =SUM(D109:D111) -> 21733516.89 | E112: 0 | F112: 14856684.84 | G112: 3034638.352 | H112: 305470.3909 | I112: 10067200 | J112: 0 | K112: 1389926.901 | L112: 1150382 | M112: 186293257.1 | N112: -91605.74912 | P112: 186201651.4 | Q112: =SUM(Q109:Q111) -> 1531879.354 | R112: =SUM(R109:R111) -> 187733530.7 | S112: -784301.0074 | T112: 186949229.7 | U112: 299931.9125 | V112: 0 | W112: 0 | X112: 0 | Y112: 0 | Z112: 0 | AA112: 0 | AB112: 187249161.6 | AK112: =SUM(AK109:AK111) -> 172960290.5 | AO112: =SUM(AO109:AO111) -> 307426.4592
A114: Final APT 2019-20 | B114: Primary | C114: 64104676.06 | D114: 10856404.3 | E114: 0 | F114: 4706986.595 | G114: 2161166.755 | H114: 276818.9689 | I114: 7873799.847 | J114: 0 | K114: 982450.12 | L114: 324471 | M114: 91286773.64 | N114: 360314.5092 | P114: 91647088.15 | Q114: 0 | R114: 48881.92302 | S114: -957447.999 | T114: 90738522.08 | U114: 586879.8 | V114: 0 | W114: 0 | X114: 0 | Y114: 0 | AB114: =SUM(T114:AA114) -> 91325401.88 | AK114: 86297432.5 | AO114: 174374.0189
B115: Secondary | C115: 58255305.39 | D115: 8370415.449 | E115: 0 | F115: 4985297.225 | G115: 579001.2659 | H115: 98290.08 | I115: 1650000 | J115: 0 | K115: 592064.03 | L115: 804634 | M115: 75335007.44 | N115: -68881.95266 | P115: 75266125.48 | Q115: 0 | R115: 0 | S115: -140761.186 | T115: 75125364.3 | U115: 0 | V115: 611662 | W115: 0 | X115: 0 | Y115: 0 | AB115: =SUM(T115:AA115) -> 75737026.3 | AK115: 65898450.61 | AO115: 45461.88307
B116: All Through | C116: 3873828.558 | D116: 985162.457 | E116: 0 | F116: 615257.258 | G116: 206310.2855 | H116: 169167.512 | I116: 110000 | J116: 0 | K116: 22475 | L116: 0 | M116: 5982201.071 | N116: 15993.90259 | P116: 5998194.973 | Q116: 0 | R116: 0 | S116: -65843.488 | T116: 5932351.485 | U116: 0 | V116: 549000 | W116: 0 | X116: 0 | Y116: 0 | AB116: =SUM(T116:AA116) -> 6481351.485 | AK116: 5780827.764 | AO116: 223804.4443
B117: ALL School Block | C117: =SUM(C114:C116) -> 126233810 | D117: =SUM(D114:D116) -> 20211982.2 | E117: 0 | F117: 10307541.08 | G117: 2946478.306 | H117: 544276.5609 | I117: 9633799.847 | J117: 0 | K117: 1596989.15 | L117: 1129105 | M117: 172603982.1 | N117: 307426.4592 | P117: 172911408.6 | Q117: =SUM(Q114:Q116) -> 0 | R117: 48881.92302 | S117: -1164052.673 | T117: 171796237.9 | U117: 586879.8 | V117: 1160662 | W117: 0 | X117: 0 | Y117: 0 | Z117: 0 | AA117: 0 | AB117: 173543779.7 | AK117: =SUM(AK114:AK116) -> 157976710.9 | AO117: =SUM(AO114:AO116) -> 443640.3463
A119: Difference between 2020/21 and 2019/20 | B119: Primary | C119: =C109-C114 -> 2806502.502 | D119: =D109-D114 -> 639158.1537 | E119: 0 | F119: 3943541.96 | G119: 99785.41485 | H119: -87229.36547 | I119: 363000.153 | J119: 0 | K119: -188302.2487 | L119: 9735 | M119: 7586191.57 | N119: -451920.2584 | P119: 7134271.312 | Q119: 858657.3126 | R119: 99591134.85 | S119: 383318.345 | T119: 8327365.046 | U119: -292977.5875 | AA119: 0 | AB119: 8034387.459 | AK119: =AK109-AK114 -> 5398537.579 | AO119: 185940.4903
B120: Secondary | C120: =C110-C115 -> 4529107.78 | D120: 815508.1794 | E120: 0 | F120: 554789.4933 | G120: -20126.20759 | H120: -32179.29256 | I120: 66000 | J120: 0 | K120: -18959 | L120: 11542 | M120: 5905682.953 | N120: 68881.95266 | P120: 5974564.905 | Q120: 673222.0415 | R120: 81913912.43 | S120: -4206.29144 | T120: 6643580.655 | U120: 0 | AA120: 0 | AB120: 6031918.655 | AK120: 9367674.869 | AO120: -114343.8357
B121: All Through | C121: =C111-C116 -> 186017.4419 | D121: 66868.3503 | E121: 0 | F121: 50812.31119 | G121: 8500.838951 | H121: -119397.512 | I121: 4400 | J121: 0 | K121: 199 | L121: 0 | M121: 197400.4304 | N121: -15993.90259 | P121: 181406.5278 | Q121: 0 | R121: 6179601.501 | S121: 639.612 | T121: 182046.1398 | U121: 6029.7 | AA121: 0 | AB121: -360924.1602 | AK121: 217367.2094 | AO121: -207810.5417
B122: ALL School Block | C122: =SUM(C119:C121) -> 7521627.724 | D122: =SUM(D119:D121) -> 1521534.683 | E122: 0 | F122: 4549143.765 | G122: 88160.04621 | H122: -238806.17 | I122: 433400.153 | J122: 0 | K122: -207062.2487 | L122: 21277 | M122: 13689274.95 | N122: -399032.2083 | P122: 13290242.74 | Q122: =SUM(Q119:Q121) -> 1531879.354 | R122: =SUM(R119:R121) -> 187684648.8 | S122: 379751.6656 | T122: 15152991.84 | U122: -286947.8875 | V122: 0 | W122: 0 | X122: 0 | Y122: 0 | Z122: 0 | AA122: 0 | AB122: 13705381.95 | AK122: =SUM(AK119:AK121) -> 14983579.66 | AO122: =SUM(AO119:AO121) -> -136213.8872
A126: Checks for tool compared to APT | B126: link to tabs | C126: 133755437.7 | D126: 21733516.89 | E126: 0 | F126: 14856684.84 | G126: 3034638.352 | H126: 305470.3909 | I126: 10067200 | J126: 0 | K126: 1389926.901 | L126: 1150382 | M126: =SUM(C126:L126) -> 186293257.1 | N126: =N112 -> -91605.74912 | P126: =P102 -> 186201651.4 | Q126: =Q102 -> 1531879.354 | R126: =R102 -> 187733530.7 | S126: -784301.0074
B127: variance | C127: =C126-C102 -> 0 | D127: 0 | E127: 0 | F127: 0 | G127: 0 | H127: 0 | I127: 0 | J127: 0 | K127: 0 | L127: 0 | M127: 0 | N127: 0 | P127: =P126-P102 -> 0 | R127: =R126-R102 -> 0 | S127: =S126-S102 -> 0
U128: KS1 | V128: Growth | W128: De-del | X128: Total
B129: Link to New APT | C129: 133755437.6 | D129: 21733516.89 | F129: 14856684.84 | G129: 3034638.352 | H129: 305470.3909 | I129: 10067200 | J129: 0 | K129: 1389926.901 | L129: 1150382 | M129: 186293257 | N129: -91605.74912 | P129: 186201651.2 | Q129: 1531878.892 | R129: 187733530.1 | S129: -784301.2015 | T129: 186949228.9 | U129: =U112 -> 299931.9125 | V129: =AB106*-1 -> 500000 | W129: =S102*-1 -> 784301.0074 | X129: =SUM(T129:W129) -> 188533461.8 | Y129: =X129-AB104 -> 1088.67844
C130: =C129-C126 -> -0.143406719 | D130: =D129-D126 -> 0 | F130: 0 | G130: 0 | H130: 0 | I130: 0 | J130: 0 | K130: 0 | L130: 0 | M130: -0.143406719 | N130: 0 | P130: -0.1434067488 | Q130: -0.4617203386 | R130: -0.6051270962 | S130: -0.19406 | T130: =+T129-T102 -> -0.7991870642
M131: ok
V133: ERS | W133: TA Hours
A135: Ashgate Nursery | B135: 1014 | K135: 0 | M135: =SUM(C135:L135) -> 0 | P135: =SUM(M135:N135) -> 0 | T135: =SUM(P135+S135) -> 0 | Z135: 251753.8578 | AB135: =SUM(T135:AA135) -> 251753.8578
A136: Castle Nursery | B136: 1017 | K136: 0 | M136: 0 | P136: 0 | T136: 0 | Z136: -0.006963723941 | AB136: -0.006963723941
A137: Central Nursery | B137: 1006 | K137: 0 | M137: 0 | P137: 0 | T137: 0 | Z137: 271635.3768 | AB137: 271635.3768
A138: Harrington Nursery School | B138: 1008 | K138: 0 | M138: 0 | P138: 0 | T138: 0 | Z138: 387772.0751 | AB138: 387772.0751
A139: Lord Street Nursery | B139: 1005 | K139: 0 | M139: 0 | P139: 0 | T139: 0 | Z139: 437385.692 | AB139: 437385.692
A140: Stonehill Nursery | B140: 1010 | K140: 0 | M140: 0 | P140: 0 | T140: 0 | Z140: 290418.3101 | AB140: 290418.3101
A141: Walbrook Nursery | B141: 1009 | K141: 0 | M141: 0 | P141: 0 | T141: 0 | Z141: 381335.5265 | AB141: 381335.5265
A142: Whitecross Nursery | B142: 1015 | K142: 0 | M142: 0 | P142: 0 | T142: 0 | Z142: 344176.0579 | AB142: 344176.0579
A143: Nursery | K143: =SUM(K135:K142) -> 0 | M143: =SUM(M135:M142) -> 0 | P143: 0 | T143: =SUM(T135:T142) -> 0 | V143: =SUM(V135:V142) -> 0 | W143: =SUM(W135:W142) -> 0 | Z143: =SUM(Z135:Z142) -> 2364476.889 | AB143: =SUM(AB135:AB142) -> 2364476.889
AA144: Rates
V145: Total ALL | W145: Total ALL | Z145: =V143+W143 -> 0 | AA145: High Needs
C146: =C102 -> 133755437.7 | D146: 21733516.89 | E146: 0 | F146: 14856684.84 | G146: 3034638.352 | H146: 305470.3909 | I146: 10067200 | J146: 0 | K146: =K102+K143 -> 1389926.901 | L146: 1150382 | M146: 186293257.1 | N146: -91605.74912 | P146: 186201651.4 | R146: =R102+R143 -> 187733530.7 | S146: -784301.0074 | T146: 186949229.7 | U146: 299931.9125 | V146: 0 | W146: 0 | X146: 0 | Y146: 0 | Z146: 2364476.889 | AA146: 0 | AB146: 189613638.5
B148: 1 | C148: 2 | D148: 3 | E148: 4 | F148: 5 | G148: 6 | H148: 7 | I148: 8 | J148: 9 | K148: 10 | L148: 11 | M148: 12 | N148: 13 | P148: 15 | R148: 16 | S148: 17 | T148: 18 | U148: 19 | V148: 20 | W148: 21 | X148: 22 | Y148: 23 | Z148: 24 | AA148: 25 | AB148: 26 | AD148: 27 | AF148: 28 | AG148: 29 | AH148: 30 | AI148: 31 | AK148: 33 | AM148: 35 | AO148: 34 | AQ148: 36
S153: 1008 | T153: Harrington Nursery School
S154: 1005 | T154: Lord Street Nursery | AA154: Schools with Nurseries | AB154: 4112808.628
S155: 1006 | T155: Central Nursery | AA155: Stand Alone Nursery | AB155: 2364476.901
S156: 1010 | T156: Stonehill Nursery | AA156: Sub Total Schools | AB156: =AB155+AB154 -> 6477285.529

Sheet Summary for Prints (hidden)
AE1: Primary: | AF1: ='2020-21 FORMULA'!AE1 -> 3750
C2: 2 | D2: 3 | E2: 4 | F2: 5 | G2: 6 | H2: 7 | I2: 8 | J2: 9 | K2: 10 | L2: 11 | M2: 12 | N2: 13 | O2: 14 | P2: 15 | Q2: 16 | R2: 17 | S2: 18 | T2: 19 | U2: 20 | W2: 21 | X2: 22 | Y2: 23 | Z2: 24 | AA2: 25 | AB2: 26 | AC2: 27 | AD2: 28 | AE2: Secondary: | AF2: ='2020-21 FORMULA'!AE2 -> 5000
V3: ERS | AE3: All Through: | AF3: ='2020-21 FORMULA'!AE3 -> 4270.833333
A4: School | B4: DfE Number | C4: AWPU inc delegated Budget £ | D4: Deprivation £ | E4: LAC £ | F4: LCHI SEN £ | G4: EAL £ | H4: Mobility £ | I4: Lump Sum £ | J4: Split Site £ | K4: Rates £ (based on 19-20 values) | L4: PFI £ | M4: Pre MFG Total | N4: MFG | O4: No Cap | P4: Budget before De-Delegation | Q4: Minimum funding adjustment | R4: Budget before de-delegation (incl. min funding adj) | S4: De-delegation tbc | T4: Net School budget | U4: KS1 Class Factor (link info From KS1 working papers) | V4: ERS E1 Empty Places | W4: ERS Element 2 Pre 16 | X4: ERS Element 2 Post 16 | Y4: ERS Element 3 Pre & Post 16 | Z4: ERS Other | AA4: Schools with Nurseries excl Rates, TA, ERS | AB4: Contingency | AC4: Total | AD4: NOR | AI4: Lookup | AL4: Budget after de-del (incl. rates) | AM4: Rates | AN4: Budget after de-del (excl. rates)
A5: Akaal Primary School | B5: 2014 | C5: =VLOOKUP($B5,'2020-21 FORMULA'!$B:$AC,'Summary for Prints'!C$2,FALSE) -> 505689 | D5: =VLOOKUP($B5,'2020-21 FORMULA'!$B:$AC,'Summary for Prints'!D$2,FALSE) -> 68191.39316 | E5: =VLOOKUP($B5,'2020-21 FORMULA'!$B:$AC,'Summary for Prints'!E$2,FALSE) -> 0 | F5: =VLOOKUP($B5,'2020-21 FORMULA'!$B:$AC,'Summary for Prints'!F$2,FALSE) -> 44882.14286 | G5: =VLOOKUP($B5,'2020-21 FORMULA'!$B:$AC,'Summary for Prints'!G$2,FALSE) -> 63130 | H5: =VLOOKUP($B5,'2020-21 FORMULA'!$B:$AC,'Summary for Prints'!H$2,FALSE) -> 8577.692308 | I5: =VLOOKUP($B5,'2020-21 FORMULA'!$B:$AC,'Summary for Prints'!I$2,FALSE) -> 114400 | J5: =VLOOKUP($B5,'2020-21 FORMULA'!$B:$AC,'Summary for Prints'!J$2,FALSE) -> 0 | K5: =VLOOKUP($B5,'2020-21 FORMULA'!$B:$AC,'Summary for Prints'!K$2,FALSE) -> 3973 | L5: =VLOOKUP($B5,'2020-21 FORMULA'!$B:$AC,'Summary for Prints'!L$2,FALSE) -> 0 | M5: =SUM(C5:L5) -> 808843.2283 | N5: =VLOOKUP($B5,'2020-21 FORMULA'!$B:$AC,'Summary for Prints'!N$2,FALSE) -> 0 | O5: =VLOOKUP($B5,'2020-21 FORMULA'!$B:$AC,'Summary for Prints'!O$2,FALSE) -> 0 | P5: =SUM(M5:O5) -> 808843.2283 | Q5: =VLOOKUP($B5,'2020-21 FORMULA'!$B:$AC,'Summary for Prints'!Q$2,FALSE) -> 0 | R5: =P5+Q5 -> 808843.2283 | S5: =VLOOKUP($B5,'2020-21 FORMULA'!$B:$AC,'Summary for Prints'!S$2,FALSE) -> 0 | T5: =R5+S5 -> 808843.2283 | U5: =VLOOKUP($B5,'2020-21 FORMULA'!$B:$AC,'Summary for Prints'!U$2,FALSE) -> 2125.8125 | V5: =SUMIF('ERS 2020-21'!B:B,'Summary for Prints'!B5,'ERS 2020-21'!T:T) -> 0 | W5: =(SUMIF('ERS 2020-21'!B:B,'Summary for Prints'!B5,'ERS 2020-21'!L:L)+SUMIF('ERS 2020-21'!B:B,'Summary for Prints'!B5,'ERS 2020-21'!M:M))*'ERS 2020-21'!$L$1 -> 0 | X5: =(SUMIF('ERS 2020-21'!B:B,'Summary for Prints'!B5,'ERS 2020-21'!O:O))*'ERS 2020-21'!$L$1 -> 0 | Y5: =SUMIF('ERS 2020-21'!B:B,'Summary for Prints'!B5,'ERS 2020-21'!U:U) -> 0 | Z5: =SUMIF('ERS 2020-21'!B:B,'Summary for Prints'!B5,'ERS 2020-21'!V:V)+SUMIF('ERS 2020-21'!B:B,'Summary for Prints'!B5,'ERS 2020-21'!W:W) -> 0 | AA5: =IFERROR(VLOOKUP(B5,'2020-21 Nursery Budget'!E:AC,25,FALSE),0) -> 0 | AB5: 0 | AC5: =SUM(T5:AB5) -> 810969.0408 | AD5: =VLOOKUP($B5,'2020-21 FORMULA'!$B:$AC,'Summary for Prints'!AD$2,FALSE) -> 177 | AI5: 8312014 | AL5: =AC5 -> 810969.0408 | AM5: =K5 -> 3973 | AN5: =AL5-AM5 -> 806996.0408
A6: Allenton Community Primary School | B6: 2012 | C6: =VLOOKUP($B6,'2020-21 FORMULA'!$B:$AC,'Summary for Prints'!C$2,FALSE) -> 1114230 | D6: =VLOOKUP($B6,'2020-21 FORMULA'!$B:$AC,'Summary for Prints'!D$2,FALSE) -> 372447.2277 | E6: =VLOOKUP($B6,'2020-21 FORMULA'!$B:$AC,'Summary for Prints'!E$2,FALSE) -> 0 | F6: =VLOOKUP($B6,'2020-21 FORMULA'!$B:$AC,'Summary for Prints'!F$2,FALSE) -> 174263.5647 | G6: =VLOOKUP($B6,'2020-21 FORMULA'!$B:$AC,'Summary for Prints'!G$2,FALSE) -> 35890.23324 | H6: =VLOOKUP($B6,'2020-21 FORMULA'!$B:$AC,'Summary for Prints'!H$2,FALSE) -> 4900 | I6: =VLOOKUP($B6,'2020-21 FORMULA'!$B:$AC,'Summary for Prints'!I$2,FALSE) -> 114400 | J6: =VLOOKUP($B6,'2020-21 FORMULA'!$B:$AC,'Summary for Prints'!J$2,FALSE) -> 0 | K6: =VLOOKUP($B6,'2020-21 FORMULA'!$B:$AC,'Summary for Prints'!K$2,FALSE) -> 7523 | L6: =VLOOKUP($B6,'2020-21 FORMULA'!$B:$AC,'Summary for Prints'!L$2,FALSE) -> 0 | M6: =SUM(C6:L6) -> 1823654.026 | N6: =VLOOKUP($B6,'2020-21 FORMULA'!$B:$AC,'Summary for Prints'!N$2,FALSE) -> 0 | O6: =VLOOKUP($B6,'2020-21 FORMULA'!$B:$AC,'Summary for Prints'!O$2,FALSE) -> 0 | P6: =SUM(M6:O6) -> 1823654.026 | Q6: =VLOOKUP($B6,'2020-21 FORMULA'!$B:$AC,'Summary for Prints'!Q$2,FALSE) -> 0 | R6: =P6+Q6 -> 1823654.026 | S6: =VLOOKUP($B6,'2020-21 FORMULA'!$B:$AC,'Summary for Prints'!S$2,FALSE) -> 0 | T6: =R6+S6 -> 1823654.026 | U6: =VLOOKUP($B6,'2020-21 FORMULA'!$B:$AC,'Summary for Prints'!U$2,FALSE) -> 5756.15 | V6: =SUMIF('ERS 2020-21'!B:B,'Summary for Prints'!B6,'ERS 2020-21'!T:T) -> 0 | W6: =(SUMIF('ERS 2020-21'!B:B,'Summary for Prints'!B6,'ERS 2020-21'!L:L)+SUMIF('ERS 2020-21'!B:B,'Summary for Prints'!B6,'ERS 2020-21'!M:M))*'ERS 2020-21'!$L$1 -> 0 | X6: =(SUMIF('ERS 2020-21'!B:B,'Summary for Prints'!B6,'ERS 2020-21'!O:O))*'ERS 2020-21'!$L$1 -> 0 | Y6: =SUMIF('ERS 2020-21'!B:B,'Summary for Prints'!B6,'ERS 2020-21'!U:U) -> 0 | Z6: =SUMIF('ERS 2020-21'!B:B,'Summary for Prints'!B6,'ERS 2020-21'!V:V)+SUMIF('ERS 2020-21'!B:B,'Summary for Prints'!B6,'ERS 2020-21'!W:W) -> 0 | AA6: =IFERROR(VLOOKUP(B6,'2020-21 Nursery Budget'!E:AC,25,FALSE),0) -> 0 | AB6: 0 | AC6: =SUM(T6:AB6) -> 1829410.176 | AD6: =VLOOKUP($B6,'2020-21 FORMULA'!$B:$AC,'Summary for Prints'!AD$2,FALSE) -> 390 | AG6: 2012 new number | AI6: 8312400 | AL6: =AC6 -> 1829410.176 | AM6: =K6 -> 7523 | AN6: =AL6-AM6 -> 1821887.176
A7: Alvaston Infant and Nursery School | B7: 2443 | C7: =VLOOKUP($B7,'2020-21 FORMULA'!$B:$AC,'Summary for Prints'!C$2,FALSE) -> 759962 | D7: =VLOOKUP($B7,'2020-21 FORMULA'!$B:$AC,'Summary for Prints'!D$2,FALSE) -> 137082.3881 | E7: =VLOOKUP($B7,'2020-21 FORMULA'!$B:$AC,'Summary for Prints'!E$2,FALSE) -> 0 | F7: =VLOOKUP($B7,'2020-21 FORMULA'!$B:$AC,'Summary for Prints'!F$2,FALSE) -> 53727.41379 | G7: =VLOOKUP($B7,'2020-21 FORMULA'!$B:$AC,'Summary for Prints'!G$2,FALSE) -> 17788.75 | H7: =VLOOKUP($B7,'2020-21 FORMULA'!$B:$AC,'Summary for Prints'!H$2,FALSE) -> 0 | I7: =VLOOKUP($B7,'2020-21 FORMULA'!$B:$AC,'Summary for Prints'!I$2,FALSE) -> 114400 | J7: =VLOOKUP($B7,'2020-21 FORMULA'!$B:$AC,'Summary for Prints'!J$2,FALSE) -> 0 | K7: =VLOOKUP($B7,'2020-21 FORMULA'!$B:$AC,'Summary for Prints'!K$2,FALSE) -> 17829 | L7: =VLOOKUP($B7,'2020-21 FORMULA'!$B:$AC,'Summary for Prints'!L$2,FALSE) -> 0 | M7: 1100789.552 | N7: =VLOOKUP($B7,'2020-21 FORMULA'!$B:$AC,'Summary for Prints'!N$2,FALSE) -> 0 | O7: =VLOOKUP($B7,'2020-21 FORMULA'!$B:$AC,'Summary for Prints'!O$2,FALSE) -> 0 | P7: 1100789.552 | Q7: =VLOOKUP($B7,'2020-21 FORMULA'!$B:$AC,'Summary for Prints'!Q$2,FALSE) -> 0 | R7: 1100789.552 | S7: =VLOOKUP($B7,'2020-21 FORMULA'!$B:$AC,'Summary for Prints'!S$2,FALSE) -> -18459.868 | T7: 1082329.684 | U7: =VLOOKUP($B7,'2020-21 FORMULA'!$B:$AC,'Summary for Prints'!U$2,FALSE) -> 3300 | V7: =SUMIF('ERS 2020-21'!B:B,'Summary for Prints'!B7,'ERS 2020-21'!T:T) -> 0 | W7: =(SUMIF('ERS 2020-21'!B:B,'Summary for Prints'!B7,'ERS 2020-21'!L:L)+SUMIF('ERS 2020-21'!B:B,'Summary for Prints'!B7,'ERS 2020-21'!M:M))*'ERS 2020-21'!$L$1 -> 0 | X7: =(SUMIF('ERS 2020-21'!B:B,'Summary for Prints'!B7,'ERS 2020-21'!O:O))*'ERS 2020-21'!$L$1 -> 0 | Y7: =SUMIF('ERS 2020-21'!B:B,'Summary for Prints'!B7,'ERS 2020-21'!U:U) -> 0 | Z7: =SUMIF('ERS 2020-21'!B:B,'Summary for Prints'!B7,'ERS 2020-21'!V:V)+SUMIF('ERS 2020-21'!B:B,'Summary for Prints'!B7,'ERS 2020-21'!W:W) -> 0 | AA7: =IFERROR(VLOOKUP(B7,'2020-21 Nursery Budget'!E:AC,25,FALSE),0) -> 168373 | AB7: 0 | AC7: 1254002.684 | AD7: =VLOOKUP($B7,'2020-21 FORMULA'!$B:$AC,'Summary for Prints'!AD$2,FALSE) -> 266 | AI7: 8312443 | AL7: 1254002.684 | AM7: 17829 | AN7: 1236173.684
A8: Alvaston Junior School | B8: 2442 | C8: =VLOOKUP($B8,'2020-21 FORMULA'!$B:$AC,'Summary for Prints'!C$2,FALSE) -> 985665 | D8: =VLOOKUP($B8,'2020-21 FORMULA'!$B:$AC,'Summary for Prints'!D$2,FALSE) -> 187423.4289 | E8: =VLOOKUP($B8,'2020-21 FORMULA'!$B:$AC,'Summary for Prints'!E$2,FALSE) -> 0 | F8: =VLOOKUP($B8,'2020-21 FORMULA'!$B:$AC,'Summary for Prints'!F$2,FALSE) -> 133403.5385 | G8: =VLOOKUP($B8,'2020-21 FORMULA'!$B:$AC,'Summary for Prints'!G$2,FALSE) -> 4280 | H8: =VLOOKUP($B8,'2020-21 FORMULA'!$B:$AC,'Summary for Prints'!H$2,FALSE) -> 0 | I8: =VLOOKUP($B8,'2020-21 FORMULA'!$B:$AC,'Summary for Prints'!I$2,FALSE) -> 114400 | J8: =VLOOKUP($B8,'2020-21 FORMULA'!$B:$AC,'Summary for Prints'!J$2,FALSE) -> 0 | K8: =VLOOKUP($B8,'2020-21 FORMULA'!$B:$AC,'Summary for Prints'!K$2,FALSE) -> 5958 | L8: =VLOOKUP($B8,'2020-21 FORMULA'!$B:$AC,'Summary for Prints'!L$2,FALSE) -> 0 | M8: 1431129.967 | N8: =VLOOKUP($B8,'2020-21 FORMULA'!$B:$AC,'Summary for Prints'!N$2,FALSE) -> 0 | O8: =VLOOKUP($B8,'2020-21 FORMULA'!$B:$AC,'Summary for Prints'!O$2,FALSE) -> 0 | P8: 1431129.967 | Q8: =VLOOKUP($B8,'2020-21 FORMULA'!$B:$AC,'Summary for Prints'!Q$2,FALSE) -> 0 | R8: 1431129.967 | S8: =VLOOKUP($B8,'2020-21 FORMULA'!$B:$AC,'Summary for Prints'!S$2,FALSE) -> 0 | T8: 1431129.967 | U8: =VLOOKUP($B8,'2020-21 FORMULA'!$B:$AC,'Summary for Prints'!U$2,FALSE) -> 0 | V8: 0 | W8: =(SUMIF('ERS 2020-21'!B:B,'Summary for Prints'!B8,'ERS 2020-21'!L:L)+SUMIF('ERS 2020-21'!B:B,'Summary for Prints'!B8,'ERS 2020-21'!M:M))*'ERS 2020-21'!$L$1 -> 38500 | X8: =(SUMIF('ERS 2020-21'!B:B,'Summary for Prints'!B8,'ERS 2020-21'!O:O))*'ERS 2020-21'!$L$1 -> 0 | Y8: =SUMIF('ERS 2020-21'!B:B,'Summary for Prints'!B8,'ERS 2020-21'!U:U) -> 22000 | Z8: =SUMIF('ERS 2020-21'!B:B,'Summary for Prints'!B8,'ERS 2020-21'!V:V)+SUMIF('ERS 2020-21'!B:B,'Summary for Prints'!B8,'ERS 2020-21'!W:W) -> 0 | AA8: =IFERROR(VLOOKUP(B8,'2020-21 Nursery Budget'!E:AC,25,FALSE),0) -> 0 | AB8: 0 | AC8: 1491629.967 | AD8: =VLOOKUP($B8,'2020-21 FORMULA'!$B:$AC,'Summary for Prints'!AD$2,FALSE) -> 345 | AI8: 8312442 | AL8: 1491629.967 | AM8: 5958 | AN8: 1485671.967
A9: Arboretum Primary School | B9: 2629 | C9: =VLOOKUP($B9,'2020-21 FORMULA'!$B:$AC,'Summary for Prints'!C$2,FALSE) -> 1494211 | D9: =VLOOKUP($B9,'2020-21 FORMULA'!$B:$AC,'Summary for Prints'!D$2,FALSE) -> 366756.1996 | E9: =VLOOKUP($B9,'2020-21 FORMULA'!$B:$AC,'Summary for Prints'!E$2,FALSE) -> 0 | F9: =VLOOKUP($B9,'2020-21 FORMULA'!$B:$AC,'Summary for Prints'!F$2,FALSE) -> 281254.901 | G9: =VLOOKUP($B9,'2020-21 FORMULA'!$B:$AC,'Summary for Prints'!G$2,FALSE) -> 134905.9821 | H9: =VLOOKUP($B9,'2020-21 FORMULA'!$B:$AC,'Summary for Prints'!H$2,FALSE) -> 0 | I9: =VLOOKUP($B9,'2020-21 FORMULA'!$B:$AC,'Summary for Prints'!I$2,FALSE) -> 114400 | J9: =VLOOKUP($B9,'2020-21 FORMULA'!$B:$AC,'Summary for Prints'!J$2,FALSE) -> 0 | K9: =VLOOKUP($B9,'2020-21 FORMULA'!$B:$AC,'Summary for Prints'!K$2,FALSE) -> 12147 | L9: =VLOOKUP($B9,'2020-21 FORMULA'!$B:$AC,'Summary for Prints'!L$2,FALSE) -> 0 | M9: 2403675.083 | N9: =VLOOKUP($B9,'2020-21 FORMULA'!$B:$AC,'Summary for Prints'!N$2,FALSE) -> 0 | O9: =VLOOKUP($B9,'2020-21 FORMULA'!$B:$AC,'Summary for Prints'!O$2,FALSE) -> 0 | P9: 2403675.083 | Q9: =VLOOKUP($B9,'2020-21 FORMULA'!$B:$AC,'Summary for Prints'!Q$2,FALSE) -> 0 | R9: 2403675.083 | S9: =VLOOKUP($B9,'2020-21 FORMULA'!$B:$AC,'Summary for Prints'!S$2,FALSE) -> 0 | T9: 2403675.083 | U9: =VLOOKUP($B9,'2020-21 FORMULA'!$B:$AC,'Summary for Prints'!U$2,FALSE) -> 7403.25 | V9: =SUMIF('ERS 2020-21'!B:B,'Summary for Prints'!B9,'ERS 2020-21'!T:T) -> 0 | W9: =(SUMIF('ERS 2020-21'!B:B,'Summary for Prints'!B9,'ERS 2020-21'!L:L)+SUMIF('ERS 2020-21'!B:B,'Summary for Prints'!B9,'ERS 2020-21'!M:M))*'ERS 2020-21'!$L$1 -> 0 | X9: =(SUMIF('ERS 2020-21'!B:B,'Summary for Prints'!B9,'ERS 2020-21'!O:O))*'ERS 2020-21'!$L$1 -> 0 | Y9: =SUMIF('ERS 2020-21'!B:B,'Summary for Prints'!B9,'ERS 2020-21'!U:U) -> 0 | Z9: =SUMIF('ERS 2020-21'!B:B,'Summary for Prints'!B9,'ERS 2020-21'!V:V)+SUMIF('ERS 2020-21'!B:B,'Summary for Prints'!B9,'ERS 2020-21'!W:W) -> 0 | AA9: =IFERROR(VLOOKUP(B9,'2020-21 Nursery Budget'!E:AC,25,FALSE),0) -> 210842 | AB9: 0 | AC9: 2621920.333 | AD9: =VLOOKUP($B9,'2020-21 FORMULA'!$B:$AC,'Summary for Prints'!AD$2,FALSE) -> 523 | AI9: 8312629 | AL9: 2621920.333 | AM9: 12147 | AN9: 2609773.333
A10: Ash Croft Primary School | B10: 2509 | C10: =VLOOKUP($B10,'2020-21 FORMULA'!$B:$AC,'Summary for Prints'!C$2,FALSE) -> 537116 | D10: =VLOOKUP($B10,'2020-21 FORMULA'!$B:$AC,'Summary for Prints'!D$2,FALSE) -> 105287.7295 | E10: =VLOOKUP($B10,'2020-21 FORMULA'!$B:$AC,'Summary for Prints'!E$2,FALSE) -> 0 | F10: =VLOOKUP($B10,'2020-21 FORMULA'!$B:$AC,'Summary for Prints'!F$2,FALSE) -> 69696.83544 | G10: =VLOOKUP($B10,'2020-21 FORMULA'!$B:$AC,'Summary for Prints'!G$2,FALSE) -> 20790.27933 | H10: =VLOOKUP($B10,'2020-21 FORMULA'!$B:$AC,'Summary for Prints'!H$2,FALSE) -> 16380 | I10: =VLOOKUP($B10,'2020-21 FORMULA'!$B:$AC,'Summary for Prints'!I$2,FALSE) -> 114400 | J10: =VLOOKUP($B10,'2020-21 FORMULA'!$B:$AC,'Summary for Prints'!J$2,FALSE) -> 0 | K10: =VLOOKUP($B10,'2020-21 FORMULA'!$B:$AC,'Summary for Prints'!K$2,FALSE) -> 4647 | L10: =VLOOKUP($B10,'2020-21 FORMULA'!$B:$AC,'Summary for Prints'!L$2,FALSE) -> 0 | M10: 868317.8442 | N10: =VLOOKUP($B10,'2020-21 FORMULA'!$B:$AC,'Summary for Prints'!N$2,FALSE) -> 0 | O10: =VLOOKUP($B10,'2020-21 FORMULA'!$B:$AC,'Summary for Prints'!O$2,FALSE) -> 0 | P10: 868317.8442 | Q10: =VLOOKUP($B10,'2020-21 FORMULA'!$B:$AC,'Summary for Prints'!Q$2,FALSE) -> 0 | R10: 868317.8442 | S10: =VLOOKUP($B10,'2020-21 FORMULA'!$B:$AC,'Summary for Prints'!S$2,FALSE) -> 0 | T10: 868317.8442 | U10: =VLOOKUP($B10,'2020-21 FORMULA'!$B:$AC,'Summary for Prints'!U$2,FALSE) -> 6844.55 | V10: =SUMIF('ERS 2020-21'!B:B,'Summary for Prints'!B10,'ERS 2020-21'!T:T) -> 0 | W10: =(SUMIF('ERS 2020-21'!B:B,'Summary for Prints'!B10,'ERS 2020-21'!L:L)+SUMIF('ERS 2020-21'!B:B,'Summary for Prints'!B10,'ERS 2020-21'!M:M))*'ERS 2020-21'!$L$1 -> 0 | X10: =(SUMIF('ERS 2020-21'!B:B,'Summary for Prints'!B10,'ERS 2020-21'!O:O))*'ERS 2020-21'!$L$1 -> 0 | Y10: =SUMIF('ERS 2020-21'!B:B,'Summary for Prints'!B10,'ERS 2020-21'!U:U) -> 0 | Z10: =SUMIF('ERS 2020-21'!B:B,'Summary for Prints'!B10,'ERS 2020-21'!V:V)+SUMIF('ERS 2020-21'!B:B,'Summary for Prints'!B10,'ERS 2020-21'!W:W) -> 0 | AA10: =IFERROR(VLOOKUP(B10,'2020-21 Nursery Budget'!E:AC,25,FALSE),0) -> 0 | AB10: 0 | AC10: 875162.3942 | AD10: =VLOOKUP($B10,'2020-21 FORMULA'!$B:$AC,'Summary for Prints'!AD$2,FALSE) -> 188 | AI10: 8312509 | AL10: 875162.3942 | AM10: 4647 | AN10: 870515.3942
A11: Ashgate Primary School | B11: 2005 | C11: =VLOOKUP($B11,'2020-21 FORMULA'!$B:$AC,'Summary for Prints'!C$2,FALSE) -> 882813 | D11: =VLOOKUP($B11,'2020-21 FORMULA'!$B:$AC,'Summary for Prints'!D$2,FALSE) -> 220102.8043 | E11: =VLOOKUP($B11,'2020-21 FORMULA'!$B:$AC,'Summary for Prints'!E$2,FALSE) -> 0 | F11: =VLOOKUP($B11,'2020-21 FORMULA'!$B:$AC,'Summary for Prints'!F$2,FALSE) -> 98194.71774 | G11: =VLOOKUP($B11,'2020-21 FORMULA'!$B:$AC,'Summary for Prints'!G$2,FALSE) -> 19193.8764 | H11: =VLOOKUP($B11,'2020-21 FORMULA'!$B:$AC,'Summary for Prints'!H$2,FALSE) -> 3027.5 | I11: =VLOOKUP($B11,'2020-21 FORMULA'!$B:$AC,'Summary for Prints'!I$2,FALSE) -> 114400 | J11: =VLOOKUP($B11,'2020-21 FORMULA'!$B:$AC,'Summary for Prints'!J$2,FALSE) -> 0 | K11: =VLOOKUP($B11,'2020-21 FORMULA'!$B:$AC,'Summary for Prints'!K$2,FALSE) -> 25477 | L11: =VLOOKUP($B11,'2020-21 FORMULA'!$B:$AC,'Summary for Prints'!L$2,FALSE) -> 0 | M11: 1363208.898 | N11: =VLOOKUP($B11,'2020-21 FORMULA'!$B:$AC,'Summary for Prints'!N$2,FALSE) -> 0 | O11: =VLOOKUP($B11,'2020-21 FORMULA'!$B:$AC,'Summary for Prints'!O$2,FALSE) -> 0 | P11: 1363208.898 | Q11: =VLOOKUP($B11,'2020-21 FORMULA'!$B:$AC,'Summary for Prints'!Q$2,FALSE) -> 0 | R11: 1363208.898 | S11: =VLOOKUP($B11,'2020-21 FORMULA'!$B:$AC,'Summary for Prints'!S$2,FALSE) -> -21443.982 | T11: 1341764.916 | U11: =VLOOKUP($B11,'2020-21 FORMULA'!$B:$AC,'Summary for Prints'!U$2,FALSE) -> 7123.9 | V11: =SUMIF('ERS 2020-21'!B:B,'Summary for Prints'!B11,'ERS 2020-21'!T:T) -> 0 | W11: =(SUMIF('ERS 2020-21'!B:B,'Summary for Prints'!B11,'ERS 2020-21'!L:L)+SUMIF('ERS 2020-21'!B:B,'Summary for Prints'!B11,'ERS 2020-21'!M:M))*'ERS 2020-21'!$L$1 -> 0 | X11: =(SUMIF('ERS 2020-21'!B:B,'Summary for Prints'!B11,'ERS 2020-21'!O:O))*'ERS 2020-21'!$L$1 -> 0 | Y11: =SUMIF('ERS 2020-21'!B:B,'Summary for Prints'!B11,'ERS 2020-21'!U:U) -> 0 | Z11: =SUMIF('ERS 2020-21'!B:B,'Summary for Prints'!B11,'ERS 2020-21'!V:V)+SUMIF('ERS 2020-21'!B:B,'Summary for Prints'!B11,'ERS 2020-21'!W:W) -> 0 | AA11: =IFERROR(VLOOKUP(B11,'2020-21 Nursery Budget'!E:AC,25,FALSE),0) -> 0 | AB11: 0 | AC11: 1348888.816 | AD11: =VLOOKUP($B11,'2020-21 FORMULA'!$B:$AC,'Summary for Prints'!AD$2,FALSE) -> 309 | AI11: 8312005 | AL11: 1348888.816 | AM11: 25477 | AN11: 1323411.816
A12: Asterdale Primary School | B12: 2464 | C12: =VLOOKUP($B12,'2020-21 FORMULA'!$B:$AC,'Summary for Prints'!C$2,FALSE) -> 579971 | D12: =VLOOKUP($B12,'2020-21 FORMULA'!$B:$AC,'Summary for Prints'!D$2,FALSE) -> 92347.01493 | E12: =VLOOKUP($B12,'2020-21 FORMULA'!$B:$AC,'Summary for Prints'!E$2,FALSE) -> 0 | F12: =VLOOKUP($B12,'2020-21 FORMULA'!$B:$AC,'Summary for Prints'!F$2,FALSE) -> 63214.91228 | G12: =VLOOKUP($B12,'2020-21 FORMULA'!$B:$AC,'Summary for Prints'!G$2,FALSE) -> 3120.833333 | H12: =VLOOKUP($B12,'2020-21 FORMULA'!$B:$AC,'Summary for Prints'!H$2,FALSE) -> 0 | I12: =VLOOKUP($B12,'2020-21 FORMULA'!$B:$AC,'Summary for Prints'!I$2,FALSE) -> 114400 | J12: =VLOOKUP($B12,'2020-21 FORMULA'!$B:$AC,'Summary for Prints'!J$2,FALSE) -> 0 | K12: =VLOOKUP($B12,'2020-21 FORMULA'!$B:$AC,'Summary for Prints'!K$2,FALSE) -> 3793 | L12: =VLOOKUP($B12,'2020-21 FORMULA'!$B:$AC,'Summary for Prints'!L$2,FALSE) -> 0 | M12: 856846.7605 | N12: =VLOOKUP($B12,'2020-21 FORMULA'!$B:$AC,'Summary for Prints'!N$2,FALSE) -> -307.7239342 | O12: =VLOOKUP($B12,'2020-21 FORMULA'!$B:$AC,'Summary for Prints'!O$2,FALSE) -> 0 | P12: 856539.0366 | Q12: =VLOOKUP($B12,'2020-21 FORMULA'!$B:$AC,'Summary for Prints'!Q$2,FALSE) -> 0 | R12: 856539.0366 | S12: =VLOOKUP($B12,'2020-21 FORMULA'!$B:$AC,'Summary for Prints'!S$2,FALSE) -> 0 | T12: 856539.0366 | U12: =VLOOKUP($B12,'2020-21 FORMULA'!$B:$AC,'Summary for Prints'!U$2,FALSE) -> 1373.55 | V12: =SUMIF('ERS 2020-21'!B:B,'Summary for Prints'!B12,'ERS 2020-21'!T:T) -> 0 | W12: =(SUMIF('ERS 2020-21'!B:B,'Summary for Prints'!B12,'ERS 2020-21'!L:L)+SUMIF('ERS 2020-21'!B:B,'Summary for Prints'!B12,'ERS 2020-21'!M:M))*'ERS 2020-21'!$L$1 -> 0 | X12: =(SUMIF('ERS 2020-21'!B:B,'Summary for Prints'!B12,'ERS 2020-21'!O:O))*'ERS 2020-21'!$L$1 -> 0 | Y12: =SUMIF('ERS 2020-21'!B:B,'Summary for Prints'!B12,'ERS 2020-21'!U:U) -> 0 | Z12: =SUMIF('ERS 2020-21'!B:B,'Summary for Prints'!B12,'ERS 2020-21'!V:V)+SUMIF('ERS 2020-21'!B:B,'Summary for Prints'!B12,'ERS 2020-21'!W:W) -> 0 | AA12: =IFERROR(VLOOKUP(B12,'2020-21 Nursery Budget'!E:AC,25,FALSE),0) -> 108224 | AB12: 0 | AC12: 966136.5866 | AD12: =VLOOKUP($B12,'2020-21 FORMULA'!$B:$AC,'Summary for Prints'!AD$2,FALSE) -> 203 | AI12: 8312464 | AL12: 966136.5866 | AM12: 3793 | AN12: 962343.5866
A13: Beaufort Community Primary School | B13: 2004 | C13: =VLOOKUP($B13,'2020-21 FORMULA'!$B:$AC,'Summary for Prints'!C$2,FALSE) -> 848529 | D13: =VLOOKUP($B13,'2020-21 FORMULA'!$B:$AC,'Summary for Prints'!D$2,FALSE) -> 265327.5 | E13: =VLOOKUP($B13,'2020-21 FORMULA'!$B:$AC,'Summary for Prints'!E$2,FALSE) -> 0 | F13: =VLOOKUP($B13,'2020-21 FORMULA'!$B:$AC,'Summary for Prints'!F$2,FALSE) -> 115263.6864 | G13: =VLOOKUP($B13,'2020-21 FORMULA'!$B:$AC,'Summary for Prints'!G$2,FALSE) -> 13136.98819 | H13: =VLOOKUP($B13,'2020-21 FORMULA'!$B:$AC,'Summary for Prints'!H$2,FALSE) -> 4532.5 | I13: =VLOOKUP($B13,'2020-21 FORMULA'!$B:$AC,'Summary for Prints'!I$2,FALSE) -> 114400 | J13: =VLOOKUP($B13,'2020-21 FORMULA'!$B:$AC,'Summary for Prints'!J$2,FALSE) -> 0 | K13: =VLOOKUP($B13,'2020-21 FORMULA'!$B:$AC,'Summary for Prints'!K$2,FALSE) -> 4931 | L13: =VLOOKUP($B13,'2020-21 FORMULA'!$B:$AC,'Summary for Prints'!L$2,FALSE) -> 0 | M13: 1366120.675 | N13: =VLOOKUP($B13,'2020-21 FORMULA'!$B:$AC,'Summary for Prints'!N$2,FALSE) -> 0 | O13: =VLOOKUP($B13,'2020-21 FORMULA'!$B:$AC,'Summary for Prints'!O$2,FALSE) -> 0 | P13: 1366120.675 | Q13: =VLOOKUP($B13,'2020-21 FORMULA'!$B:$AC,'Summary for Prints'!Q$2,FALSE) -> 0 | R13: 1366120.675 | S13: =VLOOKUP($B13,'2020-21 FORMULA'!$B:$AC,'Summary for Prints'!S$2,FALSE) -> 0 | T13: 1366120.675 | U13: =VLOOKUP($B13,'2020-21 FORMULA'!$B:$AC,'Summary for Prints'!U$2,FALSE) -> 6850.35 | V13: =SUMIF('ERS 2020-21'!B:B,'Summary for Prints'!B13,'ERS 2020-21'!T:T) -> 0 | W13: =(SUMIF('ERS 2020-21'!B:B,'Summary for Prints'!B13,'ERS 2020-21'!L:L)+SUMIF('ERS 2020-21'!B:B,'Summary for Prints'!B13,'ERS 2020-21'!M:M))*'ERS 2020-21'!$L$1 -> 0 | X13: =(SUMIF('ERS 2020-21'!B:B,'Summary for Prints'!B13,'ERS 2020-21'!O:O))*'ERS 2020-21'!$L$1 -> 0 | Y13: =SUMIF('ERS 2020-21'!B:B,'Summary for Prints'!B13,'ERS 2020-21'!U:U) -> 0 | Z13: =SUMIF('ERS 2020-21'!B:B,'Summary for Prints'!B13,'ERS 2020-21'!V:V)+SUMIF('ERS 2020-21'!B:B,'Summary for Prints'!B13,'ERS 2020-21'!W:W) -> 0 | AA13: =IFERROR(VLOOKUP(B13,'2020-21 Nursery Budget'!E:AC,25,FALSE),0) -> 111530 | AB13: 0 | AC13: 1484501.025 | AD13: =VLOOKUP($B13,'2020-21 FORMULA'!$B:$AC,'Summary for Prints'!AD$2,FALSE) -> 297 | AI13: 8312004 | AL13: 1484501.025 | AM13: 4931 | AN13: 1479570.025
A14: Becket Primary School | B14: 2405 | C14: =VLOOKUP($B14,'2020-21 FORMULA'!$B:$AC,'Summary for Prints'!C$2,FALSE) -> 582828 | D14: =VLOOKUP($B14,'2020-21 FORMULA'!$B:$AC,'Summary for Prints'!D$2,FALSE) -> 174819.7101 | E14: =VLOOKUP($B14,'2020-21 FORMULA'!$B:$AC,'Summary for Prints'!E$2,FALSE) -> 0 | F14: =VLOOKUP($B14,'2020-21 FORMULA'!$B:$AC,'Summary for Prints'!F$2,FALSE) -> 71485.54839 | G14: =VLOOKUP($B14,'2020-21 FORMULA'!$B:$AC,'Summary for Prints'!G$2,FALSE) -> 29935.54286 | H14: =VLOOKUP($B14,'2020-21 FORMULA'!$B:$AC,'Summary for Prints'!H$2,FALSE) -> 0 | I14: =VLOOKUP($B14,'2020-21 FORMULA'!$B:$AC,'Summary for Prints'!I$2,FALSE) -> 114400 | J14: =VLOOKUP($B14,'2020-21 FORMULA'!$B:$AC,'Summary for Prints'!J$2,FALSE) -> 0 | K14: =VLOOKUP($B14,'2020-21 FORMULA'!$B:$AC,'Summary for Prints'!K$2,FALSE) -> 17577 | L14: =VLOOKUP($B14,'2020-21 FORMULA'!$B:$AC,'Summary for Prints'!L$2,FALSE) -> 0 | M14: 991045.8014 | N14: =VLOOKUP($B14,'2020-21 FORMULA'!$B:$AC,'Summary for Prints'!N$2,FALSE) -> 0 | O14: =VLOOKUP($B14,'2020-21 FORMULA'!$B:$AC,'Summary for Prints'!O$2,FALSE) -> 0 | P14: 991045.8014 | Q14: =VLOOKUP($B14,'2020-21 FORMULA'!$B:$AC,'Summary for Prints'!Q$2,FALSE) -> 0 | R14: 991045.8014 | S14: =VLOOKUP($B14,'2020-21 FORMULA'!$B:$AC,'Summary for Prints'!S$2,FALSE) -> -14157.192 | T14: 976888.6094 | U14: =VLOOKUP($B14,'2020-21 FORMULA'!$B:$AC,'Summary for Prints'!U$2,FALSE) -> 1373.55 | V14: =SUMIF('ERS 2020-21'!B:B,'Summary for Prints'!B14,'ERS 2020-21'!T:T) -> 0 | W14: =(SUMIF('ERS 2020-21'!B:B,'Summary for Prints'!B14,'ERS 2020-21'!L:L)+SUMIF('ERS 2020-21'!B:B,'Summary for Prints'!B14,'ERS 2020-21'!M:M))*'ERS 2020-21'!$L$1 -> 0 | X14: =(SUMIF('ERS 2020-21'!B:B,'Summary for Prints'!B14,'ERS 2020-21'!O:O))*'ERS 2020-21'!$L$1 -> 0 | Y14: =SUMIF('ERS 2020-21'!B:B,'Summary for Prints'!B14,'ERS 2020-21'!U:U) -> 0 | Z14: =SUMIF('ERS 2020-21'!B:B,'Summary for Prints'!B14,'ERS 2020-21'!V:V)+SUMIF('ERS 2020-21'!B:B,'Summary for Prints'!B14,'ERS 2020-21'!W:W) -> 0 | AA14: =IFERROR(VLOOKUP(B14,'2020-21 Nursery Budget'!E:AC,25,FALSE),0) -> 90394 | AB14: 0 | AC14: 1068656.159 | AD14: =VLOOKUP($B14,'2020-21 FORMULA'!$B:$AC,'Summary for Prints'!AD$2,FALSE) -> 204 | AI14: 8312405 | AL14: 1068656.159 | AM14: 17577 | AN14: 1051079.159
A15: Bishop Lonsdale Church of England Aided Primary School | B15: 2011 | C15: =VLOOKUP($B15,'2020-21 FORMULA'!$B:$AC,'Summary for Prints'!C$2,FALSE) -> 599970 | D15: =VLOOKUP($B15,'2020-21 FORMULA'!$B:$AC,'Summary for Prints'!D$2,FALSE) -> 118704.4366 | E15: =VLOOKUP($B15,'2020-21 FORMULA'!$B:$AC,'Summary for Prints'!E$2,FALSE) -> 0 | F15: =VLOOKUP($B15,'2020-21 FORMULA'!$B:$AC,'Summary for Prints'!F$2,FALSE) -> 66417.27273 | G15: =VLOOKUP($B15,'2020-21 FORMULA'!$B:$AC,'Summary for Prints'!G$2,FALSE) -> 16667.30769 | H15: =VLOOKUP($B15,'2020-21 FORMULA'!$B:$AC,'Summary for Prints'!H$2,FALSE) -> 0 | I15: =VLOOKUP($B15,'2020-21 FORMULA'!$B:$AC,'Summary for Prints'!I$2,FALSE) -> 114400 | J15: =VLOOKUP($B15,'2020-21 FORMULA'!$B:$AC,'Summary for Prints'!J$2,FALSE) -> 0 | K15: =VLOOKUP($B15,'2020-21 FORMULA'!$B:$AC,'Summary for Prints'!K$2,FALSE) -> 6693 | L15: =VLOOKUP($B15,'2020-21 FORMULA'!$B:$AC,'Summary for Prints'!L$2,FALSE) -> 0 | M15: 922852.017 | N15: =VLOOKUP($B15,'2020-21 FORMULA'!$B:$AC,'Summary for Prints'!N$2,FALSE) -> 0 | O15: =VLOOKUP($B15,'2020-21 FORMULA'!$B:$AC,'Summary for Prints'!O$2,FALSE) -> 0 | P15: 922852.017 | Q15: =VLOOKUP($B15,'2020-21 FORMULA'!$B:$AC,'Summary for Prints'!Q$2,FALSE) -> 0 | R15: 922852.017 | S15: =VLOOKUP($B15,'2020-21 FORMULA'!$B:$AC,'Summary for Prints'!S$2,FALSE) -> 0 | T15: 922852.017 | U15: =VLOOKUP($B15,'2020-21 FORMULA'!$B:$AC,'Summary for Prints'!U$2,FALSE) -> 1647.1 | V15: =SUMIF('ERS 2020-21'!B:B,'Summary for Prints'!B15,'ERS 2020-21'!T:T) -> 0 | W15: =(SUMIF('ERS 2020-21'!B:B,'Summary for Prints'!B15,'ERS 2020-21'!L:L)+SUMIF('ERS 2020-21'!B:B,'Summary for Prints'!B15,'ERS 2020-21'!M:M))*'ERS 2020-21'!$L$1 -> 0 | X15: =(SUMIF('ERS 2020-21'!B:B,'Summary for Prints'!B15,'ERS 2020-21'!O:O))*'ERS 2020-21'!$L$1 -> 0 | Y15: =SUMIF('ERS 2020-21'!B:B,'Summary for Prints'!B15,'ERS 2020-21'!U:U) -> 0 | Z15: =SUMIF('ERS 2020-21'!B:B,'Summary for Prints'!B15,'ERS 2020-21'!V:V)+SUMIF('ERS 2020-21'!B:B,'Summary for Prints'!B15,'ERS 2020-21'!W:W) -> 0 | AA15: =IFERROR(VLOOKUP(B15,'2020-21 Nursery Budget'!E:AC,25,FALSE),0) -> 91324 | AB15: 0 | AC15: 1015823.117 | AD15: =VLOOKUP($B15,'2020-21 FORMULA'!$B:$AC,'Summary for Prints'!AD$2,FALSE) -> 210 | AG15: 2011 new number | AI15: 8312011 | AL15: 1015823.117 | AM15: 6693 | AN15: 1009130.117
A16: Borrow Wood Primary School | B16: 5201 | C16: =VLOOKUP($B16,'2020-21 FORMULA'!$B:$AC,'Summary for Prints'!C$2,FALSE) -> 957095 | D16: =VLOOKUP($B16,'2020-21 FORMULA'!$B:$AC,'Summary for Prints'!D$2,FALSE) -> 63977.58953 | E16: =VLOOKUP($B16,'2020-21 FORMULA'!$B:$AC,'Summary for Prints'!E$2,FALSE) -> 0 | F16: =VLOOKUP($B16,'2020-21 FORMULA'!$B:$AC,'Summary for Prints'!F$2,FALSE) -> 81514.81788 | G16: =VLOOKUP($B16,'2020-21 FORMULA'!$B:$AC,'Summary for Prints'!G$2,FALSE) -> 4113.360656 | H16: =VLOOKUP($B16,'2020-21 FORMULA'!$B:$AC,'Summary for Prints'!H$2,FALSE) -> 0 | I16: =VLOOKUP($B16,'2020-21 FORMULA'!$B:$AC,'Summary for Prints'!I$2,FALSE) -> 114400 | J16: =VLOOKUP($B16,'2020-21 FORMULA'!$B:$AC,'Summary for Prints'!J$2,FALSE) -> 0 | K16: =VLOOKUP($B16,'2020-21 FORMULA'!$B:$AC,'Summary for Prints'!K$2,FALSE) -> 6018.187 | L16: =VLOOKUP($B16,'2020-21 FORMULA'!$B:$AC,'Summary for Prints'!L$2,FALSE) -> 0 | M16: 1227118.955 | N16: =VLOOKUP($B16,'2020-21 FORMULA'!$B:$AC,'Summary for Prints'!N$2,FALSE) -> 0 | O16: =VLOOKUP($B16,'2020-21 FORMULA'!$B:$AC,'Summary for Prints'!O$2,FALSE) -> 0 | P16: 1227118.955 | Q16: =VLOOKUP($B16,'2020-21 FORMULA'!$B:$AC,'Summary for Prints'!Q$2,FALSE) -> 35149.23193 | R16: 1262268.187 | S16: =VLOOKUP($B16,'2020-21 FORMULA'!$B:$AC,'Summary for Prints'!S$2,FALSE) -> 0 | T16: 1262268.187 | U16: =VLOOKUP($B16,'2020-21 FORMULA'!$B:$AC,'Summary for Prints'!U$2,FALSE) -> 1100 | V16: =SUMIF('ERS 2020-21'!B:B,'Summary for Prints'!B16,'ERS 2020-21'!T:T) -> 0 | W16: =(SUMIF('ERS 2020-21'!B:B,'Summary for Prints'!B16,'ERS 2020-21'!L:L)+SUMIF('ERS 2020-21'!B:B,'Summary for Prints'!B16,'ERS 2020-21'!M:M))*'ERS 2020-21'!$L$1 -> 0 | X16: =(SUMIF('ERS 2020-21'!B:B,'Summary for Prints'!B16,'ERS 2020-21'!O:O))*'ERS 2020-21'!$L$1 -> 0 | Y16: =SUMIF('ERS 2020-21'!B:B,'Summary for Prints'!B16,'ERS 2020-21'!U:U) -> 0 | Z16: =SUMIF('ERS 2020-21'!B:B,'Summary for Prints'!B16,'ERS 2020-21'!V:V)+SUMIF('ERS 2020-21'!B:B,'Summary for Prints'!B16,'ERS 2020-21'!W:W) -> 0 | AA16: =IFERROR(VLOOKUP(B16,'2020-21 Nursery Budget'!E:AC,25,FALSE),0) -> 71018 | AB16: 0 | AC16: 1334386.187 | AD16: =VLOOKUP($B16,'2020-21 FORMULA'!$B:$AC,'Summary for Prints'!AD$2,FALSE) -> 335 | AI16: 8315201 | AL16: 1334386.187 | AM16: 6018.187 | AN16: 1328368
A17: Brackensdale ER (Enhanced Resource) Primary School | B17: 2432 | C17: =VLOOKUP($B17,'2020-21 FORMULA'!$B:$AC,'Summary for Prints'!C$2,FALSE) -> 1302792 | D17: =VLOOKUP($B17,'2020-21 FORMULA'!$B:$AC,'Summary for Prints'!D$2,FALSE) -> 286100.024 | E17: =VLOOKUP($B17,'2020-21 FORMULA'!$B:$AC,'Summary for Prints'!E$2,FALSE) -> 0 | F17: =VLOOKUP($B17,'2020-21 FORMULA'!$B:$AC,'Summary for Prints'!F$2,FALSE) -> 217657.3057 | G17: =VLOOKUP($B17,'2020-21 FORMULA'!$B:$AC,'Summary for Prints'!G$2,FALSE) -> 16591.73804 | H17: =VLOOKUP($B17,'2020-21 FORMULA'!$B:$AC,'Summary for Prints'!H$2,FALSE) -> 0 | I17: =VLOOKUP($B17,'2020-21 FORMULA'!$B:$AC,'Summary for Prints'!I$2,FALSE) -> 114400 | J17: =VLOOKUP($B17,'2020-21 FORMULA'!$B:$AC,'Summary for Prints'!J$2,FALSE) -> 0 | K17: =VLOOKUP($B17,'2020-21 FORMULA'!$B:$AC,'Summary for Prints'!K$2,FALSE) -> 23714 | L17: =VLOOKUP($B17,'2020-21 FORMULA'!$B:$AC,'Summary for Prints'!L$2,FALSE) -> 0 | M17: 1961255.068 | N17: =VLOOKUP($B17,'2020-21 FORMULA'!$B:$AC,'Summary for Prints'!N$2,FALSE) -> 0 | O17: =VLOOKUP($B17,'2020-21 FORMULA'!$B:$AC,'Summary for Prints'!O$2,FALSE) -> 0 | P17: 1961255.068 | Q17: =VLOOKUP($B17,'2020-21 FORMULA'!$B:$AC,'Summary for Prints'!Q$2,FALSE) -> 0 | R17: 1961255.068 | S17: =VLOOKUP($B17,'2020-21 FORMULA'!$B:$AC,'Summary for Prints'!S$2,FALSE) -> -31645.488 | T17: 1929609.58 | U17: =VLOOKUP($B17,'2020-21 FORMULA'!$B:$AC,'Summary for Prints'!U$2,FALSE) -> 2473.55 | V17: =SUMIF('ERS 2020-21'!B:B,'Summary for Prints'!B17,'ERS 2020-21'!T:T) -> 0 | W17: =(SUMIF('ERS 2020-21'!B:B,'Summary for Prints'!B17,'ERS 2020-21'!L:L)+SUMIF('ERS 2020-21'!B:B,'Summary for Prints'!B17,'ERS 2020-21'!M:M))*'ERS 2020-21'!$L$1 -> 318000 | X17: =(SUMIF('ERS 2020-21'!B:B,'Summary for Prints'!B17,'ERS 2020-21'!O:O))*'ERS 2020-21'!$L$1 -> 0 | Y17: =SUMIF('ERS 2020-21'!B:B,'Summary for Prints'!B17,'ERS 2020-21'!U:U) -> 416000 | Z17: =SUMIF('ERS 2020-21'!B:B,'Summary for Prints'!B17,'ERS 2020-21'!V:V)+SUMIF('ERS 2020-21'!B:B,'Summary for Prints'!B17,'ERS 2020-21'!W:W) -> 0 | AA17: =IFERROR(VLOOKUP(B17,'2020-21 Nursery Budget'!E:AC,25,FALSE),0) -> 98111 | AB17: 0 | AC17: 2764194.13 | AD17: =VLOOKUP($B17,'2020-21 FORMULA'!$B:$AC,'Summary for Prints'!AD$2,FALSE) -> 456 | AI17: 8312432 | AL17: 2764194.13 | AM17: 23714 | AN17: 2740480.13
A18: Breadsall Hill Top Primary School | B18: 2018 | C18: =VLOOKUP($B18,'2020-21 FORMULA'!$B:$AC,'Summary for Prints'!C$2,FALSE) -> 1017092 | D18: =VLOOKUP($B18,'2020-21 FORMULA'!$B:$AC,'Summary for Prints'!D$2,FALSE) -> 202910.9688 | E18: =VLOOKUP($B18,'2020-21 FORMULA'!$B:$AC,'Summary for Prints'!E$2,FALSE) -> 0 | F18: =VLOOKUP($B18,'2020-21 FORMULA'!$B:$AC,'Summary for Prints'!F$2,FALSE) -> 151656 | G18: =VLOOKUP($B18,'2020-21 FORMULA'!$B:$AC,'Summary for Prints'!G$2,FALSE) -> 12778.46645 | H18: =VLOOKUP($B18,'2020-21 FORMULA'!$B:$AC,'Summary for Prints'!H$2,FALSE) -> 2369.15493 | I18: =VLOOKUP($B18,'2020-21 FORMULA'!$B:$AC,'Summary for Prints'!I$2,FALSE) -> 114400 | J18: =VLOOKUP($B18,'2020-21 FORMULA'!$B:$AC,'Summary for Prints'!J$2,FALSE) -> 0 | K18: =VLOOKUP($B18,'2020-21 FORMULA'!$B:$AC,'Summary for Prints'!K$2,FALSE) -> 5936 | L18: =VLOOKUP($B18,'2020-21 FORMULA'!$B:$AC,'Summary for Prints'!L$2,FALSE) -> 0 | M18: 1507142.59 | N18: =VLOOKUP($B18,'2020-21 FORMULA'!$B:$AC,'Summary for Prints'!N$2,FALSE) -> -8488.172568 | O18: =VLOOKUP($B18,'2020-21 FORMULA'!$B:$AC,'Summary for Prints'!O$2,FALSE) -> 0 | P18: 1498654.418 | Q18: =VLOOKUP($B18,'2020-21 FORMULA'!$B:$AC,'Summary for Prints'!Q$2,FALSE) -> 0 | R18: 1498654.418 | S18: =VLOOKUP($B18,'2020-21 FORMULA'!$B:$AC,'Summary for Prints'!S$2,FALSE) -> 0 | T18: 1498654.418 | U18: =VLOOKUP($B18,'2020-21 FORMULA'!$B:$AC,'Summary for Prints'!U$2,FALSE) -> 6850.35 | V18: =SUMIF('ERS 2020-21'!B:B,'Summary for Prints'!B18,'ERS 2020-21'!T:T) -> 0 | W18: =(SUMIF('ERS 2020-21'!B:B,'Summary for Prints'!B18,'ERS 2020-21'!L:L)+SUMIF('ERS 2020-21'!B:B,'Summary for Prints'!B18,'ERS 2020-21'!M:M))*'ERS 2020-21'!$L$1 -> 0 | X18: =(SUMIF('ERS 2020-21'!B:B,'Summary for Prints'!B18,'ERS 2020-21'!O:O))*'ERS 2020-21'!$L$1 -> 0 | Y18: =SUMIF('ERS 2020-21'!B:B,'Summary for Prints'!B18,'ERS 2020-21'!U:U) -> 0 | Z18: =SUMIF('ERS 2020-21'!B:B,'Summary for Prints'!B18,'ERS 2020-21'!V:V)+SUMIF('ERS 2020-21'!B:B,'Summary for Prints'!B18,'ERS 2020-21'!W:W) -> 0 | AA18: =IFERROR(VLOOKUP(B18,'2020-21 Nursery Budget'!E:AC,25,FALSE),0) -> 133829 | AB18: 0 | AC18: 1639333.768 | AD18: =VLOOKUP($B18,'2020-21 FORMULA'!$B:$AC,'Summary for Prints'!AD$2,FALSE) -> 356 | AI18: 8312447 | AL18: 1639333.768 | AM18: 5936 | AN18: 1633397.768
A19: Brookfield Primary School | B19: 2512 | C19: =VLOOKUP($B19,'2020-21 FORMULA'!$B:$AC,'Summary for Prints'!C$2,FALSE) -> 597113 | D19: =VLOOKUP($B19,'2020-21 FORMULA'!$B:$AC,'Summary for Prints'!D$2,FALSE) -> 24522.37069 | E19: =VLOOKUP($B19,'2020-21 FORMULA'!$B:$AC,'Summary for Prints'!E$2,FALSE) -> 0 | F19: =VLOOKUP($B19,'2020-21 FORMULA'!$B:$AC,'Summary for Prints'!F$2,FALSE) -> 61402.75862 | G19: =VLOOKUP($B19,'2020-21 FORMULA'!$B:$AC,'Summary for Prints'!G$2,FALSE) -> 19257.02778 | H19: =VLOOKUP($B19,'2020-21 FORMULA'!$B:$AC,'Summary for Prints'!H$2,FALSE) -> 0 | I19: =VLOOKUP($B19,'2020-21 FORMULA'!$B:$AC,'Summary for Prints'!I$2,FALSE) -> 114400 | J19: =VLOOKUP($B19,'2020-21 FORMULA'!$B:$AC,'Summary for Prints'!J$2,FALSE) -> 0 | K19: =VLOOKUP($B19,'2020-21 FORMULA'!$B:$AC,'Summary for Prints'!K$2,FALSE) -> 3919 | L19: =VLOOKUP($B19,'2020-21 FORMULA'!$B:$AC,'Summary for Prints'!L$2,FALSE) -> 0 | M19: 820614.1571 | N19: =VLOOKUP($B19,'2020-21 FORMULA'!$B:$AC,'Summary for Prints'!N$2,FALSE) -> 0 | O19: =VLOOKUP($B19,'2020-21 FORMULA'!$B:$AC,'Summary for Prints'!O$2,FALSE) -> 0 | P19: 820614.1571 | Q19: =VLOOKUP($B19,'2020-21 FORMULA'!$B:$AC,'Summary for Prints'!Q$2,FALSE) -> 0 | R19: 820614.1571 | S19: =VLOOKUP($B19,'2020-21 FORMULA'!$B:$AC,'Summary for Prints'!S$2,FALSE) -> 0 | T19: 820614.1571 | U19: =VLOOKUP($B19,'2020-21 FORMULA'!$B:$AC,'Summary for Prints'!U$2,FALSE) -> 1373.55 | V19: =SUMIF('ERS 2020-21'!B:B,'Summary for Prints'!B19,'ERS 2020-21'!T:T) -> 0 | W19: =(SUMIF('ERS 2020-21'!B:B,'Summary for Prints'!B19,'ERS 2020-21'!L:L)+SUMIF('ERS 2020-21'!B:B,'Summary for Prints'!B19,'ERS 2020-21'!M:M))*'ERS 2020-21'!$L$1 -> 0 | X19: =(SUMIF('ERS 2020-21'!B:B,'Summary for Prints'!B19,'ERS 2020-21'!O:O))*'ERS 2020-21'!$L$1 -> 0 | Y19: =SUMIF('ERS 2020-21'!B:B,'Summary for Prints'!B19,'ERS 2020-21'!U:U) -> 0 | Z19: =SUMIF('ERS 2020-21'!B:B,'Summary for Prints'!B19,'ERS 2020-21'!V:V)+SUMIF('ERS 2020-21'!B:B,'Summary for Prints'!B19,'ERS 2020-21'!W:W) -> 0 | AA19: =IFERROR(VLOOKUP(B19,'2020-21 Nursery Budget'!E:AC,25,FALSE),0) -> 92096 | AB19: 0 | AC19: 914083.7071 | AD19: =VLOOKUP($B19,'2020-21 FORMULA'!$B:$AC,'Summary for Prints'!AD$2,FALSE) -> 209 | AI19: 8312512 | AL19: 914083.7071 | AM19: 3919 | AN19: 910164.7071
A20: Carlyle Infant School | B20: 2456 | C20: =VLOOKUP($B20,'2020-21 FORMULA'!$B:$AC,'Summary for Prints'!C$2,FALSE) -> 494261 | D20: =VLOOKUP($B20,'2020-21 FORMULA'!$B:$AC,'Summary for Prints'!D$2,FALSE) -> 43990.78488 | E20: =VLOOKUP($B20,'2020-21 FORMULA'!$B:$AC,'Summary for Prints'!E$2,FALSE) -> 0 | F20: =VLOOKUP($B20,'2020-21 FORMULA'!$B:$AC,'Summary for Prints'!F$2,FALSE) -> 53598.54545 | G20: =VLOOKUP($B20,'2020-21 FORMULA'!$B:$AC,'Summary for Prints'!G$2,FALSE) -> 18019.55752 | H20: =VLOOKUP($B20,'2020-21 FORMULA'!$B:$AC,'Summary for Prints'!H$2,FALSE) -> 0 | I20: =VLOOKUP($B20,'2020-21 FORMULA'!$B:$AC,'Summary for Prints'!I$2,FALSE) -> 114400 | J20: =VLOOKUP($B20,'2020-21 FORMULA'!$B:$AC,'Summary for Prints'!J$2,FALSE) -> 0 | K20: =VLOOKUP($B20,'2020-21 FORMULA'!$B:$AC,'Summary for Prints'!K$2,FALSE) -> 2807 | L20: =VLOOKUP($B20,'2020-21 FORMULA'!$B:$AC,'Summary for Prints'!L$2,FALSE) -> 0 | M20: 727076.8879 | N20: =VLOOKUP($B20,'2020-21 FORMULA'!$B:$AC,'Summary for Prints'!N$2,FALSE) -> -4872.809144 | O20: =VLOOKUP($B20,'2020-21 FORMULA'!$B:$AC,'Summary for Prints'!O$2,FALSE) -> 0 | P20: 722204.0787 | Q20: =VLOOKUP($B20,'2020-21 FORMULA'!$B:$AC,'Summary for Prints'!Q$2,FALSE) -> 0 | R20: 722204.0787 | S20: =VLOOKUP($B20,'2020-21 FORMULA'!$B:$AC,'Summary for Prints'!S$2,FALSE) -> 0 | T20: 722204.0787 | U20: =VLOOKUP($B20,'2020-21 FORMULA'!$B:$AC,'Summary for Prints'!U$2,FALSE) -> 2200 | V20: =SUMIF('ERS 2020-21'!B:B,'Summary for Prints'!B20,'ERS 2020-21'!T:T) -> 0 | W20: =(SUMIF('ERS 2020-21'!B:B,'Summary for Prints'!B20,'ERS 2020-21'!L:L)+SUMIF('ERS 2020-21'!B:B,'Summary for Prints'!B20,'ERS 2020-21'!M:M))*'ERS 2020-21'!$L$1 -> 0 | X20: =(SUMIF('ERS 2020-21'!B:B,'Summary for Prints'!B20,'ERS 2020-21'!O:O))*'ERS 2020-21'!$L$1 -> 0 | Y20: =SUMIF('ERS 2020-21'!B:B,'Summary for Prints'!B20,'ERS 2020-21'!U:U) -> 0 | Z20: =SUMIF('ERS 2020-21'!B:B,'Summary for Prints'!B20,'ERS 2020-21'!V:V)+SUMIF('ERS 2020-21'!B:B,'Summary for Prints'!B20,'ERS 2020-21'!W:W) -> 0 | AA20: =IFERROR(VLOOKUP(B20,'2020-21 Nursery Budget'!E:AC,25,FALSE),0) -> 129746 | AB20: 0 | AC20: 854150.0787 | AD20: =VLOOKUP($B20,'2020-21 FORMULA'!$B:$AC,'Summary for Prints'!AD$2,FALSE) -> 173 | AI20: 8312456 | AL20: 854150.0787 | AM20: 2807 | AN20: 851343.0787
A21: Cavendish Close Infant School | B21: 2449 | C21: =VLOOKUP($B21,'2020-21 FORMULA'!$B:$AC,'Summary for Prints'!C$2,FALSE) -> 742820 | D21: =VLOOKUP($B21,'2020-21 FORMULA'!$B:$AC,'Summary for Prints'!D$2,FALSE) -> 102617.5 | E21: =VLOOKUP($B21,'2020-21 FORMULA'!$B:$AC,'Summary for Prints'!E$2,FALSE) -> 0 | F21: =VLOOKUP($B21,'2020-21 FORMULA'!$B:$AC,'Summary for Prints'!F$2,FALSE) -> 106500 | G21: =VLOOKUP($B21,'2020-21 FORMULA'!$B:$AC,'Summary for Prints'!G$2,FALSE) -> 9000.588235 | H21: =VLOOKUP($B21,'2020-21 FORMULA'!$B:$AC,'Summary for Prints'!H$2,FALSE) -> 0 | I21: =VLOOKUP($B21,'2020-21 FORMULA'!$B:$AC,'Summary for Prints'!I$2,FALSE) -> 114400 | J21: =VLOOKUP($B21,'2020-21 FORMULA'!$B:$AC,'Summary for Prints'!J$2,FALSE) -> 0 | K21: =VLOOKUP($B21,'2020-21 FORMULA'!$B:$AC,'Summary for Prints'!K$2,FALSE) -> 26576 | L21: =VLOOKUP($B21,'2020-21 FORMULA'!$B:$AC,'Summary for Prints'!L$2,FALSE) -> 0 | M21: 1101914.088 | N21: =VLOOKUP($B21,'2020-21 FORMULA'!$B:$AC,'Summary for Prints'!N$2,FALSE) -> -5773.237019 | O21: =VLOOKUP($B21,'2020-21 FORMULA'!$B:$AC,'Summary for Prints'!O$2,FALSE) -> 0 | P21: 1096140.851 | Q21: =VLOOKUP($B21,'2020-21 FORMULA'!$B:$AC,'Summary for Prints'!Q$2,FALSE) -> 0 | R21: 1096140.851 | S21: =VLOOKUP($B21,'2020-21 FORMULA'!$B:$AC,'Summary for Prints'!S$2,FALSE) -> -18043.48 | T21: 1078097.371 | U21: =VLOOKUP($B21,'2020-21 FORMULA'!$B:$AC,'Summary for Prints'!U$2,FALSE) -> 3573.55 | V21: =SUMIF('ERS 2020-21'!B:B,'Summary for Prints'!B21,'ERS 2020-21'!T:T) -> 0 | W21: =(SUMIF('ERS 2020-21'!B:B,'Summary for Prints'!B21,'ERS 2020-21'!L:L)+SUMIF('ERS 2020-21'!B:B,'Summary for Prints'!B21,'ERS 2020-21'!M:M))*'ERS 2020-21'!$L$1 -> 0 | X21: =(SUMIF('ERS 2020-21'!B:B,'Summary for Prints'!B21,'ERS 2020-21'!O:O))*'ERS 2020-21'!$L$1 -> 0 | Y21: =SUMIF('ERS 2020-21'!B:B,'Summary for Prints'!B21,'ERS 2020-21'!U:U) -> 0 | Z21: =SUMIF('ERS 2020-21'!B:B,'Summary for Prints'!B21,'ERS 2020-21'!V:V)+SUMIF('ERS 2020-21'!B:B,'Summary for Prints'!B21,'ERS 2020-21'!W:W) -> 0 | AA21: =IFERROR(VLOOKUP(B21,'2020-21 Nursery Budget'!E:AC,25,FALSE),0) -> 192590 | AB21: 0 | AC21: 1274260.921 | AD21: =VLOOKUP($B21,'2020-21 FORMULA'!$B:$AC,'Summary for Prints'!AD$2,FALSE) -> 260 | AI21: 8312449 | AL21: 1274260.921 | AM21: 26576 | AN21: 1247684.921
A22: Cavendish Close Junior School | B22: 2019 | C22: =VLOOKUP($B22,'2020-21 FORMULA'!$B:$AC,'Summary for Prints'!C$2,FALSE) -> 851386 | D22: =VLOOKUP($B22,'2020-21 FORMULA'!$B:$AC,'Summary for Prints'!D$2,FALSE) -> 128297.2291 | E22: =VLOOKUP($B22,'2020-21 FORMULA'!$B:$AC,'Summary for Prints'!E$2,FALSE) -> 0 | F22: =VLOOKUP($B22,'2020-21 FORMULA'!$B:$AC,'Summary for Prints'!F$2,FALSE) -> 124565.0171 | G22: =VLOOKUP($B22,'2020-21 FORMULA'!$B:$AC,'Summary for Prints'!G$2,FALSE) -> 3220.808081 | H22: =VLOOKUP($B22,'2020-21 FORMULA'!$B:$AC,'Summary for Prints'!H$2,FALSE) -> 0 | I22: =VLOOKUP($B22,'2020-21 FORMULA'!$B:$AC,'Summary for Prints'!I$2,FALSE) -> 114400 | J22: =VLOOKUP($B22,'2020-21 FORMULA'!$B:$AC,'Summary for Prints'!J$2,FALSE) -> 0 | K22: =VLOOKUP($B22,'2020-21 FORMULA'!$B:$AC,'Summary for Prints'!K$2,FALSE) -> 5540 | L22: =VLOOKUP($B22,'2020-21 FORMULA'!$B:$AC,'Summary for Prints'!L$2,FALSE) -> 0 | M22: 1227409.054 | N22: =VLOOKUP($B22,'2020-21 FORMULA'!$B:$AC,'Summary for Prints'!N$2,FALSE) -> -2893.382276 | O22: =VLOOKUP($B22,'2020-21 FORMULA'!$B:$AC,'Summary for Prints'!O$2,FALSE) -> 0 | P22: 1224515.672 | Q22: =VLOOKUP($B22,'2020-21 FORMULA'!$B:$AC,'Summary for Prints'!Q$2,FALSE) -> 0 | R22: 1224515.672 | S22: =VLOOKUP($B22,'2020-21 FORMULA'!$B:$AC,'Summary for Prints'!S$2,FALSE) -> 0 | T22: 1224515.672 | U22: =VLOOKUP($B22,'2020-21 FORMULA'!$B:$AC,'Summary for Prints'!U$2,FALSE) -> 0 | V22: =SUMIF('ERS 2020-21'!B:B,'Summary for Prints'!B22,'ERS 2020-21'!T:T) -> 0 | W22: =(SUMIF('ERS 2020-21'!B:B,'Summary for Prints'!B22,'ERS 2020-21'!L:L)+SUMIF('ERS 2020-21'!B:B,'Summary for Prints'!B22,'ERS 2020-21'!M:M))*'ERS 2020-21'!$L$1 -> 0 | X22: =(SUMIF('ERS 2020-21'!B:B,'Summary for Prints'!B22,'ERS 2020-21'!O:O))*'ERS 2020-21'!$L$1 -> 0 | Y22: =SUMIF('ERS 2020-21'!B:B,'Summary for Prints'!B22,'ERS 2020-21'!U:U) -> 0 | Z22: =SUMIF('ERS 2020-21'!B:B,'Summary for Prints'!B22,'ERS 2020-21'!V:V)+SUMIF('ERS 2020-21'!B:B,'Summary for Prints'!B22,'ERS 2020-21'!W:W) -> 0 | AA22: =IFERROR(VLOOKUP(B22,'2020-21 Nursery Budget'!E:AC,25,FALSE),0) -> 0 | AB22: 0 | AC22: 1224515.672 | AD22: =VLOOKUP($B22,'2020-21 FORMULA'!$B:$AC,'Summary for Prints'!AD$2,FALSE) -> 298 | AI22: 8312448 | AL22: 1224515.672 | AM22: 5540 | AN22: 1218975.672
A23: Chaddesden Park Junior School | B23: 2467 | C23: =VLOOKUP($B23,'2020-21 FORMULA'!$B:$AC,'Summary for Prints'!C$2,FALSE) -> 957095 | D23: =VLOOKUP($B23,'2020-21 FORMULA'!$B:$AC,'Summary for Prints'!D$2,FALSE) -> 160716.1175 | E23: =VLOOKUP($B23,'2020-21 FORMULA'!$B:$AC,'Summary for Prints'!E$2,FALSE) -> 0 | F23: =VLOOKUP($B23,'2020-21 FORMULA'!$B:$AC,'Summary for Prints'!F$2,FALSE) -> 108151.3066 | G23: =VLOOKUP($B23,'2020-21 FORMULA'!$B:$AC,'Summary for Prints'!G$2,FALSE) -> 4296.489726 | H23: =VLOOKUP($B23,'2020-21 FORMULA'!$B:$AC,'Summary for Prints'!H$2,FALSE) -> 4287.5 | I23: =VLOOKUP($B23,'2020-21 FORMULA'!$B:$AC,'Summary for Prints'!I$2,FALSE) -> 114400 | J23: =VLOOKUP($B23,'2020-21 FORMULA'!$B:$AC,'Summary for Prints'!J$2,FALSE) -> 0 | K23: =VLOOKUP($B23,'2020-21 FORMULA'!$B:$AC,'Summary for Prints'!K$2,FALSE) -> 3041 | L23: =VLOOKUP($B23,'2020-21 FORMULA'!$B:$AC,'Summary for Prints'!L$2,FALSE) -> 0 | M23: 1351987.414 | N23: =VLOOKUP($B23,'2020-21 FORMULA'!$B:$AC,'Summary for Prints'!N$2,FALSE) -> -510.0089896 | O23: =VLOOKUP($B23,'2020-21 FORMULA'!$B:$AC,'Summary for Prints'!O$2,FALSE) -> 0 | P23: 1351477.405 | Q23: =VLOOKUP($B23,'2020-21 FORMULA'!$B:$AC,'Summary for Prints'!Q$2,FALSE) -> 0 | R23: 1351477.405 | S23: =VLOOKUP($B23,'2020-21 FORMULA'!$B:$AC,'Summary for Prints'!S$2,FALSE) -> 0 | T23: 1351477.405 | U23: =VLOOKUP($B23,'2020-21 FORMULA'!$B:$AC,'Summary for Prints'!U$2,FALSE) -> 6850.35 | V23: =SUMIF('ERS 2020-21'!B:B,'Summary for Prints'!B23,'ERS 2020-21'!T:T) -> 0 | W23: =(SUMIF('ERS 2020-21'!B:B,'Summary for Prints'!B23,'ERS 2020-21'!L:L)+SUMIF('ERS 2020-21'!B:B,'Summary for Prints'!B23,'ERS 2020-21'!M:M))*'ERS 2020-21'!$L$1 -> 0 | X23: =(SUMIF('ERS 2020-21'!B:B,'Summary for Prints'!B23,'ERS 2020-21'!O:O))*'ERS 2020-21'!$L$1 -> 0 | Y23: =SUMIF('ERS 2020-21'!B:B,'Summary for Prints'!B23,'ERS 2020-21'!U:U) -> 0 | Z23: =SUMIF('ERS 2020-21'!B:B,'Summary for Prints'!B23,'ERS 2020-21'!V:V)+SUMIF('ERS 2020-21'!B:B,'Summary for Prints'!B23,'ERS 2020-21'!W:W) -> 0 | AA23: =IFERROR(VLOOKUP(B23,'2020-21 Nursery Budget'!E:AC,25,FALSE),0) -> 91388 | AB23: 0 | AC23: 1449715.755 | AD23: =VLOOKUP($B23,'2020-21 FORMULA'!$B:$AC,'Summary for Prints'!AD$2,FALSE) -> 335 | AI23: 8312467 | AL23: 1449715.755 | AM23: 3041 | AN23: 1446674.755
A24: Chellaston Infant School | B24: 2455 | C24: =VLOOKUP($B24,'2020-21 FORMULA'!$B:$AC,'Summary for Prints'!C$2,FALSE) -> 1031377 | D24: =VLOOKUP($B24,'2020-21 FORMULA'!$B:$AC,'Summary for Prints'!D$2,FALSE) -> 92836.29213 | E24: =VLOOKUP($B24,'2020-21 FORMULA'!$B:$AC,'Summary for Prints'!E$2,FALSE) -> 0 | F24: =VLOOKUP($B24,'2020-21 FORMULA'!$B:$AC,'Summary for Prints'!F$2,FALSE) -> 88846.95378 | G24: =VLOOKUP($B24,'2020-21 FORMULA'!$B:$AC,'Summary for Prints'!G$2,FALSE) -> 18431.97095 | H24: =VLOOKUP($B24,'2020-21 FORMULA'!$B:$AC,'Summary for Prints'!H$2,FALSE) -> 0 | I24: =VLOOKUP($B24,'2020-21 FORMULA'!$B:$AC,'Summary for Prints'!I$2,FALSE) -> 114400 | J24: =VLOOKUP($B24,'2020-21 FORMULA'!$B:$AC,'Summary for Prints'!J$2,FALSE) -> 0 | K24: =VLOOKUP($B24,'2020-21 FORMULA'!$B:$AC,'Summary for Prints'!K$2,FALSE) -> 5108 | L24: =VLOOKUP($B24,'2020-21 FORMULA'!$B:$AC,'Summary for Prints'!L$2,FALSE) -> 0 | M24: 1351000.217 | N24: =VLOOKUP($B24,'2020-21 FORMULA'!$B:$AC,'Summary for Prints'!N$2,FALSE) -> 0 | O24: =VLOOKUP($B24,'2020-21 FORMULA'!$B:$AC,'Summary for Prints'!O$2,FALSE) -> 0 | P24: 1351000.217 | Q24: =VLOOKUP($B24,'2020-21 FORMULA'!$B:$AC,'Summary for Prints'!Q$2,FALSE) -> 7857.783129 | R24: 1358858 | S24: =VLOOKUP($B24,'2020-21 FORMULA'!$B:$AC,'Summary for Prints'!S$2,FALSE) -> 0 | T24: 1358858 | U24: =VLOOKUP($B24,'2020-21 FORMULA'!$B:$AC,'Summary for Prints'!U$2,FALSE) -> 4400 | V24: =SUMIF('ERS 2020-21'!B:B,'Summary for Prints'!B24,'ERS 2020-21'!T:T) -> 0 | W24: =(SUMIF('ERS 2020-21'!B:B,'Summary for Prints'!B24,'ERS 2020-21'!L:L)+SUMIF('ERS 2020-21'!B:B,'Summary for Prints'!B24,'ERS 2020-21'!M:M))*'ERS 2020-21'!$L$1 -> 0 | X24: =(SUMIF('ERS 2020-21'!B:B,'Summary for Prints'!B24,'ERS 2020-21'!O:O))*'ERS 2020-21'!$L$1 -> 0 | Y24: =SUMIF('ERS 2020-21'!B:B,'Summary for Prints'!B24,'ERS 2020-21'!U:U) -> 0 | Z24: =SUMIF('ERS 2020-21'!B:B,'Summary for Prints'!B24,'ERS 2020-21'!V:V)+SUMIF('ERS 2020-21'!B:B,'Summary for Prints'!B24,'ERS 2020-21'!W:W) -> 0 | AA24: =IFERROR(VLOOKUP(B24,'2020-21 Nursery Budget'!E:AC,25,FALSE),0) -> 0 | AB24: 0 | AC24: 1363258 | AD24: =VLOOKUP($B24,'2020-21 FORMULA'!$B:$AC,'Summary for Prints'!AD$2,FALSE) -> 361 | AI24: 8312455 | AL24: 1363258 | AM24: 5108 | AN24: 1358150
A25: Chellaston Junior School | B25: 5203 | C25: =VLOOKUP($B25,'2020-21 FORMULA'!$B:$AC,'Summary for Prints'!C$2,FALSE) -> 1448499 | D25: =VLOOKUP($B25,'2020-21 FORMULA'!$B:$AC,'Summary for Prints'!D$2,FALSE) -> 131669.4479 | E25: =VLOOKUP($B25,'2020-21 FORMULA'!$B:$AC,'Summary for Prints'!E$2,FALSE) -> 0 | F25: =VLOOKUP($B25,'2020-21 FORMULA'!$B:$AC,'Summary for Prints'!F$2,FALSE) -> 169636.7864 | G25: =VLOOKUP($B25,'2020-21 FORMULA'!$B:$AC,'Summary for Prints'!G$2,FALSE) -> 8560 | H25: =VLOOKUP($B25,'2020-21 FORMULA'!$B:$AC,'Summary for Prints'!H$2,FALSE) -> 0 | I25: =VLOOKUP($B25,'2020-21 FORMULA'!$B:$AC,'Summary for Prints'!I$2,FALSE) -> 114400 | J25: =VLOOKUP($B25,'2020-21 FORMULA'!$B:$AC,'Summary for Prints'!J$2,FALSE) -> 0 | K25: =VLOOKUP($B25,'2020-21 FORMULA'!$B:$AC,'Summary for Prints'!K$2,FALSE) -> 6626 | L25: =VLOOKUP($B25,'2020-21 FORMULA'!$B:$AC,'Summary for Prints'!L$2,FALSE) -> 0 | M25: 1879391.234 | N25: =VLOOKUP($B25,'2020-21 FORMULA'!$B:$AC,'Summary for Prints'!N$2,FALSE) -> 0 | O25: =VLOOKUP($B25,'2020-21 FORMULA'!$B:$AC,'Summary for Prints'!O$2,FALSE) -> 0 | P25: 1879391.234 | Q25: =VLOOKUP($B25,'2020-21 FORMULA'!$B:$AC,'Summary for Prints'!Q$2,FALSE) -> 28484.76568 | R25: 1907876 | S25: =VLOOKUP($B25,'2020-21 FORMULA'!$B:$AC,'Summary for Prints'!S$2,FALSE) -> 0 | T25: 1907876 | U25: =VLOOKUP($B25,'2020-21 FORMULA'!$B:$AC,'Summary for Prints'!U$2,FALSE) -> 0 | V25: =SUMIF('ERS 2020-21'!B:B,'Summary for Prints'!B25,'ERS 2020-21'!T:T) -> 0 | W25: =(SUMIF('ERS 2020-21'!B:B,'Summary for Prints'!B25,'ERS 2020-21'!L:L)+SUMIF('ERS 2020-21'!B:B,'Summary for Prints'!B25,'ERS 2020-21'!M:M))*'ERS 2020-21'!$L$1 -> 0 | X25: =(SUMIF('ERS 2020-21'!B:B,'Summary for Prints'!B25,'ERS 2020-21'!O:O))*'ERS 2020-21'!$L$1 -> 0 | Y25: =SUMIF('ERS 2020-21'!B:B,'Summary for Prints'!B25,'ERS 2020-21'!U:U) -> 0 | Z25: =SUMIF('ERS 2020-21'!B:B,'Summary for Prints'!B25,'ERS 2020-21'!V:V)+SUMIF('ERS 2020-21'!B:B,'Summary for Prints'!B25,'ERS 2020-21'!W:W) -> 0 | AA25: =IFERROR(VLOOKUP(B25,'2020-21 Nursery Budget'!E:AC,25,FALSE),0) -> 0 | AB25: 0 | AC25: 1907876 | AD25: =VLOOKUP($B25,'2020-21 FORMULA'!$B:$AC,'Summary for Prints'!AD$2,FALSE) -> 507 | AI25: 8315203 | AL25: 1907876 | AM25: 6626 | AN25: 1901250
A26: Cherry Tree Hill Primary School | B26: 2451 | C26: =VLOOKUP($B26,'2020-21 FORMULA'!$B:$AC,'Summary for Prints'!C$2,FALSE) -> 1691344 | D26: =VLOOKUP($B26,'2020-21 FORMULA'!$B:$AC,'Summary for Prints'!D$2,FALSE) -> 225240.0458 | E26: =VLOOKUP($B26,'2020-21 FORMULA'!$B:$AC,'Summary for Prints'!E$2,FALSE) -> 0 | F26: =VLOOKUP($B26,'2020-21 FORMULA'!$B:$AC,'Summary for Prints'!F$2,FALSE) -> 180314.7929 | G26: =VLOOKUP($B26,'2020-21 FORMULA'!$B:$AC,'Summary for Prints'!G$2,FALSE) -> 11005.71429 | H26: =VLOOKUP($B26,'2020-21 FORMULA'!$B:$AC,'Summary for Prints'!H$2,FALSE) -> 0 | I26: =VLOOKUP($B26,'2020-21 FORMULA'!$B:$AC,'Summary for Prints'!I$2,FALSE) -> 114400 | J26: =VLOOKUP($B26,'2020-21 FORMULA'!$B:$AC,'Summary for Prints'!J$2,FALSE) -> 0 | K26: =VLOOKUP($B26,'2020-21 FORMULA'!$B:$AC,'Summary for Prints'!K$2,FALSE) -> 7697 | L26: =VLOOKUP($B26,'2020-21 FORMULA'!$B:$AC,'Summary for Prints'!L$2,FALSE) -> 0 | M26: 2230001.553 | N26: =VLOOKUP($B26,'2020-21 FORMULA'!$B:$AC,'Summary for Prints'!N$2,FALSE) -> -467.967563 | O26: =VLOOKUP($B26,'2020-21 FORMULA'!$B:$AC,'Summary for Prints'!O$2,FALSE) -> 0 | P26: 2229533.585 | Q26: =VLOOKUP($B26,'2020-21 FORMULA'!$B:$AC,'Summary for Prints'!Q$2,FALSE) -> 0 | R26: 2229533.585 | S26: =VLOOKUP($B26,'2020-21 FORMULA'!$B:$AC,'Summary for Prints'!S$2,FALSE) -> 0 | T26: 2229533.585 | U26: =VLOOKUP($B26,'2020-21 FORMULA'!$B:$AC,'Summary for Prints'!U$2,FALSE) -> 7676.8 | V26: =SUMIF('ERS 2020-21'!B:B,'Summary for Prints'!B26,'ERS 2020-21'!T:T) -> 0 | W26: =(SUMIF('ERS 2020-21'!B:B,'Summary for Prints'!B26,'ERS 2020-21'!L:L)+SUMIF('ERS 2020-21'!B:B,'Summary for Prints'!B26,'ERS 2020-21'!M:M))*'ERS 2020-21'!$L$1 -> 0 | X26: =(SUMIF('ERS 2020-21'!B:B,'Summary for Prints'!B26,'ERS 2020-21'!O:O))*'ERS 2020-21'!$L$1 -> 0 | Y26: =SUMIF('ERS 2020-21'!B:B,'Summary for Prints'!B26,'ERS 2020-21'!U:U) -> 0 | Z26: =SUMIF('ERS 2020-21'!B:B,'Summary for Prints'!B26,'ERS 2020-21'!V:V)+SUMIF('ERS 2020-21'!B:B,'Summary for Prints'!B26,'ERS 2020-21'!W:W) -> 0 | AA26: =IFERROR(VLOOKUP(B26,'2020-21 Nursery Budget'!E:AC,25,FALSE),0) -> 128511 | AB26: 0 | AC26: 2365721.385 | AD26: =VLOOKUP($B26,'2020-21 FORMULA'!$B:$AC,'Summary for Prints'!AD$2,FALSE) -> 592 | AI26: 8312451 | AL26: 2365721.385 | AM26: 7697 | AN26: 2358024.385
A27: Cottons Farm Primary School | B27: 2023 | C27: =VLOOKUP($B27,'2020-21 FORMULA'!$B:$AC,'Summary for Prints'!C$2,FALSE) -> 314270 | D27: =VLOOKUP($B27,'2020-21 FORMULA'!$B:$AC,'Summary for Prints'!D$2,FALSE) -> 103323.9342 | E27: =VLOOKUP($B27,'2020-21 FORMULA'!$B:$AC,'Summary for Prints'!E$2,FALSE) -> 0 | F27: =VLOOKUP($B27,'2020-21 FORMULA'!$B:$AC,'Summary for Prints'!F$2,FALSE) -> 54181.875 | G27: =VLOOKUP($B27,'2020-21 FORMULA'!$B:$AC,'Summary for Prints'!G$2,FALSE) -> 18263.7931 | H27: =VLOOKUP($B27,'2020-21 FORMULA'!$B:$AC,'Summary for Prints'!H$2,FALSE) -> 5600 | I27: =VLOOKUP($B27,'2020-21 FORMULA'!$B:$AC,'Summary for Prints'!I$2,FALSE) -> 114400 | J27: =VLOOKUP($B27,'2020-21 FORMULA'!$B:$AC,'Summary for Prints'!J$2,FALSE) -> 0 | K27: =VLOOKUP($B27,'2020-21 FORMULA'!$B:$AC,'Summary for Prints'!K$2,FALSE) -> 4891 | L27: =VLOOKUP($B27,'2020-21 FORMULA'!$B:$AC,'Summary for Prints'!L$2,FALSE) -> 26080 | M27: 641010.6023 | N27: =VLOOKUP($B27,'2020-21 FORMULA'!$B:$AC,'Summary for Prints'!N$2,FALSE) -> 0 | O27: =VLOOKUP($B27,'2020-21 FORMULA'!$B:$AC,'Summary for Prints'!O$2,FALSE) -> 0 | P27: 641010.6023 | Q27: =VLOOKUP($B27,'2020-21 FORMULA'!$B:$AC,'Summary for Prints'!Q$2,FALSE) -> 0 | R27: 641010.6023 | S27: =VLOOKUP($B27,'2020-21 FORMULA'!$B:$AC,'Summary for Prints'!S$2,FALSE) -> 0 | T27: 641010.6023 | U27: =VLOOKUP($B27,'2020-21 FORMULA'!$B:$AC,'Summary for Prints'!U$2,FALSE) -> 3014.85 | V27: =SUMIF('ERS 2020-21'!B:B,'Summary for Prints'!B27,'ERS 2020-21'!T:T) -> 0 | W27: =(SUMIF('ERS 2020-21'!B:B,'Summary for Prints'!B27,'ERS 2020-21'!L:L)+SUMIF('ERS 2020-21'!B:B,'Summary for Prints'!B27,'ERS 2020-21'!M:M))*'ERS 2020-21'!$L$1 -> 0 | X27: =(SUMIF('ERS 2020-21'!B:B,'Summary for Prints'!B27,'ERS 2020-21'!O:O))*'ERS 2020-21'!$L$1 -> 0 | Y27: =SUMIF('ERS 2020-21'!B:B,'Summary for Prints'!B27,'ERS 2020-21'!U:U) -> 0 | Z27: =SUMIF('ERS 2020-21'!B:B,'Summary for Prints'!B27,'ERS 2020-21'!V:V)+SUMIF('ERS 2020-21'!B:B,'Summary for Prints'!B27,'ERS 2020-21'!W:W) -> 0 | AA27: =IFERROR(VLOOKUP(B27,'2020-21 Nursery Budget'!E:AC,25,FALSE),0) -> 19068 | AB27: 0 | AC27: 663093.4523 | AD27: =VLOOKUP($B27,'2020-21 FORMULA'!$B:$AC,'Summary for Prints'!AD$2,FALSE) -> 110 | AI27: 8312430 | AL27: 663093.4523 | AM27: 4891 | AN27: 658202.4523
A28: Dale Community Primary School | B28: 2409 | C28: =VLOOKUP($B28,'2020-21 FORMULA'!$B:$AC,'Summary for Prints'!C$2,FALSE) -> 1542780 | D28: =VLOOKUP($B28,'2020-21 FORMULA'!$B:$AC,'Summary for Prints'!D$2,FALSE) -> 340951.6364 | E28: =VLOOKUP($B28,'2020-21 FORMULA'!$B:$AC,'Summary for Prints'!E$2,FALSE) -> 0 | F28: =VLOOKUP($B28,'2020-21 FORMULA'!$B:$AC,'Summary for Prints'!F$2,FALSE) -> 270323.5023 | G28: =VLOOKUP($B28,'2020-21 FORMULA'!$B:$AC,'Summary for Prints'!G$2,FALSE) -> 128042.539 | H28: =VLOOKUP($B28,'2020-21 FORMULA'!$B:$AC,'Summary for Prints'!H$2,FALSE) -> 0 | I28: =VLOOKUP($B28,'2020-21 FORMULA'!$B:$AC,'Summary for Prints'!I$2,FALSE) -> 114400 | J28: =VLOOKUP($B28,'2020-21 FORMULA'!$B:$AC,'Summary for Prints'!J$2,FALSE) -> 0 | K28: =VLOOKUP($B28,'2020-21 FORMULA'!$B:$AC,'Summary for Prints'!K$2,FALSE) -> 37619 | L28: =VLOOKUP($B28,'2020-21 FORMULA'!$B:$AC,'Summary for Prints'!L$2,FALSE) -> 0 | M28: 2434116.678 | N28: =VLOOKUP($B28,'2020-21 FORMULA'!$B:$AC,'Summary for Prints'!N$2,FALSE) -> -9754.565754 | O28: =VLOOKUP($B28,'2020-21 FORMULA'!$B:$AC,'Summary for Prints'!O$2,FALSE) -> 0 | P28: 2424362.112 | Q28: =VLOOKUP($B28,'2020-21 FORMULA'!$B:$AC,'Summary for Prints'!Q$2,FALSE) -> 0 | R28: 2424362.112 | S28: =VLOOKUP($B28,'2020-21 FORMULA'!$B:$AC,'Summary for Prints'!S$2,FALSE) -> -37474.92 | T28: 2386887.192 | U28: =VLOOKUP($B28,'2020-21 FORMULA'!$B:$AC,'Summary for Prints'!U$2,FALSE) -> 10412.3 | V28: =SUMIF('ERS 2020-21'!B:B,'Summary for Prints'!B28,'ERS 2020-21'!T:T) -> 0 | W28: =(SUMIF('ERS 2020-21'!B:B,'Summary for Prints'!B28,'ERS 2020-21'!L:L)+SUMIF('ERS 2020-21'!B:B,'Summary for Prints'!B28,'ERS 2020-21'!M:M))*'ERS 2020-21'!$L$1 -> 0 | X28: =(SUMIF('ERS 2020-21'!B:B,'Summary for Prints'!B28,'ERS 2020-21'!O:O))*'ERS 2020-21'!$L$1 -> 0 | Y28: =SUMIF('ERS 2020-21'!B:B,'Summary for Prints'!B28,'ERS 2020-21'!U:U) -> 0 | Z28: =SUMIF('ERS 2020-21'!B:B,'Summary for Prints'!B28,'ERS 2020-21'!V:V)+SUMIF('ERS 2020-21'!B:B,'Summary for Prints'!B28,'ERS 2020-21'!W:W) -> 0 | AA28: =IFERROR(VLOOKUP(B28,'2020-21 Nursery Budget'!E:AC,25,FALSE),0) -> 0 | AB28: 0 | AC28: 2397299.492 | AD28: =VLOOKUP($B28,'2020-21 FORMULA'!$B:$AC,'Summary for Prints'!AD$2,FALSE) -> 540 | AI28: 8312409 | AL28: 2397299.492 | AM28: 37619 | AN28: 2359680.492
A29: Derby St Chad's CE (VC) Nursery and Infant School | B29: 3158 | C29: =VLOOKUP($B29,'2020-21 FORMULA'!$B:$AC,'Summary for Prints'!C$2,FALSE) -> 305699 | D29: =VLOOKUP($B29,'2020-21 FORMULA'!$B:$AC,'Summary for Prints'!D$2,FALSE) -> 84510 | E29: =VLOOKUP($B29,'2020-21 FORMULA'!$B:$AC,'Summary for Prints'!E$2,FALSE) -> 0 | F29: =VLOOKUP($B29,'2020-21 FORMULA'!$B:$AC,'Summary for Prints'!F$2,FALSE) -> 56977.5 | G29: =VLOOKUP($B29,'2020-21 FORMULA'!$B:$AC,'Summary for Prints'!G$2,FALSE) -> 52951.625 | H29: =VLOOKUP($B29,'2020-21 FORMULA'!$B:$AC,'Summary for Prints'!H$2,FALSE) -> 0 | I29: =VLOOKUP($B29,'2020-21 FORMULA'!$B:$AC,'Summary for Prints'!I$2,FALSE) -> 114400 | J29: =VLOOKUP($B29,'2020-21 FORMULA'!$B:$AC,'Summary for Prints'!J$2,FALSE) -> 0 | K29: =VLOOKUP($B29,'2020-21 FORMULA'!$B:$AC,'Summary for Prints'!K$2,FALSE) -> 2048 | L29: =VLOOKUP($B29,'2020-21 FORMULA'!$B:$AC,'Summary for Prints'!L$2,FALSE) -> 0 | M29: 616586.125 | N29: =VLOOKUP($B29,'2020-21 FORMULA'!$B:$AC,'Summary for Prints'!N$2,FALSE) -> -7508.215606 | O29: =VLOOKUP($B29,'2020-21 FORMULA'!$B:$AC,'Summary for Prints'!O$2,FALSE) -> 0 | P29: 609077.9094 | Q29: =VLOOKUP($B29,'2020-21 FORMULA'!$B:$AC,'Summary for Prints'!Q$2,FALSE) -> 0 | R29: 609077.9094 | S29: =VLOOKUP($B29,'2020-21 FORMULA'!$B:$AC,'Summary for Prints'!S$2,FALSE) -> 0 | T29: 609077.9094 | U29: =VLOOKUP($B29,'2020-21 FORMULA'!$B:$AC,'Summary for Prints'!U$2,FALSE) -> 1920.65 | V29: =SUMIF('ERS 2020-21'!B:B,'Summary for Prints'!B29,'ERS 2020-21'!T:T) -> 0 | W29: =(SUMIF('ERS 2020-21'!B:B,'Summary for Prints'!B29,'ERS 2020-21'!L:L)+SUMIF('ERS 2020-21'!B:B,'Summary for Prints'!B29,'ERS 2020-21'!M:M))*'ERS 2020-21'!$L$1 -> 0 | X29: =(SUMIF('ERS 2020-21'!B:B,'Summary for Prints'!B29,'ERS 2020-21'!O:O))*'ERS 2020-21'!$L$1 -> 0 | Y29: =SUMIF('ERS 2020-21'!B:B,'Summary for Prints'!B29,'ERS 2020-21'!U:U) -> 0 | Z29: =SUMIF('ERS 2020-21'!B:B,'Summary for Prints'!B29,'ERS 2020-21'!V:V)+SUMIF('ERS 2020-21'!B:B,'Summary for Prints'!B29,'ERS 2020-21'!W:W) -> 0 | AA29: =IFERROR(VLOOKUP(B29,'2020-21 Nursery Budget'!E:AC,25,FALSE),0) -> 44368 | AB29: 0 | AC29: 655366.5594 | AD29: =VLOOKUP($B29,'2020-21 FORMULA'!$B:$AC,'Summary for Prints'!AD$2,FALSE) -> 107 | AI29: 8313158 | AL29: 655366.5594 | AM29: 2048 | AN29: 653318.5594
A30: Derwent Community School | B30: 2016 | C30: =VLOOKUP($B30,'2020-21 FORMULA'!$B:$AC,'Summary for Prints'!C$2,FALSE) -> 619969 | D30: =VLOOKUP($B30,'2020-21 FORMULA'!$B:$AC,'Summary for Prints'!D$2,FALSE) -> 209792.1898 | E30: =VLOOKUP($B30,'2020-21 FORMULA'!$B:$AC,'Summary for Prints'!E$2,FALSE) -> 0 | F30: =VLOOKUP($B30,'2020-21 FORMULA'!$B:$AC,'Summary for Prints'!F$2,FALSE) -> 95629.65517 | G30: =VLOOKUP($B30,'2020-21 FORMULA'!$B:$AC,'Summary for Prints'!G$2,FALSE) -> 15520.72193 | H30: =VLOOKUP($B30,'2020-21 FORMULA'!$B:$AC,'Summary for Prints'!H$2,FALSE) -> 4357.5 | I30: =VLOOKUP($B30,'2020-21 FORMULA'!$B:$AC,'Summary for Prints'!I$2,FALSE) -> 114400 | J30: =VLOOKUP($B30,'2020-21 FORMULA'!$B:$AC,'Summary for Prints'!J$2,FALSE) -> 0 | K30: =VLOOKUP($B30,'2020-21 FORMULA'!$B:$AC,'Summary for Prints'!K$2,FALSE) -> 5772 | L30: =VLOOKUP($B30,'2020-21 FORMULA'!$B:$AC,'Summary for Prints'!L$2,FALSE) -> 0 | M30: 1065441.067 | N30: =VLOOKUP($B30,'2020-21 FORMULA'!$B:$AC,'Summary for Prints'!N$2,FALSE) -> -1147.413351 | O30: =VLOOKUP($B30,'2020-21 FORMULA'!$B:$AC,'Summary for Prints'!O$2,FALSE) -> 0 | P30: 1064293.654 | Q30: =VLOOKUP($B30,'2020-21 FORMULA'!$B:$AC,'Summary for Prints'!Q$2,FALSE) -> 0 | R30: 1064293.654 | S30: =VLOOKUP($B30,'2020-21 FORMULA'!$B:$AC,'Summary for Prints'!S$2,FALSE) -> 0 | T30: 1064293.654 | U30: =VLOOKUP($B30,'2020-21 FORMULA'!$B:$AC,'Summary for Prints'!U$2,FALSE) -> 1100 | V30: =SUMIF('ERS 2020-21'!B:B,'Summary for Prints'!B30,'ERS 2020-21'!T:T) -> 0 | W30: =(SUMIF('ERS 2020-21'!B:B,'Summary for Prints'!B30,'ERS 2020-21'!L:L)+SUMIF('ERS 2020-21'!B:B,'Summary for Prints'!B30,'ERS 2020-21'!M:M))*'ERS 2020-21'!$L$1 -> 0 | X30: =(SUMIF('ERS 2020-21'!B:B,'Summary for Prints'!B30,'ERS 2020-21'!O:O))*'ERS 2020-21'!$L$1 -> 0 | Y30: =SUMIF('ERS 2020-21'!B:B,'Summary for Prints'!B30,'ERS 2020-21'!U:U) -> 0 | Z30: =SUMIF('ERS 2020-21'!B:B,'Summary for Prints'!B30,'ERS 2020-21'!V:V)+SUMIF('ERS 2020-21'!B:B,'Summary for Prints'!B30,'ERS 2020-21'!W:W) -> 0 | AA30: =IFERROR(VLOOKUP(B30,'2020-21 Nursery Budget'!E:AC,25,FALSE),0) -> 83533 | AB30: 0 | AC30: 1148926.654 | AD30: =VLOOKUP($B30,'2020-21 FORMULA'!$B:$AC,'Summary for Prints'!AD$2,FALSE) -> 217 | AI30: 8312619 | AL30: 1148926.654 | AM30: 5772 | AN30: 1143154.654
A31: Firs Estate Primary School | B31: 2013 | C31: =VLOOKUP($B31,'2020-21 FORMULA'!$B:$AC,'Summary for Prints'!C$2,FALSE) -> 1048519 | D31: =VLOOKUP($B31,'2020-21 FORMULA'!$B:$AC,'Summary for Prints'!D$2,FALSE) -> 306098.6684 | E31: =VLOOKUP($B31,'2020-21 FORMULA'!$B:$AC,'Summary for Prints'!E$2,FALSE) -> 0 | F31: =VLOOKUP($B31,'2020-21 FORMULA'!$B:$AC,'Summary for Prints'!F$2,FALSE) -> 243362.5472 | G31: =VLOOKUP($B31,'2020-21 FORMULA'!$B:$AC,'Summary for Prints'!G$2,FALSE) -> 105860.7078 | H31: =VLOOKUP($B31,'2020-21 FORMULA'!$B:$AC,'Summary for Prints'!H$2,FALSE) -> 38482.5 | I31: =VLOOKUP($B31,'2020-21 FORMULA'!$B:$AC,'Summary for Prints'!I$2,FALSE) -> 114400 | J31: =VLOOKUP($B31,'2020-21 FORMULA'!$B:$AC,'Summary for Prints'!J$2,FALSE) -> 0 | K31: =VLOOKUP($B31,'2020-21 FORMULA'!$B:$AC,'Summary for Prints'!K$2,FALSE) -> 2447 | L31: =VLOOKUP($B31,'2020-21 FORMULA'!$B:$AC,'Summary for Prints'!L$2,FALSE) -> 0 | M31: 1859170.423 | N31: =VLOOKUP($B31,'2020-21 FORMULA'!$B:$AC,'Summary for Prints'!N$2,FALSE) -> 0 | O31: =VLOOKUP($B31,'2020-21 FORMULA'!$B:$AC,'Summary for Prints'!O$2,FALSE) -> 0 | P31: 1859170.423 | Q31: =VLOOKUP($B31,'2020-21 FORMULA'!$B:$AC,'Summary for Prints'!Q$2,FALSE) -> 0 | R31: 1859170.423 | S31: =VLOOKUP($B31,'2020-21 FORMULA'!$B:$AC,'Summary for Prints'!S$2,FALSE) -> 0 | T31: 1859170.423 | U31: =VLOOKUP($B31,'2020-21 FORMULA'!$B:$AC,'Summary for Prints'!U$2,FALSE) -> 9038.75 | V31: =SUMIF('ERS 2020-21'!B:B,'Summary for Prints'!B31,'ERS 2020-21'!T:T) -> 0 | W31: =(SUMIF('ERS 2020-21'!B:B,'Summary for Prints'!B31,'ERS 2020-21'!L:L)+SUMIF('ERS 2020-21'!B:B,'Summary for Prints'!B31,'ERS 2020-21'!M:M))*'ERS 2020-21'!$L$1 -> 0 | X31: =(SUMIF('ERS 2020-21'!B:B,'Summary for Prints'!B31,'ERS 2020-21'!O:O))*'ERS 2020-21'!$L$1 -> 0 | Y31: =SUMIF('ERS 2020-21'!B:B,'Summary for Prints'!B31,'ERS 2020-21'!U:U) -> 0 | Z31: =SUMIF('ERS 2020-21'!B:B,'Summary for Prints'!B31,'ERS 2020-21'!V:V)+SUMIF('ERS 2020-21'!B:B,'Summary for Prints'!B31,'ERS 2020-21'!W:W) -> 0 | AA31: =IFERROR(VLOOKUP(B31,'2020-21 Nursery Budget'!E:AC,25,FALSE),0) -> 46974 | AB31: 0 | AC31: 1915183.173 | AD31: =VLOOKUP($B31,'2020-21 FORMULA'!$B:$AC,'Summary for Prints'!AD$2,FALSE) -> 367 | AI31: 8312518 | AL31: 1915183.173 | AM31: 2447 | AN31: 1912736.173
A32: Gayton Community Junior School | B32: 2457 | C32: =VLOOKUP($B32,'2020-21 FORMULA'!$B:$AC,'Summary for Prints'!C$2,FALSE) -> 1045662 | D32: =VLOOKUP($B32,'2020-21 FORMULA'!$B:$AC,'Summary for Prints'!D$2,FALSE) -> 91013.17073 | E32: =VLOOKUP($B32,'2020-21 FORMULA'!$B:$AC,'Summary for Prints'!E$2,FALSE) -> 0 | F32: =VLOOKUP($B32,'2020-21 FORMULA'!$B:$AC,'Summary for Prints'!F$2,FALSE) -> 153520.6425 | G32: =VLOOKUP($B32,'2020-21 FORMULA'!$B:$AC,'Summary for Prints'!G$2,FALSE) -> 22470 | H32: =VLOOKUP($B32,'2020-21 FORMULA'!$B:$AC,'Summary for Prints'!H$2,FALSE) -> 0 | I32: =VLOOKUP($B32,'2020-21 FORMULA'!$B:$AC,'Summary for Prints'!I$2,FALSE) -> 114400 | J32: =VLOOKUP($B32,'2020-21 FORMULA'!$B:$AC,'Summary for Prints'!J$2,FALSE) -> 0 | K32: =VLOOKUP($B32,'2020-21 FORMULA'!$B:$AC,'Summary for Prints'!K$2,FALSE) -> 21098 | L32: =VLOOKUP($B32,'2020-21 FORMULA'!$B:$AC,'Summary for Prints'!L$2,FALSE) -> 0 | M32: 1448163.813 | N32: =VLOOKUP($B32,'2020-21 FORMULA'!$B:$AC,'Summary for Prints'!N$2,FALSE) -> -209.3876744 | O32: =VLOOKUP($B32,'2020-21 FORMULA'!$B:$AC,'Summary for Prints'!O$2,FALSE) -> 0 | P32: 1447954.426 | Q32: =VLOOKUP($B32,'2020-21 FORMULA'!$B:$AC,'Summary for Prints'!Q$2,FALSE) -> 0 | R32: 1447954.426 | S32: =VLOOKUP($B32,'2020-21 FORMULA'!$B:$AC,'Summary for Prints'!S$2,FALSE) -> -25399.668 | T32: 1422554.758 | U32: =VLOOKUP($B32,'2020-21 FORMULA'!$B:$AC,'Summary for Prints'!U$2,FALSE) -> 0 | V32: =SUMIF('ERS 2020-21'!B:B,'Summary for Prints'!B32,'ERS 2020-21'!T:T) -> 0 | W32: =(SUMIF('ERS 2020-21'!B:B,'Summary for Prints'!B32,'ERS 2020-21'!L:L)+SUMIF('ERS 2020-21'!B:B,'Summary for Prints'!B32,'ERS 2020-21'!M:M))*'ERS 2020-21'!$L$1 -> 0 | X32: =(SUMIF('ERS 2020-21'!B:B,'Summary for Prints'!B32,'ERS 2020-21'!O:O))*'ERS 2020-21'!$L$1 -> 0 | Y32: =SUMIF('ERS 2020-21'!B:B,'Summary for Prints'!B32,'ERS 2020-21'!U:U) -> 0 | Z32: =SUMIF('ERS 2020-21'!B:B,'Summary for Prints'!B32,'ERS 2020-21'!V:V)+SUMIF('ERS 2020-21'!B:B,'Summary for Prints'!B32,'ERS 2020-21'!W:W) -> 0 | AA32: =IFERROR(VLOOKUP(B32,'2020-21 Nursery Budget'!E:AC,25,FALSE),0) -> 0 | AB32: 0 | AC32: 1422554.758 | AD32: =VLOOKUP($B32,'2020-21 FORMULA'!$B:$AC,'Summary for Prints'!AD$2,FALSE) -> 366 | AI32: 8312457 | AL32: 1422554.758 | AM32: 21098 | AN32: 1401456.758
A33: Grampian Primary Academy | B33: 2010 | C33: =VLOOKUP($B33,'2020-21 FORMULA'!$B:$AC,'Summary for Prints'!C$2,FALSE) -> 577114 | D33: =VLOOKUP($B33,'2020-21 FORMULA'!$B:$AC,'Summary for Prints'!D$2,FALSE) -> 163754.7101 | E33: =VLOOKUP($B33,'2020-21 FORMULA'!$B:$AC,'Summary for Prints'!E$2,FALSE) -> 0 | F33: =VLOOKUP($B33,'2020-21 FORMULA'!$B:$AC,'Summary for Prints'!F$2,FALSE) -> 57969.16168 | G33: =VLOOKUP($B33,'2020-21 FORMULA'!$B:$AC,'Summary for Prints'!G$2,FALSE) -> 12566.27907 | H33: =VLOOKUP($B33,'2020-21 FORMULA'!$B:$AC,'Summary for Prints'!H$2,FALSE) -> 0 | I33: =VLOOKUP($B33,'2020-21 FORMULA'!$B:$AC,'Summary for Prints'!I$2,FALSE) -> 114400 | J33: =VLOOKUP($B33,'2020-21 FORMULA'!$B:$AC,'Summary for Prints'!J$2,FALSE) -> 0 | K33: =VLOOKUP($B33,'2020-21 FORMULA'!$B:$AC,'Summary for Prints'!K$2,FALSE) -> 4326 | L33: =VLOOKUP($B33,'2020-21 FORMULA'!$B:$AC,'Summary for Prints'!L$2,FALSE) -> 0 | M33: 930130.1509 | N33: =VLOOKUP($B33,'2020-21 FORMULA'!$B:$AC,'Summary for Prints'!N$2,FALSE) -> 0 | O33: =VLOOKUP($B33,'2020-21 FORMULA'!$B:$AC,'Summary for Prints'!O$2,FALSE) -> 0 | P33: 930130.1509 | Q33: =VLOOKUP($B33,'2020-21 FORMULA'!$B:$AC,'Summary for Prints'!Q$2,FALSE) -> 0 | R33: 930130.1509 | S33: =VLOOKUP($B33,'2020-21 FORMULA'!$B:$AC,'Summary for Prints'!S$2,FALSE) -> 0 | T33: 930130.1509 | U33: =VLOOKUP($B33,'2020-21 FORMULA'!$B:$AC,'Summary for Prints'!U$2,FALSE) -> 1100 | V33: =SUMIF('ERS 2020-21'!B:B,'Summary for Prints'!B33,'ERS 2020-21'!T:T) -> 0 | W33: =(SUMIF('ERS 2020-21'!B:B,'Summary for Prints'!B33,'ERS 2020-21'!L:L)+SUMIF('ERS 2020-21'!B:B,'Summary for Prints'!B33,'ERS 2020-21'!M:M))*'ERS 2020-21'!$L$1 -> 0 | X33: =(SUMIF('ERS 2020-21'!B:B,'Summary for Prints'!B33,'ERS 2020-21'!O:O))*'ERS 2020-21'!$L$1 -> 0 | Y33: =SUMIF('ERS 2020-21'!B:B,'Summary for Prints'!B33,'ERS 2020-21'!U:U) -> 0 | Z33: =SUMIF('ERS 2020-21'!B:B,'Summary for Prints'!B33,'ERS 2020-21'!V:V)+SUMIF('ERS 2020-21'!B:B,'Summary for Prints'!B33,'ERS 2020-21'!W:W) -> 0 | AA33: =IFERROR(VLOOKUP(B33,'2020-21 Nursery Budget'!E:AC,25,FALSE),0) -> 116997 | AB33: 0 | AC33: 1048227.151 | AD33: =VLOOKUP($B33,'2020-21 FORMULA'!$B:$AC,'Summary for Prints'!AD$2,FALSE) -> 202 | AI33: 8312010 | AL33: 1048227.151 | AM33: 4326 | AN33: 1043901.151
A34: Griffe Field Primary School | B34: 2002 | C34: =VLOOKUP($B34,'2020-21 FORMULA'!$B:$AC,'Summary for Prints'!C$2,FALSE) -> 1248509 | D34: =VLOOKUP($B34,'2020-21 FORMULA'!$B:$AC,'Summary for Prints'!D$2,FALSE) -> 26669.78291 | E34: =VLOOKUP($B34,'2020-21 FORMULA'!$B:$AC,'Summary for Prints'!E$2,FALSE) -> 0 | F34: =VLOOKUP($B34,'2020-21 FORMULA'!$B:$AC,'Summary for Prints'!F$2,FALSE) -> 109887.2917 | G34: =VLOOKUP($B34,'2020-21 FORMULA'!$B:$AC,'Summary for Prints'!G$2,FALSE) -> 27286.4191 | H34: =VLOOKUP($B34,'2020-21 FORMULA'!$B:$AC,'Summary for Prints'!H$2,FALSE) -> 0 | I34: =VLOOKUP($B34,'2020-21 FORMULA'!$B:$AC,'Summary for Prints'!I$2,FALSE) -> 114400 | J34: =VLOOKUP($B34,'2020-21 FORMULA'!$B:$AC,'Summary for Prints'!J$2,FALSE) -> 0 | K34: =VLOOKUP($B34,'2020-21 FORMULA'!$B:$AC,'Summary for Prints'!K$2,FALSE) -> 10175 | L34: =VLOOKUP($B34,'2020-21 FORMULA'!$B:$AC,'Summary for Prints'!L$2,FALSE) -> 0 | M34: 1536927.494 | N34: =VLOOKUP($B34,'2020-21 FORMULA'!$B:$AC,'Summary for Prints'!N$2,FALSE) -> 0 | O34: =VLOOKUP($B34,'2020-21 FORMULA'!$B:$AC,'Summary for Prints'!O$2,FALSE) -> 0 | P34: 1536927.494 | Q34: =VLOOKUP($B34,'2020-21 FORMULA'!$B:$AC,'Summary for Prints'!Q$2,FALSE) -> 111997.5063 | R34: 1648925 | S34: =VLOOKUP($B34,'2020-21 FORMULA'!$B:$AC,'Summary for Prints'!S$2,FALSE) -> 0 | T34: 1648925 | U34: =VLOOKUP($B34,'2020-21 FORMULA'!$B:$AC,'Summary for Prints'!U$2,FALSE) -> 2200 | V34: =SUMIF('ERS 2020-21'!B:B,'Summary for Prints'!B34,'ERS 2020-21'!T:T) -> 0 | W34: =(SUMIF('ERS 2020-21'!B:B,'Summary for Prints'!B34,'ERS 2020-21'!L:L)+SUMIF('ERS 2020-21'!B:B,'Summary for Prints'!B34,'ERS 2020-21'!M:M))*'ERS 2020-21'!$L$1 -> 0 | X34: =(SUMIF('ERS 2020-21'!B:B,'Summary for Prints'!B34,'ERS 2020-21'!O:O))*'ERS 2020-21'!$L$1 -> 0 | Y34: =SUMIF('ERS 2020-21'!B:B,'Summary for Prints'!B34,'ERS 2020-21'!U:U) -> 0 | Z34: =SUMIF('ERS 2020-21'!B:B,'Summary for Prints'!B34,'ERS 2020-21'!V:V)+SUMIF('ERS 2020-21'!B:B,'Summary for Prints'!B34,'ERS 2020-21'!W:W) -> 0 | AA34: =IFERROR(VLOOKUP(B34,'2020-21 Nursery Budget'!E:AC,25,FALSE),0) -> 121261 | AB34: 0 | AC34: 1772386 | AD34: =VLOOKUP($B34,'2020-21 FORMULA'!$B:$AC,'Summary for Prints'!AD$2,FALSE) -> 437 | AI34: 8312002 | AL34: 1772386 | AM34: 10175 | AN34: 1762211
A35: Hackwood Primary School | B35: 2024 | C35: =VLOOKUP($B35,'2020-21 FORMULA'!$B:$AC,'Summary for Prints'!C$2,FALSE) -> 257368.56 | D35: =VLOOKUP($B35,'2020-21 FORMULA'!$B:$AC,'Summary for Prints'!D$2,FALSE) -> 19183.6553 | E35: =VLOOKUP($B35,'2020-21 FORMULA'!$B:$AC,'Summary for Prints'!E$2,FALSE) -> 0 | F35: =VLOOKUP($B35,'2020-21 FORMULA'!$B:$AC,'Summary for Prints'!F$2,FALSE) -> 17766.43519 | G35: =VLOOKUP($B35,'2020-21 FORMULA'!$B:$AC,'Summary for Prints'!G$2,FALSE) -> 9638.916667 | H35: =VLOOKUP($B35,'2020-21 FORMULA'!$B:$AC,'Summary for Prints'!H$2,FALSE) -> 0 | I35: =VLOOKUP($B35,'2020-21 FORMULA'!$B:$AC,'Summary for Prints'!I$2,FALSE) -> 114400 | J35: =VLOOKUP($B35,'2020-21 FORMULA'!$B:$AC,'Summary for Prints'!J$2,FALSE) -> 0 | K35: =VLOOKUP($B35,'2020-21 FORMULA'!$B:$AC,'Summary for Prints'!K$2,FALSE) -> 3401.03425 | L35: =VLOOKUP($B35,'2020-21 FORMULA'!$B:$AC,'Summary for Prints'!L$2,FALSE) -> 0 | M35: 421758.6014 | N35: =VLOOKUP($B35,'2020-21 FORMULA'!$B:$AC,'Summary for Prints'!N$2,FALSE) -> 0 | O35: =VLOOKUP($B35,'2020-21 FORMULA'!$B:$AC,'Summary for Prints'!O$2,FALSE) -> 0 | P35: 421758.6014 | Q35: =VLOOKUP($B35,'2020-21 FORMULA'!$B:$AC,'Summary for Prints'!Q$2,FALSE) -> 0 | R35: 421758.6014 | S35: =VLOOKUP($B35,'2020-21 FORMULA'!$B:$AC,'Summary for Prints'!S$2,FALSE) -> 0 | T35: 421758.6014 | U35: =VLOOKUP($B35,'2020-21 FORMULA'!$B:$AC,'Summary for Prints'!U$2,FALSE) -> 3014.85 | V35: =SUMIF('ERS 2020-21'!B:B,'Summary for Prints'!B35,'ERS 2020-21'!T:T) -> 0 | W35: =(SUMIF('ERS 2020-21'!B:B,'Summary for Prints'!B35,'ERS 2020-21'!L:L)+SUMIF('ERS 2020-21'!B:B,'Summary for Prints'!B35,'ERS 2020-21'!M:M))*'ERS 2020-21'!$L$1 -> 0 | X35: =(SUMIF('ERS 2020-21'!B:B,'Summary for Prints'!B35,'ERS 2020-21'!O:O))*'ERS 2020-21'!$L$1 -> 0 | Y35: =SUMIF('ERS 2020-21'!B:B,'Summary for Prints'!B35,'ERS 2020-21'!U:U) -> 0 | Z35: =SUMIF('ERS 2020-21'!B:B,'Summary for Prints'!B35,'ERS 2020-21'!V:V)+SUMIF('ERS 2020-21'!B:B,'Summary for Prints'!B35,'ERS 2020-21'!W:W) -> 0 | AA35: =IFERROR(VLOOKUP(B35,'2020-21 Nursery Budget'!E:AC,25,FALSE),0) -> 5352 | AB35: 0 | AC35: 430125.4514 | AD35: =VLOOKUP($B35,'2020-21 FORMULA'!$B:$AC,'Summary for Prints'!AD$2,FALSE) -> 90.08 | AI35: 8312024 | AL35: 430125.4514 | AM35: 3401.03425 | AN35: 426724.4172
A36: Hardwick Primary School | B36: 3544 | C36: =VLOOKUP($B36,'2020-21 FORMULA'!$B:$AC,'Summary for Prints'!C$2,FALSE) -> 1531352 | D36: =VLOOKUP($B36,'2020-21 FORMULA'!$B:$AC,'Summary for Prints'!D$2,FALSE) -> 422329.5353 | E36: =VLOOKUP($B36,'2020-21 FORMULA'!$B:$AC,'Summary for Prints'!E$2,FALSE) -> 0 | F36: =VLOOKUP($B36,'2020-21 FORMULA'!$B:$AC,'Summary for Prints'!F$2,FALSE) -> 301955.6675 | G36: =VLOOKUP($B36,'2020-21 FORMULA'!$B:$AC,'Summary for Prints'!G$2,FALSE) -> 142474.4421 | H36: =VLOOKUP($B36,'2020-21 FORMULA'!$B:$AC,'Summary for Prints'!H$2,FALSE) -> 0 | I36: =VLOOKUP($B36,'2020-21 FORMULA'!$B:$AC,'Summary for Prints'!I$2,FALSE) -> 114400 | J36: =VLOOKUP($B36,'2020-21 FORMULA'!$B:$AC,'Summary for Prints'!J$2,FALSE) -> 0 | K36: =VLOOKUP($B36,'2020-21 FORMULA'!$B:$AC,'Summary for Prints'!K$2,FALSE) -> 13502 | L36: =VLOOKUP($B36,'2020-21 FORMULA'!$B:$AC,'Summary for Prints'!L$2,FALSE) -> 148354 | M36: 2674367.645 | N36: =VLOOKUP($B36,'2020-21 FORMULA'!$B:$AC,'Summary for Prints'!N$2,FALSE) -> -8466.963039 | O36: =VLOOKUP($B36,'2020-21 FORMULA'!$B:$AC,'Summary for Prints'!O$2,FALSE) -> 0 | P36: 2665900.682 | Q36: =VLOOKUP($B36,'2020-21 FORMULA'!$B:$AC,'Summary for Prints'!Q$2,FALSE) -> 0 | R36: 2665900.682 | S36: =VLOOKUP($B36,'2020-21 FORMULA'!$B:$AC,'Summary for Prints'!S$2,FALSE) -> 0 | T36: 2665900.682 | U36: =VLOOKUP($B36,'2020-21 FORMULA'!$B:$AC,'Summary for Prints'!U$2,FALSE) -> 2200 | V36: =SUMIF('ERS 2020-21'!B:B,'Summary for Prints'!B36,'ERS 2020-21'!T:T) -> 0 | W36: =(SUMIF('ERS 2020-21'!B:B,'Summary for Prints'!B36,'ERS 2020-21'!L:L)+SUMIF('ERS 2020-21'!B:B,'Summary for Prints'!B36,'ERS 2020-21'!M:M))*'ERS 2020-21'!$L$1 -> 0 | X36: =(SUMIF('ERS 2020-21'!B:B,'Summary for Prints'!B36,'ERS 2020-21'!O:O))*'ERS 2020-21'!$L$1 -> 0 | Y36: =SUMIF('ERS 2020-21'!B:B,'Summary for Prints'!B36,'ERS 2020-21'!U:U) -> 0 | Z36: =SUMIF('ERS 2020-21'!B:B,'Summary for Prints'!B36,'ERS 2020-21'!V:V)+SUMIF('ERS 2020-21'!B:B,'Summary for Prints'!B36,'ERS 2020-21'!W:W) -> 0 | AA36: =IFERROR(VLOOKUP(B36,'2020-21 Nursery Budget'!E:AC,25,FALSE),0) -> 136002 | AB36: 0 | AC36: 2804102.682 | AD36: =VLOOKUP($B36,'2020-21 FORMULA'!$B:$AC,'Summary for Prints'!AD$2,FALSE) -> 536 | AI36: 8313544 | AL36: 2804102.682 | AM36: 13502 | AN36: 2790600.682
A37: Homefields Primary School | B37: 2006 | C37: =VLOOKUP($B37,'2020-21 FORMULA'!$B:$AC,'Summary for Prints'!C$2,FALSE) -> 919954 | D37: =VLOOKUP($B37,'2020-21 FORMULA'!$B:$AC,'Summary for Prints'!D$2,FALSE) -> 10653.5 | E37: =VLOOKUP($B37,'2020-21 FORMULA'!$B:$AC,'Summary for Prints'!E$2,FALSE) -> 0 | F37: =VLOOKUP($B37,'2020-21 FORMULA'!$B:$AC,'Summary for Prints'!F$2,FALSE) -> 75094.16058 | G37: =VLOOKUP($B37,'2020-21 FORMULA'!$B:$AC,'Summary for Prints'!G$2,FALSE) -> 11527.36059 | H37: =VLOOKUP($B37,'2020-21 FORMULA'!$B:$AC,'Summary for Prints'!H$2,FALSE) -> 0 | I37: =VLOOKUP($B37,'2020-21 FORMULA'!$B:$AC,'Summary for Prints'!I$2,FALSE) -> 114400 | J37: =VLOOKUP($B37,'2020-21 FORMULA'!$B:$AC,'Summary for Prints'!J$2,FALSE) -> 0 | K37: =VLOOKUP($B37,'2020-21 FORMULA'!$B:$AC,'Summary for Prints'!K$2,FALSE) -> 7060 | L37: =VLOOKUP($B37,'2020-21 FORMULA'!$B:$AC,'Summary for Prints'!L$2,FALSE) -> 0 | M37: 1138689.021 | N37: =VLOOKUP($B37,'2020-21 FORMULA'!$B:$AC,'Summary for Prints'!N$2,FALSE) -> 0 | O37: =VLOOKUP($B37,'2020-21 FORMULA'!$B:$AC,'Summary for Prints'!O$2,FALSE) -> 0 | P37: 1138689.021 | Q37: =VLOOKUP($B37,'2020-21 FORMULA'!$B:$AC,'Summary for Prints'!Q$2,FALSE) -> 75870.97882 | R37: 1214560 | S37: =VLOOKUP($B37,'2020-21 FORMULA'!$B:$AC,'Summary for Prints'!S$2,FALSE) -> 0 | T37: 1214560 | U37: =VLOOKUP($B37,'2020-21 FORMULA'!$B:$AC,'Summary for Prints'!U$2,FALSE) -> 6303.25 | V37: =SUMIF('ERS 2020-21'!B:B,'Summary for Prints'!B37,'ERS 2020-21'!T:T) -> 0 | W37: =(SUMIF('ERS 2020-21'!B:B,'Summary for Prints'!B37,'ERS 2020-21'!L:L)+SUMIF('ERS 2020-21'!B:B,'Summary for Prints'!B37,'ERS 2020-21'!M:M))*'ERS 2020-21'!$L$1 -> 0 | X37: =(SUMIF('ERS 2020-21'!B:B,'Summary for Prints'!B37,'ERS 2020-21'!O:O))*'ERS 2020-21'!$L$1 -> 0 | Y37: =SUMIF('ERS 2020-21'!B:B,'Summary for Prints'!B37,'ERS 2020-21'!U:U) -> 0 | Z37: =SUMIF('ERS 2020-21'!B:B,'Summary for Prints'!B37,'ERS 2020-21'!V:V)+SUMIF('ERS 2020-21'!B:B,'Summary for Prints'!B37,'ERS 2020-21'!W:W) -> 0 | AA37: =IFERROR(VLOOKUP(B37,'2020-21 Nursery Budget'!E:AC,25,FALSE),0) -> 125142 | AB37: 0 | AC37: 1346005.25 | AD37: =VLOOKUP($B37,'2020-21 FORMULA'!$B:$AC,'Summary for Prints'!AD$2,FALSE) -> 322 | AI37: 8312006 | AL37: 1346005.25 | AM37: 7060 | AN37: 1338945.25
A38: Lakeside Community Primary School | B38: 2022 | C38: =VLOOKUP($B38,'2020-21 FORMULA'!$B:$AC,'Summary for Prints'!C$2,FALSE) -> 1757055 | D38: =VLOOKUP($B38,'2020-21 FORMULA'!$B:$AC,'Summary for Prints'!D$2,FALSE) -> 423841.1369 | E38: =VLOOKUP($B38,'2020-21 FORMULA'!$B:$AC,'Summary for Prints'!E$2,FALSE) -> 0 | F38: =VLOOKUP($B38,'2020-21 FORMULA'!$B:$AC,'Summary for Prints'!F$2,FALSE) -> 281444.703 | G38: =VLOOKUP($B38,'2020-21 FORMULA'!$B:$AC,'Summary for Prints'!G$2,FALSE) -> 30419.29245 | H38: =VLOOKUP($B38,'2020-21 FORMULA'!$B:$AC,'Summary for Prints'!H$2,FALSE) -> 0 | I38: =VLOOKUP($B38,'2020-21 FORMULA'!$B:$AC,'Summary for Prints'!I$2,FALSE) -> 114400 | J38: =VLOOKUP($B38,'2020-21 FORMULA'!$B:$AC,'Summary for Prints'!J$2,FALSE) -> 0 | K38: =VLOOKUP($B38,'2020-21 FORMULA'!$B:$AC,'Summary for Prints'!K$2,FALSE) -> 10694 | L38: =VLOOKUP($B38,'2020-21 FORMULA'!$B:$AC,'Summary for Prints'!L$2,FALSE) -> 159772 | M38: 2777626.132 | N38: =VLOOKUP($B38,'2020-21 FORMULA'!$B:$AC,'Summary for Prints'!N$2,FALSE) -> -2482.483279 | O38: =VLOOKUP($B38,'2020-21 FORMULA'!$B:$AC,'Summary for Prints'!O$2,FALSE) -> 0 | P38: 2775143.649 | Q38: =VLOOKUP($B38,'2020-21 FORMULA'!$B:$AC,'Summary for Prints'!Q$2,FALSE) -> 0 | R38: 2775143.649 | S38: =VLOOKUP($B38,'2020-21 FORMULA'!$B:$AC,'Summary for Prints'!S$2,FALSE) -> 0 | T38: 2775143.649 | U38: =VLOOKUP($B38,'2020-21 FORMULA'!$B:$AC,'Summary for Prints'!U$2,FALSE) -> 4667.75 | V38: =SUMIF('ERS 2020-21'!B:B,'Summary for Prints'!B38,'ERS 2020-21'!T:T) -> 0 | W38: =(SUMIF('ERS 2020-21'!B:B,'Summary for Prints'!B38,'ERS 2020-21'!L:L)+SUMIF('ERS 2020-21'!B:B,'Summary for Prints'!B38,'ERS 2020-21'!M:M))*'ERS 2020-21'!$L$1 -> 0 | X38: =(SUMIF('ERS 2020-21'!B:B,'Summary for Prints'!B38,'ERS 2020-21'!O:O))*'ERS 2020-21'!$L$1 -> 0 | Y38: =SUMIF('ERS 2020-21'!B:B,'Summary for Prints'!B38,'ERS 2020-21'!U:U) -> 0 | Z38: =SUMIF('ERS 2020-21'!B:B,'Summary for Prints'!B38,'ERS 2020-21'!V:V)+SUMIF('ERS 2020-21'!B:B,'Summary for Prints'!B38,'ERS 2020-21'!W:W) -> 0 | AA38: =IFERROR(VLOOKUP(B38,'2020-21 Nursery Budget'!E:AC,25,FALSE),0) -> 212378 | AB38: 0 | AC38: 2992189.399 | AD38: =VLOOKUP($B38,'2020-21 FORMULA'!$B:$AC,'Summary for Prints'!AD$2,FALSE) -> 615 | AI38: 8312022 | AL38: 2992189.399 | AM38: 10694 | AN38: 2981495.399
A39: Lawn Primary School | B39: 2522 | C39: =VLOOKUP($B39,'2020-21 FORMULA'!$B:$AC,'Summary for Prints'!C$2,FALSE) -> 1242795 | D39: =VLOOKUP($B39,'2020-21 FORMULA'!$B:$AC,'Summary for Prints'!D$2,FALSE) -> 62073.11778 | E39: =VLOOKUP($B39,'2020-21 FORMULA'!$B:$AC,'Summary for Prints'!E$2,FALSE) -> 0 | F39: =VLOOKUP($B39,'2020-21 FORMULA'!$B:$AC,'Summary for Prints'!F$2,FALSE) -> 102808.9726 | G39: =VLOOKUP($B39,'2020-21 FORMULA'!$B:$AC,'Summary for Prints'!G$2,FALSE) -> 16050 | H39: =VLOOKUP($B39,'2020-21 FORMULA'!$B:$AC,'Summary for Prints'!H$2,FALSE) -> 2537.5 | I39: =VLOOKUP($B39,'2020-21 FORMULA'!$B:$AC,'Summary for Prints'!I$2,FALSE) -> 114400 | J39: =VLOOKUP($B39,'2020-21 FORMULA'!$B:$AC,'Summary for Prints'!J$2,FALSE) -> 0 | K39: =VLOOKUP($B39,'2020-21 FORMULA'!$B:$AC,'Summary for Prints'!K$2,FALSE) -> 5032 | L39: =VLOOKUP($B39,'2020-21 FORMULA'!$B:$AC,'Summary for Prints'!L$2,FALSE) -> 0 | M39: 1545696.59 | N39: =VLOOKUP($B39,'2020-21 FORMULA'!$B:$AC,'Summary for Prints'!N$2,FALSE) -> 0 | O39: =VLOOKUP($B39,'2020-21 FORMULA'!$B:$AC,'Summary for Prints'!O$2,FALSE) -> 0 | P39: 1545696.59 | Q39: =VLOOKUP($B39,'2020-21 FORMULA'!$B:$AC,'Summary for Prints'!Q$2,FALSE) -> 90585.40961 | R39: 1636282 | S39: =VLOOKUP($B39,'2020-21 FORMULA'!$B:$AC,'Summary for Prints'!S$2,FALSE) -> 0 | T39: 1636282 | U39: =VLOOKUP($B39,'2020-21 FORMULA'!$B:$AC,'Summary for Prints'!U$2,FALSE) -> 2747.1 | V39: =SUMIF('ERS 2020-21'!B:B,'Summary for Prints'!B39,'ERS 2020-21'!T:T) -> 0 | W39: =(SUMIF('ERS 2020-21'!B:B,'Summary for Prints'!B39,'ERS 2020-21'!L:L)+SUMIF('ERS 2020-21'!B:B,'Summary for Prints'!B39,'ERS 2020-21'!M:M))*'ERS 2020-21'!$L$1 -> 0 | X39: =(SUMIF('ERS 2020-21'!B:B,'Summary for Prints'!B39,'ERS 2020-21'!O:O))*'ERS 2020-21'!$L$1 -> 0 | Y39: =SUMIF('ERS 2020-21'!B:B,'Summary for Prints'!B39,'ERS 2020-21'!U:U) -> 0 | Z39: =SUMIF('ERS 2020-21'!B:B,'Summary for Prints'!B39,'ERS 2020-21'!V:V)+SUMIF('ERS 2020-21'!B:B,'Summary for Prints'!B39,'ERS 2020-21'!W:W) -> 0 | AA39: =IFERROR(VLOOKUP(B39,'2020-21 Nursery Budget'!E:AC,25,FALSE),0) -> 0 | AB39: 0 | AC39: 1639029.1 | AD39: =VLOOKUP($B39,'2020-21 FORMULA'!$B:$AC,'Summary for Prints'!AD$2,FALSE) -> 435 | AI39: 8312522 | AL39: 1639029.1 | AM39: 5032 | AN39: 1633997.1
A40: Markeaton Primary School | B40: 2436 | C40: =VLOOKUP($B40,'2020-21 FORMULA'!$B:$AC,'Summary for Prints'!C$2,FALSE) -> 1202797 | D40: =VLOOKUP($B40,'2020-21 FORMULA'!$B:$AC,'Summary for Prints'!D$2,FALSE) -> 141552.2277 | E40: =VLOOKUP($B40,'2020-21 FORMULA'!$B:$AC,'Summary for Prints'!E$2,FALSE) -> 0 | F40: =VLOOKUP($B40,'2020-21 FORMULA'!$B:$AC,'Summary for Prints'!F$2,FALSE) -> 108924.8305 | G40: =VLOOKUP($B40,'2020-21 FORMULA'!$B:$AC,'Summary for Prints'!G$2,FALSE) -> 11261.75 | H40: =VLOOKUP($B40,'2020-21 FORMULA'!$B:$AC,'Summary for Prints'!H$2,FALSE) -> 0 | I40: =VLOOKUP($B40,'2020-21 FORMULA'!$B:$AC,'Summary for Prints'!I$2,FALSE) -> 114400 | J40: =VLOOKUP($B40,'2020-21 FORMULA'!$B:$AC,'Summary for Prints'!J$2,FALSE) -> 0 | K40: =VLOOKUP($B40,'2020-21 FORMULA'!$B:$AC,'Summary for Prints'!K$2,FALSE) -> 26797 | L40: =VLOOKUP($B40,'2020-21 FORMULA'!$B:$AC,'Summary for Prints'!L$2,FALSE) -> 0 | M40: 1605732.808 | N40: =VLOOKUP($B40,'2020-21 FORMULA'!$B:$AC,'Summary for Prints'!N$2,FALSE) -> 0 | O40: =VLOOKUP($B40,'2020-21 FORMULA'!$B:$AC,'Summary for Prints'!O$2,FALSE) -> 0 | P40: 1605732.808 | Q40: =VLOOKUP($B40,'2020-21 FORMULA'!$B:$AC,'Summary for Prints'!Q$2,FALSE) -> 0 | R40: 1605732.808 | S40: =VLOOKUP($B40,'2020-21 FORMULA'!$B:$AC,'Summary for Prints'!S$2,FALSE) -> -29216.558 | T40: 1576516.25 | U40: =VLOOKUP($B40,'2020-21 FORMULA'!$B:$AC,'Summary for Prints'!U$2,FALSE) -> 11232.95 | V40: =SUMIF('ERS 2020-21'!B:B,'Summary for Prints'!B40,'ERS 2020-21'!T:T) -> 0 | W40: =(SUMIF('ERS 2020-21'!B:B,'Summary for Prints'!B40,'ERS 2020-21'!L:L)+SUMIF('ERS 2020-21'!B:B,'Summary for Prints'!B40,'ERS 2020-21'!M:M))*'ERS 2020-21'!$L$1 -> 24000 | X40: =(SUMIF('ERS 2020-21'!B:B,'Summary for Prints'!B40,'ERS 2020-21'!O:O))*'ERS 2020-21'!$L$1 -> 0 | Y40: =SUMIF('ERS 2020-21'!B:B,'Summary for Prints'!B40,'ERS 2020-21'!U:U) -> 68940 | Z40: =SUMIF('ERS 2020-21'!B:B,'Summary for Prints'!B40,'ERS 2020-21'!V:V)+SUMIF('ERS 2020-21'!B:B,'Summary for Prints'!B40,'ERS 2020-21'!W:W) -> 0 | AA40: =IFERROR(VLOOKUP(B40,'2020-21 Nursery Budget'!E:AC,25,FALSE),0) -> 0 | AB40: 0 | AC40: 1680689.2 | AD40: =VLOOKUP($B40,'2020-21 FORMULA'!$B:$AC,'Summary for Prints'!AD$2,FALSE) -> 421 | AI40: 8312436 | AL40: 1680689.2 | AM40: 26797 | AN40: 1653892.2
A41: Meadow Farm Community Primary School | B41: 2452 | C41: =VLOOKUP($B41,'2020-21 FORMULA'!$B:$AC,'Summary for Prints'!C$2,FALSE) -> 454263 | D41: =VLOOKUP($B41,'2020-21 FORMULA'!$B:$AC,'Summary for Prints'!D$2,FALSE) -> 76775 | E41: =VLOOKUP($B41,'2020-21 FORMULA'!$B:$AC,'Summary for Prints'!E$2,FALSE) -> 0 | F41: =VLOOKUP($B41,'2020-21 FORMULA'!$B:$AC,'Summary for Prints'!F$2,FALSE) -> 58520.18382 | G41: =VLOOKUP($B41,'2020-21 FORMULA'!$B:$AC,'Summary for Prints'!G$2,FALSE) -> 8446.170213 | H41: =VLOOKUP($B41,'2020-21 FORMULA'!$B:$AC,'Summary for Prints'!H$2,FALSE) -> 4777.5 | I41: =VLOOKUP($B41,'2020-21 FORMULA'!$B:$AC,'Summary for Prints'!I$2,FALSE) -> 114400 | J41: =VLOOKUP($B41,'2020-21 FORMULA'!$B:$AC,'Summary for Prints'!J$2,FALSE) -> 0 | K41: =VLOOKUP($B41,'2020-21 FORMULA'!$B:$AC,'Summary for Prints'!K$2,FALSE) -> 20785 | L41: =VLOOKUP($B41,'2020-21 FORMULA'!$B:$AC,'Summary for Prints'!L$2,FALSE) -> 0 | M41: 737966.854 | N41: =VLOOKUP($B41,'2020-21 FORMULA'!$B:$AC,'Summary for Prints'!N$2,FALSE) -> -1402.631113 | O41: =VLOOKUP($B41,'2020-21 FORMULA'!$B:$AC,'Summary for Prints'!O$2,FALSE) -> 0 | P41: 736564.2229 | Q41: =VLOOKUP($B41,'2020-21 FORMULA'!$B:$AC,'Summary for Prints'!Q$2,FALSE) -> 0 | R41: 736564.2229 | S41: =VLOOKUP($B41,'2020-21 FORMULA'!$B:$AC,'Summary for Prints'!S$2,FALSE) -> -11034.282 | T41: 725529.9409 | U41: =VLOOKUP($B41,'2020-21 FORMULA'!$B:$AC,'Summary for Prints'!U$2,FALSE) -> 4382.6 | V41: =SUMIF('ERS 2020-21'!B:B,'Summary for Prints'!B41,'ERS 2020-21'!T:T) -> 0 | W41: =(SUMIF('ERS 2020-21'!B:B,'Summary for Prints'!B41,'ERS 2020-21'!L:L)+SUMIF('ERS 2020-21'!B:B,'Summary for Prints'!B41,'ERS 2020-21'!M:M))*'ERS 2020-21'!$L$1 -> 0 | X41: =(SUMIF('ERS 2020-21'!B:B,'Summary for Prints'!B41,'ERS 2020-21'!O:O))*'ERS 2020-21'!$L$1 -> 0 | Y41: =SUMIF('ERS 2020-21'!B:B,'Summary for Prints'!B41,'ERS 2020-21'!U:U) -> 0 | Z41: =SUMIF('ERS 2020-21'!B:B,'Summary for Prints'!B41,'ERS 2020-21'!V:V)+SUMIF('ERS 2020-21'!B:B,'Summary for Prints'!B41,'ERS 2020-21'!W:W) -> 0 | AA41: =IFERROR(VLOOKUP(B41,'2020-21 Nursery Budget'!E:AC,25,FALSE),0) -> 68287 | AB41: 0 | AC41: 798199.5409 | AD41: =VLOOKUP($B41,'2020-21 FORMULA'!$B:$AC,'Summary for Prints'!AD$2,FALSE) -> 159 | AI41: 8312452 | AL41: 798199.5409 | AM41: 20785 | AN41: 777414.5409
A42: Mickleover Primary School | B42: 2627 | C42: =VLOOKUP($B42,'2020-21 FORMULA'!$B:$AC,'Summary for Prints'!C$2,FALSE) -> 1197083 | D42: =VLOOKUP($B42,'2020-21 FORMULA'!$B:$AC,'Summary for Prints'!D$2,FALSE) -> 51503.92344 | E42: =VLOOKUP($B42,'2020-21 FORMULA'!$B:$AC,'Summary for Prints'!E$2,FALSE) -> 0 | F42: =VLOOKUP($B42,'2020-21 FORMULA'!$B:$AC,'Summary for Prints'!F$2,FALSE) -> 115361.8892 | G42: =VLOOKUP($B42,'2020-21 FORMULA'!$B:$AC,'Summary for Prints'!G$2,FALSE) -> 21854.52646 | H42: =VLOOKUP($B42,'2020-21 FORMULA'!$B:$AC,'Summary for Prints'!H$2,FALSE) -> 0 | I42: =VLOOKUP($B42,'2020-21 FORMULA'!$B:$AC,'Summary for Prints'!I$2,FALSE) -> 114400 | J42: =VLOOKUP($B42,'2020-21 FORMULA'!$B:$AC,'Summary for Prints'!J$2,FALSE) -> 0 | K42: =VLOOKUP($B42,'2020-21 FORMULA'!$B:$AC,'Summary for Prints'!K$2,FALSE) -> 18084 | L42: =VLOOKUP($B42,'2020-21 FORMULA'!$B:$AC,'Summary for Prints'!L$2,FALSE) -> 0 | M42: 1518287.339 | N42: =VLOOKUP($B42,'2020-21 FORMULA'!$B:$AC,'Summary for Prints'!N$2,FALSE) -> 0 | O42: =VLOOKUP($B42,'2020-21 FORMULA'!$B:$AC,'Summary for Prints'!O$2,FALSE) -> 0 | P42: 1518287.339 | Q42: =VLOOKUP($B42,'2020-21 FORMULA'!$B:$AC,'Summary for Prints'!Q$2,FALSE) -> 71046.66089 | R42: 1589334 | S42: =VLOOKUP($B42,'2020-21 FORMULA'!$B:$AC,'Summary for Prints'!S$2,FALSE) -> -29077.762 | T42: 1560256.238 | U42: =VLOOKUP($B42,'2020-21 FORMULA'!$B:$AC,'Summary for Prints'!U$2,FALSE) -> 2200 | V42: =SUMIF('ERS 2020-21'!B:B,'Summary for Prints'!B42,'ERS 2020-21'!T:T) -> 0 | W42: =(SUMIF('ERS 2020-21'!B:B,'Summary for Prints'!B42,'ERS 2020-21'!L:L)+SUMIF('ERS 2020-21'!B:B,'Summary for Prints'!B42,'ERS 2020-21'!M:M))*'ERS 2020-21'!$L$1 -> 0 | X42: =(SUMIF('ERS 2020-21'!B:B,'Summary for Prints'!B42,'ERS 2020-21'!O:O))*'ERS 2020-21'!$L$1 -> 0 | Y42: =SUMIF('ERS 2020-21'!B:B,'Summary for Prints'!B42,'ERS 2020-21'!U:U) -> 0 | Z42: =SUMIF('ERS 2020-21'!B:B,'Summary for Prints'!B42,'ERS 2020-21'!V:V)+SUMIF('ERS 2020-21'!B:B,'Summary for Prints'!B42,'ERS 2020-21'!W:W) -> 0 | AA42: =IFERROR(VLOOKUP(B42,'2020-21 Nursery Budget'!E:AC,25,FALSE),0) -> 0 | AB42: 0 | AC42: 1562456.238 | AD42: =VLOOKUP($B42,'2020-21 FORMULA'!$B:$AC,'Summary for Prints'!AD$2,FALSE) -> 419 | AI42: 8312627 | AL42: 1562456.238 | AM42: 18084 | AN42: 1544372.238
A43: Landau Forte Academy Moorhead | B43: 2009 | C43: =VLOOKUP($B43,'2020-21 FORMULA'!$B:$AC,'Summary for Prints'!C$2,FALSE) -> 679966 | D43: =VLOOKUP($B43,'2020-21 FORMULA'!$B:$AC,'Summary for Prints'!D$2,FALSE) -> 182903.5485 | E43: =VLOOKUP($B43,'2020-21 FORMULA'!$B:$AC,'Summary for Prints'!E$2,FALSE) -> 0 | F43: =VLOOKUP($B43,'2020-21 FORMULA'!$B:$AC,'Summary for Prints'!F$2,FALSE) -> 96371.40625 | G43: =VLOOKUP($B43,'2020-21 FORMULA'!$B:$AC,'Summary for Prints'!G$2,FALSE) -> 16688.8835 | H43: =VLOOKUP($B43,'2020-21 FORMULA'!$B:$AC,'Summary for Prints'!H$2,FALSE) -> 5880 | I43: =VLOOKUP($B43,'2020-21 FORMULA'!$B:$AC,'Summary for Prints'!I$2,FALSE) -> 114400 | J43: =VLOOKUP($B43,'2020-21 FORMULA'!$B:$AC,'Summary for Prints'!J$2,FALSE) -> 0 | K43: =VLOOKUP($B43,'2020-21 FORMULA'!$B:$AC,'Summary for Prints'!K$2,FALSE) -> 4098 | L43: =VLOOKUP($B43,'2020-21 FORMULA'!$B:$AC,'Summary for Prints'!L$2,FALSE) -> 0 | M43: 1100307.838 | N43: =VLOOKUP($B43,'2020-21 FORMULA'!$B:$AC,'Summary for Prints'!N$2,FALSE) -> -3791.410567 | O43: =VLOOKUP($B43,'2020-21 FORMULA'!$B:$AC,'Summary for Prints'!O$2,FALSE) -> 0 | P43: 1096516.428 | Q43: =VLOOKUP($B43,'2020-21 FORMULA'!$B:$AC,'Summary for Prints'!Q$2,FALSE) -> 0 | R43: 1096516.428 | S43: =VLOOKUP($B43,'2020-21 FORMULA'!$B:$AC,'Summary for Prints'!S$2,FALSE) -> 0 | T43: 1096516.428 | U43: =VLOOKUP($B43,'2020-21 FORMULA'!$B:$AC,'Summary for Prints'!U$2,FALSE) -> 9859.4 | V43: =SUMIF('ERS 2020-21'!B:B,'Summary for Prints'!B43,'ERS 2020-21'!T:T) -> 0 | W43: =(SUMIF('ERS 2020-21'!B:B,'Summary for Prints'!B43,'ERS 2020-21'!L:L)+SUMIF('ERS 2020-21'!B:B,'Summary for Prints'!B43,'ERS 2020-21'!M:M))*'ERS 2020-21'!$L$1 -> 0 | X43: =(SUMIF('ERS 2020-21'!B:B,'Summary for Prints'!B43,'ERS 2020-21'!O:O))*'ERS 2020-21'!$L$1 -> 0 | Y43: =SUMIF('ERS 2020-21'!B:B,'Summary for Prints'!B43,'ERS 2020-21'!U:U) -> 0 | Z43: =SUMIF('ERS 2020-21'!B:B,'Summary for Prints'!B43,'ERS 2020-21'!V:V)+SUMIF('ERS 2020-21'!B:B,'Summary for Prints'!B43,'ERS 2020-21'!W:W) -> 0 | AA43: =IFERROR(VLOOKUP(B43,'2020-21 Nursery Budget'!E:AC,25,FALSE),0) -> 0 | AB43: 0 | AC43: 1106375.828 | AD43: =VLOOKUP($B43,'2020-21 FORMULA'!$B:$AC,'Summary for Prints'!AD$2,FALSE) -> 238 | AI43: 8312009 | AL43: 1106375.828 | AM43: 4098 | AN43: 1102277.828
A44: Oakwood Infant and Nursery School | B44: 2473 | C44: =VLOOKUP($B44,'2020-21 FORMULA'!$B:$AC,'Summary for Prints'!C$2,FALSE) -> 765676 | D44: =VLOOKUP($B44,'2020-21 FORMULA'!$B:$AC,'Summary for Prints'!D$2,FALSE) -> 159320 | E44: =VLOOKUP($B44,'2020-21 FORMULA'!$B:$AC,'Summary for Prints'!E$2,FALSE) -> 0 | F44: =VLOOKUP($B44,'2020-21 FORMULA'!$B:$AC,'Summary for Prints'!F$2,FALSE) -> 80627.11864 | G44: =VLOOKUP($B44,'2020-21 FORMULA'!$B:$AC,'Summary for Prints'!G$2,FALSE) -> 8055.05618 | H44: =VLOOKUP($B44,'2020-21 FORMULA'!$B:$AC,'Summary for Prints'!H$2,FALSE) -> 0 | I44: =VLOOKUP($B44,'2020-21 FORMULA'!$B:$AC,'Summary for Prints'!I$2,FALSE) -> 114400 | J44: =VLOOKUP($B44,'2020-21 FORMULA'!$B:$AC,'Summary for Prints'!J$2,FALSE) -> 0 | K44: =VLOOKUP($B44,'2020-21 FORMULA'!$B:$AC,'Summary for Prints'!K$2,FALSE) -> 23644 | L44: =VLOOKUP($B44,'2020-21 FORMULA'!$B:$AC,'Summary for Prints'!L$2,FALSE) -> 0 | M44: 1151722.175 | N44: =VLOOKUP($B44,'2020-21 FORMULA'!$B:$AC,'Summary for Prints'!N$2,FALSE) -> 0 | O44: =VLOOKUP($B44,'2020-21 FORMULA'!$B:$AC,'Summary for Prints'!O$2,FALSE) -> 0 | P44: 1151722.175 | Q44: =VLOOKUP($B44,'2020-21 FORMULA'!$B:$AC,'Summary for Prints'!Q$2,FALSE) -> 0 | R44: 1151722.175 | S44: =VLOOKUP($B44,'2020-21 FORMULA'!$B:$AC,'Summary for Prints'!S$2,FALSE) -> -18598.664 | T44: 1133123.511 | U44: =VLOOKUP($B44,'2020-21 FORMULA'!$B:$AC,'Summary for Prints'!U$2,FALSE) -> 3300 | V44: =SUMIF('ERS 2020-21'!B:B,'Summary for Prints'!B44,'ERS 2020-21'!T:T) -> 0 | W44: =(SUMIF('ERS 2020-21'!B:B,'Summary for Prints'!B44,'ERS 2020-21'!L:L)+SUMIF('ERS 2020-21'!B:B,'Summary for Prints'!B44,'ERS 2020-21'!M:M))*'ERS 2020-21'!$L$1 -> 0 | X44: =(SUMIF('ERS 2020-21'!B:B,'Summary for Prints'!B44,'ERS 2020-21'!O:O))*'ERS 2020-21'!$L$1 -> 0 | Y44: =SUMIF('ERS 2020-21'!B:B,'Summary for Prints'!B44,'ERS 2020-21'!U:U) -> 0 | Z44: =SUMIF('ERS 2020-21'!B:B,'Summary for Prints'!B44,'ERS 2020-21'!V:V)+SUMIF('ERS 2020-21'!B:B,'Summary for Prints'!B44,'ERS 2020-21'!W:W) -> 0 | AA44: =IFERROR(VLOOKUP(B44,'2020-21 Nursery Budget'!E:AC,25,FALSE),0) -> 190928 | AB44: 0 | AC44: 1327351.511 | AD44: =VLOOKUP($B44,'2020-21 FORMULA'!$B:$AC,'Summary for Prints'!AD$2,FALSE) -> 268 | AI44: 8312473 | AL44: 1327351.511 | AM44: 23644 | AN44: 1303707.511
A45: Oakwood Junior School | B45: 2471 | C45: =VLOOKUP($B45,'2020-21 FORMULA'!$B:$AC,'Summary for Prints'!C$2,FALSE) -> 997093 | D45: =VLOOKUP($B45,'2020-21 FORMULA'!$B:$AC,'Summary for Prints'!D$2,FALSE) -> 231074.3536 | E45: =VLOOKUP($B45,'2020-21 FORMULA'!$B:$AC,'Summary for Prints'!E$2,FALSE) -> 0 | F45: =VLOOKUP($B45,'2020-21 FORMULA'!$B:$AC,'Summary for Prints'!F$2,FALSE) -> 170537.8235 | G45: =VLOOKUP($B45,'2020-21 FORMULA'!$B:$AC,'Summary for Prints'!G$2,FALSE) -> 5885 | H45: =VLOOKUP($B45,'2020-21 FORMULA'!$B:$AC,'Summary for Prints'!H$2,FALSE) -> 0 | I45: =VLOOKUP($B45,'2020-21 FORMULA'!$B:$AC,'Summary for Prints'!I$2,FALSE) -> 114400 | J45: =VLOOKUP($B45,'2020-21 FORMULA'!$B:$AC,'Summary for Prints'!J$2,FALSE) -> 0 | K45: =VLOOKUP($B45,'2020-21 FORMULA'!$B:$AC,'Summary for Prints'!K$2,FALSE) -> 23644 | L45: =VLOOKUP($B45,'2020-21 FORMULA'!$B:$AC,'Summary for Prints'!L$2,FALSE) -> 0 | M45: 1542634.177 | N45: =VLOOKUP($B45,'2020-21 FORMULA'!$B:$AC,'Summary for Prints'!N$2,FALSE) -> -5903.580417 | O45: =VLOOKUP($B45,'2020-21 FORMULA'!$B:$AC,'Summary for Prints'!O$2,FALSE) -> 0 | P45: 1536730.597 | Q45: =VLOOKUP($B45,'2020-21 FORMULA'!$B:$AC,'Summary for Prints'!Q$2,FALSE) -> 0 | R45: 1536730.597 | S45: =VLOOKUP($B45,'2020-21 FORMULA'!$B:$AC,'Summary for Prints'!S$2,FALSE) -> -24219.902 | T45: 1512510.695 | U45: =VLOOKUP($B45,'2020-21 FORMULA'!$B:$AC,'Summary for Prints'!U$2,FALSE) -> 0 | V45: =SUMIF('ERS 2020-21'!B:B,'Summary for Prints'!B45,'ERS 2020-21'!T:T) -> 0 | W45: =(SUMIF('ERS 2020-21'!B:B,'Summary for Prints'!B45,'ERS 2020-21'!L:L)+SUMIF('ERS 2020-21'!B:B,'Summary for Prints'!B45,'ERS 2020-21'!M:M))*'ERS 2020-21'!$L$1 -> 0 | X45: =(SUMIF('ERS 2020-21'!B:B,'Summary for Prints'!B45,'ERS 2020-21'!O:O))*'ERS 2020-21'!$L$1 -> 0 | Y45: =SUMIF('ERS 2020-21'!B:B,'Summary for Prints'!B45,'ERS 2020-21'!U:U) -> 0 | Z45: =SUMIF('ERS 2020-21'!B:B,'Summary for Prints'!B45,'ERS 2020-21'!V:V)+SUMIF('ERS 2020-21'!B:B,'Summary for Prints'!B45,'ERS 2020-21'!W:W) -> 0 | AA45: =IFERROR(VLOOKUP(B45,'2020-21 Nursery Budget'!E:AC,25,FALSE),0) -> 0 | AB45: 0 | AC45: 1512510.695 | AD45: =VLOOKUP($B45,'2020-21 FORMULA'!$B:$AC,'Summary for Prints'!AD$2,FALSE) -> 349 | AI45: 8312471 | AL45: 1512510.695 | AM45: 23644 | AN45: 1488866.695
A46: Ashwood Spencer Academy (formerly Osmaston) | B46: 2021 | C46: =VLOOKUP($B46,'2020-21 FORMULA'!$B:$AC,'Summary for Prints'!C$2,FALSE) -> 1682773 | D46: =VLOOKUP($B46,'2020-21 FORMULA'!$B:$AC,'Summary for Prints'!D$2,FALSE) -> 590971.6412 | E46: =VLOOKUP($B46,'2020-21 FORMULA'!$B:$AC,'Summary for Prints'!E$2,FALSE) -> 0 | F46: =VLOOKUP($B46,'2020-21 FORMULA'!$B:$AC,'Summary for Prints'!F$2,FALSE) -> 261706 | G46: =VLOOKUP($B46,'2020-21 FORMULA'!$B:$AC,'Summary for Prints'!G$2,FALSE) -> 64749.65753 | H46: =VLOOKUP($B46,'2020-21 FORMULA'!$B:$AC,'Summary for Prints'!H$2,FALSE) -> 14654.88095 | I46: =VLOOKUP($B46,'2020-21 FORMULA'!$B:$AC,'Summary for Prints'!I$2,FALSE) -> 114400 | J46: =VLOOKUP($B46,'2020-21 FORMULA'!$B:$AC,'Summary for Prints'!J$2,FALSE) -> 0 | K46: =VLOOKUP($B46,'2020-21 FORMULA'!$B:$AC,'Summary for Prints'!K$2,FALSE) -> 5035 | L46: =VLOOKUP($B46,'2020-21 FORMULA'!$B:$AC,'Summary for Prints'!L$2,FALSE) -> 0 | M46: 2734290.18 | N46: =VLOOKUP($B46,'2020-21 FORMULA'!$B:$AC,'Summary for Prints'!N$2,FALSE) -> 0 | O46: =VLOOKUP($B46,'2020-21 FORMULA'!$B:$AC,'Summary for Prints'!O$2,FALSE) -> 0 | P46: 2734290.18 | Q46: =VLOOKUP($B46,'2020-21 FORMULA'!$B:$AC,'Summary for Prints'!Q$2,FALSE) -> 0 | R46: 2734290.18 | S46: =VLOOKUP($B46,'2020-21 FORMULA'!$B:$AC,'Summary for Prints'!S$2,FALSE) -> 0 | T46: 2734290.18 | U46: =VLOOKUP($B46,'2020-21 FORMULA'!$B:$AC,'Summary for Prints'!U$2,FALSE) -> 6582.6 | V46: =SUMIF('ERS 2020-21'!B:B,'Summary for Prints'!B46,'ERS 2020-21'!T:T) -> 0 | W46: =(SUMIF('ERS 2020-21'!B:B,'Summary for Prints'!B46,'ERS 2020-21'!L:L)+SUMIF('ERS 2020-21'!B:B,'Summary for Prints'!B46,'ERS 2020-21'!M:M))*'ERS 2020-21'!$L$1 -> 0 | X46: =(SUMIF('ERS 2020-21'!B:B,'Summary for Prints'!B46,'ERS 2020-21'!O:O))*'ERS 2020-21'!$L$1 -> 0 | Y46: =SUMIF('ERS 2020-21'!B:B,'Summary for Prints'!B46,'ERS 2020-21'!U:U) -> 0 | Z46: =SUMIF('ERS 2020-21'!B:B,'Summary for Prints'!B46,'ERS 2020-21'!V:V)+SUMIF('ERS 2020-21'!B:B,'Summary for Prints'!B46,'ERS 2020-21'!W:W) -> 0 | AA46: =IFERROR(VLOOKUP(B46,'2020-21 Nursery Budget'!E:AC,25,FALSE),0) -> 124612 | AB46: 0 | AC46: 2865484.78 | AD46: =VLOOKUP($B46,'2020-21 FORMULA'!$B:$AC,'Summary for Prints'!AD$2,FALSE) -> 589 | AI46: 8312021 | AL46: 2865484.78 | AM46: 5035 | AN46: 2860449.78
A47: Parkview Primary School | B47: 2003 | C47: =VLOOKUP($B47,'2020-21 FORMULA'!$B:$AC,'Summary for Prints'!C$2,FALSE) -> 605684 | D47: =VLOOKUP($B47,'2020-21 FORMULA'!$B:$AC,'Summary for Prints'!D$2,FALSE) -> 17535 | E47: =VLOOKUP($B47,'2020-21 FORMULA'!$B:$AC,'Summary for Prints'!E$2,FALSE) -> 0 | F47: =VLOOKUP($B47,'2020-21 FORMULA'!$B:$AC,'Summary for Prints'!F$2,FALSE) -> 49192.2905 | G47: =VLOOKUP($B47,'2020-21 FORMULA'!$B:$AC,'Summary for Prints'!G$2,FALSE) -> 5013.038674 | H47: =VLOOKUP($B47,'2020-21 FORMULA'!$B:$AC,'Summary for Prints'!H$2,FALSE) -> 0 | I47: =VLOOKUP($B47,'2020-21 FORMULA'!$B:$AC,'Summary for Prints'!I$2,FALSE) -> 114400 | J47: =VLOOKUP($B47,'2020-21 FORMULA'!$B:$AC,'Summary for Prints'!J$2,FALSE) -> 0 | K47: =VLOOKUP($B47,'2020-21 FORMULA'!$B:$AC,'Summary for Prints'!K$2,FALSE) -> 31950 | L47: =VLOOKUP($B47,'2020-21 FORMULA'!$B:$AC,'Summary for Prints'!L$2,FALSE) -> 0 | M47: 823774.3292 | N47: =VLOOKUP($B47,'2020-21 FORMULA'!$B:$AC,'Summary for Prints'!N$2,FALSE) -> 0 | O47: =VLOOKUP($B47,'2020-21 FORMULA'!$B:$AC,'Summary for Prints'!O$2,FALSE) -> 0 | P47: 823774.3292 | Q47: =VLOOKUP($B47,'2020-21 FORMULA'!$B:$AC,'Summary for Prints'!Q$2,FALSE) -> 3175.670823 | R47: 826950 | S47: =VLOOKUP($B47,'2020-21 FORMULA'!$B:$AC,'Summary for Prints'!S$2,FALSE) -> -14712.376 | T47: 812237.624 | U47: =VLOOKUP($B47,'2020-21 FORMULA'!$B:$AC,'Summary for Prints'!U$2,FALSE) -> 10132.95 | V47: =SUMIF('ERS 2020-21'!B:B,'Summary for Prints'!B47,'ERS 2020-21'!T:T) -> 0 | W47: =(SUMIF('ERS 2020-21'!B:B,'Summary for Prints'!B47,'ERS 2020-21'!L:L)+SUMIF('ERS 2020-21'!B:B,'Summary for Prints'!B47,'ERS 2020-21'!M:M))*'ERS 2020-21'!$L$1 -> 0 | X47: =(SUMIF('ERS 2020-21'!B:B,'Summary for Prints'!B47,'ERS 2020-21'!O:O))*'ERS 2020-21'!$L$1 -> 0 | Y47: =SUMIF('ERS 2020-21'!B:B,'Summary for Prints'!B47,'ERS 2020-21'!U:U) -> 0 | Z47: =SUMIF('ERS 2020-21'!B:B,'Summary for Prints'!B47,'ERS 2020-21'!V:V)+SUMIF('ERS 2020-21'!B:B,'Summary for Prints'!B47,'ERS 2020-21'!W:W) -> 0 | AA47: =IFERROR(VLOOKUP(B47,'2020-21 Nursery Budget'!E:AC,25,FALSE),0) -> 91517 | AB47: 0 | AC47: 913887.574 | AD47: =VLOOKUP($B47,'2020-21 FORMULA'!$B:$AC,'Summary for Prints'!AD$2,FALSE) -> 212 | AI47: 8312003 | AL47: 913887.574 | AM47: 31950 | AN47: 881937.574
A48: Pear Tree Community Junior School | B48: 2017 | C48: =VLOOKUP($B48,'2020-21 FORMULA'!$B:$AC,'Summary for Prints'!C$2,FALSE) -> 1017092 | D48: =VLOOKUP($B48,'2020-21 FORMULA'!$B:$AC,'Summary for Prints'!D$2,FALSE) -> 314602.9661 | E48: =VLOOKUP($B48,'2020-21 FORMULA'!$B:$AC,'Summary for Prints'!E$2,FALSE) -> 0 | F48: =VLOOKUP($B48,'2020-21 FORMULA'!$B:$AC,'Summary for Prints'!F$2,FALSE) -> 238841.4978 | G48: =VLOOKUP($B48,'2020-21 FORMULA'!$B:$AC,'Summary for Prints'!G$2,FALSE) -> 76505 | H48: =VLOOKUP($B48,'2020-21 FORMULA'!$B:$AC,'Summary for Prints'!H$2,FALSE) -> 15435 | I48: =VLOOKUP($B48,'2020-21 FORMULA'!$B:$AC,'Summary for Prints'!I$2,FALSE) -> 114400 | J48: =VLOOKUP($B48,'2020-21 FORMULA'!$B:$AC,'Summary for Prints'!J$2,FALSE) -> 0 | K48: =VLOOKUP($B48,'2020-21 FORMULA'!$B:$AC,'Summary for Prints'!K$2,FALSE) -> 4108 | L48: =VLOOKUP($B48,'2020-21 FORMULA'!$B:$AC,'Summary for Prints'!L$2,FALSE) -> 0 | M48: 1780984.464 | N48: =VLOOKUP($B48,'2020-21 FORMULA'!$B:$AC,'Summary for Prints'!N$2,FALSE) -> -2585.100649 | O48: =VLOOKUP($B48,'2020-21 FORMULA'!$B:$AC,'Summary for Prints'!O$2,FALSE) -> 0 | P48: 1778399.363 | Q48: =VLOOKUP($B48,'2020-21 FORMULA'!$B:$AC,'Summary for Prints'!Q$2,FALSE) -> 0 | R48: 1778399.363 | S48: =VLOOKUP($B48,'2020-21 FORMULA'!$B:$AC,'Summary for Prints'!S$2,FALSE) -> 0 | T48: 1778399.363 | U48: =VLOOKUP($B48,'2020-21 FORMULA'!$B:$AC,'Summary for Prints'!U$2,FALSE) -> 0 | V48: =SUMIF('ERS 2020-21'!B:B,'Summary for Prints'!B48,'ERS 2020-21'!T:T) -> 0 | W48: =(SUMIF('ERS 2020-21'!B:B,'Summary for Prints'!B48,'ERS 2020-21'!L:L)+SUMIF('ERS 2020-21'!B:B,'Summary for Prints'!B48,'ERS 2020-21'!M:M))*'ERS 2020-21'!$L$1 -> 0 | X48: =(SUMIF('ERS 2020-21'!B:B,'Summary for Prints'!B48,'ERS 2020-21'!O:O))*'ERS 2020-21'!$L$1 -> 0 | Y48: =SUMIF('ERS 2020-21'!B:B,'Summary for Prints'!B48,'ERS 2020-21'!U:U) -> 0 | Z48: =SUMIF('ERS 2020-21'!B:B,'Summary for Prints'!B48,'ERS 2020-21'!V:V)+SUMIF('ERS 2020-21'!B:B,'Summary for Prints'!B48,'ERS 2020-21'!W:W) -> 0 | AA48: =IFERROR(VLOOKUP(B48,'2020-21 Nursery Budget'!E:AC,25,FALSE),0) -> 0 | AB48: 0 | AC48: 1778399.363 | AD48: =VLOOKUP($B48,'2020-21 FORMULA'!$B:$AC,'Summary for Prints'!AD$2,FALSE) -> 356 | AI48: 8312423 | AL48: 1778399.363 | AM48: 4108 | AN48: 1774291.363
A49: Pear Tree Infant School | B49: 2424 | C49: =VLOOKUP($B49,'2020-21 FORMULA'!$B:$AC,'Summary for Prints'!C$2,FALSE) -> 734249 | D49: =VLOOKUP($B49,'2020-21 FORMULA'!$B:$AC,'Summary for Prints'!D$2,FALSE) -> 206372.8711 | E49: =VLOOKUP($B49,'2020-21 FORMULA'!$B:$AC,'Summary for Prints'!E$2,FALSE) -> 0 | F49: =VLOOKUP($B49,'2020-21 FORMULA'!$B:$AC,'Summary for Prints'!F$2,FALSE) -> 113578.2653 | G49: =VLOOKUP($B49,'2020-21 FORMULA'!$B:$AC,'Summary for Prints'!G$2,FALSE) -> 106853.2571 | H49: =VLOOKUP($B49,'2020-21 FORMULA'!$B:$AC,'Summary for Prints'!H$2,FALSE) -> 4954.277344 | I49: =VLOOKUP($B49,'2020-21 FORMULA'!$B:$AC,'Summary for Prints'!I$2,FALSE) -> 114400 | J49: =VLOOKUP($B49,'2020-21 FORMULA'!$B:$AC,'Summary for Prints'!J$2,FALSE) -> 0 | K49: =VLOOKUP($B49,'2020-21 FORMULA'!$B:$AC,'Summary for Prints'!K$2,FALSE) -> 15842 | L49: =VLOOKUP($B49,'2020-21 FORMULA'!$B:$AC,'Summary for Prints'!L$2,FALSE) -> 0 | M49: 1296249.671 | N49: =VLOOKUP($B49,'2020-21 FORMULA'!$B:$AC,'Summary for Prints'!N$2,FALSE) -> 0 | O49: =VLOOKUP($B49,'2020-21 FORMULA'!$B:$AC,'Summary for Prints'!O$2,FALSE) -> 0 | P49: 1296249.671 | Q49: =VLOOKUP($B49,'2020-21 FORMULA'!$B:$AC,'Summary for Prints'!Q$2,FALSE) -> 0 | R49: 1296249.671 | S49: =VLOOKUP($B49,'2020-21 FORMULA'!$B:$AC,'Summary for Prints'!S$2,FALSE) -> -17835.286 | T49: 1278414.385 | U49: =VLOOKUP($B49,'2020-21 FORMULA'!$B:$AC,'Summary for Prints'!U$2,FALSE) -> 5488.4 | V49: =SUMIF('ERS 2020-21'!B:B,'Summary for Prints'!B49,'ERS 2020-21'!T:T) -> 0 | W49: =(SUMIF('ERS 2020-21'!B:B,'Summary for Prints'!B49,'ERS 2020-21'!L:L)+SUMIF('ERS 2020-21'!B:B,'Summary for Prints'!B49,'ERS 2020-21'!M:M))*'ERS 2020-21'!$L$1 -> 0 | X49: =(SUMIF('ERS 2020-21'!B:B,'Summary for Prints'!B49,'ERS 2020-21'!O:O))*'ERS 2020-21'!$L$1 -> 0 | Y49: =SUMIF('ERS 2020-21'!B:B,'Summary for Prints'!B49,'ERS 2020-21'!U:U) -> 0 | Z49: =SUMIF('ERS 2020-21'!B:B,'Summary for Prints'!B49,'ERS 2020-21'!V:V)+SUMIF('ERS 2020-21'!B:B,'Summary for Prints'!B49,'ERS 2020-21'!W:W) -> 0 | AA49: =IFERROR(VLOOKUP(B49,'2020-21 Nursery Budget'!E:AC,25,FALSE),0) -> 0 | AB49: 0 | AC49: 1283902.785 | AD49: =VLOOKUP($B49,'2020-21 FORMULA'!$B:$AC,'Summary for Prints'!AD$2,FALSE) -> 257 | AI49: 8312424 | AL49: 1283902.785 | AM49: 15842 | AN49: 1268060.785
A50: Portway Infant School | B50: 2439 | C50: =VLOOKUP($B50,'2020-21 FORMULA'!$B:$AC,'Summary for Prints'!C$2,FALSE) -> 662824 | D50: =VLOOKUP($B50,'2020-21 FORMULA'!$B:$AC,'Summary for Prints'!D$2,FALSE) -> 33600 | E50: =VLOOKUP($B50,'2020-21 FORMULA'!$B:$AC,'Summary for Prints'!E$2,FALSE) -> 0 | F50: =VLOOKUP($B50,'2020-21 FORMULA'!$B:$AC,'Summary for Prints'!F$2,FALSE) -> 49736.88312 | G50: =VLOOKUP($B50,'2020-21 FORMULA'!$B:$AC,'Summary for Prints'!G$2,FALSE) -> 4964.8 | H50: =VLOOKUP($B50,'2020-21 FORMULA'!$B:$AC,'Summary for Prints'!H$2,FALSE) -> 0 | I50: =VLOOKUP($B50,'2020-21 FORMULA'!$B:$AC,'Summary for Prints'!I$2,FALSE) -> 114400 | J50: =VLOOKUP($B50,'2020-21 FORMULA'!$B:$AC,'Summary for Prints'!J$2,FALSE) -> 0 | K50: =VLOOKUP($B50,'2020-21 FORMULA'!$B:$AC,'Summary for Prints'!K$2,FALSE) -> 12249 | L50: =VLOOKUP($B50,'2020-21 FORMULA'!$B:$AC,'Summary for Prints'!L$2,FALSE) -> 0 | M50: 877774.6831 | N50: =VLOOKUP($B50,'2020-21 FORMULA'!$B:$AC,'Summary for Prints'!N$2,FALSE) -> 0 | O50: =VLOOKUP($B50,'2020-21 FORMULA'!$B:$AC,'Summary for Prints'!O$2,FALSE) -> 0 | P50: 877774.6831 | Q50: =VLOOKUP($B50,'2020-21 FORMULA'!$B:$AC,'Summary for Prints'!Q$2,FALSE) -> 4474.316883 | R50: 882249 | S50: =VLOOKUP($B50,'2020-21 FORMULA'!$B:$AC,'Summary for Prints'!S$2,FALSE) -> -16100.336 | T50: 866148.664 | U50: =VLOOKUP($B50,'2020-21 FORMULA'!$B:$AC,'Summary for Prints'!U$2,FALSE) -> 6582.6 | V50: =SUMIF('ERS 2020-21'!B:B,'Summary for Prints'!B50,'ERS 2020-21'!T:T) -> 0 | W50: =(SUMIF('ERS 2020-21'!B:B,'Summary for Prints'!B50,'ERS 2020-21'!L:L)+SUMIF('ERS 2020-21'!B:B,'Summary for Prints'!B50,'ERS 2020-21'!M:M))*'ERS 2020-21'!$L$1 -> 0 | X50: =(SUMIF('ERS 2020-21'!B:B,'Summary for Prints'!B50,'ERS 2020-21'!O:O))*'ERS 2020-21'!$L$1 -> 0 | Y50: =SUMIF('ERS 2020-21'!B:B,'Summary for Prints'!B50,'ERS 2020-21'!U:U) -> 0 | Z50: =SUMIF('ERS 2020-21'!B:B,'Summary for Prints'!B50,'ERS 2020-21'!V:V)+SUMIF('ERS 2020-21'!B:B,'Summary for Prints'!B50,'ERS 2020-21'!W:W) -> 0 | AA50: =IFERROR(VLOOKUP(B50,'2020-21 Nursery Budget'!E:AC,25,FALSE),0) -> 0 | AB50: 0 | AC50: 872731.264 | AD50: =VLOOKUP($B50,'2020-21 FORMULA'!$B:$AC,'Summary for Prints'!AD$2,FALSE) -> 232 | AI50: 8312439 | AL50: 872731.264 | AM50: 12249 | AN50: 860482.264
A51: Portway Junior School | B51: 2440 | C51: =VLOOKUP($B51,'2020-21 FORMULA'!$B:$AC,'Summary for Prints'!C$2,FALSE) -> 1031377 | D51: =VLOOKUP($B51,'2020-21 FORMULA'!$B:$AC,'Summary for Prints'!D$2,FALSE) -> 56027.98409 | E51: =VLOOKUP($B51,'2020-21 FORMULA'!$B:$AC,'Summary for Prints'!E$2,FALSE) -> 0 | F51: =VLOOKUP($B51,'2020-21 FORMULA'!$B:$AC,'Summary for Prints'!F$2,FALSE) -> 80418.18052 | G51: =VLOOKUP($B51,'2020-21 FORMULA'!$B:$AC,'Summary for Prints'!G$2,FALSE) -> 535 | H51: =VLOOKUP($B51,'2020-21 FORMULA'!$B:$AC,'Summary for Prints'!H$2,FALSE) -> 0 | I51: =VLOOKUP($B51,'2020-21 FORMULA'!$B:$AC,'Summary for Prints'!I$2,FALSE) -> 114400 | J51: =VLOOKUP($B51,'2020-21 FORMULA'!$B:$AC,'Summary for Prints'!J$2,FALSE) -> 0 | K51: =VLOOKUP($B51,'2020-21 FORMULA'!$B:$AC,'Summary for Prints'!K$2,FALSE) -> 7164 | L51: =VLOOKUP($B51,'2020-21 FORMULA'!$B:$AC,'Summary for Prints'!L$2,FALSE) -> 0 | M51: 1289922.165 | N51: =VLOOKUP($B51,'2020-21 FORMULA'!$B:$AC,'Summary for Prints'!N$2,FALSE) -> 0 | O51: =VLOOKUP($B51,'2020-21 FORMULA'!$B:$AC,'Summary for Prints'!O$2,FALSE) -> 0 | P51: 1289922.165 | Q51: =VLOOKUP($B51,'2020-21 FORMULA'!$B:$AC,'Summary for Prints'!Q$2,FALSE) -> 70991.83539 | R51: 1360914 | S51: =VLOOKUP($B51,'2020-21 FORMULA'!$B:$AC,'Summary for Prints'!S$2,FALSE) -> 0 | T51: 1360914 | U51: =VLOOKUP($B51,'2020-21 FORMULA'!$B:$AC,'Summary for Prints'!U$2,FALSE) -> 0 | V51: =SUMIF('ERS 2020-21'!B:B,'Summary for Prints'!B51,'ERS 2020-21'!T:T) -> 0 | W51: =(SUMIF('ERS 2020-21'!B:B,'Summary for Prints'!B51,'ERS 2020-21'!L:L)+SUMIF('ERS 2020-21'!B:B,'Summary for Prints'!B51,'ERS 2020-21'!M:M))*'ERS 2020-21'!$L$1 -> 0 | X51: =(SUMIF('ERS 2020-21'!B:B,'Summary for Prints'!B51,'ERS 2020-21'!O:O))*'ERS 2020-21'!$L$1 -> 0 | Y51: =SUMIF('ERS 2020-21'!B:B,'Summary for Prints'!B51,'ERS 2020-21'!U:U) -> 0 | Z51: =SUMIF('ERS 2020-21'!B:B,'Summary for Prints'!B51,'ERS 2020-21'!V:V)+SUMIF('ERS 2020-21'!B:B,'Summary for Prints'!B51,'ERS 2020-21'!W:W) -> 0 | AA51: =IFERROR(VLOOKUP(B51,'2020-21 Nursery Budget'!E:AC,25,FALSE),0) -> 0 | AB51: 0 | AC51: 1360914 | AD51: =VLOOKUP($B51,'2020-21 FORMULA'!$B:$AC,'Summary for Prints'!AD$2,FALSE) -> 361 | AI51: 8312440 | AL51: 1360914 | AM51: 7164 | AN51: 1353750
A52: Ravensdale Infant and Nursery School | B52: 2462 | C52: =VLOOKUP($B52,'2020-21 FORMULA'!$B:$AC,'Summary for Prints'!C$2,FALSE) -> 711393 | D52: =VLOOKUP($B52,'2020-21 FORMULA'!$B:$AC,'Summary for Prints'!D$2,FALSE) -> 80538.08468 | E52: =VLOOKUP($B52,'2020-21 FORMULA'!$B:$AC,'Summary for Prints'!E$2,FALSE) -> 0 | F52: =VLOOKUP($B52,'2020-21 FORMULA'!$B:$AC,'Summary for Prints'!F$2,FALSE) -> 74188.66071 | G52: =VLOOKUP($B52,'2020-21 FORMULA'!$B:$AC,'Summary for Prints'!G$2,FALSE) -> 19250.72254 | H52: =VLOOKUP($B52,'2020-21 FORMULA'!$B:$AC,'Summary for Prints'!H$2,FALSE) -> 0 | I52: =VLOOKUP($B52,'2020-21 FORMULA'!$B:$AC,'Summary for Prints'!I$2,FALSE) -> 114400 | J52: =VLOOKUP($B52,'2020-21 FORMULA'!$B:$AC,'Summary for Prints'!J$2,FALSE) -> 0 | K52: =VLOOKUP($B52,'2020-21 FORMULA'!$B:$AC,'Summary for Prints'!K$2,FALSE) -> 19025 | L52: =VLOOKUP($B52,'2020-21 FORMULA'!$B:$AC,'Summary for Prints'!L$2,FALSE) -> 0 | M52: 1018795.468 | N52: =VLOOKUP($B52,'2020-21 FORMULA'!$B:$AC,'Summary for Prints'!N$2,FALSE) -> 0 | O52: =VLOOKUP($B52,'2020-21 FORMULA'!$B:$AC,'Summary for Prints'!O$2,FALSE) -> 0 | P52: 1018795.468 | Q52: =VLOOKUP($B52,'2020-21 FORMULA'!$B:$AC,'Summary for Prints'!Q$2,FALSE) -> 0 | R52: 1018795.468 | S52: =VLOOKUP($B52,'2020-21 FORMULA'!$B:$AC,'Summary for Prints'!S$2,FALSE) -> -17280.102 | T52: 1001515.366 | U52: =VLOOKUP($B52,'2020-21 FORMULA'!$B:$AC,'Summary for Prints'!U$2,FALSE) -> 7129.7 | V52: =SUMIF('ERS 2020-21'!B:B,'Summary for Prints'!B52,'ERS 2020-21'!T:T) -> 0 | W52: =(SUMIF('ERS 2020-21'!B:B,'Summary for Prints'!B52,'ERS 2020-21'!L:L)+SUMIF('ERS 2020-21'!B:B,'Summary for Prints'!B52,'ERS 2020-21'!M:M))*'ERS 2020-21'!$L$1 -> 0 | X52: =(SUMIF('ERS 2020-21'!B:B,'Summary for Prints'!B52,'ERS 2020-21'!O:O))*'ERS 2020-21'!$L$1 -> 0 | Y52: =SUMIF('ERS 2020-21'!B:B,'Summary for Prints'!B52,'ERS 2020-21'!U:U) -> 0 | Z52: =SUMIF('ERS 2020-21'!B:B,'Summary for Prints'!B52,'ERS 2020-21'!V:V)+SUMIF('ERS 2020-21'!B:B,'Summary for Prints'!B52,'ERS 2020-21'!W:W) -> 0 | AA52: =IFERROR(VLOOKUP(B52,'2020-21 Nursery Budget'!E:AC,25,FALSE),0) -> 115274 | AB52: 0 | AC52: 1123919.066 | AD52: =VLOOKUP($B52,'2020-21 FORMULA'!$B:$AC,'Summary for Prints'!AD$2,FALSE) -> 249 | AI52: 8312462 | AL52: 1123919.066 | AM52: 19025 | AN52: 1104894.066
A53: Ravensdale Junior School | B53: 2463 | C53: =VLOOKUP($B53,'2020-21 FORMULA'!$B:$AC,'Summary for Prints'!C$2,FALSE) -> 985665 | D53: =VLOOKUP($B53,'2020-21 FORMULA'!$B:$AC,'Summary for Prints'!D$2,FALSE) -> 117527.6464 | E53: =VLOOKUP($B53,'2020-21 FORMULA'!$B:$AC,'Summary for Prints'!E$2,FALSE) -> 0 | F53: =VLOOKUP($B53,'2020-21 FORMULA'!$B:$AC,'Summary for Prints'!F$2,FALSE) -> 122475 | G53: =VLOOKUP($B53,'2020-21 FORMULA'!$B:$AC,'Summary for Prints'!G$2,FALSE) -> 12305 | H53: =VLOOKUP($B53,'2020-21 FORMULA'!$B:$AC,'Summary for Prints'!H$2,FALSE) -> 0 | I53: =VLOOKUP($B53,'2020-21 FORMULA'!$B:$AC,'Summary for Prints'!I$2,FALSE) -> 114400 | J53: =VLOOKUP($B53,'2020-21 FORMULA'!$B:$AC,'Summary for Prints'!J$2,FALSE) -> 0 | K53: =VLOOKUP($B53,'2020-21 FORMULA'!$B:$AC,'Summary for Prints'!K$2,FALSE) -> 4282 | L53: =VLOOKUP($B53,'2020-21 FORMULA'!$B:$AC,'Summary for Prints'!L$2,FALSE) -> 0 | M53: 1356654.646 | N53: =VLOOKUP($B53,'2020-21 FORMULA'!$B:$AC,'Summary for Prints'!N$2,FALSE) -> 0 | O53: =VLOOKUP($B53,'2020-21 FORMULA'!$B:$AC,'Summary for Prints'!O$2,FALSE) -> 0 | P53: 1356654.646 | Q53: =VLOOKUP($B53,'2020-21 FORMULA'!$B:$AC,'Summary for Prints'!Q$2,FALSE) -> 0 | R53: 1356654.646 | S53: =VLOOKUP($B53,'2020-21 FORMULA'!$B:$AC,'Summary for Prints'!S$2,FALSE) -> 0 | T53: 1356654.646 | U53: =VLOOKUP($B53,'2020-21 FORMULA'!$B:$AC,'Summary for Prints'!U$2,FALSE) -> 0 | V53: =SUMIF('ERS 2020-21'!B:B,'Summary for Prints'!B53,'ERS 2020-21'!T:T) -> 0 | W53: =(SUMIF('ERS 2020-21'!B:B,'Summary for Prints'!B53,'ERS 2020-21'!L:L)+SUMIF('ERS 2020-21'!B:B,'Summary for Prints'!B53,'ERS 2020-21'!M:M))*'ERS 2020-21'!$L$1 -> 0 | X53: =(SUMIF('ERS 2020-21'!B:B,'Summary for Prints'!B53,'ERS 2020-21'!O:O))*'ERS 2020-21'!$L$1 -> 0 | Y53: =SUMIF('ERS 2020-21'!B:B,'Summary for Prints'!B53,'ERS 2020-21'!U:U) -> 0 | Z53: =SUMIF('ERS 2020-21'!B:B,'Summary for Prints'!B53,'ERS 2020-21'!V:V)+SUMIF('ERS 2020-21'!B:B,'Summary for Prints'!B53,'ERS 2020-21'!W:W) -> 0 | AA53: =IFERROR(VLOOKUP(B53,'2020-21 Nursery Budget'!E:AC,25,FALSE),0) -> 0 | AB53: 0 | AC53: 1356654.646 | AD53: =VLOOKUP($B53,'2020-21 FORMULA'!$B:$AC,'Summary for Prints'!AD$2,FALSE) -> 345 | AI53: 8312463 | AL53: 1356654.646 | AM53: 4282 | AN53: 1352372.646
A54: Redwood Primary School | B54: 2505 | C54: =VLOOKUP($B54,'2020-21 FORMULA'!$B:$AC,'Summary for Prints'!C$2,FALSE) -> 1711343 | D54: =VLOOKUP($B54,'2020-21 FORMULA'!$B:$AC,'Summary for Prints'!D$2,FALSE) -> 332704.3297 | E54: =VLOOKUP($B54,'2020-21 FORMULA'!$B:$AC,'Summary for Prints'!E$2,FALSE) -> 0 | F54: =VLOOKUP($B54,'2020-21 FORMULA'!$B:$AC,'Summary for Prints'!F$2,FALSE) -> 277787.8884 | G54: =VLOOKUP($B54,'2020-21 FORMULA'!$B:$AC,'Summary for Prints'!G$2,FALSE) -> 77764.50098 | H54: =VLOOKUP($B54,'2020-21 FORMULA'!$B:$AC,'Summary for Prints'!H$2,FALSE) -> 17634.4398 | I54: =VLOOKUP($B54,'2020-21 FORMULA'!$B:$AC,'Summary for Prints'!I$2,FALSE) -> 114400 | J54: =VLOOKUP($B54,'2020-21 FORMULA'!$B:$AC,'Summary for Prints'!J$2,FALSE) -> 0 | K54: =VLOOKUP($B54,'2020-21 FORMULA'!$B:$AC,'Summary for Prints'!K$2,FALSE) -> 40998 | L54: =VLOOKUP($B54,'2020-21 FORMULA'!$B:$AC,'Summary for Prints'!L$2,FALSE) -> 0 | M54: 2572632.159 | N54: =VLOOKUP($B54,'2020-21 FORMULA'!$B:$AC,'Summary for Prints'!N$2,FALSE) -> -433.2137098 | O54: =VLOOKUP($B54,'2020-21 FORMULA'!$B:$AC,'Summary for Prints'!O$2,FALSE) -> 0 | P54: 2572198.945 | Q54: =VLOOKUP($B54,'2020-21 FORMULA'!$B:$AC,'Summary for Prints'!Q$2,FALSE) -> 0 | R54: 2572198.945 | S54: =VLOOKUP($B54,'2020-21 FORMULA'!$B:$AC,'Summary for Prints'!S$2,FALSE) -> -41569.402 | T54: 2530629.543 | U54: =VLOOKUP($B54,'2020-21 FORMULA'!$B:$AC,'Summary for Prints'!U$2,FALSE) -> 4120.65 | V54: =SUMIF('ERS 2020-21'!B:B,'Summary for Prints'!B54,'ERS 2020-21'!T:T) -> 0 | W54: =(SUMIF('ERS 2020-21'!B:B,'Summary for Prints'!B54,'ERS 2020-21'!L:L)+SUMIF('ERS 2020-21'!B:B,'Summary for Prints'!B54,'ERS 2020-21'!M:M))*'ERS 2020-21'!$L$1 -> 0 | X54: =(SUMIF('ERS 2020-21'!B:B,'Summary for Prints'!B54,'ERS 2020-21'!O:O))*'ERS 2020-21'!$L$1 -> 0 | Y54: =SUMIF('ERS 2020-21'!B:B,'Summary for Prints'!B54,'ERS 2020-21'!U:U) -> 0 | Z54: =SUMIF('ERS 2020-21'!B:B,'Summary for Prints'!B54,'ERS 2020-21'!V:V)+SUMIF('ERS 2020-21'!B:B,'Summary for Prints'!B54,'ERS 2020-21'!W:W) -> 0 | AA54: =IFERROR(VLOOKUP(B54,'2020-21 Nursery Budget'!E:AC,25,FALSE),0) -> 209854 | AB54: 0 | AC54: 2744604.193 | AD54: =VLOOKUP($B54,'2020-21 FORMULA'!$B:$AC,'Summary for Prints'!AD$2,FALSE) -> 599 | AI54: 8312505 | AL54: 2744604.193 | AM54: 40998 | AN54: 2703606.193
A55: Reigate Park Primary School | B55: 2020 | C55: =VLOOKUP($B55,'2020-21 FORMULA'!$B:$AC,'Summary for Prints'!C$2,FALSE) -> 1011378 | D55: =VLOOKUP($B55,'2020-21 FORMULA'!$B:$AC,'Summary for Prints'!D$2,FALSE) -> 220037.847 | E55: =VLOOKUP($B55,'2020-21 FORMULA'!$B:$AC,'Summary for Prints'!E$2,FALSE) -> 0 | F55: =VLOOKUP($B55,'2020-21 FORMULA'!$B:$AC,'Summary for Prints'!F$2,FALSE) -> 162889.338 | G55: =VLOOKUP($B55,'2020-21 FORMULA'!$B:$AC,'Summary for Prints'!G$2,FALSE) -> 21451.94175 | H55: =VLOOKUP($B55,'2020-21 FORMULA'!$B:$AC,'Summary for Prints'!H$2,FALSE) -> 12915 | I55: =VLOOKUP($B55,'2020-21 FORMULA'!$B:$AC,'Summary for Prints'!I$2,FALSE) -> 114400 | J55: =VLOOKUP($B55,'2020-21 FORMULA'!$B:$AC,'Summary for Prints'!J$2,FALSE) -> 0 | K55: =VLOOKUP($B55,'2020-21 FORMULA'!$B:$AC,'Summary for Prints'!K$2,FALSE) -> 5214 | L55: =VLOOKUP($B55,'2020-21 FORMULA'!$B:$AC,'Summary for Prints'!L$2,FALSE) -> 0 | M55: 1548286.127 | N55: =VLOOKUP($B55,'2020-21 FORMULA'!$B:$AC,'Summary for Prints'!N$2,FALSE) -> -7850.085764 | O55: =VLOOKUP($B55,'2020-21 FORMULA'!$B:$AC,'Summary for Prints'!O$2,FALSE) -> 0 | P55: 1540436.041 | Q55: =VLOOKUP($B55,'2020-21 FORMULA'!$B:$AC,'Summary for Prints'!Q$2,FALSE) -> 0 | R55: 1540436.041 | S55: =VLOOKUP($B55,'2020-21 FORMULA'!$B:$AC,'Summary for Prints'!S$2,FALSE) -> 0 | T55: 1540436.041 | U55: =VLOOKUP($B55,'2020-21 FORMULA'!$B:$AC,'Summary for Prints'!U$2,FALSE) -> 6303.25 | V55: 0 | W55: =(SUMIF('ERS 2020-21'!B:B,'Summary for Prints'!B55,'ERS 2020-21'!L:L)+SUMIF('ERS 2020-21'!B:B,'Summary for Prints'!B55,'ERS 2020-21'!M:M))*'ERS 2020-21'!$L$1 -> 133000 | X55: =(SUMIF('ERS 2020-21'!B:B,'Summary for Prints'!B55,'ERS 2020-21'!O:O))*'ERS 2020-21'!$L$1 -> 0 | Y55: =SUMIF('ERS 2020-21'!B:B,'Summary for Prints'!B55,'ERS 2020-21'!U:U) -> 66000 | Z55: =SUMIF('ERS 2020-21'!B:B,'Summary for Prints'!B55,'ERS 2020-21'!V:V)+SUMIF('ERS 2020-21'!B:B,'Summary for Prints'!B55,'ERS 2020-21'!W:W) -> 0 | AA55: =IFERROR(VLOOKUP(B55,'2020-21 Nursery Budget'!E:AC,25,FALSE),0) -> 76687 | AB55: 0 | AC55: 1822426.291 | AD55: =VLOOKUP($B55,'2020-21 FORMULA'!$B:$AC,'Summary for Prints'!AD$2,FALSE) -> 354 | AI55: 8312000 | AL55: 1822426.291 | AM55: 5214 | AN55: 1817212.291
A56: Ridgeway Infant School | B56: 2458 | C56: =VLOOKUP($B56,'2020-21 FORMULA'!$B:$AC,'Summary for Prints'!C$2,FALSE) -> 771390 | D56: =VLOOKUP($B56,'2020-21 FORMULA'!$B:$AC,'Summary for Prints'!D$2,FALSE) -> 84116.06742 | E56: =VLOOKUP($B56,'2020-21 FORMULA'!$B:$AC,'Summary for Prints'!E$2,FALSE) -> 0 | F56: =VLOOKUP($B56,'2020-21 FORMULA'!$B:$AC,'Summary for Prints'!F$2,FALSE) -> 76355.08475 | G56: =VLOOKUP($B56,'2020-21 FORMULA'!$B:$AC,'Summary for Prints'!G$2,FALSE) -> 68212.5 | H56: =VLOOKUP($B56,'2020-21 FORMULA'!$B:$AC,'Summary for Prints'!H$2,FALSE) -> 0 | I56: =VLOOKUP($B56,'2020-21 FORMULA'!$B:$AC,'Summary for Prints'!I$2,FALSE) -> 114400 | J56: =VLOOKUP($B56,'2020-21 FORMULA'!$B:$AC,'Summary for Prints'!J$2,FALSE) -> 0 | K56: =VLOOKUP($B56,'2020-21 FORMULA'!$B:$AC,'Summary for Prints'!K$2,FALSE) -> 14531 | L56: =VLOOKUP($B56,'2020-21 FORMULA'!$B:$AC,'Summary for Prints'!L$2,FALSE) -> 0 | M56: 1129004.652 | N56: =VLOOKUP($B56,'2020-21 FORMULA'!$B:$AC,'Summary for Prints'!N$2,FALSE) -> -675.2183854 | O56: =VLOOKUP($B56,'2020-21 FORMULA'!$B:$AC,'Summary for Prints'!O$2,FALSE) -> 0 | P56: 1128329.434 | Q56: =VLOOKUP($B56,'2020-21 FORMULA'!$B:$AC,'Summary for Prints'!Q$2,FALSE) -> 0 | R56: 1128329.434 | S56: =VLOOKUP($B56,'2020-21 FORMULA'!$B:$AC,'Summary for Prints'!S$2,FALSE) -> -18737.46 | T56: 1109591.974 | U56: =VLOOKUP($B56,'2020-21 FORMULA'!$B:$AC,'Summary for Prints'!U$2,FALSE) -> 3300 | V56: =SUMIF('ERS 2020-21'!B:B,'Summary for Prints'!B56,'ERS 2020-21'!T:T) -> 0 | W56: =(SUMIF('ERS 2020-21'!B:B,'Summary for Prints'!B56,'ERS 2020-21'!L:L)+SUMIF('ERS 2020-21'!B:B,'Summary for Prints'!B56,'ERS 2020-21'!M:M))*'ERS 2020-21'!$L$1 -> 0 | X56: =(SUMIF('ERS 2020-21'!B:B,'Summary for Prints'!B56,'ERS 2020-21'!O:O))*'ERS 2020-21'!$L$1 -> 0 | Y56: =SUMIF('ERS 2020-21'!B:B,'Summary for Prints'!B56,'ERS 2020-21'!U:U) -> 0 | Z56: =SUMIF('ERS 2020-21'!B:B,'Summary for Prints'!B56,'ERS 2020-21'!V:V)+SUMIF('ERS 2020-21'!B:B,'Summary for Prints'!B56,'ERS 2020-21'!W:W) -> 0 | AA56: =IFERROR(VLOOKUP(B56,'2020-21 Nursery Budget'!E:AC,25,FALSE),0) -> 0 | AB56: 0 | AC56: 1112891.974 | AD56: =VLOOKUP($B56,'2020-21 FORMULA'!$B:$AC,'Summary for Prints'!AD$2,FALSE) -> 270 | AI56: 8312458 | AL56: 1112891.974 | AM56: 14531 | AN56: 1098360.974
A57: Roe Farm Primary School | B57: 2001 | C57: =VLOOKUP($B57,'2020-21 FORMULA'!$B:$AC,'Summary for Prints'!C$2,FALSE) -> 1114230 | D57: =VLOOKUP($B57,'2020-21 FORMULA'!$B:$AC,'Summary for Prints'!D$2,FALSE) -> 256190.1351 | E57: =VLOOKUP($B57,'2020-21 FORMULA'!$B:$AC,'Summary for Prints'!E$2,FALSE) -> 0 | F57: =VLOOKUP($B57,'2020-21 FORMULA'!$B:$AC,'Summary for Prints'!F$2,FALSE) -> 175534.8214 | G57: =VLOOKUP($B57,'2020-21 FORMULA'!$B:$AC,'Summary for Prints'!G$2,FALSE) -> 9790.029326 | H57: =VLOOKUP($B57,'2020-21 FORMULA'!$B:$AC,'Summary for Prints'!H$2,FALSE) -> 3150 | I57: =VLOOKUP($B57,'2020-21 FORMULA'!$B:$AC,'Summary for Prints'!I$2,FALSE) -> 114400 | J57: =VLOOKUP($B57,'2020-21 FORMULA'!$B:$AC,'Summary for Prints'!J$2,FALSE) -> 0 | K57: =VLOOKUP($B57,'2020-21 FORMULA'!$B:$AC,'Summary for Prints'!K$2,FALSE) -> 25488 | L57: =VLOOKUP($B57,'2020-21 FORMULA'!$B:$AC,'Summary for Prints'!L$2,FALSE) -> 0 | M57: 1698782.986 | N57: =VLOOKUP($B57,'2020-21 FORMULA'!$B:$AC,'Summary for Prints'!N$2,FALSE) -> 0 | O57: =VLOOKUP($B57,'2020-21 FORMULA'!$B:$AC,'Summary for Prints'!O$2,FALSE) -> 0 | P57: 1698782.986 | Q57: =VLOOKUP($B57,'2020-21 FORMULA'!$B:$AC,'Summary for Prints'!Q$2,FALSE) -> 0 | R57: 1698782.986 | S57: =VLOOKUP($B57,'2020-21 FORMULA'!$B:$AC,'Summary for Prints'!S$2,FALSE) -> -27065.22 | T57: 1671717.766 | U57: =VLOOKUP($B57,'2020-21 FORMULA'!$B:$AC,'Summary for Prints'!U$2,FALSE) -> 5209.05 | V57: =SUMIF('ERS 2020-21'!B:B,'Summary for Prints'!B57,'ERS 2020-21'!T:T) -> 0 | W57: =(SUMIF('ERS 2020-21'!B:B,'Summary for Prints'!B57,'ERS 2020-21'!L:L)+SUMIF('ERS 2020-21'!B:B,'Summary for Prints'!B57,'ERS 2020-21'!M:M))*'ERS 2020-21'!$L$1 -> 0 | X57: =(SUMIF('ERS 2020-21'!B:B,'Summary for Prints'!B57,'ERS 2020-21'!O:O))*'ERS 2020-21'!$L$1 -> 0 | Y57: =SUMIF('ERS 2020-21'!B:B,'Summary for Prints'!B57,'ERS 2020-21'!U:U) -> 0 | Z57: =SUMIF('ERS 2020-21'!B:B,'Summary for Prints'!B57,'ERS 2020-21'!V:V)+SUMIF('ERS 2020-21'!B:B,'Summary for Prints'!B57,'ERS 2020-21'!W:W) -> 0 | AA57: =IFERROR(VLOOKUP(B57,'2020-21 Nursery Budget'!E:AC,25,FALSE),0) -> 156629 | AB57: 0 | AC57: 1833555.816 | AD57: =VLOOKUP($B57,'2020-21 FORMULA'!$B:$AC,'Summary for Prints'!AD$2,FALSE) -> 390 | AI57: 8312001 | AL57: 1833555.816 | AM57: 25488 | AN57: 1808067.816
A58: Rosehill Infant and Nursery School | B58: 2429 | C58: =VLOOKUP($B58,'2020-21 FORMULA'!$B:$AC,'Summary for Prints'!C$2,FALSE) -> 411408 | D58: =VLOOKUP($B58,'2020-21 FORMULA'!$B:$AC,'Summary for Prints'!D$2,FALSE) -> 82529.10874 | E58: =VLOOKUP($B58,'2020-21 FORMULA'!$B:$AC,'Summary for Prints'!E$2,FALSE) -> 0 | F58: =VLOOKUP($B58,'2020-21 FORMULA'!$B:$AC,'Summary for Prints'!F$2,FALSE) -> 57716.12903 | G58: =VLOOKUP($B58,'2020-21 FORMULA'!$B:$AC,'Summary for Prints'!G$2,FALSE) -> 66923.63636 | H58: =VLOOKUP($B58,'2020-21 FORMULA'!$B:$AC,'Summary for Prints'!H$2,FALSE) -> 0 | I58: =VLOOKUP($B58,'2020-21 FORMULA'!$B:$AC,'Summary for Prints'!I$2,FALSE) -> 114400 | J58: =VLOOKUP($B58,'2020-21 FORMULA'!$B:$AC,'Summary for Prints'!J$2,FALSE) -> 0 | K58: =VLOOKUP($B58,'2020-21 FORMULA'!$B:$AC,'Summary for Prints'!K$2,FALSE) -> 11825 | L58: =VLOOKUP($B58,'2020-21 FORMULA'!$B:$AC,'Summary for Prints'!L$2,FALSE) -> 0 | M58: 744801.8741 | N58: =VLOOKUP($B58,'2020-21 FORMULA'!$B:$AC,'Summary for Prints'!N$2,FALSE) -> 0 | O58: =VLOOKUP($B58,'2020-21 FORMULA'!$B:$AC,'Summary for Prints'!O$2,FALSE) -> 0 | P58: 744801.8741 | Q58: =VLOOKUP($B58,'2020-21 FORMULA'!$B:$AC,'Summary for Prints'!Q$2,FALSE) -> 0 | R58: 744801.8741 | S58: =VLOOKUP($B58,'2020-21 FORMULA'!$B:$AC,'Summary for Prints'!S$2,FALSE) -> -9993.312 | T58: 734808.5621 | U58: =VLOOKUP($B58,'2020-21 FORMULA'!$B:$AC,'Summary for Prints'!U$2,FALSE) -> 6303.25 | V58: =SUMIF('ERS 2020-21'!B:B,'Summary for Prints'!B58,'ERS 2020-21'!T:T) -> 0 | W58: =(SUMIF('ERS 2020-21'!B:B,'Summary for Prints'!B58,'ERS 2020-21'!L:L)+SUMIF('ERS 2020-21'!B:B,'Summary for Prints'!B58,'ERS 2020-21'!M:M))*'ERS 2020-21'!$L$1 -> 0 | X58: =(SUMIF('ERS 2020-21'!B:B,'Summary for Prints'!B58,'ERS 2020-21'!O:O))*'ERS 2020-21'!$L$1 -> 0 | Y58: =SUMIF('ERS 2020-21'!B:B,'Summary for Prints'!B58,'ERS 2020-21'!U:U) -> 0 | Z58: =SUMIF('ERS 2020-21'!B:B,'Summary for Prints'!B58,'ERS 2020-21'!V:V)+SUMIF('ERS 2020-21'!B:B,'Summary for Prints'!B58,'ERS 2020-21'!W:W) -> 0 | AA58: =IFERROR(VLOOKUP(B58,'2020-21 Nursery Budget'!E:AC,25,FALSE),0) -> 112901 | AB58: 0 | AC58: 854012.8121 | AD58: =VLOOKUP($B58,'2020-21 FORMULA'!$B:$AC,'Summary for Prints'!AD$2,FALSE) -> 144 | AI58: 8312429 | AL58: 854012.8121 | AM58: 11825 | AN58: 842187.8121
A59: Shelton Infant School | B59: 2444 | C59: =VLOOKUP($B59,'2020-21 FORMULA'!$B:$AC,'Summary for Prints'!C$2,FALSE) -> 577114 | D59: =VLOOKUP($B59,'2020-21 FORMULA'!$B:$AC,'Summary for Prints'!D$2,FALSE) -> 95572.81553 | E59: =VLOOKUP($B59,'2020-21 FORMULA'!$B:$AC,'Summary for Prints'!E$2,FALSE) -> 0 | F59: =VLOOKUP($B59,'2020-21 FORMULA'!$B:$AC,'Summary for Prints'!F$2,FALSE) -> 59401.56716 | G59: =VLOOKUP($B59,'2020-21 FORMULA'!$B:$AC,'Summary for Prints'!G$2,FALSE) -> 20509.63504 | H59: =VLOOKUP($B59,'2020-21 FORMULA'!$B:$AC,'Summary for Prints'!H$2,FALSE) -> 0 | I59: =VLOOKUP($B59,'2020-21 FORMULA'!$B:$AC,'Summary for Prints'!I$2,FALSE) -> 114400 | J59: =VLOOKUP($B59,'2020-21 FORMULA'!$B:$AC,'Summary for Prints'!J$2,FALSE) -> 0 | K59: =VLOOKUP($B59,'2020-21 FORMULA'!$B:$AC,'Summary for Prints'!K$2,FALSE) -> 12558 | L59: =VLOOKUP($B59,'2020-21 FORMULA'!$B:$AC,'Summary for Prints'!L$2,FALSE) -> 0 | M59: 879556.0177 | N59: =VLOOKUP($B59,'2020-21 FORMULA'!$B:$AC,'Summary for Prints'!N$2,FALSE) -> 0 | O59: =VLOOKUP($B59,'2020-21 FORMULA'!$B:$AC,'Summary for Prints'!O$2,FALSE) -> 0 | P59: 879556.0177 | Q59: =VLOOKUP($B59,'2020-21 FORMULA'!$B:$AC,'Summary for Prints'!Q$2,FALSE) -> 0 | R59: 879556.0177 | S59: =VLOOKUP($B59,'2020-21 FORMULA'!$B:$AC,'Summary for Prints'!S$2,FALSE) -> -14018.396 | T59: 865537.6217 | U59: =VLOOKUP($B59,'2020-21 FORMULA'!$B:$AC,'Summary for Prints'!U$2,FALSE) -> 10138.75 | V59: =SUMIF('ERS 2020-21'!B:B,'Summary for Prints'!B59,'ERS 2020-21'!T:T) -> 0 | W59: =(SUMIF('ERS 2020-21'!B:B,'Summary for Prints'!B59,'ERS 2020-21'!L:L)+SUMIF('ERS 2020-21'!B:B,'Summary for Prints'!B59,'ERS 2020-21'!M:M))*'ERS 2020-21'!$L$1 -> 0 | X59: =(SUMIF('ERS 2020-21'!B:B,'Summary for Prints'!B59,'ERS 2020-21'!O:O))*'ERS 2020-21'!$L$1 -> 0 | Y59: =SUMIF('ERS 2020-21'!B:B,'Summary for Prints'!B59,'ERS 2020-21'!U:U) -> 0 | Z59: =SUMIF('ERS 2020-21'!B:B,'Summary for Prints'!B59,'ERS 2020-21'!V:V)+SUMIF('ERS 2020-21'!B:B,'Summary for Prints'!B59,'ERS 2020-21'!W:W) -> 0 | AA59: =IFERROR(VLOOKUP(B59,'2020-21 Nursery Budget'!E:AC,25,FALSE),0) -> 139637 | AB59: 0 | AC59: 1015313.372 | AD59: =VLOOKUP($B59,'2020-21 FORMULA'!$B:$AC,'Summary for Prints'!AD$2,FALSE) -> 202 | AI59: 8312444 | AL59: 1015313.372 | AM59: 12558 | AN59: 1002755.372
A60: Shelton Junior School | B60: 5209 | C60: =VLOOKUP($B60,'2020-21 FORMULA'!$B:$AC,'Summary for Prints'!C$2,FALSE) -> 797103 | D60: =VLOOKUP($B60,'2020-21 FORMULA'!$B:$AC,'Summary for Prints'!D$2,FALSE) -> 161762.1863 | E60: =VLOOKUP($B60,'2020-21 FORMULA'!$B:$AC,'Summary for Prints'!E$2,FALSE) -> 0 | F60: =VLOOKUP($B60,'2020-21 FORMULA'!$B:$AC,'Summary for Prints'!F$2,FALSE) -> 108568.5577 | G60: =VLOOKUP($B60,'2020-21 FORMULA'!$B:$AC,'Summary for Prints'!G$2,FALSE) -> 11235 | H60: =VLOOKUP($B60,'2020-21 FORMULA'!$B:$AC,'Summary for Prints'!H$2,FALSE) -> 3727.5 | I60: =VLOOKUP($B60,'2020-21 FORMULA'!$B:$AC,'Summary for Prints'!I$2,FALSE) -> 114400 | J60: =VLOOKUP($B60,'2020-21 FORMULA'!$B:$AC,'Summary for Prints'!J$2,FALSE) -> 0 | K60: =VLOOKUP($B60,'2020-21 FORMULA'!$B:$AC,'Summary for Prints'!K$2,FALSE) -> 4748 | L60: =VLOOKUP($B60,'2020-21 FORMULA'!$B:$AC,'Summary for Prints'!L$2,FALSE) -> 0 | M60: 1201544.244 | N60: =VLOOKUP($B60,'2020-21 FORMULA'!$B:$AC,'Summary for Prints'!N$2,FALSE) -> 0 | O60: =VLOOKUP($B60,'2020-21 FORMULA'!$B:$AC,'Summary for Prints'!O$2,FALSE) -> 0 | P60: 1201544.244 | Q60: =VLOOKUP($B60,'2020-21 FORMULA'!$B:$AC,'Summary for Prints'!Q$2,FALSE) -> 0 | R60: 1201544.244 | S60: =VLOOKUP($B60,'2020-21 FORMULA'!$B:$AC,'Summary for Prints'!S$2,FALSE) -> -19362.042 | T60: 1182182.202 | U60: =VLOOKUP($B60,'2020-21 FORMULA'!$B:$AC,'Summary for Prints'!U$2,FALSE) -> 0 | V60: =SUMIF('ERS 2020-21'!B:B,'Summary for Prints'!B60,'ERS 2020-21'!T:T) -> 0 | W60: =(SUMIF('ERS 2020-21'!B:B,'Summary for Prints'!B60,'ERS 2020-21'!L:L)+SUMIF('ERS 2020-21'!B:B,'Summary for Prints'!B60,'ERS 2020-21'!M:M))*'ERS 2020-21'!$L$1 -> 0 | X60: =(SUMIF('ERS 2020-21'!B:B,'Summary for Prints'!B60,'ERS 2020-21'!O:O))*'ERS 2020-21'!$L$1 -> 0 | Y60: =SUMIF('ERS 2020-21'!B:B,'Summary for Prints'!B60,'ERS 2020-21'!U:U) -> 0 | Z60: =SUMIF('ERS 2020-21'!B:B,'Summary for Prints'!B60,'ERS 2020-21'!V:V)+SUMIF('ERS 2020-21'!B:B,'Summary for Prints'!B60,'ERS 2020-21'!W:W) -> 0 | AA60: =IFERROR(VLOOKUP(B60,'2020-21 Nursery Budget'!E:AC,25,FALSE),0) -> 0 | AB60: 0 | AC60: 1182182.202 | AD60: =VLOOKUP($B60,'2020-21 FORMULA'!$B:$AC,'Summary for Prints'!AD$2,FALSE) -> 279 | AI60: 8315209 | AL60: 1182182.202 | AM60: 4748 | AN60: 1177434.202
A61: Silverhill Primary School | B61: 2469 | C61: =VLOOKUP($B61,'2020-21 FORMULA'!$B:$AC,'Summary for Prints'!C$2,FALSE) -> 1199940 | D61: =VLOOKUP($B61,'2020-21 FORMULA'!$B:$AC,'Summary for Prints'!D$2,FALSE) -> 39384.13876 | E61: =VLOOKUP($B61,'2020-21 FORMULA'!$B:$AC,'Summary for Prints'!E$2,FALSE) -> 0 | F61: =VLOOKUP($B61,'2020-21 FORMULA'!$B:$AC,'Summary for Prints'!F$2,FALSE) -> 97020 | G61: =VLOOKUP($B61,'2020-21 FORMULA'!$B:$AC,'Summary for Prints'!G$2,FALSE) -> 8114.166667 | H61: =VLOOKUP($B61,'2020-21 FORMULA'!$B:$AC,'Summary for Prints'!H$2,FALSE) -> 0 | I61: =VLOOKUP($B61,'2020-21 FORMULA'!$B:$AC,'Summary for Prints'!I$2,FALSE) -> 114400 | J61: =VLOOKUP($B61,'2020-21 FORMULA'!$B:$AC,'Summary for Prints'!J$2,FALSE) -> 0 | K61: =VLOOKUP($B61,'2020-21 FORMULA'!$B:$AC,'Summary for Prints'!K$2,FALSE) -> 21025 | L61: =VLOOKUP($B61,'2020-21 FORMULA'!$B:$AC,'Summary for Prints'!L$2,FALSE) -> 0 | M61: 1479883.305 | N61: =VLOOKUP($B61,'2020-21 FORMULA'!$B:$AC,'Summary for Prints'!N$2,FALSE) -> 0 | O61: =VLOOKUP($B61,'2020-21 FORMULA'!$B:$AC,'Summary for Prints'!O$2,FALSE) -> 0 | P61: 1479883.305 | Q61: =VLOOKUP($B61,'2020-21 FORMULA'!$B:$AC,'Summary for Prints'!Q$2,FALSE) -> 116141.6946 | R61: 1596025 | S61: =VLOOKUP($B61,'2020-21 FORMULA'!$B:$AC,'Summary for Prints'!S$2,FALSE) -> -29147.16 | T61: 1566877.84 | U61: =VLOOKUP($B61,'2020-21 FORMULA'!$B:$AC,'Summary for Prints'!U$2,FALSE) -> 2200 | V61: =SUMIF('ERS 2020-21'!B:B,'Summary for Prints'!B61,'ERS 2020-21'!T:T) -> 0 | W61: =(SUMIF('ERS 2020-21'!B:B,'Summary for Prints'!B61,'ERS 2020-21'!L:L)+SUMIF('ERS 2020-21'!B:B,'Summary for Prints'!B61,'ERS 2020-21'!M:M))*'ERS 2020-21'!$L$1 -> 0 | X61: =(SUMIF('ERS 2020-21'!B:B,'Summary for Prints'!B61,'ERS 2020-21'!O:O))*'ERS 2020-21'!$L$1 -> 0 | Y61: =SUMIF('ERS 2020-21'!B:B,'Summary for Prints'!B61,'ERS 2020-21'!U:U) -> 0 | Z61: =SUMIF('ERS 2020-21'!B:B,'Summary for Prints'!B61,'ERS 2020-21'!V:V)+SUMIF('ERS 2020-21'!B:B,'Summary for Prints'!B61,'ERS 2020-21'!W:W) -> 0 | AA61: =IFERROR(VLOOKUP(B61,'2020-21 Nursery Budget'!E:AC,25,FALSE),0) -> 0 | AB61: 0 | AC61: 1569077.84 | AD61: =VLOOKUP($B61,'2020-21 FORMULA'!$B:$AC,'Summary for Prints'!AD$2,FALSE) -> 420 | AI61: 8312469 | AL61: 1569077.84 | AM61: 21025 | AN61: 1548052.84
A62: Springfield Primary School | B62: 2466 | C62: =VLOOKUP($B62,'2020-21 FORMULA'!$B:$AC,'Summary for Prints'!C$2,FALSE) -> 911383 | D62: =VLOOKUP($B62,'2020-21 FORMULA'!$B:$AC,'Summary for Prints'!D$2,FALSE) -> 109201.7333 | E62: =VLOOKUP($B62,'2020-21 FORMULA'!$B:$AC,'Summary for Prints'!E$2,FALSE) -> 0 | F62: =VLOOKUP($B62,'2020-21 FORMULA'!$B:$AC,'Summary for Prints'!F$2,FALSE) -> 115381.6981 | G62: =VLOOKUP($B62,'2020-21 FORMULA'!$B:$AC,'Summary for Prints'!G$2,FALSE) -> 3778.560886 | H62: =VLOOKUP($B62,'2020-21 FORMULA'!$B:$AC,'Summary for Prints'!H$2,FALSE) -> 2502.5 | I62: =VLOOKUP($B62,'2020-21 FORMULA'!$B:$AC,'Summary for Prints'!I$2,FALSE) -> 114400 | J62: =VLOOKUP($B62,'2020-21 FORMULA'!$B:$AC,'Summary for Prints'!J$2,FALSE) -> 0 | K62: =VLOOKUP($B62,'2020-21 FORMULA'!$B:$AC,'Summary for Prints'!K$2,FALSE) -> 3414 | L62: =VLOOKUP($B62,'2020-21 FORMULA'!$B:$AC,'Summary for Prints'!L$2,FALSE) -> 0 | M62: 1260061.492 | N62: =VLOOKUP($B62,'2020-21 FORMULA'!$B:$AC,'Summary for Prints'!N$2,FALSE) -> -1792.421978 | O62: =VLOOKUP($B62,'2020-21 FORMULA'!$B:$AC,'Summary for Prints'!O$2,FALSE) -> 0 | P62: 1258269.07 | Q62: =VLOOKUP($B62,'2020-21 FORMULA'!$B:$AC,'Summary for Prints'!Q$2,FALSE) -> 0 | R62: 1258269.07 | S62: =VLOOKUP($B62,'2020-21 FORMULA'!$B:$AC,'Summary for Prints'!S$2,FALSE) -> 0 | T62: 1258269.07 | U62: =VLOOKUP($B62,'2020-21 FORMULA'!$B:$AC,'Summary for Prints'!U$2,FALSE) -> 5482.6 | V62: =SUMIF('ERS 2020-21'!B:B,'Summary for Prints'!B62,'ERS 2020-21'!T:T) -> 0 | W62: =(SUMIF('ERS 2020-21'!B:B,'Summary for Prints'!B62,'ERS 2020-21'!L:L)+SUMIF('ERS 2020-21'!B:B,'Summary for Prints'!B62,'ERS 2020-21'!M:M))*'ERS 2020-21'!$L$1 -> 180000 | X62: =(SUMIF('ERS 2020-21'!B:B,'Summary for Prints'!B62,'ERS 2020-21'!O:O))*'ERS 2020-21'!$L$1 -> 0 | Y62: =SUMIF('ERS 2020-21'!B:B,'Summary for Prints'!B62,'ERS 2020-21'!U:U) -> 240000 | Z62: =SUMIF('ERS 2020-21'!B:B,'Summary for Prints'!B62,'ERS 2020-21'!V:V)+SUMIF('ERS 2020-21'!B:B,'Summary for Prints'!B62,'ERS 2020-21'!W:W) -> 0 | AA62: =IFERROR(VLOOKUP(B62,'2020-21 Nursery Budget'!E:AC,25,FALSE),0) -> 0 | AB62: 0 | AC62: 1683751.67 | AD62: =VLOOKUP($B62,'2020-21 FORMULA'!$B:$AC,'Summary for Prints'!AD$2,FALSE) -> 319 | AI62: 8312466 | AL62: 1683751.67 | AM62: 3414 | AN62: 1680337.67
A63: St Alban's Catholic Primary School | B63: 3543 | C63: =VLOOKUP($B63,'2020-21 FORMULA'!$B:$AC,'Summary for Prints'!C$2,FALSE) -> 899955 | D63: =VLOOKUP($B63,'2020-21 FORMULA'!$B:$AC,'Summary for Prints'!D$2,FALSE) -> 98696.91318 | E63: =VLOOKUP($B63,'2020-21 FORMULA'!$B:$AC,'Summary for Prints'!E$2,FALSE) -> 0 | F63: =VLOOKUP($B63,'2020-21 FORMULA'!$B:$AC,'Summary for Prints'!F$2,FALSE) -> 97846.875 | G63: =VLOOKUP($B63,'2020-21 FORMULA'!$B:$AC,'Summary for Prints'!G$2,FALSE) -> 21460.11236 | H63: =VLOOKUP($B63,'2020-21 FORMULA'!$B:$AC,'Summary for Prints'!H$2,FALSE) -> 0 | I63: =VLOOKUP($B63,'2020-21 FORMULA'!$B:$AC,'Summary for Prints'!I$2,FALSE) -> 114400 | J63: =VLOOKUP($B63,'2020-21 FORMULA'!$B:$AC,'Summary for Prints'!J$2,FALSE) -> 0 | K63: =VLOOKUP($B63,'2020-21 FORMULA'!$B:$AC,'Summary for Prints'!K$2,FALSE) -> 4162 | L63: =VLOOKUP($B63,'2020-21 FORMULA'!$B:$AC,'Summary for Prints'!L$2,FALSE) -> 0 | M63: 1236520.901 | N63: =VLOOKUP($B63,'2020-21 FORMULA'!$B:$AC,'Summary for Prints'!N$2,FALSE) -> 0 | O63: =VLOOKUP($B63,'2020-21 FORMULA'!$B:$AC,'Summary for Prints'!O$2,FALSE) -> 0 | P63: 1236520.901 | Q63: =VLOOKUP($B63,'2020-21 FORMULA'!$B:$AC,'Summary for Prints'!Q$2,FALSE) -> 0 | R63: 1236520.901 | S63: =VLOOKUP($B63,'2020-21 FORMULA'!$B:$AC,'Summary for Prints'!S$2,FALSE) -> 0 | T63: 1236520.901 | U63: =VLOOKUP($B63,'2020-21 FORMULA'!$B:$AC,'Summary for Prints'!U$2,FALSE) -> 5482.6 | V63: =SUMIF('ERS 2020-21'!B:B,'Summary for Prints'!B63,'ERS 2020-21'!T:T) -> 0 | W63: =(SUMIF('ERS 2020-21'!B:B,'Summary for Prints'!B63,'ERS 2020-21'!L:L)+SUMIF('ERS 2020-21'!B:B,'Summary for Prints'!B63,'ERS 2020-21'!M:M))*'ERS 2020-21'!$L$1 -> 0 | X63: =(SUMIF('ERS 2020-21'!B:B,'Summary for Prints'!B63,'ERS 2020-21'!O:O))*'ERS 2020-21'!$L$1 -> 0 | Y63: =SUMIF('ERS 2020-21'!B:B,'Summary for Prints'!B63,'ERS 2020-21'!U:U) -> 0 | Z63: =SUMIF('ERS 2020-21'!B:B,'Summary for Prints'!B63,'ERS 2020-21'!V:V)+SUMIF('ERS 2020-21'!B:B,'Summary for Prints'!B63,'ERS 2020-21'!W:W) -> 0 | AA63: =IFERROR(VLOOKUP(B63,'2020-21 Nursery Budget'!E:AC,25,FALSE),0) -> 170617 | AB63: 0 | AC63: 1412620.501 | AD63: =VLOOKUP($B63,'2020-21 FORMULA'!$B:$AC,'Summary for Prints'!AD$2,FALSE) -> 315 | AI63: 8313543 | AL63: 1412620.501 | AM63: 4162 | AN63: 1408458.501
A64: St George's Catholic Voluntary Academy | B64: 3531 | C64: =VLOOKUP($B64,'2020-21 FORMULA'!$B:$AC,'Summary for Prints'!C$2,FALSE) -> 982808 | D64: =VLOOKUP($B64,'2020-21 FORMULA'!$B:$AC,'Summary for Prints'!D$2,FALSE) -> 122554.5683 | E64: =VLOOKUP($B64,'2020-21 FORMULA'!$B:$AC,'Summary for Prints'!E$2,FALSE) -> 0 | F64: =VLOOKUP($B64,'2020-21 FORMULA'!$B:$AC,'Summary for Prints'!F$2,FALSE) -> 101766.6667 | G64: =VLOOKUP($B64,'2020-21 FORMULA'!$B:$AC,'Summary for Prints'!G$2,FALSE) -> 18715.9322 | H64: =VLOOKUP($B64,'2020-21 FORMULA'!$B:$AC,'Summary for Prints'!H$2,FALSE) -> 0 | I64: =VLOOKUP($B64,'2020-21 FORMULA'!$B:$AC,'Summary for Prints'!I$2,FALSE) -> 114400 | J64: =VLOOKUP($B64,'2020-21 FORMULA'!$B:$AC,'Summary for Prints'!J$2,FALSE) -> 0 | K64: =VLOOKUP($B64,'2020-21 FORMULA'!$B:$AC,'Summary for Prints'!K$2,FALSE) -> 5278 | L64: =VLOOKUP($B64,'2020-21 FORMULA'!$B:$AC,'Summary for Prints'!L$2,FALSE) -> 0 | M64: 1345523.167 | N64: =VLOOKUP($B64,'2020-21 FORMULA'!$B:$AC,'Summary for Prints'!N$2,FALSE) -> 0 | O64: =VLOOKUP($B64,'2020-21 FORMULA'!$B:$AC,'Summary for Prints'!O$2,FALSE) -> 0 | P64: 1345523.167 | Q64: =VLOOKUP($B64,'2020-21 FORMULA'!$B:$AC,'Summary for Prints'!Q$2,FALSE) -> 0 | R64: 1345523.167 | S64: =VLOOKUP($B64,'2020-21 FORMULA'!$B:$AC,'Summary for Prints'!S$2,FALSE) -> 0 | T64: 1345523.167 | U64: =VLOOKUP($B64,'2020-21 FORMULA'!$B:$AC,'Summary for Prints'!U$2,FALSE) -> 5209.05 | V64: =SUMIF('ERS 2020-21'!B:B,'Summary for Prints'!B64,'ERS 2020-21'!T:T) -> 0 | W64: =(SUMIF('ERS 2020-21'!B:B,'Summary for Prints'!B64,'ERS 2020-21'!L:L)+SUMIF('ERS 2020-21'!B:B,'Summary for Prints'!B64,'ERS 2020-21'!M:M))*'ERS 2020-21'!$L$1 -> 0 | X64: =(SUMIF('ERS 2020-21'!B:B,'Summary for Prints'!B64,'ERS 2020-21'!O:O))*'ERS 2020-21'!$L$1 -> 0 | Y64: =SUMIF('ERS 2020-21'!B:B,'Summary for Prints'!B64,'ERS 2020-21'!U:U) -> 0 | Z64: =SUMIF('ERS 2020-21'!B:B,'Summary for Prints'!B64,'ERS 2020-21'!V:V)+SUMIF('ERS 2020-21'!B:B,'Summary for Prints'!B64,'ERS 2020-21'!W:W) -> 0 | AA64: =IFERROR(VLOOKUP(B64,'2020-21 Nursery Budget'!E:AC,25,FALSE),0) -> 0 | AB64: 0 | AC64: 1350732.217 | AD64: =VLOOKUP($B64,'2020-21 FORMULA'!$B:$AC,'Summary for Prints'!AD$2,FALSE) -> 344 | AI64: 8313531 | AL64: 1350732.217 | AM64: 5278 | AN64: 1345454.217
A65: St James' Church of England Aided Infant School | B65: 3526 | C65: =VLOOKUP($B65,'2020-21 FORMULA'!$B:$AC,'Summary for Prints'!C$2,FALSE) -> 208561 | D65: =VLOOKUP($B65,'2020-21 FORMULA'!$B:$AC,'Summary for Prints'!D$2,FALSE) -> 48292.70115 | E65: =VLOOKUP($B65,'2020-21 FORMULA'!$B:$AC,'Summary for Prints'!E$2,FALSE) -> 0 | F65: =VLOOKUP($B65,'2020-21 FORMULA'!$B:$AC,'Summary for Prints'!F$2,FALSE) -> 23323.5 | G65: =VLOOKUP($B65,'2020-21 FORMULA'!$B:$AC,'Summary for Prints'!G$2,FALSE) -> 26273.36364 | H65: =VLOOKUP($B65,'2020-21 FORMULA'!$B:$AC,'Summary for Prints'!H$2,FALSE) -> 4042.5 | I65: =VLOOKUP($B65,'2020-21 FORMULA'!$B:$AC,'Summary for Prints'!I$2,FALSE) -> 114400 | J65: =VLOOKUP($B65,'2020-21 FORMULA'!$B:$AC,'Summary for Prints'!J$2,FALSE) -> 0 | K65: =VLOOKUP($B65,'2020-21 FORMULA'!$B:$AC,'Summary for Prints'!K$2,FALSE) -> 971 | L65: =VLOOKUP($B65,'2020-21 FORMULA'!$B:$AC,'Summary for Prints'!L$2,FALSE) -> 0 | M65: 425864.0648 | N65: =VLOOKUP($B65,'2020-21 FORMULA'!$B:$AC,'Summary for Prints'!N$2,FALSE) -> 0 | O65: =VLOOKUP($B65,'2020-21 FORMULA'!$B:$AC,'Summary for Prints'!O$2,FALSE) -> 0 | P65: 425864.0648 | Q65: =VLOOKUP($B65,'2020-21 FORMULA'!$B:$AC,'Summary for Prints'!Q$2,FALSE) -> 0 | R65: 425864.0648 | S65: =VLOOKUP($B65,'2020-21 FORMULA'!$B:$AC,'Summary for Prints'!S$2,FALSE) -> -5066.054 | T65: 420798.0108 | U65: =VLOOKUP($B65,'2020-21 FORMULA'!$B:$AC,'Summary for Prints'!U$2,FALSE) -> 4382.6 | V65: =SUMIF('ERS 2020-21'!B:B,'Summary for Prints'!B65,'ERS 2020-21'!T:T) -> 0 | W65: =(SUMIF('ERS 2020-21'!B:B,'Summary for Prints'!B65,'ERS 2020-21'!L:L)+SUMIF('ERS 2020-21'!B:B,'Summary for Prints'!B65,'ERS 2020-21'!M:M))*'ERS 2020-21'!$L$1 -> 0 | X65: =(SUMIF('ERS 2020-21'!B:B,'Summary for Prints'!B65,'ERS 2020-21'!O:O))*'ERS 2020-21'!$L$1 -> 0 | Y65: =SUMIF('ERS 2020-21'!B:B,'Summary for Prints'!B65,'ERS 2020-21'!U:U) -> 0 | Z65: =SUMIF('ERS 2020-21'!B:B,'Summary for Prints'!B65,'ERS 2020-21'!V:V)+SUMIF('ERS 2020-21'!B:B,'Summary for Prints'!B65,'ERS 2020-21'!W:W) -> 0 | AA65: =IFERROR(VLOOKUP(B65,'2020-21 Nursery Budget'!E:AC,25,FALSE),0) -> 55982 | AB65: 0 | AC65: 481162.6108 | AD65: =VLOOKUP($B65,'2020-21 FORMULA'!$B:$AC,'Summary for Prints'!AD$2,FALSE) -> 73 | AI65: 8313526 | AL65: 481162.6108 | AM65: 971 | AN65: 480191.6108
A66: St James' Church of England Aided Junior School | B66: 3535 | C66: =VLOOKUP($B66,'2020-21 FORMULA'!$B:$AC,'Summary for Prints'!C$2,FALSE) -> 834244 | D66: =VLOOKUP($B66,'2020-21 FORMULA'!$B:$AC,'Summary for Prints'!D$2,FALSE) -> 212672.0044 | E66: =VLOOKUP($B66,'2020-21 FORMULA'!$B:$AC,'Summary for Prints'!E$2,FALSE) -> 0 | F66: =VLOOKUP($B66,'2020-21 FORMULA'!$B:$AC,'Summary for Prints'!F$2,FALSE) -> 174926.25 | G66: =VLOOKUP($B66,'2020-21 FORMULA'!$B:$AC,'Summary for Prints'!G$2,FALSE) -> 47778.62543 | H66: =VLOOKUP($B66,'2020-21 FORMULA'!$B:$AC,'Summary for Prints'!H$2,FALSE) -> 4864.158076 | I66: =VLOOKUP($B66,'2020-21 FORMULA'!$B:$AC,'Summary for Prints'!I$2,FALSE) -> 114400 | J66: =VLOOKUP($B66,'2020-21 FORMULA'!$B:$AC,'Summary for Prints'!J$2,FALSE) -> 0 | K66: =VLOOKUP($B66,'2020-21 FORMULA'!$B:$AC,'Summary for Prints'!K$2,FALSE) -> 3451 | L66: =VLOOKUP($B66,'2020-21 FORMULA'!$B:$AC,'Summary for Prints'!L$2,FALSE) -> 0 | M66: 1392336.038 | N66: =VLOOKUP($B66,'2020-21 FORMULA'!$B:$AC,'Summary for Prints'!N$2,FALSE) -> -3213.653333 | O66: =VLOOKUP($B66,'2020-21 FORMULA'!$B:$AC,'Summary for Prints'!O$2,FALSE) -> 0 | P66: 1389122.385 | Q66: =VLOOKUP($B66,'2020-21 FORMULA'!$B:$AC,'Summary for Prints'!Q$2,FALSE) -> 0 | R66: 1389122.385 | S66: =VLOOKUP($B66,'2020-21 FORMULA'!$B:$AC,'Summary for Prints'!S$2,FALSE) -> -20264.216 | T66: 1368858.169 | U66: =VLOOKUP($B66,'2020-21 FORMULA'!$B:$AC,'Summary for Prints'!U$2,FALSE) -> 0 | V66: =SUMIF('ERS 2020-21'!B:B,'Summary for Prints'!B66,'ERS 2020-21'!T:T) -> 0 | W66: =(SUMIF('ERS 2020-21'!B:B,'Summary for Prints'!B66,'ERS 2020-21'!L:L)+SUMIF('ERS 2020-21'!B:B,'Summary for Prints'!B66,'ERS 2020-21'!M:M))*'ERS 2020-21'!$L$1 -> 0 | X66: =(SUMIF('ERS 2020-21'!B:B,'Summary for Prints'!B66,'ERS 2020-21'!O:O))*'ERS 2020-21'!$L$1 -> 0 | Y66: =SUMIF('ERS 2020-21'!B:B,'Summary for Prints'!B66,'ERS 2020-21'!U:U) -> 0 | Z66: =SUMIF('ERS 2020-21'!B:B,'Summary for Prints'!B66,'ERS 2020-21'!V:V)+SUMIF('ERS 2020-21'!B:B,'Summary for Prints'!B66,'ERS 2020-21'!W:W) -> 0 | AA66: =IFERROR(VLOOKUP(B66,'2020-21 Nursery Budget'!E:AC,25,FALSE),0) -> 0 | AB66: 0 | AC66: 1368858.169 | AD66: =VLOOKUP($B66,'2020-21 FORMULA'!$B:$AC,'Summary for Prints'!AD$2,FALSE) -> 292 | AI66: 8313535 | AL66: 1368858.169 | AM66: 3451 | AN66: 1365407.169
A67: St John Fisher Catholic Voluntary Academy | B67: 2008 | C67: =VLOOKUP($B67,'2020-21 FORMULA'!$B:$AC,'Summary for Prints'!C$2,FALSE) -> 657110 | D67: =VLOOKUP($B67,'2020-21 FORMULA'!$B:$AC,'Summary for Prints'!D$2,FALSE) -> 118939.0611 | E67: =VLOOKUP($B67,'2020-21 FORMULA'!$B:$AC,'Summary for Prints'!E$2,FALSE) -> 0 | F67: =VLOOKUP($B67,'2020-21 FORMULA'!$B:$AC,'Summary for Prints'!F$2,FALSE) -> 82966.93548 | G67: =VLOOKUP($B67,'2020-21 FORMULA'!$B:$AC,'Summary for Prints'!G$2,FALSE) -> 15381.25 | H67: =VLOOKUP($B67,'2020-21 FORMULA'!$B:$AC,'Summary for Prints'!H$2,FALSE) -> 0 | I67: =VLOOKUP($B67,'2020-21 FORMULA'!$B:$AC,'Summary for Prints'!I$2,FALSE) -> 114400 | J67: =VLOOKUP($B67,'2020-21 FORMULA'!$B:$AC,'Summary for Prints'!J$2,FALSE) -> 0 | K67: =VLOOKUP($B67,'2020-21 FORMULA'!$B:$AC,'Summary for Prints'!K$2,FALSE) -> 3933 | L67: =VLOOKUP($B67,'2020-21 FORMULA'!$B:$AC,'Summary for Prints'!L$2,FALSE) -> 0 | M67: 992730.2466 | N67: =VLOOKUP($B67,'2020-21 FORMULA'!$B:$AC,'Summary for Prints'!N$2,FALSE) -> 0 | O67: =VLOOKUP($B67,'2020-21 FORMULA'!$B:$AC,'Summary for Prints'!O$2,FALSE) -> 0 | P67: 992730.2466 | Q67: =VLOOKUP($B67,'2020-21 FORMULA'!$B:$AC,'Summary for Prints'!Q$2,FALSE) -> 0 | R67: 992730.2466 | S67: =VLOOKUP($B67,'2020-21 FORMULA'!$B:$AC,'Summary for Prints'!S$2,FALSE) -> 0 | T67: 992730.2466 | U67: =VLOOKUP($B67,'2020-21 FORMULA'!$B:$AC,'Summary for Prints'!U$2,FALSE) -> 1100 | V67: =SUMIF('ERS 2020-21'!B:B,'Summary for Prints'!B67,'ERS 2020-21'!T:T) -> 0 | W67: =(SUMIF('ERS 2020-21'!B:B,'Summary for Prints'!B67,'ERS 2020-21'!L:L)+SUMIF('ERS 2020-21'!B:B,'Summary for Prints'!B67,'ERS 2020-21'!M:M))*'ERS 2020-21'!$L$1 -> 0 | X67: =(SUMIF('ERS 2020-21'!B:B,'Summary for Prints'!B67,'ERS 2020-21'!O:O))*'ERS 2020-21'!$L$1 -> 0 | Y67: =SUMIF('ERS 2020-21'!B:B,'Summary for Prints'!B67,'ERS 2020-21'!U:U) -> 0 | Z67: =SUMIF('ERS 2020-21'!B:B,'Summary for Prints'!B67,'ERS 2020-21'!V:V)+SUMIF('ERS 2020-21'!B:B,'Summary for Prints'!B67,'ERS 2020-21'!W:W) -> 0 | AA67: =IFERROR(VLOOKUP(B67,'2020-21 Nursery Budget'!E:AC,25,FALSE),0) -> 0 | AB67: 0 | AC67: 993830.2466 | AD67: =VLOOKUP($B67,'2020-21 FORMULA'!$B:$AC,'Summary for Prints'!AD$2,FALSE) -> 230 | AI67: 8312008 | AL67: 993830.2466 | AM67: 3933 | AN67: 989897.2466
A68: St Joseph's Catholic Primary School, Derby | B68: 3542 | C68: =VLOOKUP($B68,'2020-21 FORMULA'!$B:$AC,'Summary for Prints'!C$2,FALSE) -> 1117087 | D68: =VLOOKUP($B68,'2020-21 FORMULA'!$B:$AC,'Summary for Prints'!D$2,FALSE) -> 186264.1858 | E68: =VLOOKUP($B68,'2020-21 FORMULA'!$B:$AC,'Summary for Prints'!E$2,FALSE) -> 0 | F68: =VLOOKUP($B68,'2020-21 FORMULA'!$B:$AC,'Summary for Prints'!F$2,FALSE) -> 115145.0568 | G68: =VLOOKUP($B68,'2020-21 FORMULA'!$B:$AC,'Summary for Prints'!G$2,FALSE) -> 101498.0473 | H68: =VLOOKUP($B68,'2020-21 FORMULA'!$B:$AC,'Summary for Prints'!H$2,FALSE) -> 0 | I68: =VLOOKUP($B68,'2020-21 FORMULA'!$B:$AC,'Summary for Prints'!I$2,FALSE) -> 114400 | J68: =VLOOKUP($B68,'2020-21 FORMULA'!$B:$AC,'Summary for Prints'!J$2,FALSE) -> 0 | K68: =VLOOKUP($B68,'2020-21 FORMULA'!$B:$AC,'Summary for Prints'!K$2,FALSE) -> 6467 | L68: =VLOOKUP($B68,'2020-21 FORMULA'!$B:$AC,'Summary for Prints'!L$2,FALSE) -> 0 | M68: 1640861.29 | N68: =VLOOKUP($B68,'2020-21 FORMULA'!$B:$AC,'Summary for Prints'!N$2,FALSE) -> -976.3476097 | O68: =VLOOKUP($B68,'2020-21 FORMULA'!$B:$AC,'Summary for Prints'!O$2,FALSE) -> 0 | P68: 1639884.942 | Q68: =VLOOKUP($B68,'2020-21 FORMULA'!$B:$AC,'Summary for Prints'!Q$2,FALSE) -> 0 | R68: 1639884.942 | S68: =VLOOKUP($B68,'2020-21 FORMULA'!$B:$AC,'Summary for Prints'!S$2,FALSE) -> 0 | T68: 1639884.942 | U68: =VLOOKUP($B68,'2020-21 FORMULA'!$B:$AC,'Summary for Prints'!U$2,FALSE) -> 4114.85 | V68: =SUMIF('ERS 2020-21'!B:B,'Summary for Prints'!B68,'ERS 2020-21'!T:T) -> 0 | W68: =(SUMIF('ERS 2020-21'!B:B,'Summary for Prints'!B68,'ERS 2020-21'!L:L)+SUMIF('ERS 2020-21'!B:B,'Summary for Prints'!B68,'ERS 2020-21'!M:M))*'ERS 2020-21'!$L$1 -> 0 | X68: =(SUMIF('ERS 2020-21'!B:B,'Summary for Prints'!B68,'ERS 2020-21'!O:O))*'ERS 2020-21'!$L$1 -> 0 | Y68: =SUMIF('ERS 2020-21'!B:B,'Summary for Prints'!B68,'ERS 2020-21'!U:U) -> 0 | Z68: =SUMIF('ERS 2020-21'!B:B,'Summary for Prints'!B68,'ERS 2020-21'!V:V)+SUMIF('ERS 2020-21'!B:B,'Summary for Prints'!B68,'ERS 2020-21'!W:W) -> 0 | AA68: =IFERROR(VLOOKUP(B68,'2020-21 Nursery Budget'!E:AC,25,FALSE),0) -> 0 | AB68: 0 | AC68: 1643999.792 | AD68: =VLOOKUP($B68,'2020-21 FORMULA'!$B:$AC,'Summary for Prints'!AD$2,FALSE) -> 391 | AI68: 8313542 | AL68: 1643999.792 | AM68: 6467 | AN68: 1637532.792
A69: St Mary's Catholic Primary School and Nursery | B69: 3528 | C69: =VLOOKUP($B69,'2020-21 FORMULA'!$B:$AC,'Summary for Prints'!C$2,FALSE) -> 905669 | D69: =VLOOKUP($B69,'2020-21 FORMULA'!$B:$AC,'Summary for Prints'!D$2,FALSE) -> 143803.3599 | E69: =VLOOKUP($B69,'2020-21 FORMULA'!$B:$AC,'Summary for Prints'!E$2,FALSE) -> 0 | F69: =VLOOKUP($B69,'2020-21 FORMULA'!$B:$AC,'Summary for Prints'!F$2,FALSE) -> 138170.3861 | G69: =VLOOKUP($B69,'2020-21 FORMULA'!$B:$AC,'Summary for Prints'!G$2,FALSE) -> 47040.94891 | H69: =VLOOKUP($B69,'2020-21 FORMULA'!$B:$AC,'Summary for Prints'!H$2,FALSE) -> 0 | I69: =VLOOKUP($B69,'2020-21 FORMULA'!$B:$AC,'Summary for Prints'!I$2,FALSE) -> 114400 | J69: =VLOOKUP($B69,'2020-21 FORMULA'!$B:$AC,'Summary for Prints'!J$2,FALSE) -> 0 | K69: =VLOOKUP($B69,'2020-21 FORMULA'!$B:$AC,'Summary for Prints'!K$2,FALSE) -> 9383 | L69: =VLOOKUP($B69,'2020-21 FORMULA'!$B:$AC,'Summary for Prints'!L$2,FALSE) -> 0 | M69: 1358466.695 | N69: =VLOOKUP($B69,'2020-21 FORMULA'!$B:$AC,'Summary for Prints'!N$2,FALSE) -> -6439.503013 | O69: =VLOOKUP($B69,'2020-21 FORMULA'!$B:$AC,'Summary for Prints'!O$2,FALSE) -> 0 | P69: 1352027.192 | Q69: =VLOOKUP($B69,'2020-21 FORMULA'!$B:$AC,'Summary for Prints'!Q$2,FALSE) -> 0 | R69: 1352027.192 | S69: =VLOOKUP($B69,'2020-21 FORMULA'!$B:$AC,'Summary for Prints'!S$2,FALSE) -> 0 | T69: 1352027.192 | U69: =VLOOKUP($B69,'2020-21 FORMULA'!$B:$AC,'Summary for Prints'!U$2,FALSE) -> 8218.1 | V69: =SUMIF('ERS 2020-21'!B:B,'Summary for Prints'!B69,'ERS 2020-21'!T:T) -> 0 | W69: =(SUMIF('ERS 2020-21'!B:B,'Summary for Prints'!B69,'ERS 2020-21'!L:L)+SUMIF('ERS 2020-21'!B:B,'Summary for Prints'!B69,'ERS 2020-21'!M:M))*'ERS 2020-21'!$L$1 -> 0 | X69: =(SUMIF('ERS 2020-21'!B:B,'Summary for Prints'!B69,'ERS 2020-21'!O:O))*'ERS 2020-21'!$L$1 -> 0 | Y69: =SUMIF('ERS 2020-21'!B:B,'Summary for Prints'!B69,'ERS 2020-21'!U:U) -> 0 | Z69: =SUMIF('ERS 2020-21'!B:B,'Summary for Prints'!B69,'ERS 2020-21'!V:V)+SUMIF('ERS 2020-21'!B:B,'Summary for Prints'!B69,'ERS 2020-21'!W:W) -> 0 | AA69: =IFERROR(VLOOKUP(B69,'2020-21 Nursery Budget'!E:AC,25,FALSE),0) -> 112840 | AB69: 0 | AC69: 1473085.292 | AD69: =VLOOKUP($B69,'2020-21 FORMULA'!$B:$AC,'Summary for Prints'!AD$2,FALSE) -> 317 | AI69: 8313528 | AL69: 1473085.292 | AM69: 9383 | AN69: 1463702.292
A70: St Peter's Church of England Aided Junior School | B70: 3534 | C70: =VLOOKUP($B70,'2020-21 FORMULA'!$B:$AC,'Summary for Prints'!C$2,FALSE) -> 708536 | D70: =VLOOKUP($B70,'2020-21 FORMULA'!$B:$AC,'Summary for Prints'!D$2,FALSE) -> 54895.66802 | E70: =VLOOKUP($B70,'2020-21 FORMULA'!$B:$AC,'Summary for Prints'!E$2,FALSE) -> 0 | F70: =VLOOKUP($B70,'2020-21 FORMULA'!$B:$AC,'Summary for Prints'!F$2,FALSE) -> 101842.8814 | G70: =VLOOKUP($B70,'2020-21 FORMULA'!$B:$AC,'Summary for Prints'!G$2,FALSE) -> 15577.81377 | H70: =VLOOKUP($B70,'2020-21 FORMULA'!$B:$AC,'Summary for Prints'!H$2,FALSE) -> 0 | I70: =VLOOKUP($B70,'2020-21 FORMULA'!$B:$AC,'Summary for Prints'!I$2,FALSE) -> 114400 | J70: =VLOOKUP($B70,'2020-21 FORMULA'!$B:$AC,'Summary for Prints'!J$2,FALSE) -> 0 | K70: =VLOOKUP($B70,'2020-21 FORMULA'!$B:$AC,'Summary for Prints'!K$2,FALSE) -> 3478 | L70: =VLOOKUP($B70,'2020-21 FORMULA'!$B:$AC,'Summary for Prints'!L$2,FALSE) -> 0 | M70: =SUM(C70:L70) -> 998730.3631 | N70: =VLOOKUP($B70,'2020-21 FORMULA'!$B:$AC,'Summary for Prints'!N$2,FALSE) -> -6864.413559 | O70: =VLOOKUP($B70,'2020-21 FORMULA'!$B:$AC,'Summary for Prints'!O$2,FALSE) -> 0 | P70: =SUM(M70:O70) -> 991865.9496 | Q70: =VLOOKUP($B70,'2020-21 FORMULA'!$B:$AC,'Summary for Prints'!Q$2,FALSE) -> 0 | R70: =P70+Q70 -> 991865.9496 | S70: =VLOOKUP($B70,'2020-21 FORMULA'!$B:$AC,'Summary for Prints'!S$2,FALSE) -> -17210.704 | T70: =R70+S70 -> 974655.2456 | U70: =VLOOKUP($B70,'2020-21 FORMULA'!$B:$AC,'Summary for Prints'!U$2,FALSE) -> 0 | V70: =SUMIF('ERS 2020-21'!B:B,'Summary for Prints'!B70,'ERS 2020-21'!T:T) -> 0 | W70: =(SUMIF('ERS 2020-21'!B:B,'Summary for Prints'!B70,'ERS 2020-21'!L:L)+SUMIF('ERS 2020-21'!B:B,'Summary for Prints'!B70,'ERS 2020-21'!M:M))*'ERS 2020-21'!$L$1 -> 0 | X70: =(SUMIF('ERS 2020-21'!B:B,'Summary for Prints'!B70,'ERS 2020-21'!O:O))*'ERS 2020-21'!$L$1 -> 0 | Y70: =SUMIF('ERS 2020-21'!B:B,'Summary for Prints'!B70,'ERS 2020-21'!U:U) -> 0 | Z70: =SUMIF('ERS 2020-21'!B:B,'Summary for Prints'!B70,'ERS 2020-21'!V:V)+SUMIF('ERS 2020-21'!B:B,'Summary for Prints'!B70,'ERS 2020-21'!W:W) -> 0 | AA70: =IFERROR(VLOOKUP(B70,'2020-21 Nursery Budget'!E:AC,25,FALSE),0) -> 0 | AB70: 0 | AC70: =SUM(T70:AB70) -> 974655.2456 | AD70: =VLOOKUP($B70,'2020-21 FORMULA'!$B:$AC,'Summary for Prints'!AD$2,FALSE) -> 248 | AI70: 8313534 | AL70: =AC70 -> 974655.2456 | AM70: =K70 -> 3478 | AN70: =AL70-AM70 -> 971177.2456
A71: St Werburgh's Church of England VA Primary School | B71: 3532 | C71: =VLOOKUP($B71,'2020-21 FORMULA'!$B:$AC,'Summary for Prints'!C$2,FALSE) -> 891384 | D71: =VLOOKUP($B71,'2020-21 FORMULA'!$B:$AC,'Summary for Prints'!D$2,FALSE) -> 48894.90415 | E71: =VLOOKUP($B71,'2020-21 FORMULA'!$B:$AC,'Summary for Prints'!E$2,FALSE) -> 0 | F71: =VLOOKUP($B71,'2020-21 FORMULA'!$B:$AC,'Summary for Prints'!F$2,FALSE) -> 84916 | G71: =VLOOKUP($B71,'2020-21 FORMULA'!$B:$AC,'Summary for Prints'!G$2,FALSE) -> 1854.666667 | H71: =VLOOKUP($B71,'2020-21 FORMULA'!$B:$AC,'Summary for Prints'!H$2,FALSE) -> 0 | I71: =VLOOKUP($B71,'2020-21 FORMULA'!$B:$AC,'Summary for Prints'!I$2,FALSE) -> 114400 | J71: =VLOOKUP($B71,'2020-21 FORMULA'!$B:$AC,'Summary for Prints'!J$2,FALSE) -> 0 | K71: =VLOOKUP($B71,'2020-21 FORMULA'!$B:$AC,'Summary for Prints'!K$2,FALSE) -> 5182 | L71: =VLOOKUP($B71,'2020-21 FORMULA'!$B:$AC,'Summary for Prints'!L$2,FALSE) -> 0 | M71: 1146631.571 | N71: =VLOOKUP($B71,'2020-21 FORMULA'!$B:$AC,'Summary for Prints'!N$2,FALSE) -> 0 | O71: =VLOOKUP($B71,'2020-21 FORMULA'!$B:$AC,'Summary for Prints'!O$2,FALSE) -> 0 | P71: 1146631.571 | Q71: =VLOOKUP($B71,'2020-21 FORMULA'!$B:$AC,'Summary for Prints'!Q$2,FALSE) -> 28550.42918 | R71: 1175182 | S71: =VLOOKUP($B71,'2020-21 FORMULA'!$B:$AC,'Summary for Prints'!S$2,FALSE) -> 0 | T71: 1175182 | U71: =VLOOKUP($B71,'2020-21 FORMULA'!$B:$AC,'Summary for Prints'!U$2,FALSE) -> 7123.9 | V71: =SUMIF('ERS 2020-21'!B:B,'Summary for Prints'!B71,'ERS 2020-21'!T:T) -> 0 | W71: =(SUMIF('ERS 2020-21'!B:B,'Summary for Prints'!B71,'ERS 2020-21'!L:L)+SUMIF('ERS 2020-21'!B:B,'Summary for Prints'!B71,'ERS 2020-21'!M:M))*'ERS 2020-21'!$L$1 -> 0 | X71: =(SUMIF('ERS 2020-21'!B:B,'Summary for Prints'!B71,'ERS 2020-21'!O:O))*'ERS 2020-21'!$L$1 -> 0 | Y71: =SUMIF('ERS 2020-21'!B:B,'Summary for Prints'!B71,'ERS 2020-21'!U:U) -> 0 | Z71: =SUMIF('ERS 2020-21'!B:B,'Summary for Prints'!B71,'ERS 2020-21'!V:V)+SUMIF('ERS 2020-21'!B:B,'Summary for Prints'!B71,'ERS 2020-21'!W:W) -> 0 | AA71: =IFERROR(VLOOKUP(B71,'2020-21 Nursery Budget'!E:AC,25,FALSE),0) -> 0 | AB71: 0 | AC71: 1182305.9 | AD71: =VLOOKUP($B71,'2020-21 FORMULA'!$B:$AC,'Summary for Prints'!AD$2,FALSE) -> 312 | AI71: 8313532 | AL71: 1182305.9 | AM71: 5182 | AN71: 1177123.9
A72: Village Primary School | B72: 3546 | C72: =VLOOKUP($B72,'2020-21 FORMULA'!$B:$AC,'Summary for Prints'!C$2,FALSE) -> 1765626 | D72: =VLOOKUP($B72,'2020-21 FORMULA'!$B:$AC,'Summary for Prints'!D$2,FALSE) -> 456621.9231 | E72: =VLOOKUP($B72,'2020-21 FORMULA'!$B:$AC,'Summary for Prints'!E$2,FALSE) -> 0 | F72: =VLOOKUP($B72,'2020-21 FORMULA'!$B:$AC,'Summary for Prints'!F$2,FALSE) -> 250077.119 | G72: =VLOOKUP($B72,'2020-21 FORMULA'!$B:$AC,'Summary for Prints'!G$2,FALSE) -> 99564.71591 | H72: =VLOOKUP($B72,'2020-21 FORMULA'!$B:$AC,'Summary for Prints'!H$2,FALSE) -> 0 | I72: =VLOOKUP($B72,'2020-21 FORMULA'!$B:$AC,'Summary for Prints'!I$2,FALSE) -> 114400 | J72: =VLOOKUP($B72,'2020-21 FORMULA'!$B:$AC,'Summary for Prints'!J$2,FALSE) -> 0 | K72: =VLOOKUP($B72,'2020-21 FORMULA'!$B:$AC,'Summary for Prints'!K$2,FALSE) -> 15932 | L72: =VLOOKUP($B72,'2020-21 FORMULA'!$B:$AC,'Summary for Prints'!L$2,FALSE) -> 0 | M72: 2702221.758 | N72: =VLOOKUP($B72,'2020-21 FORMULA'!$B:$AC,'Summary for Prints'!N$2,FALSE) -> -3336.689716 | O72: =VLOOKUP($B72,'2020-21 FORMULA'!$B:$AC,'Summary for Prints'!O$2,FALSE) -> 0 | P72: 2698885.068 | Q72: =VLOOKUP($B72,'2020-21 FORMULA'!$B:$AC,'Summary for Prints'!Q$2,FALSE) -> 0 | R72: 2698885.068 | S72: =VLOOKUP($B72,'2020-21 FORMULA'!$B:$AC,'Summary for Prints'!S$2,FALSE) -> 0 | T72: 2698885.068 | U72: =VLOOKUP($B72,'2020-21 FORMULA'!$B:$AC,'Summary for Prints'!U$2,FALSE) -> 3300 | V72: =SUMIF('ERS 2020-21'!B:B,'Summary for Prints'!B72,'ERS 2020-21'!T:T) -> 0 | W72: =(SUMIF('ERS 2020-21'!B:B,'Summary for Prints'!B72,'ERS 2020-21'!L:L)+SUMIF('ERS 2020-21'!B:B,'Summary for Prints'!B72,'ERS 2020-21'!M:M))*'ERS 2020-21'!$L$1 -> 0 | X72: =(SUMIF('ERS 2020-21'!B:B,'Summary for Prints'!B72,'ERS 2020-21'!O:O))*'ERS 2020-21'!$L$1 -> 0 | Y72: =SUMIF('ERS 2020-21'!B:B,'Summary for Prints'!B72,'ERS 2020-21'!U:U) -> 0 | Z72: =SUMIF('ERS 2020-21'!B:B,'Summary for Prints'!B72,'ERS 2020-21'!V:V)+SUMIF('ERS 2020-21'!B:B,'Summary for Prints'!B72,'ERS 2020-21'!W:W) -> 0 | AA72: =IFERROR(VLOOKUP(B72,'2020-21 Nursery Budget'!E:AC,25,FALSE),0) -> 186895 | AB72: 0 | AC72: 2889080.068 | AD72: =VLOOKUP($B72,'2020-21 FORMULA'!$B:$AC,'Summary for Prints'!AD$2,FALSE) -> 618 | AI72: 8313546 | AL72: 2889080.068 | AM72: 15932 | AN72: 2873148.068
A73: Walter Evans Church of England Aided Primary School | B73: 3530 | C73: =VLOOKUP($B73,'2020-21 FORMULA'!$B:$AC,'Summary for Prints'!C$2,FALSE) -> 1128515 | D73: =VLOOKUP($B73,'2020-21 FORMULA'!$B:$AC,'Summary for Prints'!D$2,FALSE) -> 19724.52137 | E73: =VLOOKUP($B73,'2020-21 FORMULA'!$B:$AC,'Summary for Prints'!E$2,FALSE) -> 0 | F73: =VLOOKUP($B73,'2020-21 FORMULA'!$B:$AC,'Summary for Prints'!F$2,FALSE) -> 67768.31307 | G73: =VLOOKUP($B73,'2020-21 FORMULA'!$B:$AC,'Summary for Prints'!G$2,FALSE) -> 5031.547619 | H73: =VLOOKUP($B73,'2020-21 FORMULA'!$B:$AC,'Summary for Prints'!H$2,FALSE) -> 0 | I73: =VLOOKUP($B73,'2020-21 FORMULA'!$B:$AC,'Summary for Prints'!I$2,FALSE) -> 114400 | J73: =VLOOKUP($B73,'2020-21 FORMULA'!$B:$AC,'Summary for Prints'!J$2,FALSE) -> 0 | K73: =VLOOKUP($B73,'2020-21 FORMULA'!$B:$AC,'Summary for Prints'!K$2,FALSE) -> 5407 | L73: =VLOOKUP($B73,'2020-21 FORMULA'!$B:$AC,'Summary for Prints'!L$2,FALSE) -> 0 | M73: 1340846.382 | N73: =VLOOKUP($B73,'2020-21 FORMULA'!$B:$AC,'Summary for Prints'!N$2,FALSE) -> 0 | O73: =VLOOKUP($B73,'2020-21 FORMULA'!$B:$AC,'Summary for Prints'!O$2,FALSE) -> 0 | P73: 1340846.382 | Q73: =VLOOKUP($B73,'2020-21 FORMULA'!$B:$AC,'Summary for Prints'!Q$2,FALSE) -> 145810.6179 | R73: 1486657 | S73: =VLOOKUP($B73,'2020-21 FORMULA'!$B:$AC,'Summary for Prints'!S$2,FALSE) -> 0 | T73: 1486657 | U73: =VLOOKUP($B73,'2020-21 FORMULA'!$B:$AC,'Summary for Prints'!U$2,FALSE) -> 2473.55 | V73: =SUMIF('ERS 2020-21'!B:B,'Summary for Prints'!B73,'ERS 2020-21'!T:T) -> 0 | W73: =(SUMIF('ERS 2020-21'!B:B,'Summary for Prints'!B73,'ERS 2020-21'!L:L)+SUMIF('ERS 2020-21'!B:B,'Summary for Prints'!B73,'ERS 2020-21'!M:M))*'ERS 2020-21'!$L$1 -> 0 | X73: =(SUMIF('ERS 2020-21'!B:B,'Summary for Prints'!B73,'ERS 2020-21'!O:O))*'ERS 2020-21'!$L$1 -> 0 | Y73: =SUMIF('ERS 2020-21'!B:B,'Summary for Prints'!B73,'ERS 2020-21'!U:U) -> 0 | Z73: =SUMIF('ERS 2020-21'!B:B,'Summary for Prints'!B73,'ERS 2020-21'!V:V)+SUMIF('ERS 2020-21'!B:B,'Summary for Prints'!B73,'ERS 2020-21'!W:W) -> 0 | AA73: =IFERROR(VLOOKUP(B73,'2020-21 Nursery Budget'!E:AC,25,FALSE),0) -> 121728 | AB73: 0 | AC73: 1610858.55 | AD73: =VLOOKUP($B73,'2020-21 FORMULA'!$B:$AC,'Summary for Prints'!AD$2,FALSE) -> 395 | AI73: 8313530 | AL73: 1610858.55 | AM73: 5407 | AN73: 1605451.55
A74: Wren Park Primary School | B74: 2459 | C74: =VLOOKUP($B74,'2020-21 FORMULA'!$B:$AC,'Summary for Prints'!C$2,FALSE) -> 1111373 | D74: =VLOOKUP($B74,'2020-21 FORMULA'!$B:$AC,'Summary for Prints'!D$2,FALSE) -> 35896.82692 | E74: =VLOOKUP($B74,'2020-21 FORMULA'!$B:$AC,'Summary for Prints'!E$2,FALSE) -> 0 | F74: =VLOOKUP($B74,'2020-21 FORMULA'!$B:$AC,'Summary for Prints'!F$2,FALSE) -> 90664.19453 | G74: =VLOOKUP($B74,'2020-21 FORMULA'!$B:$AC,'Summary for Prints'!G$2,FALSE) -> 37895.56716 | H74: =VLOOKUP($B74,'2020-21 FORMULA'!$B:$AC,'Summary for Prints'!H$2,FALSE) -> 0 | I74: =VLOOKUP($B74,'2020-21 FORMULA'!$B:$AC,'Summary for Prints'!I$2,FALSE) -> 114400 | J74: =VLOOKUP($B74,'2020-21 FORMULA'!$B:$AC,'Summary for Prints'!J$2,FALSE) -> 0 | K74: =VLOOKUP($B74,'2020-21 FORMULA'!$B:$AC,'Summary for Prints'!K$2,FALSE) -> 20425 | L74: =VLOOKUP($B74,'2020-21 FORMULA'!$B:$AC,'Summary for Prints'!L$2,FALSE) -> 0 | M74: 1410654.589 | N74: =VLOOKUP($B74,'2020-21 FORMULA'!$B:$AC,'Summary for Prints'!N$2,FALSE) -> 0 | O74: =VLOOKUP($B74,'2020-21 FORMULA'!$B:$AC,'Summary for Prints'!O$2,FALSE) -> 0 | P74: 1410654.589 | Q74: =VLOOKUP($B74,'2020-21 FORMULA'!$B:$AC,'Summary for Prints'!Q$2,FALSE) -> 68520.41138 | R74: 1479175 | S74: =VLOOKUP($B74,'2020-21 FORMULA'!$B:$AC,'Summary for Prints'!S$2,FALSE) -> -26995.822 | T74: 1452179.178 | U74: =VLOOKUP($B74,'2020-21 FORMULA'!$B:$AC,'Summary for Prints'!U$2,FALSE) -> 3841.3 | V74: =SUMIF('ERS 2020-21'!B:B,'Summary for Prints'!B74,'ERS 2020-21'!T:T) -> 0 | W74: =(SUMIF('ERS 2020-21'!B:B,'Summary for Prints'!B74,'ERS 2020-21'!L:L)+SUMIF('ERS 2020-21'!B:B,'Summary for Prints'!B74,'ERS 2020-21'!M:M))*'ERS 2020-21'!$L$1 -> 0 | X74: =(SUMIF('ERS 2020-21'!B:B,'Summary for Prints'!B74,'ERS 2020-21'!O:O))*'ERS 2020-21'!$L$1 -> 0 | Y74: =SUMIF('ERS 2020-21'!B:B,'Summary for Prints'!B74,'ERS 2020-21'!U:U) -> 0 | Z74: =SUMIF('ERS 2020-21'!B:B,'Summary for Prints'!B74,'ERS 2020-21'!V:V)+SUMIF('ERS 2020-21'!B:B,'Summary for Prints'!B74,'ERS 2020-21'!W:W) -> 0 | AA74: =IFERROR(VLOOKUP(B74,'2020-21 Nursery Budget'!E:AC,25,FALSE),0) -> 0 | AB74: 0 | AC74: 1456020.478 | AD74: =VLOOKUP($B74,'2020-21 FORMULA'!$B:$AC,'Summary for Prints'!AD$2,FALSE) -> 389 | AI74: 8312459 | AL74: 1456020.478 | AM74: 20425 | AN74: 1435595.478
A75: Wyndham Primary Academy | B75: 2007 | C75: =VLOOKUP($B75,'2020-21 FORMULA'!$B:$AC,'Summary for Prints'!C$2,FALSE) -> 1237081 | D75: =VLOOKUP($B75,'2020-21 FORMULA'!$B:$AC,'Summary for Prints'!D$2,FALSE) -> 313433.8288 | E75: =VLOOKUP($B75,'2020-21 FORMULA'!$B:$AC,'Summary for Prints'!E$2,FALSE) -> 0 | F75: =VLOOKUP($B75,'2020-21 FORMULA'!$B:$AC,'Summary for Prints'!F$2,FALSE) -> 124735.9426 | G75: =VLOOKUP($B75,'2020-21 FORMULA'!$B:$AC,'Summary for Prints'!G$2,FALSE) -> 34686.31016 | H75: =VLOOKUP($B75,'2020-21 FORMULA'!$B:$AC,'Summary for Prints'!H$2,FALSE) -> 0 | I75: =VLOOKUP($B75,'2020-21 FORMULA'!$B:$AC,'Summary for Prints'!I$2,FALSE) -> 114400 | J75: =VLOOKUP($B75,'2020-21 FORMULA'!$B:$AC,'Summary for Prints'!J$2,FALSE) -> 0 | K75: =VLOOKUP($B75,'2020-21 FORMULA'!$B:$AC,'Summary for Prints'!K$2,FALSE) -> 4365.65 | L75: =VLOOKUP($B75,'2020-21 FORMULA'!$B:$AC,'Summary for Prints'!L$2,FALSE) -> 0 | M75: 1828702.732 | N75: =VLOOKUP($B75,'2020-21 FORMULA'!$B:$AC,'Summary for Prints'!N$2,FALSE) -> 6540.850891 | O75: =VLOOKUP($B75,'2020-21 FORMULA'!$B:$AC,'Summary for Prints'!O$2,FALSE) -> 0 | P75: 1835243.583 | Q75: =VLOOKUP($B75,'2020-21 FORMULA'!$B:$AC,'Summary for Prints'!Q$2,FALSE) -> 0 | R75: 1835243.583 | S75: =VLOOKUP($B75,'2020-21 FORMULA'!$B:$AC,'Summary for Prints'!S$2,FALSE) -> 0 | T75: 1835243.583 | U75: =VLOOKUP($B75,'2020-21 FORMULA'!$B:$AC,'Summary for Prints'!U$2,FALSE) -> 2473.55 | V75: =SUMIF('ERS 2020-21'!B:B,'Summary for Prints'!B75,'ERS 2020-21'!T:T) -> 0 | W75: =(SUMIF('ERS 2020-21'!B:B,'Summary for Prints'!B75,'ERS 2020-21'!L:L)+SUMIF('ERS 2020-21'!B:B,'Summary for Prints'!B75,'ERS 2020-21'!M:M))*'ERS 2020-21'!$L$1 -> 0 | X75: =(SUMIF('ERS 2020-21'!B:B,'Summary for Prints'!B75,'ERS 2020-21'!O:O))*'ERS 2020-21'!$L$1 -> 0 | Y75: =SUMIF('ERS 2020-21'!B:B,'Summary for Prints'!B75,'ERS 2020-21'!U:U) -> 0 | Z75: =SUMIF('ERS 2020-21'!B:B,'Summary for Prints'!B75,'ERS 2020-21'!V:V)+SUMIF('ERS 2020-21'!B:B,'Summary for Prints'!B75,'ERS 2020-21'!W:W) -> 0 | AA75: =IFERROR(VLOOKUP(B75,'2020-21 Nursery Budget'!E:AC,25,FALSE),0) -> 120608 | AB75: 0 | AC75: 1958325.133 | AD75: =VLOOKUP($B75,'2020-21 FORMULA'!$B:$AC,'Summary for Prints'!AD$2,FALSE) -> 433 | AI75: 8312007 | AL75: 1958325.133 | AM75: 4365.65 | AN75: 1953959.483
A76: Zaytouna | B76: 4000 | C76: =VLOOKUP($B76,'2020-21 FORMULA'!$B:$AC,'Summary for Prints'!C$2,FALSE) -> 837101 | D76: =VLOOKUP($B76,'2020-21 FORMULA'!$B:$AC,'Summary for Prints'!D$2,FALSE) -> 157505.1368 | E76: =VLOOKUP($B76,'2020-21 FORMULA'!$B:$AC,'Summary for Prints'!E$2,FALSE) -> 0 | F76: =VLOOKUP($B76,'2020-21 FORMULA'!$B:$AC,'Summary for Prints'!F$2,FALSE) -> 108672.3881 | G76: =VLOOKUP($B76,'2020-21 FORMULA'!$B:$AC,'Summary for Prints'!G$2,FALSE) -> 60857.82353 | H76: =VLOOKUP($B76,'2020-21 FORMULA'!$B:$AC,'Summary for Prints'!H$2,FALSE) -> 0 | I76: =VLOOKUP($B76,'2020-21 FORMULA'!$B:$AC,'Summary for Prints'!I$2,FALSE) -> 114400 | J76: =VLOOKUP($B76,'2020-21 FORMULA'!$B:$AC,'Summary for Prints'!J$2,FALSE) -> 0 | K76: =VLOOKUP($B76,'2020-21 FORMULA'!$B:$AC,'Summary for Prints'!K$2,FALSE) -> 13610 | L76: =VLOOKUP($B76,'2020-21 FORMULA'!$B:$AC,'Summary for Prints'!L$2,FALSE) -> 0 | M76: 1292146.348 | N76: =VLOOKUP($B76,'2020-21 FORMULA'!$B:$AC,'Summary for Prints'!N$2,FALSE) -> 0 | O76: =VLOOKUP($B76,'2020-21 FORMULA'!$B:$AC,'Summary for Prints'!O$2,FALSE) -> 0 | P76: 1292146.348 | Q76: =VLOOKUP($B76,'2020-21 FORMULA'!$B:$AC,'Summary for Prints'!Q$2,FALSE) -> 0 | R76: 1292146.348 | S76: =VLOOKUP($B76,'2020-21 FORMULA'!$B:$AC,'Summary for Prints'!S$2,FALSE) -> 0 | T76: 1292146.348 | U76: =VLOOKUP($B76,'2020-21 FORMULA'!$B:$AC,'Summary for Prints'!U$2,FALSE) -> 8218.1 | V76: =SUMIF('ERS 2020-21'!B:B,'Summary for Prints'!B76,'ERS 2020-21'!T:T) -> 0 | W76: =(SUMIF('ERS 2020-21'!B:B,'Summary for Prints'!B76,'ERS 2020-21'!L:L)+SUMIF('ERS 2020-21'!B:B,'Summary for Prints'!B76,'ERS 2020-21'!M:M))*'ERS 2020-21'!$L$1 -> 0 | X76: =(SUMIF('ERS 2020-21'!B:B,'Summary for Prints'!B76,'ERS 2020-21'!O:O))*'ERS 2020-21'!$L$1 -> 0 | Y76: =SUMIF('ERS 2020-21'!B:B,'Summary for Prints'!B76,'ERS 2020-21'!U:U) -> 0 | Z76: =SUMIF('ERS 2020-21'!B:B,'Summary for Prints'!B76,'ERS 2020-21'!V:V)+SUMIF('ERS 2020-21'!B:B,'Summary for Prints'!B76,'ERS 2020-21'!W:W) -> 0 | AA76: =IFERROR(VLOOKUP(B76,'2020-21 Nursery Budget'!E:AC,25,FALSE),0) -> 0 | AB76: 0 | AC76: 1300364.448 | AD76: =VLOOKUP($B76,'2020-21 FORMULA'!$B:$AC,'Summary for Prints'!AD$2,FALSE) -> 293 | AI76: 8314000 | AL76: 1300364.448 | AM76: 13610 | AN76: 1286754.448
A78: Total Primary | B78: Total Primary | C78: =SUM(C5:C77) -> 66911178.56 | D78: 11495562.45 | E78: 0 | F78: 8650528.556 | G78: 2260952.17 | H78: 189589.6034 | I78: 8236800 | J78: 0 | K78: 794147.8713 | L78: 334206 | M78: 98872965.21 | N78: -91605.74912 | O78: 0 | P78: 98781359.46 | Q78: 858657.3126 | R78: 99640016.78 | S78: -574129.654 | T78: 99065887.12 | U78: 293902.2125 | V78: 48000 | W78: 693500 | X78: 0 | Y78: 812940 | Z78: 0 | AA78: 4684047 | AB78: 0 | AC78: 105550276.3 | AD78: 23420.08 | AF78: =SUM(AF5:AF77) -> 0
A80: Chellaston Academy | B80: 5402 | C80: =VLOOKUP($B80,'2020-21 FORMULA'!$B:$AC,'Summary for Prints'!C$2,FALSE) -> 6099971.68 | D80: =VLOOKUP($B80,'2020-21 FORMULA'!$B:$AC,'Summary for Prints'!D$2,FALSE) -> 267957.8304 | E80: =VLOOKUP($B80,'2020-21 FORMULA'!$B:$AC,'Summary for Prints'!E$2,FALSE) -> 0 | F80: =VLOOKUP($B80,'2020-21 FORMULA'!$B:$AC,'Summary for Prints'!F$2,FALSE) -> 345736.4461 | G80: =VLOOKUP($B80,'2020-21 FORMULA'!$B:$AC,'Summary for Prints'!G$2,FALSE) -> 5843.595506 | H80: =VLOOKUP($B80,'2020-21 FORMULA'!$B:$AC,'Summary for Prints'!H$2,FALSE) -> 0 | I80: =VLOOKUP($B80,'2020-21 FORMULA'!$B:$AC,'Summary for Prints'!I$2,FALSE) -> 114400 | J80: =VLOOKUP($B80,'2020-21 FORMULA'!$B:$AC,'Summary for Prints'!J$2,FALSE) -> 0 | K80: =VLOOKUP($B80,'2020-21 FORMULA'!$B:$AC,'Summary for Prints'!K$2,FALSE) -> 43803 | L80: =VLOOKUP($B80,'2020-21 FORMULA'!$B:$AC,'Summary for Prints'!L$2,FALSE) -> 0 | M80: =SUM(C80:L80) -> 6877712.552 | N80: =VLOOKUP($B80,'2020-21 FORMULA'!$B:$AC,'Summary for Prints'!N$2,FALSE) -> 0 | O80: =VLOOKUP($B80,'2020-21 FORMULA'!$B:$AC,'Summary for Prints'!O$2,FALSE) -> 0 | P80: =SUM(M80:O80) -> 6877712.552 | Q80: =VLOOKUP($B80,'2020-21 FORMULA'!$B:$AC,'Summary for Prints'!Q$2,FALSE) -> 389423.7979 | R80: =P80+Q80 -> 7267136.35 | S80: =VLOOKUP($B80,'2020-21 FORMULA'!$B:$AC,'Summary for Prints'!S$2,FALSE) -> 0 | T80: =R80+S80 -> 7267136.35 | U80: =VLOOKUP($B80,'2020-21 FORMULA'!$B:$AC,'Summary for Prints'!U$2,FALSE) -> 0 | V80: =SUMIF('ERS 2020-21'!B:B,'Summary for Prints'!B80,'ERS 2020-21'!T:T) -> 0 | W80: =(SUMIF('ERS 2020-21'!B:B,'Summary for Prints'!B80,'ERS 2020-21'!L:L)+SUMIF('ERS 2020-21'!B:B,'Summary for Prints'!B80,'ERS 2020-21'!M:M))*'ERS 2020-21'!$L$1 -> 0 | X80: =(SUMIF('ERS 2020-21'!B:B,'Summary for Prints'!B80,'ERS 2020-21'!O:O))*'ERS 2020-21'!$L$1 -> 0 | Y80: =SUMIF('ERS 2020-21'!B:B,'Summary for Prints'!B80,'ERS 2020-21'!U:U) -> 0 | Z80: =SUMIF('ERS 2020-21'!B:B,'Summary for Prints'!B80,'ERS 2020-21'!V:V)+SUMIF('ERS 2020-21'!B:B,'Summary for Prints'!B80,'ERS 2020-21'!W:W) -> 0 | AA80: =IFERROR(VLOOKUP(B80,'2020-21 Nursery Budget'!E:AC,25,FALSE),0) -> 0 | AB80: 0 | AC80: =SUM(T80:AB80) -> 7267136.35 | AD80: =VLOOKUP($B80,'2020-21 FORMULA'!$B:$AC,'Summary for Prints'!AD$2,FALSE) -> 1444.66667 | AI80: 8315402 | AL80: =AC80 -> 7267136.35 | AM80: =K80 -> 43803 | AN80: =AL80-AM80 -> 7223333.35
A81: da Vinci Community College | B81: 4007 | C81: =VLOOKUP($B81,'2020-21 FORMULA'!$B:$AC,'Summary for Prints'!C$2,FALSE) -> 2708573 | D81: =VLOOKUP($B81,'2020-21 FORMULA'!$B:$AC,'Summary for Prints'!D$2,FALSE) -> 679194.193 | E81: =VLOOKUP($B81,'2020-21 FORMULA'!$B:$AC,'Summary for Prints'!E$2,FALSE) -> 0 | F81: =VLOOKUP($B81,'2020-21 FORMULA'!$B:$AC,'Summary for Prints'!F$2,FALSE) -> 318896.8005 | G81: =VLOOKUP($B81,'2020-21 FORMULA'!$B:$AC,'Summary for Prints'!G$2,FALSE) -> 38880 | H81: =VLOOKUP($B81,'2020-21 FORMULA'!$B:$AC,'Summary for Prints'!H$2,FALSE) -> 0 | I81: =VLOOKUP($B81,'2020-21 FORMULA'!$B:$AC,'Summary for Prints'!I$2,FALSE) -> 114400 | J81: =VLOOKUP($B81,'2020-21 FORMULA'!$B:$AC,'Summary for Prints'!J$2,FALSE) -> 0 | K81: =VLOOKUP($B81,'2020-21 FORMULA'!$B:$AC,'Summary for Prints'!K$2,FALSE) -> 22936 | L81: =VLOOKUP($B81,'2020-21 FORMULA'!$B:$AC,'Summary for Prints'!L$2,FALSE) -> 24267 | M81: 3907146.993 | N81: =VLOOKUP($B81,'2020-21 FORMULA'!$B:$AC,'Summary for Prints'!N$2,FALSE) -> 0 | O81: =VLOOKUP($B81,'2020-21 FORMULA'!$B:$AC,'Summary for Prints'!O$2,FALSE) -> 0 | P81: 3907146.993 | Q81: =VLOOKUP($B81,'2020-21 FORMULA'!$B:$AC,'Summary for Prints'!Q$2,FALSE) -> 0 | R81: 3907146.993 | S81: =VLOOKUP($B81,'2020-21 FORMULA'!$B:$AC,'Summary for Prints'!S$2,FALSE) -> 0 | T81: 3907146.993 | U81: =VLOOKUP($B81,'2020-21 FORMULA'!$B:$AC,'Summary for Prints'!U$2,FALSE) -> 0 | V81: =SUMIF('ERS 2020-21'!B:B,'Summary for Prints'!B81,'ERS 2020-21'!T:T) -> 0 | W81: =(SUMIF('ERS 2020-21'!B:B,'Summary for Prints'!B81,'ERS 2020-21'!L:L)+SUMIF('ERS 2020-21'!B:B,'Summary for Prints'!B81,'ERS 2020-21'!M:M))*'ERS 2020-21'!$L$1 -> 0 | X81: =(SUMIF('ERS 2020-21'!B:B,'Summary for Prints'!B81,'ERS 2020-21'!O:O))*'ERS 2020-21'!$L$1 -> 0 | Y81: =SUMIF('ERS 2020-21'!B:B,'Summary for Prints'!B81,'ERS 2020-21'!U:U) -> 0 | Z81: =SUMIF('ERS 2020-21'!B:B,'Summary for Prints'!B81,'ERS 2020-21'!V:V)+SUMIF('ERS 2020-21'!B:B,'Summary for Prints'!B81,'ERS 2020-21'!W:W) -> 0 | AA81: =IFERROR(VLOOKUP(B81,'2020-21 Nursery Budget'!E:AC,25,FALSE),0) -> 0 | AB81: 0 | AC81: 3907146.993 | AD81: =VLOOKUP($B81,'2020-21 FORMULA'!$B:$AC,'Summary for Prints'!AD$2,FALSE) -> 641 | AI81: 8314608 | AL81: 3907146.993 | AM81: 22936 | AN81: 3884210.993
A82: Derby Cathedral School | B82: 4004 | C82: =VLOOKUP($B82,'2020-21 FORMULA'!$B:$AC,'Summary for Prints'!C$2,FALSE) -> 1865021.667 | D82: =VLOOKUP($B82,'2020-21 FORMULA'!$B:$AC,'Summary for Prints'!D$2,FALSE) -> 360866.4838 | E82: =VLOOKUP($B82,'2020-21 FORMULA'!$B:$AC,'Summary for Prints'!E$2,FALSE) -> 0 | F82: =VLOOKUP($B82,'2020-21 FORMULA'!$B:$AC,'Summary for Prints'!F$2,FALSE) -> 132655.1146 | G82: =VLOOKUP($B82,'2020-21 FORMULA'!$B:$AC,'Summary for Prints'!G$2,FALSE) -> 1867.039106 | H82: =VLOOKUP($B82,'2020-21 FORMULA'!$B:$AC,'Summary for Prints'!H$2,FALSE) -> 0 | I82: =VLOOKUP($B82,'2020-21 FORMULA'!$B:$AC,'Summary for Prints'!I$2,FALSE) -> 114400 | J82: =VLOOKUP($B82,'2020-21 FORMULA'!$B:$AC,'Summary for Prints'!J$2,FALSE) -> 0 | K82: =VLOOKUP($B82,'2020-21 FORMULA'!$B:$AC,'Summary for Prints'!K$2,FALSE) -> 14329.03 | L82: =VLOOKUP($B82,'2020-21 FORMULA'!$B:$AC,'Summary for Prints'!L$2,FALSE) -> 0 | M82: 2489139.334 | N82: =VLOOKUP($B82,'2020-21 FORMULA'!$B:$AC,'Summary for Prints'!N$2,FALSE) -> 0 | O82: =VLOOKUP($B82,'2020-21 FORMULA'!$B:$AC,'Summary for Prints'!O$2,FALSE) -> 0 | P82: 2489139.334 | Q82: =VLOOKUP($B82,'2020-21 FORMULA'!$B:$AC,'Summary for Prints'!Q$2,FALSE) -> 0 | R82: 2489139.334 | S82: =VLOOKUP($B82,'2020-21 FORMULA'!$B:$AC,'Summary for Prints'!S$2,FALSE) -> 0 | T82: 2489139.334 | U82: =VLOOKUP($B82,'2020-21 FORMULA'!$B:$AC,'Summary for Prints'!U$2,FALSE) -> 0 | V82: =SUMIF('ERS 2020-21'!B:B,'Summary for Prints'!B82,'ERS 2020-21'!T:T) -> 0 | W82: =(SUMIF('ERS 2020-21'!B:B,'Summary for Prints'!B82,'ERS 2020-21'!L:L)+SUMIF('ERS 2020-21'!B:B,'Summary for Prints'!B82,'ERS 2020-21'!M:M))*'ERS 2020-21'!$L$1 -> 0 | X82: =(SUMIF('ERS 2020-21'!B:B,'Summary for Prints'!B82,'ERS 2020-21'!O:O))*'ERS 2020-21'!$L$1 -> 0 | Y82: =SUMIF('ERS 2020-21'!B:B,'Summary for Prints'!B82,'ERS 2020-21'!U:U) -> 0 | Z82: =SUMIF('ERS 2020-21'!B:B,'Summary for Prints'!B82,'ERS 2020-21'!V:V)+SUMIF('ERS 2020-21'!B:B,'Summary for Prints'!B82,'ERS 2020-21'!W:W) -> 0 | AA82: =IFERROR(VLOOKUP(B82,'2020-21 Nursery Budget'!E:AC,25,FALSE),0) -> 0 | AB82: 0 | AC82: 2489139.334 | AD82: =VLOOKUP($B82,'2020-21 FORMULA'!$B:$AC,'Summary for Prints'!AD$2,FALSE) -> 464.1666667 | AI82: 8319999 | AL82: 2489139.334 | AM82: 14329.03 | AN82: 2474810.304
A83: Derby Moor Community Sports College | B83: 4178 | C83: =VLOOKUP($B83,'2020-21 FORMULA'!$B:$AC,'Summary for Prints'!C$2,FALSE) -> 5785346.5 | D83: =VLOOKUP($B83,'2020-21 FORMULA'!$B:$AC,'Summary for Prints'!D$2,FALSE) -> 1001828.57 | E83: =VLOOKUP($B83,'2020-21 FORMULA'!$B:$AC,'Summary for Prints'!E$2,FALSE) -> 0 | F83: =VLOOKUP($B83,'2020-21 FORMULA'!$B:$AC,'Summary for Prints'!F$2,FALSE) -> 558479.4947 | G83: =VLOOKUP($B83,'2020-21 FORMULA'!$B:$AC,'Summary for Prints'!G$2,FALSE) -> 49898.73418 | H83: =VLOOKUP($B83,'2020-21 FORMULA'!$B:$AC,'Summary for Prints'!H$2,FALSE) -> 0 | I83: =VLOOKUP($B83,'2020-21 FORMULA'!$B:$AC,'Summary for Prints'!I$2,FALSE) -> 114400 | J83: =VLOOKUP($B83,'2020-21 FORMULA'!$B:$AC,'Summary for Prints'!J$2,FALSE) -> 0 | K83: =VLOOKUP($B83,'2020-21 FORMULA'!$B:$AC,'Summary for Prints'!K$2,FALSE) -> 31693 | L83: =VLOOKUP($B83,'2020-21 FORMULA'!$B:$AC,'Summary for Prints'!L$2,FALSE) -> 0 | M83: 7541646.299 | N83: =VLOOKUP($B83,'2020-21 FORMULA'!$B:$AC,'Summary for Prints'!N$2,FALSE) -> 0 | O83: =VLOOKUP($B83,'2020-21 FORMULA'!$B:$AC,'Summary for Prints'!O$2,FALSE) -> 0 | P83: 7541646.299 | Q83: =VLOOKUP($B83,'2020-21 FORMULA'!$B:$AC,'Summary for Prints'!Q$2,FALSE) -> 0 | R83: 7541646.299 | S83: =VLOOKUP($B83,'2020-21 FORMULA'!$B:$AC,'Summary for Prints'!S$2,FALSE) -> 0 | T83: 7541646.299 | U83: =VLOOKUP($B83,'2020-21 FORMULA'!$B:$AC,'Summary for Prints'!U$2,FALSE) -> 0 | V83: =SUMIF('ERS 2020-21'!B:B,'Summary for Prints'!B83,'ERS 2020-21'!T:T) -> 0 | W83: =(SUMIF('ERS 2020-21'!B:B,'Summary for Prints'!B83,'ERS 2020-21'!L:L)+SUMIF('ERS 2020-21'!B:B,'Summary for Prints'!B83,'ERS 2020-21'!M:M))*'ERS 2020-21'!$L$1 -> 0 | X83: =(SUMIF('ERS 2020-21'!B:B,'Summary for Prints'!B83,'ERS 2020-21'!O:O))*'ERS 2020-21'!$L$1 -> 0 | Y83: =SUMIF('ERS 2020-21'!B:B,'Summary for Prints'!B83,'ERS 2020-21'!U:U) -> 0 | Z83: =SUMIF('ERS 2020-21'!B:B,'Summary for Prints'!B83,'ERS 2020-21'!V:V)+SUMIF('ERS 2020-21'!B:B,'Summary for Prints'!B83,'ERS 2020-21'!W:W) -> 0 | AA83: =IFERROR(VLOOKUP(B83,'2020-21 Nursery Budget'!E:AC,25,FALSE),0) -> 0 | AB83: 0 | AC83: 7541646.299 | AD83: =VLOOKUP($B83,'2020-21 FORMULA'!$B:$AC,'Summary for Prints'!AD$2,FALSE) -> 1368.75 | AI83: 8314178 | AL83: 7541646.299 | AM83: 31693 | AN83: 7509953.299
A84: Lees Brook Community Sports College | B84: 4006 | C84: =VLOOKUP($B84,'2020-21 FORMULA'!$B:$AC,'Summary for Prints'!C$2,FALSE) -> 4479321 | D84: =VLOOKUP($B84,'2020-21 FORMULA'!$B:$AC,'Summary for Prints'!D$2,FALSE) -> 554868.1356 | E84: =VLOOKUP($B84,'2020-21 FORMULA'!$B:$AC,'Summary for Prints'!E$2,FALSE) -> 0 | F84: =VLOOKUP($B84,'2020-21 FORMULA'!$B:$AC,'Summary for Prints'!F$2,FALSE) -> 421158.1752 | G84: =VLOOKUP($B84,'2020-21 FORMULA'!$B:$AC,'Summary for Prints'!G$2,FALSE) -> 10089.52741 | H84: =VLOOKUP($B84,'2020-21 FORMULA'!$B:$AC,'Summary for Prints'!H$2,FALSE) -> 0 | I84: =VLOOKUP($B84,'2020-21 FORMULA'!$B:$AC,'Summary for Prints'!I$2,FALSE) -> 114400 | J84: =VLOOKUP($B84,'2020-21 FORMULA'!$B:$AC,'Summary for Prints'!J$2,FALSE) -> 0 | K84: =VLOOKUP($B84,'2020-21 FORMULA'!$B:$AC,'Summary for Prints'!K$2,FALSE) -> 27312 | L84: =VLOOKUP($B84,'2020-21 FORMULA'!$B:$AC,'Summary for Prints'!L$2,FALSE) -> 0 | M84: 5607148.838 | N84: =VLOOKUP($B84,'2020-21 FORMULA'!$B:$AC,'Summary for Prints'!N$2,FALSE) -> 0 | O84: =VLOOKUP($B84,'2020-21 FORMULA'!$B:$AC,'Summary for Prints'!O$2,FALSE) -> 0 | P84: 5607148.838 | Q84: =VLOOKUP($B84,'2020-21 FORMULA'!$B:$AC,'Summary for Prints'!Q$2,FALSE) -> 0 | R84: 5607148.838 | S84: =VLOOKUP($B84,'2020-21 FORMULA'!$B:$AC,'Summary for Prints'!S$2,FALSE) -> 0 | T84: 5607148.838 | U84: =VLOOKUP($B84,'2020-21 FORMULA'!$B:$AC,'Summary for Prints'!U$2,FALSE) -> 0 | V84: 0 | W84: =(SUMIF('ERS 2020-21'!B:B,'Summary for Prints'!B84,'ERS 2020-21'!L:L)+SUMIF('ERS 2020-21'!B:B,'Summary for Prints'!B84,'ERS 2020-21'!M:M))*'ERS 2020-21'!$L$1 -> 24000 | X84: =(SUMIF('ERS 2020-21'!B:B,'Summary for Prints'!B84,'ERS 2020-21'!O:O))*'ERS 2020-21'!$L$1 -> 30000 | Y84: =SUMIF('ERS 2020-21'!B:B,'Summary for Prints'!B84,'ERS 2020-21'!U:U) -> 38500 | Z84: =SUMIF('ERS 2020-21'!B:B,'Summary for Prints'!B84,'ERS 2020-21'!V:V)+SUMIF('ERS 2020-21'!B:B,'Summary for Prints'!B84,'ERS 2020-21'!W:W) -> 0 | AA84: =IFERROR(VLOOKUP(B84,'2020-21 Nursery Budget'!E:AC,25,FALSE),0) -> 0 | AB84: 0 | AC84: 5699648.838 | AD84: =VLOOKUP($B84,'2020-21 FORMULA'!$B:$AC,'Summary for Prints'!AD$2,FALSE) -> 1059 | AI84: 8314181 | AL84: 5699648.838 | AM84: 27312 | AN84: 5672336.838
A85: Littleover Community School | B85: 4182 | C85: =VLOOKUP($B85,'2020-21 FORMULA'!$B:$AC,'Summary for Prints'!C$2,FALSE) -> 6232151 | D85: =VLOOKUP($B85,'2020-21 FORMULA'!$B:$AC,'Summary for Prints'!D$2,FALSE) -> 278695 | E85: =VLOOKUP($B85,'2020-21 FORMULA'!$B:$AC,'Summary for Prints'!E$2,FALSE) -> 0 | F85: =VLOOKUP($B85,'2020-21 FORMULA'!$B:$AC,'Summary for Prints'!F$2,FALSE) -> 409402.9401 | G85: =VLOOKUP($B85,'2020-21 FORMULA'!$B:$AC,'Summary for Prints'!G$2,FALSE) -> 41816.81633 | H85: =VLOOKUP($B85,'2020-21 FORMULA'!$B:$AC,'Summary for Prints'!H$2,FALSE) -> 0 | I85: =VLOOKUP($B85,'2020-21 FORMULA'!$B:$AC,'Summary for Prints'!I$2,FALSE) -> 114400 | J85: =VLOOKUP($B85,'2020-21 FORMULA'!$B:$AC,'Summary for Prints'!J$2,FALSE) -> 0 | K85: =VLOOKUP($B85,'2020-21 FORMULA'!$B:$AC,'Summary for Prints'!K$2,FALSE) -> 145580 | L85: =VLOOKUP($B85,'2020-21 FORMULA'!$B:$AC,'Summary for Prints'!L$2,FALSE) -> 0 | M85: 7222045.756 | N85: =VLOOKUP($B85,'2020-21 FORMULA'!$B:$AC,'Summary for Prints'!N$2,FALSE) -> 0 | O85: =VLOOKUP($B85,'2020-21 FORMULA'!$B:$AC,'Summary for Prints'!O$2,FALSE) -> 0 | P85: 7222045.756 | Q85: =VLOOKUP($B85,'2020-21 FORMULA'!$B:$AC,'Summary for Prints'!Q$2,FALSE) -> 283534.2435 | R85: 7505580 | S85: =VLOOKUP($B85,'2020-21 FORMULA'!$B:$AC,'Summary for Prints'!S$2,FALSE) -> -85696.896 | T85: 7419883.104 | U85: =VLOOKUP($B85,'2020-21 FORMULA'!$B:$AC,'Summary for Prints'!U$2,FALSE) -> 0 | V85: =SUMIF('ERS 2020-21'!B:B,'Summary for Prints'!B85,'ERS 2020-21'!T:T) -> 0 | W85: =(SUMIF('ERS 2020-21'!B:B,'Summary for Prints'!B85,'ERS 2020-21'!L:L)+SUMIF('ERS 2020-21'!B:B,'Summary for Prints'!B85,'ERS 2020-21'!M:M))*'ERS 2020-21'!$L$1 -> 0 | X85: =(SUMIF('ERS 2020-21'!B:B,'Summary for Prints'!B85,'ERS 2020-21'!O:O))*'ERS 2020-21'!$L$1 -> 0 | Y85: =SUMIF('ERS 2020-21'!B:B,'Summary for Prints'!B85,'ERS 2020-21'!U:U) -> 0 | Z85: =SUMIF('ERS 2020-21'!B:B,'Summary for Prints'!B85,'ERS 2020-21'!V:V)+SUMIF('ERS 2020-21'!B:B,'Summary for Prints'!B85,'ERS 2020-21'!W:W) -> 0 | AA85: =IFERROR(VLOOKUP(B85,'2020-21 Nursery Budget'!E:AC,25,FALSE),0) -> 0 | AB85: 0 | AC85: 7419883.104 | AD85: =VLOOKUP($B85,'2020-21 FORMULA'!$B:$AC,'Summary for Prints'!AD$2,FALSE) -> 1472 | AI85: 8314182 | AL85: 7419883.104 | AM85: 145580 | AN85: 7274303.104
A86: Merrill College | B86: 4001 | C86: =VLOOKUP($B86,'2020-21 FORMULA'!$B:$AC,'Summary for Prints'!C$2,FALSE) -> 3549530 | D86: =VLOOKUP($B86,'2020-21 FORMULA'!$B:$AC,'Summary for Prints'!D$2,FALSE) -> 1081949.893 | E86: =VLOOKUP($B86,'2020-21 FORMULA'!$B:$AC,'Summary for Prints'!E$2,FALSE) -> 0 | F86: =VLOOKUP($B86,'2020-21 FORMULA'!$B:$AC,'Summary for Prints'!F$2,FALSE) -> 493143.7258 | G86: =VLOOKUP($B86,'2020-21 FORMULA'!$B:$AC,'Summary for Prints'!G$2,FALSE) -> 105368.5106 | H86: =VLOOKUP($B86,'2020-21 FORMULA'!$B:$AC,'Summary for Prints'!H$2,FALSE) -> 45053.15852 | I86: =VLOOKUP($B86,'2020-21 FORMULA'!$B:$AC,'Summary for Prints'!I$2,FALSE) -> 114400 | J86: =VLOOKUP($B86,'2020-21 FORMULA'!$B:$AC,'Summary for Prints'!J$2,FALSE) -> 0 | K86: =VLOOKUP($B86,'2020-21 FORMULA'!$B:$AC,'Summary for Prints'!K$2,FALSE) -> 38567 | L86: =VLOOKUP($B86,'2020-21 FORMULA'!$B:$AC,'Summary for Prints'!L$2,FALSE) -> 371989 | M86: 5800001.288 | N86: =VLOOKUP($B86,'2020-21 FORMULA'!$B:$AC,'Summary for Prints'!N$2,FALSE) -> 0 | O86: =VLOOKUP($B86,'2020-21 FORMULA'!$B:$AC,'Summary for Prints'!O$2,FALSE) -> 0 | P86: 5800001.288 | Q86: =VLOOKUP($B86,'2020-21 FORMULA'!$B:$AC,'Summary for Prints'!Q$2,FALSE) -> 0 | R86: 5800001.288 | S86: =VLOOKUP($B86,'2020-21 FORMULA'!$B:$AC,'Summary for Prints'!S$2,FALSE) -> 0 | T86: 5800001.288 | U86: =VLOOKUP($B86,'2020-21 FORMULA'!$B:$AC,'Summary for Prints'!U$2,FALSE) -> 0 | V86: =SUMIF('ERS 2020-21'!B:B,'Summary for Prints'!B86,'ERS 2020-21'!T:T) -> 0 | W86: =(SUMIF('ERS 2020-21'!B:B,'Summary for Prints'!B86,'ERS 2020-21'!L:L)+SUMIF('ERS 2020-21'!B:B,'Summary for Prints'!B86,'ERS 2020-21'!M:M))*'ERS 2020-21'!$L$1 -> 0 | X86: =(SUMIF('ERS 2020-21'!B:B,'Summary for Prints'!B86,'ERS 2020-21'!O:O))*'ERS 2020-21'!$L$1 -> 0 | Y86: =SUMIF('ERS 2020-21'!B:B,'Summary for Prints'!B86,'ERS 2020-21'!U:U) -> 0 | Z86: =SUMIF('ERS 2020-21'!B:B,'Summary for Prints'!B86,'ERS 2020-21'!V:V)+SUMIF('ERS 2020-21'!B:B,'Summary for Prints'!B86,'ERS 2020-21'!W:W) -> 0 | AA86: =IFERROR(VLOOKUP(B86,'2020-21 Nursery Budget'!E:AC,25,FALSE),0) -> 0 | AB86: 0 | AC86: 5800001.288 | AD86: =VLOOKUP($B86,'2020-21 FORMULA'!$B:$AC,'Summary for Prints'!AD$2,FALSE) -> 848 | AI86: 8314001 | AL86: 5800001.288 | AM86: 38567 | AN86: 5761434.288
A87: Murray Park School | B87: 5406 | C87: =VLOOKUP($B87,'2020-21 FORMULA'!$B:$AC,'Summary for Prints'!C$2,FALSE) -> 4289939.88 | D87: =VLOOKUP($B87,'2020-21 FORMULA'!$B:$AC,'Summary for Prints'!D$2,FALSE) -> 702483.006 | E87: =VLOOKUP($B87,'2020-21 FORMULA'!$B:$AC,'Summary for Prints'!E$2,FALSE) -> 0 | F87: =VLOOKUP($B87,'2020-21 FORMULA'!$B:$AC,'Summary for Prints'!F$2,FALSE) -> 485585.183 | G87: =VLOOKUP($B87,'2020-21 FORMULA'!$B:$AC,'Summary for Prints'!G$2,FALSE) -> 61522.66121 | H87: =VLOOKUP($B87,'2020-21 FORMULA'!$B:$AC,'Summary for Prints'!H$2,FALSE) -> 4956.186613 | I87: =VLOOKUP($B87,'2020-21 FORMULA'!$B:$AC,'Summary for Prints'!I$2,FALSE) -> 114400 | J87: =VLOOKUP($B87,'2020-21 FORMULA'!$B:$AC,'Summary for Prints'!J$2,FALSE) -> 0 | K87: =VLOOKUP($B87,'2020-21 FORMULA'!$B:$AC,'Summary for Prints'!K$2,FALSE) -> 25560 | L87: =VLOOKUP($B87,'2020-21 FORMULA'!$B:$AC,'Summary for Prints'!L$2,FALSE) -> 0 | M87: 5684446.917 | N87: =VLOOKUP($B87,'2020-21 FORMULA'!$B:$AC,'Summary for Prints'!N$2,FALSE) -> 0 | O87: =VLOOKUP($B87,'2020-21 FORMULA'!$B:$AC,'Summary for Prints'!O$2,FALSE) -> 0 | P87: 5684446.917 | Q87: =VLOOKUP($B87,'2020-21 FORMULA'!$B:$AC,'Summary for Prints'!Q$2,FALSE) -> 0 | R87: 5684446.917 | S87: =VLOOKUP($B87,'2020-21 FORMULA'!$B:$AC,'Summary for Prints'!S$2,FALSE) -> -59270.58144 | T87: 5625176.335 | U87: =VLOOKUP($B87,'2020-21 FORMULA'!$B:$AC,'Summary for Prints'!U$2,FALSE) -> 0 | V87: =SUMIF('ERS 2020-21'!B:B,'Summary for Prints'!B87,'ERS 2020-21'!T:T) -> 0 | W87: =(SUMIF('ERS 2020-21'!B:B,'Summary for Prints'!B87,'ERS 2020-21'!L:L)+SUMIF('ERS 2020-21'!B:B,'Summary for Prints'!B87,'ERS 2020-21'!M:M))*'ERS 2020-21'!$L$1 -> 0 | X87: =(SUMIF('ERS 2020-21'!B:B,'Summary for Prints'!B87,'ERS 2020-21'!O:O))*'ERS 2020-21'!$L$1 -> 0 | Y87: =SUMIF('ERS 2020-21'!B:B,'Summary for Prints'!B87,'ERS 2020-21'!U:U) -> 0 | Z87: =SUMIF('ERS 2020-21'!B:B,'Summary for Prints'!B87,'ERS 2020-21'!V:V)+SUMIF('ERS 2020-21'!B:B,'Summary for Prints'!B87,'ERS 2020-21'!W:W) -> 0 | AA87: =IFERROR(VLOOKUP(B87,'2020-21 Nursery Budget'!E:AC,25,FALSE),0) -> 0 | AB87: 0 | AC87: 5625176.335 | AD87: =VLOOKUP($B87,'2020-21 FORMULA'!$B:$AC,'Summary for Prints'!AD$2,FALSE) -> 1018.08 | AI87: 8315406 | AL87: 5625176.335 | AM87: 25560 | AN87: 5599616.335
A88: Noel Baker Community School and Language College | B88: 4005 | C88: =VLOOKUP($B88,'2020-21 FORMULA'!$B:$AC,'Summary for Prints'!C$2,FALSE) -> 4214351 | D88: =VLOOKUP($B88,'2020-21 FORMULA'!$B:$AC,'Summary for Prints'!D$2,FALSE) -> 846964.0524 | E88: =VLOOKUP($B88,'2020-21 FORMULA'!$B:$AC,'Summary for Prints'!E$2,FALSE) -> 0 | F88: =VLOOKUP($B88,'2020-21 FORMULA'!$B:$AC,'Summary for Prints'!F$2,FALSE) -> 380922.5319 | G88: =VLOOKUP($B88,'2020-21 FORMULA'!$B:$AC,'Summary for Prints'!G$2,FALSE) -> 8657.507599 | H88: =VLOOKUP($B88,'2020-21 FORMULA'!$B:$AC,'Summary for Prints'!H$2,FALSE) -> 0 | I88: =VLOOKUP($B88,'2020-21 FORMULA'!$B:$AC,'Summary for Prints'!I$2,FALSE) -> 114400 | J88: =VLOOKUP($B88,'2020-21 FORMULA'!$B:$AC,'Summary for Prints'!J$2,FALSE) -> 0 | K88: =VLOOKUP($B88,'2020-21 FORMULA'!$B:$AC,'Summary for Prints'!K$2,FALSE) -> 28085 | L88: =VLOOKUP($B88,'2020-21 FORMULA'!$B:$AC,'Summary for Prints'!L$2,FALSE) -> 419920 | M88: 6013300.092 | N88: =VLOOKUP($B88,'2020-21 FORMULA'!$B:$AC,'Summary for Prints'!N$2,FALSE) -> 0 | O88: =VLOOKUP($B88,'2020-21 FORMULA'!$B:$AC,'Summary for Prints'!O$2,FALSE) -> 0 | P88: 6013300.092 | Q88: =VLOOKUP($B88,'2020-21 FORMULA'!$B:$AC,'Summary for Prints'!Q$2,FALSE) -> 0 | R88: 6013300.092 | S88: =VLOOKUP($B88,'2020-21 FORMULA'!$B:$AC,'Summary for Prints'!S$2,FALSE) -> 0 | T88: 6013300.092 | U88: =VLOOKUP($B88,'2020-21 FORMULA'!$B:$AC,'Summary for Prints'!U$2,FALSE) -> 0 | V88: =SUMIF('ERS 2020-21'!B:B,'Summary for Prints'!B88,'ERS 2020-21'!T:T) -> 0 | W88: =(SUMIF('ERS 2020-21'!B:B,'Summary for Prints'!B88,'ERS 2020-21'!L:L)+SUMIF('ERS 2020-21'!B:B,'Summary for Prints'!B88,'ERS 2020-21'!M:M))*'ERS 2020-21'!$L$1 -> 0 | X88: =(SUMIF('ERS 2020-21'!B:B,'Summary for Prints'!B88,'ERS 2020-21'!O:O))*'ERS 2020-21'!$L$1 -> 0 | Y88: =SUMIF('ERS 2020-21'!B:B,'Summary for Prints'!B88,'ERS 2020-21'!U:U) -> 0 | Z88: =SUMIF('ERS 2020-21'!B:B,'Summary for Prints'!B88,'ERS 2020-21'!V:V)+SUMIF('ERS 2020-21'!B:B,'Summary for Prints'!B88,'ERS 2020-21'!W:W) -> 0 | AA88: =IFERROR(VLOOKUP(B88,'2020-21 Nursery Budget'!E:AC,25,FALSE),0) -> 0 | AB88: 0 | AC88: 6013300.092 | AD88: =VLOOKUP($B88,'2020-21 FORMULA'!$B:$AC,'Summary for Prints'!AD$2,FALSE) -> 989 | AI88: 8315407 | AL88: 6013300.092 | AM88: 28085 | AN88: 5985215.092
A89: Saint Benedict Catholic Voluntary Academy | B89: 4607 | C89: =VLOOKUP($B89,'2020-21 FORMULA'!$B:$AC,'Summary for Prints'!C$2,FALSE) -> 5049444 | D89: =VLOOKUP($B89,'2020-21 FORMULA'!$B:$AC,'Summary for Prints'!D$2,FALSE) -> 919034.5918 | E89: =VLOOKUP($B89,'2020-21 FORMULA'!$B:$AC,'Summary for Prints'!E$2,FALSE) -> 0 | F89: =VLOOKUP($B89,'2020-21 FORMULA'!$B:$AC,'Summary for Prints'!F$2,FALSE) -> 443963.8252 | G89: =VLOOKUP($B89,'2020-21 FORMULA'!$B:$AC,'Summary for Prints'!G$2,FALSE) -> 37471.38307 | H89: =VLOOKUP($B89,'2020-21 FORMULA'!$B:$AC,'Summary for Prints'!H$2,FALSE) -> 0 | I89: =VLOOKUP($B89,'2020-21 FORMULA'!$B:$AC,'Summary for Prints'!I$2,FALSE) -> 114400 | J89: =VLOOKUP($B89,'2020-21 FORMULA'!$B:$AC,'Summary for Prints'!J$2,FALSE) -> 0 | K89: =VLOOKUP($B89,'2020-21 FORMULA'!$B:$AC,'Summary for Prints'!K$2,FALSE) -> 28601 | L89: =VLOOKUP($B89,'2020-21 FORMULA'!$B:$AC,'Summary for Prints'!L$2,FALSE) -> 0 | M89: 6592914.8 | N89: =VLOOKUP($B89,'2020-21 FORMULA'!$B:$AC,'Summary for Prints'!N$2,FALSE) -> 0 | O89: =VLOOKUP($B89,'2020-21 FORMULA'!$B:$AC,'Summary for Prints'!O$2,FALSE) -> 0 | P89: 6592914.8 | Q89: =VLOOKUP($B89,'2020-21 FORMULA'!$B:$AC,'Summary for Prints'!Q$2,FALSE) -> 0 | R89: 6592914.8 | S89: =VLOOKUP($B89,'2020-21 FORMULA'!$B:$AC,'Summary for Prints'!S$2,FALSE) -> 0 | T89: 6592914.8 | U89: =VLOOKUP($B89,'2020-21 FORMULA'!$B:$AC,'Summary for Prints'!U$2,FALSE) -> 0 | V89: 0 | W89: =(SUMIF('ERS 2020-21'!B:B,'Summary for Prints'!B89,'ERS 2020-21'!L:L)+SUMIF('ERS 2020-21'!B:B,'Summary for Prints'!B89,'ERS 2020-21'!M:M))*'ERS 2020-21'!$L$1 -> 100000 | X89: =(SUMIF('ERS 2020-21'!B:B,'Summary for Prints'!B89,'ERS 2020-21'!O:O))*'ERS 2020-21'!$L$1 -> 12000 | Y89: =SUMIF('ERS 2020-21'!B:B,'Summary for Prints'!B89,'ERS 2020-21'!U:U) -> 170000 | Z89: =SUMIF('ERS 2020-21'!B:B,'Summary for Prints'!B89,'ERS 2020-21'!V:V)+SUMIF('ERS 2020-21'!B:B,'Summary for Prints'!B89,'ERS 2020-21'!W:W) -> 58852.61 | AA89: =IFERROR(VLOOKUP(B89,'2020-21 Nursery Budget'!E:AC,25,FALSE),0) -> 0 | AB89: 0 | AC89: 6933767.41 | AD89: =VLOOKUP($B89,'2020-21 FORMULA'!$B:$AC,'Summary for Prints'!AD$2,FALSE) -> 1194 | AI89: 8314607 | AL89: 6933767.41 | AM89: 28601 | AN89: 6905166.41
